Workbook

Sheet AER only (hidden)
B1: Data in these columns used for data validation and database purposes.
B2: Date last modified:
B3: 14 April 2015 | C3: merged cell C46/47
B4: 17 April 2015 | C4: adjusted dms_RYE to automate based on dms_Model (NB: EB & CA refer to CRCP_y5)
B5: 14 May 2015 | C5: adapted this cover for use in CA & EB RINs
B6: October 2015 | C6: added full Trading Name for worksheet headings
C7: added new formulas for distinguishing RYE for RFM vs PTRM and Reset (set by ref to CRCP or FRCP) and EB & CA (set by ref to CRY)
B11: dms_TradingName_List | C11: dms_TradingNameFull_List | D11: dms_ABN_List | E11: dms_JurisdictionList | F11: dms_Sector_List | G11: dms_Segment_List | H11: dms_FormControl_List | I11: dms_RPT_List | J11: dms_RPTMonth_List | K11: dms_CRCPlength_List | L11: dms_FRCPlength_List | M11: dms_663_List | N11: dms_DeterminationRef_List | R11: dms_Addr1_List | S11: dms_Addr2_List | T11: dms_Suburb_List | U11: dms_State_List | V11: dms_PostCode_List | W11: dms_PAddr1_List | X11: dms_PAddr2_List | Y11: dms_PSuburb_List | Z11: dms_PState_List | AA11: dms_PPostCode_List | AB11: dms_ContactName1_List | AC11: dms_ContactPh1_List | AD11: dms_ContactEmail_List
B12: ActewAGL Distribution | C12: ActewAGL Distribution | D12: 76670568688 | E12: ACT | F12: Electricity | G12: Distribution | H12: Revenue cap | I12: Calendar | J12: December | K12: 5 | L12: 5 | M12: 5 | N12: 2014-19 Distribution Determination | R12: 40 Bunda Street | T12: CANBERRA | U12: ACT | V12: 2601 | W12: GPO BOX 366 | Y12: CANBERRA | Z12: ACT | AA12: 2601 | AB12: Robert Walker | AC12: 02 6248 3847 | AD12: robert.walker@actewagle.com.au
B13: ActewAGL Distribution (Tx Assets) | C13: ActewAGL Distribution (Tx Assets) | D13: 76670568688 | E13: ACT | F13: Electricity | G13: Distribution | H13: Revenue cap | I13: Calendar | J13: December | K13: 5 | L13: 5 | M13: 5 | N13: distribution determination | U13: ACT
B14: AGN | C14: AGN | D14: 78551685 | E14: SA | F14: Gas | G14: Distribution | H14: Revenue cap | I14: Financial | J14: June | K14: 5 | L14: 5 | M14: 5 | N14: distribution determination | U14: SA
B15: Ausgrid | C15: Ausgrid | D15: 67505337385 | E15: NSW | F15: Electricity | G15: Distribution | H15: Revenue cap | I15: Financial | J15: June | K15: 5 | L15: 5 | M15: 5 | N15: 2014-19 Distribution Determination | R15: 570 George St | T15: SYDNEY | U15: NSW | V15: 2000 | AB15: John Thomson | AC15: (02) 9269 2312 | AD15: john.thomson@ausgrid.com.au
B16: Ausgrid (Tx Assets) | C16: Ausgrid (Tx Assets) | D16: 67505337385 | E16: NSW | F16: Electricity | G16: Distribution | H16: Revenue cap | I16: Financial | J16: June | K16: 5 | L16: 5 | M16: 5 | N16: distribution determination | U16: NSW
B17: AusNet (D) | C17: AusNet Services (D) | D17: 91064651118 | E17: Vic | F17: Electricity | G17: Distribution | H17: Revenue cap | I17: Calendar | J17: December | K17: 5 | L17: 5 | M17: 2 | N17: 2016-20 Distribution Determination | R17: Level 32 | S17: 2 Southbank Boulevard | T17: SOUTHBANK | U17: Vic | V17: 3006 | W17: Locked Bag 14051 | Y17: MELBOURNE CITY MAIL CENTRE | Z17: VIC | AB17: Tom Hallam | AC17: 03 9695 6617 | AD17: Thomas.hallam@SP-Ausnet.com.au
B18: AusNet (T) | C18: AusNet (T) | D18: 48116124362 | E18: Vic | F18: Electricity | G18: Transmission | H18: Revenue cap | I18: Financial | J18: March | K18: 5 | L18: 5 | M18: 2 | N18: transmission determination | R18: Level 32 | S18: 2 Southbank Boulevard | T18: SOUTHBANK | U18: Vic | V18: 3006 | AB18: Tom Hallam | AC18: 03 9695 6617 | AD18: Thomas.hallam@SP-Ausnet.com.au
B19: Australian Distribution Co. | C19: Australian Distribution Co. | D19: 11222333444 | E19: - | F19: Electricity | G19: Distribution | H19: Revenue cap | I19: Financial | J19: June | K19: 5 | L19: 5 | M19: 2 | N19: distribution determination | U19: -
B20: Australian Transmission Co. | C20: Australian Transmission Co. | D20: 11222333444 | E20: - | F20: Electricity | G20: Transmission | H20: Revenue cap | I20: Financial | J20: June | K20: 5 | L20: 5 | M20: 5 | N20: transmission determination | U20: -
B21: CitiPower | C21: CitiPower | D21: 76064651056 | E21: Vic | F21: Electricity | G21: Distribution | H21: Revenue cap | I21: Calendar | J21: December | K21: 5 | L21: 5 | M21: 2 | N21: 2016-20 Distribution Determination | R21: 40 Market Street | T21: MELBOURNE | U21: Vic | V21: 3000 | W21: Locked Bag 14090 | Y21: MELBOURNE | Z21: VIC | AB21: Hannah Williams | AC21: 03 9683 4088 | AD21: hwilliams@powercor.com.au
B22: Directlink | C22: Directlink | D22: 16779340889 | E22: Qld | F22: Electricity | G22: Transmission | H22: Revenue cap | I22: Financial | J22: June | K22: 10 | L22: 5 | M22: 5 | N22: transmission determination | U22: NSW
B23: ElectraNet | C23: ElectraNet | D23: 41094482416 | E23: SA | F23: Electricity | G23: Transmission | H23: Revenue cap | I23: Financial | J23: June | K23: 5 | L23: 5 | M23: 5 | N23: transmission determination | R23: 52-55 East Terrace | S23: Rymill Park | T23: ADELAIDE | U23: SA | V23: 5000 | W23: PO Box 7096 | X23: Hutt Street Post Office | Y23: ADELAIDE | Z23: SA | AB23: Bill Jackson | AC23: 08 8404 7969 | AD23: jackson.bill@electranet.com.au
B24: Endeavour Energy | C24: Endeavour Energy | D24: 59253130878 | E24: NSW | F24: Electricity | G24: Distribution | H24: Revenue cap | I24: Financial | J24: June | K24: 5 | L24: 5 | M24: 5 | N24: 2014-19 Distribution Determination | R24: 51 Huntingwood Drive | T24: HUNTINGWOOD | U24: NSW | V24: 2148 | W24: PO Box 811 | Y24: SEVEN HILLS | Z24: NSW | AB24: Jon Hocking | AC24: 02 9853 4386 / 0407 348 156 | AD24: Jon.Hocking@Endeavourenergy.com.au
B25: Energex | C25: Energex | D25: 40078849055 | E25: Qld | F25: Electricity | G25: Distribution | H25: Revenue cap | I25: Financial | J25: June | K25: 5 | L25: 5 | M25: 5 | N25: 2015-20 Distribution Determination | R25: 26 Reddacliff Street | T25: NEWSTEAD | U25: Qld | V25: 4006 | W25: 26 Reddacliff Street | Y25: NEWSTEAD | Z25: QLD | AA25: 4006 | AB25: Nicola Roscoe | AC25: 07 3664 5891 | AD25: nicolaroscoe@energex.com.au
B26: Ergon Energy | C26: Ergon Energy | D26: 50087646062 | E26: Qld | F26: Electricity | G26: Distribution | H26: Revenue cap | I26: Financial | J26: June | K26: 5 | L26: 5 | M26: 5 | N26: 2015-20 Distribution Determination | R26: 22 Walker Street | T26: TOWNSVILLE | U26: Qld | V26: 4810 | AB26: Jenny Doyle, Group Manager Regulatory Affairs | AC26: (07) 3851 6416 | AD26: jenny.doyle@ergon.com.au
B27: Essential Energy | C27: Essential Energy | D27: 37428185226 | E27: NSW | F27: Electricity | G27: Distribution | H27: Revenue cap | I27: Financial | J27: June | K27: 5 | L27: 5 | M27: 5 | N27: 2014-19 Distribution Determination | R27: 8 Buller Street | T27: PORT MACQUARIE | U27: NSW | V27: 2444 | W27: PO Box 5730 | Y27: Port MacQuarie | Z27: NSW | AB27: Catherine Waddell | AC27: 02 6338 3553 | AD27: Catherine.waddell@essentialenergy.com.au
B28: Jemena Electricity | C28: Jemena Electricity | D28: 82064651083 | E28: Vic | F28: Electricity | G28: Distribution | H28: Revenue cap | I28: Calendar | J28: December | K28: 5 | L28: 5 | M28: 2 | N28: 2016-20 Distribution Determination | R28: 321 Ferntree Gully Road | T28: MT WAVERLEY | U28: Vic | V28: 3149 | W28: 321 Ferntree Gully Road | Y28: MT WAVERLEY | Z28: VIC | AA28: 3149 | AB28: Anton Murashev | AC28: 03 8544 9036 | AD28: anton.murashev@jemena.com.au
B29: Murraylink | C29: Murraylink | D29: 79181207909 | E29: SA | F29: Electricity | G29: Transmission | H29: Revenue cap | I29: Financial | J29: June | K29: 5 | L29: 5 | M29: 5 | N29: transmission determination | U29: NSW
B30: Powercor Australia | C30: Powercor Australia | D30: 89064651109 | E30: Vic | F30: Electricity | G30: Distribution | H30: Revenue cap | I30: Calendar | J30: December | K30: 5 | L30: 5 | M30: 2 | N30: 2016-20 Distribution Determination | R30: 40 Market Street | T30: MELBOURNE | U30: Vic | V30: 3000 | W30: Locked bag 14090 | Y30: MELBOURNE | Z30: VIC | AA30: 3001 | AB30: Hannah Williams | AC30: 03 9683 4088 | AD30: hwilliams@powercor.com.au
B31: Powerlink | C31: Queensland Electricity Transmission Corporation Limited trading as Powerlink Queensland | D31: 82078849233 | E31: Qld | F31: Electricity | G31: Transmission | H31: Revenue cap | I31: Financial | J31: June | K31: 5 | L31: 5 | M31: 5 | N31: transmission determination | R31: 33 Harold St | T31: VIRGINIA | U31: Qld | V31: 4014 | W31: PO Box 1193 | Y31: VIRGINIA | Z31: QLD | AA31: 4014 | AB31: Jennifer Harris | AC31: 07 3860 2667 | AD31: jharris@powerlink.com.au
B32: Qld,SA &ACT Gas Reset | C32: Qld,SA &ACT Gas Reset | D32: 22222222222 | E32: - | F32: Gas | G32: Distribution | H32: ? | K32: 5 | L32: 5 | M32: x | N32: n/a | U32: -
B33: Roma to Brisbane Pipeline | C33: APT Petroleum Pipelines Limited t/a Roma to Brisbane Pipeline | D33: 009 737 393 | E33: Qld | F33: Gas | G33: Distribution | H33: ? | I33: Financial | J33: June | K33: 5 | L33: 5 | M33: x | N33: n/a
B34: SA Power Networks | C34: SA Power Networks | D34: 13332330749 | E34: SA | F34: Electricity | G34: Distribution | H34: Revenue cap | I34: Financial | J34: June | K34: 5 | L34: 5 | M34: 5 | N34: 2015-20 Distribution Determination | R34: 1 Anzac Highway | T34: KESWICK | U34: SA | V34: 5035 | W34: GPO Box 77 | Y34: ADELAIDE | Z34: SA | AB34: Damien O'Connor | AC34: 08 8404 5066 | AD34: damien.oconnor@sapowernetworks.com.au
B35: TasNetworks (D) | C35: TasNetworks (D) | D35: 24167357299 | E35: Tas | F35: Electricity | G35: Distribution | H35: Revenue cap | I35: Financial | J35: June | K35: 5 | L35: 5 | M35: 5 | N35: distribution determination | R35: 21 Kirksway Place | T35: HOBART | U35: Tas | V35: 7000 | W35: GPO Box 191 | Y35: HOBART | Z35: Tas | AB35: Leigh Mayne | AC35: 03 6270 3691 | AD35: rrp2012@auroraenergy.com.au
B36: TasNetworks (T) | C36: TasNetworks (T) | D36: 24167357299 | E36: Tas | F36: Electricity | G36: Transmission | H36: Revenue cap | I36: Financial | J36: March | K36: 5 | L36: 5 | M36: 5 | N36: transmission determination | R36: 1-7 Maria Street | T36: LENAH VALLEY | U36: Tas | V36: 7008 | W36: PO Box 606 | Y36: MOONAH | Z36: Tas | AB36: Heath Dillon | AC36: 03 6274 3664 | AD36: heath.dillon@transend.com.au
B37: TransGrid | C37: TransGrid | D37: 19622755774 | E37: NSW | F37: Electricity | G37: Transmission | H37: Revenue cap | I37: Financial | J37: June | K37: 5 | L37: 5 | M37: 5 | N37: transmission determination | R37: 180 Thomas Street | T37: HAYMARKET | U37: NSW | V37: 2000 | W37: PO Box A1000 | Y37: SYDNEY SOUTH | Z37: NSW | AB37: Andrew Kingsmill | AC37: 02 9284 3149 | AD37: andrew.kingsmill@transgrid.com.au
B38: United Energy | C38: United Energy | D38: 70064651029 | E38: Vic | F38: Electricity | G38: Distribution | H38: Revenue cap | I38: Calendar | J38: December | K38: 5 | L38: 5 | M38: 2 | N38: 2016-20 Distribution Determination | R38: 6 Nexus Court | T38: MULGRAVE | U38: Vic | V38: 3170 | W38: PO Box 449 | Y38: MOUNT WAVERLEY | Z38: VIC | AB38: Mathew Abraham | AC38: 03 8846 9758 | AD38: mathew.abraham@ue.com.au
B39: Victorian DNSP Backcasting | C39: Victorian DNSP Backcasting | D39: 33333333666 | E39: Vic | F39: Electricity | G39: Distribution | H39: ? | I39: Calendar | K39: 5 | L39: 5 | M39: x | N39: distribution determination | U39: Vic
B40: Victorian DNSP Reset | C40: Victorian DNSP Reset | D40: 33333333333 | E40: Vic | F40: Electricity | G40: Distribution | H40: ? | I40: Calendar | K40: 5 | L40: 5 | M40: x | N40: distribution determination | U40: Vic
B41: Western Power (D) | C41: Western Power (D) | D41: 18540492861 | E41: WA | F41: Electricity | G41: Distribution | H41: Revenue cap | I41: Financial | J41: June | K41: 5 | L41: 4 | M41: x | N41: distribution determination | U41: WA | AB41: Judy Hunter | AC41: 08 9326 6239
B42: Western Power (T) | C42: Western Power (T) | D42: 18540492861 | E42: WA | F42: Electricity | G42: Transmission | H42: Revenue cap | I42: Financial | J42: June | K42: 5 | L42: 4 | M42: x | N42: transmission determination | U42: WA | AB42: Judy Hunter | AC42: 08 9326 6239
B47: dms_Model_List | C47: DELETE NR 'CRY' IF NOT AN ANNUAL RIN (EB, CA , ARR) | E47: dms_RYE_Formula_Result | N47: dms_0203_ProjectType | R47: dms_020303_01_UOM | S47: dms_020501_01_UOM | T47: dms_020501_02_UOM | U47: dms_020501_03_UOM | V47: dms_020501_04_UOM | W47: dms_020603_01_UOM | X47: dms_040102_01_UOM | Y47: dms_040102_04_UOM
B48: ARR | C48: ANNUAL REPORTING STATEMENT | E48: =LEFT(dms_SingleYear_FinalYear_Result,2)&RIGHT(dms_SingleYear_FinalYear_Result,2) -> 2016 | F48: =LEFT(dms_SingleYear_FinalYear_Result,2)&RIGHT(dms_SingleYear_FinalYear_Result,2) | H48: Formula errors are OK | N48: New line on new route - single circuit | R48: Circuit line length in km | S48: 0's | T48: 0's | U48: 0's | V48: 0's | W48: 0's | X48: 0's | Y48: days
B49: CA | C49: CATEGORY ANALYSIS | E49: =LEFT(dms_SingleYear_FinalYear_Result,2)&RIGHT(dms_SingleYear_FinalYear_Result,2) -> 2016 | F49: =LEFT(dms_SingleYear_FinalYear_Result,2)&RIGHT(dms_SingleYear_FinalYear_Result,2) | H49: Formula errors are OK | N49: New line on new route - dual circuit | R49: Circuit line length in km | S49: 0's | T49: 0's | U49: 0's | V49: 0's | W49: 0's | X49: 0's | Y49: 0's
B50: CPI | C50: CPI | N50: New line on new route - other | R50: Circuit line length in km | S50: MVA added | T50: MVA added | U50: MVA added | V50: MVA added | W50: 0's | X50: 0's | Y50: $0s
B51: EB | C51: ECONOMIC BENCHMARKING | E51: =LEFT(dms_SingleYear_FinalYear_Result,2)&RIGHT(dms_SingleYear_FinalYear_Result,2) -> 2016 | F51: =LEFT(dms_SingleYear_FinalYear_Result,2)&RIGHT(dms_SingleYear_FinalYear_Result,2) | H51: Formula errors are OK | N51: Line rebuild over existing route - single circuit | R51: Circuit line length in km | S51: 0's | T51: 0's | U51: 0's | V51: 0's | W51: 0's | X51: $0s | Y51: 0's
B52: PTRM | C52: POST TAX REVENUE MODEL | E52: =LEFT(dms_MultiYear_FinalYear_Result,2)&RIGHT(dms_MultiYear_FinalYear_Result,2) -> 2020 | F52: =LEFT(dms_MultiYear_FinalYear_Result,2)&RIGHT(dms_MultiYear_FinalYear_Result,2) | N52: Line rebuild over existing route - dual circuit | R52: Number | S52: total spend $0s | T52: total spend $0s | U52: total spend $0s | V52: total spend $0s | W52: (per cent)
B53: Reset | C53: REGULATORY REPORTING STATEMENT | E53: =LEFT(dms_MultiYear_FinalYear_Result,2)&RIGHT(dms_MultiYear_FinalYear_Result,2) -> 2020 | F53: =LEFT(dms_MultiYear_FinalYear_Result,2)&RIGHT(dms_MultiYear_FinalYear_Result,2) | H53: Formula errors are OK | N53: Reconductor - Single circuit | R53: Number | S53: net circuit km added | T53: net circuit km added | U53: net circuit km added | V53: net circuit km added
B54: RFM | C54: ROLL FORWARD MODEL | E54: =LEFT(dms_CRCP_FinalYear_Result,2)&RIGHT(dms_CRCP_FinalYear_Result,2) -> 2016 | F54: =LEFT(dms_CRCP_FinalYear_Result,2)&RIGHT(dms_CRCP_FinalYear_Result,2) | N54: Reconductor - Dual circuit | R54: Number | S54: total spend $0s | T54: total spend $0s | U54: total spend $0s | V54: total spend $0s
B55: WACC | C55: WEIGHTED AVERAGE COST OF CAPITAL | E55: =LEFT(dms_MultiYear_FinalYear_Result,2)&RIGHT(dms_MultiYear_FinalYear_Result,2) -> 2020 | F55: =LEFT(dms_MultiYear_FinalYear_Result,2)&RIGHT(dms_MultiYear_FinalYear_Result,2) | N55: Other | S55: net circuit km added | T55: net circuit km added | U55: net circuit km added | V55: net circuit km added
S56: total spend $0s | T56: total spend $0s | U56: total spend $0s | V56: total spend $0s
S57: 0's | U57: $0s
S58: 0's
S59: 0's
S60: $0s
B65: dms_SourceList | C65: dms_FormControl_Choices | E65: dms_FRCPlength_Num_List | F65: dms_FinalYear_List | G65: dms_CRCPlength_Num_List | H65: dms_CFinalYear_List | I65: dms_RCP_fyear_list | J65: dms_CRY_ListF | K65: dms_CRY_ListC | L65: dms_RCP_cyear_list
B66: After appeal | C66: Revenue cap | E66: 1 | F66: FRCP_y1 | G66: 1 | H66: CRCP_y1 | I66: dms_fy1 | J66: 2005-06 | K66: 2006 | L66: dms_cy1
B67: Draft decision | C67: Revenue yield | E67: 2 | F67: FRCP_y2 | G67: 2 | H67: CRCP_y2 | I67: dms_fy2 | J67: 2006-07 | K67: 2007 | L67: dms_cy2
B68: Final decision | C68: Weighted average price cap | E68: 3 | F68: FRCP_y3 | G68: 3 | H68: CRCP_y3 | I68: dms_fy3 | J68: 2007-08 | K68: 2008 | L68: dms_cy3
B69: Pass through decision | E69: 4 | F69: FRCP_y4 | G69: 4 | H69: CRCP_y4 | I69: dms_fy4 | J69: 2008-09 | K69: 2009 | L69: dms_cy4
B70: PTRM annual update | E70: 5 | F70: FRCP_y5 | G70: 5 | H70: CRCP_y5 | I70: dms_fy5 | J70: 2009-10 | K70: 2010 | L70: dms_cy5
B71: PTRM interim update 1 | E71: 6 | F71: FRCP_y6 | G71: 6 | H71: CRCP_y6 | I71: dms_fy6 | J71: 2010-11 | K71: 2011 | L71: dms_cy6
B72: PTRM interim update 2 | E72: 7 | F72: FRCP_y7 | G72: 7 | H72: CRCP_y7 | I72: dms_fy7 | J72: 2011-12 | K72: 2012 | L72: dms_cy7
B73: PTRM interim update 3 | E73: 8 | F73: FRCP_y8 | G73: 8 | H73: CRCP_y8 | I73: dms_fy8 | J73: 2012-13 | K73: 2013 | L73: dms_cy8
B74: PTRM interim update 4 | E74: 9 | F74: FRCP_y9 | G74: 9 | H74: CRCP_y9 | I74: dms_fy9 | J74: 2013-14 | K74: 2014 | L74: dms_cy9
B75: Regulatory proposal | E75: 10 | F75: FRCP_y10 | G75: 10 | H75: CRCP_y10 | I75: dms_fy10 | J75: 2014-15 | K75: 2015 | L75: dms_cy10
B76: Reporting | I76: dms_fy11 | J76: 2015-16 | K76: 2016 | L76: dms_cy11
B77: Revised regulatory proposal | I77: dms_fy12 | J77: 2016-17 | K77: 2017 | L77: dms_cy12
B78: RFM annual update | D78: dms_FRCP_years | F78: dms_CRCP_years | H78: dms_CRCP_index | I78: dms_fy13 | J78: 2017-18 | K78: 2018 | L78: dms_cy13
B79: WACC annual update | D79: =FRCP_y1 -> 2015-16 | E79: dms_FRCP_y1 | F79: =IF(dms_RPT="financial",VALUE(LEFT(dms_FRCP_y1,4)-1)&"-"&TEXT(VALUE(RIGHT(dms_FRCP_y1,2)-1),"0#"),VALUE(LEFT(dms_FRCP_y1,4)-1)) -> 2014-15 | G79: dms_CRCP_yZ | H79: 1 | I79: dms_fy14 | J79: 2018-19 | K79: 2019 | L79: dms_cy14
D80: =IF(dms_RPT="financial",VALUE(LEFT(dms_FRCP_y1,4)+1)&"-"&VALUE(MID(dms_FRCP_y1,3,2)+2),VALUE(LEFT(dms_FRCP_y1,4)+1)) -> 2016-17 | E80: dms_FRCP_y2 | F80: =IF(dms_RPT="financial",VALUE(LEFT(dms_CRCP_yZ,4)-1)&"-"&TEXT(VALUE(RIGHT(dms_CRCP_yZ,2)-1),"0#"),VALUE(LEFT(dms_CRCP_yZ,4)-1)) -> 2013-14 | G80: dms_CRCP_yY | H80: 2 | I80: dms_fy15 | J80: 2019-20 | K80: 2020 | L80: dms_cy15
D81: =IF(dms_RPT="financial",VALUE(LEFT(dms_FRCP_y2,4)+1)&"-"&VALUE(MID(dms_FRCP_y2,3,2)+2),VALUE(LEFT(dms_FRCP_y2,4)+1)) -> 2017-18 | E81: dms_FRCP_y3 | F81: =IF(dms_RPT="financial",VALUE(LEFT(dms_CRCP_yY,4)-1)&"-"&TEXT(VALUE(RIGHT(dms_CRCP_yY,2)-1),"0#"),VALUE(LEFT(dms_CRCP_yY,4)-1)) -> 2012-13 | G81: dms_CRCP_yX | H81: 3
D82: =IF(dms_RPT="financial",VALUE(LEFT(dms_FRCP_y3,4)+1)&"-"&VALUE(MID(dms_FRCP_y3,3,2)+2),VALUE(LEFT(dms_FRCP_y3,4)+1)) -> 2018-19 | E82: dms_FRCP_y4 | F82: =IF(dms_RPT="financial",VALUE(LEFT(dms_CRCP_yX,4)-1)&"-"&TEXT(VALUE(RIGHT(dms_CRCP_yX,2)-1),"0#"),VALUE(LEFT(dms_CRCP_yX,4)-1)) -> 2011-12 | G82: dms_CRCP_yW | H82: 4
D83: =IF(dms_RPT="financial",VALUE(LEFT(dms_FRCP_y4,4)+1)&"-"&VALUE(MID(dms_FRCP_y4,3,2)+2),VALUE(LEFT(dms_FRCP_y4,4)+1)) -> 2019-20 | E83: dms_FRCP_y5 | F83: =IF(dms_RPT="financial",VALUE(LEFT(dms_CRCP_yW,4)-1)&"-"&TEXT(VALUE(RIGHT(dms_CRCP_yW,2)-1),"0#"),VALUE(LEFT(dms_CRCP_yW,4)-1)) -> 2010-11 | G83: dms_CRCP_yV | H83: 5
D84: =IF(dms_RPT="financial",VALUE(LEFT(dms_FRCP_y5,4)+1)&"-"&VALUE(MID(dms_FRCP_y5,3,2)+2),VALUE(LEFT(dms_FRCP_y5,4)+1)) -> 2020-21 | E84: dms_FRCP_y6 | F84: =IF(dms_RPT="financial",VALUE(LEFT(dms_CRCP_yV,4)-1)&"-"&TEXT(VALUE(RIGHT(dms_CRCP_yV,2)-1),"0#"),VALUE(LEFT(dms_CRCP_yV,4)-1)) -> 2009-10 | G84: dms_CRCP_yU | H84: 6
D85: =IF(dms_RPT="financial",VALUE(LEFT(dms_FRCP_y6,4)+1)&"-"&VALUE(MID(dms_FRCP_y6,3,2)+2),VALUE(LEFT(dms_FRCP_y6,4)+1)) -> 2021-22 | E85: dms_FRCP_y7 | F85: =IF(dms_RPT="financial",VALUE(LEFT(dms_CRCP_yU,4)-1)&"-"&TEXT(VALUE(RIGHT(dms_CRCP_yU,2)-1),"0#"),VALUE(LEFT(dms_CRCP_yU,4)-1)) -> 2008-09 | G85: dms_CRCP_yT | H85: 7
D86: =IF(dms_RPT="financial",VALUE(LEFT(dms_FRCP_y7,4)+1)&"-"&VALUE(MID(dms_FRCP_y7,3,2)+2),VALUE(LEFT(dms_FRCP_y7,4)+1)) -> 2022-23 | E86: dms_FRCP_y8 | F86: =IF(dms_RPT="financial",VALUE(LEFT(dms_CRCP_yT,4)-1)&"-"&TEXT(VALUE(RIGHT(dms_CRCP_yT,2)-1),"0#"),VALUE(LEFT(dms_CRCP_yT,4)-1)) -> 2007-08 | G86: dms_CRCP_yS | H86: 8
D87: =IF(dms_RPT="financial",VALUE(LEFT(dms_FRCP_y8,4)+1)&"-"&VALUE(MID(dms_FRCP_y8,3,2)+2),VALUE(LEFT(dms_FRCP_y8,4)+1)) -> 2023-24 | E87: dms_FRCP_y9 | F87: =IF(dms_RPT="financial",VALUE(LEFT(dms_CRCP_yS,4)-1)&"-"&TEXT(VALUE(RIGHT(dms_CRCP_yS,2)-1),"0#"),VALUE(LEFT(dms_CRCP_yS,4)-1)) -> 2006-07 | G87: dms_CRCP_yR | H87: 9
D88: =IF(dms_RPT="financial",VALUE(LEFT(dms_FRCP_y9,4)+1)&"-"&VALUE(MID(dms_FRCP_y9,3,2)+2),VALUE(LEFT(dms_FRCP_y9,4)+1)) -> 2024-25 | E88: dms_FRCP_y10 | F88: =IF(dms_RPT="financial",VALUE(LEFT(dms_CRCP_yR,4)-1)&"-"&TEXT(VALUE(RIGHT(dms_CRCP_yR,2)-1),"0#"),VALUE(LEFT(dms_CRCP_yR,4)-1)) -> 2005-06 | G88: dms_CRCP_yQ | H88: 10
B100: Reason for interruption | C100: Detailed reason for interruption | D100: dms_Reason_Interruption
B101: Animal | C101: Animal impact | D101: Animal
C102: Animal nesting/burrowing, etc and other | D102: Asset failure
C103: Other | D103: Other
B104: Asset failure | C104: LV | D104: Overloads
C105: Distribution substation | D105: Planned
C106: HV | D106: Network business
C107: Zone substation | D107: Third party
C108: Subtransmission | D108: Unknown
B109: Other | C109: insert description of 'other' | D109: Vegetation
B110: Overloads | C110: - | D110: Weather
B111: Planned | C111: - | D111: 2 - STPIS Exclusion (3.3)(a)
B112: Network business | C112: Network error | D112: 3 - STPIS Exclusion (3.3)(a)
C113: Switching and protection error | D113: 4 - STPIS Exclusion (3.3)(a)
B114: Third party | C114: Fire | D114: 5 - STPIS Exclusion (3.3)(a)
C115: Other | D115: 6 - STPIS Exclusion (3.3)(a)
C116: Dig-in | D116: 7 - STPIS Exclusion (3.3)(a)
C117: Unauthorised access
C118: Vehicle impact
B119: Unknown | C119: Unknown
B120: Vegetation | C120: Blow-in/Fall-in - NSP responsibility
C121: Grow-in - NSP responsibility
C122: Blow-in/Fall-in - Other responsible party
C123: Grow-in - Other responsible party
B124: Weather | C124: -
B125: 2 - STPIS Exclusion (3.3)(a) | C125: -
B126: 3 - STPIS Exclusion (3.3)(a) | C126: -
B127: 4 - STPIS Exclusion (3.3)(a) | C127: -
B128: 5 - STPIS Exclusion (3.3)(a) | C128: -
B129: 6 - STPIS Exclusion (3.3)(a) | C129: -
B130: 7 - STPIS Exclusion (3.3)(a) | C130: -

Sheet Instructions
B2: =CONCATENATE(dms_Segment," Network Service Provider") -> Distribution Network Service Provider
B3: Annual Reporting RIN Template
C4: =CONCATENATE("This template is to be used by ",dms_TradingName," to fulfil its reporting obligations to the AER.") -> This template is to be used by SA Power Networks to fulfil its reporting obligations to the AER.
C5: INSTRUCTIONS
C6: Complete the Business & other details worksheet before entering data or values in any other worksheets. The Business & other details worksheet is linked to other worksheets within the workbook and automatically generates certain column headings and conditional formatting.
C8: Identifying CONFIDENTIAL INFORMATION: Please use the macro at the top of each worksheet to identify confidential information.
C9: -Do this by selecting the cell or cells that contain confidential information and then run the Mark selected cells as CONFIDENTIAL macro. This will format the cells a specific colour that is identified by the AER's database which in turn marks that information as confidential. -To reverse this, select the cell or cells and run the Return cells to NON-CONFIDENTIAL macro
C11: UNITS OF MEASURE All amounts are to be unrounded and reported in nominal terms on a one for one basis: that is 1000 is to be entered as '1000'.
C13: COLOUR CODING OF INPUT / NON-INPUT CELLS:
D14: Yellow = Input cell (mandatory)
D15: Darker yellow = input cell (mandatory)
D16: Orange = input cell (if data available)
D17: Grey = Not applicable/No inputs required
D18: Leave coloured cells blank if no information exists. PLEASE DO NOT ENTER TEXT into cells that are to contain numeric data.
C21: WORKSHEET NAVIGATION Many tables in the worksheets have been "grouped" to allow for easy navigation. To ungroup or group data use the outline symbols in the left margin of excel (for Row groupings) or above the columns (for column groupings).
C23: RETURNING COMPLETED RESPONSES Please return four (4) files to the AER: 1. A confidential version which must contain a complete set of all responses with confidential information marked using the Mark selected cells CONFIDENTIAL macro and which has been completed using the locked template file provided by the AER. 2. An actual and an estimate version with confidential information marked using the Mark selected cells CONFIDENTIAL macro and which has been completed using the locked template file provided by the AER. 3. A public version with confidential information either removed completely or aggregated in some form together with writtten consent to disclose the public version of the response. Use the drop down box on the Business and other details worksheet to identify the file as either confidential ('consolidated') or public.
C25: SUBMITTING AMENDED DATA TO THE AER If an NSP wishes to correct data previously submitted to the AER it should resubmit that data using the original completed submission as the starting point. Please make any necessary changes to the data. Data that is not being amended should be left unchanged. NSPs must identify the reason for the amendments in the Amendment Reason box on the Business and other details worksheet. NSPs may provide further details regarding any amendments in the Amendments worksheet. .
C26: NSP may use Amended Data macro to highlight cells that contain amended data.
C27: Please resubmit two (2) files - a confidential version and a public version of the amended submission to the AER

Sheet Contents
B1: REGULATORY REPORTING STATEMENT
B2: =INDEX(dms_TradingNameFull_List,MATCH(dms_TradingName,dms_TradingName_List)) -> SA Power Networks
B3: =CONCATENATE((LOOKUP(dms_Model,dms_Model_List,dms_Worksheet_List))&" "&CRY) -> CATEGORY ANALYSIS 2015-16
B4: CONTENTS
E7: 1. Business details | L7: 2. Expenditure
E27: 4. Alternative control services | L27: 5. Network information | S27: 6. Service & quality

Sheet Business & other details
B1: REGULATORY REPORTING STATEMENT
B2: =INDEX(dms_TradingNameFull_List,MATCH(dms_TradingName,dms_TradingName_List)) -> SA Power Networks
B3: =CONCATENATE((LOOKUP(dms_Model,dms_Model_List,dms_Worksheet_List))&" "&CRY) -> CATEGORY ANALYSIS 2015-16
B4: BUSINESS & OTHER DETAILS
B7: Instructions
B8: Complete the following business details regulatory template before entering data or values in any other regulatory template. This regulatory template is linked to other cells within the spreadsheet and automatically generates column headings.
B10: SUBMISSION PARTICULARS INPUT SHEETS
B12: ENTITY DETAILS
B14: Short name | C14: SA Power Networks
B15: ACN / ABN | C15: =INDEX(dms_ABN_List,MATCH(dms_TradingName,dms_TradingName_List)) -> 13332330749
B18: Business address | C18: Address 1 | E18: =INDEX(dms_Addr1_List,MATCH(dms_TradingName,dms_TradingName_List)) -> 1 Anzac Highway
D19: Address 2 | E19: =IF(ISBLANK(INDEX(dms_Addr2_List,MATCH(dms_TradingName,dms_TradingName_List))),"",INDEX(dms_Addr2_List,MATCH(dms_TradingName,dms_TradingName_List))) -> 
C20: Suburb | E20: =INDEX(dms_Suburb_List,MATCH(dms_TradingName,dms_TradingName_List)) -> KESWICK
D21: State | E21: =INDEX(dms_State_List,MATCH(dms_TradingName,dms_TradingName_List)) -> SA | F21: p/code | G21: =INDEX(dms_PostCode_List,MATCH(dms_TradingName,dms_TradingName_List)) -> 5035
B23: Postal address | C23: Address 1 | E23: =INDEX(dms_PAddr1_List,MATCH(dms_TradingName,dms_TradingName_List)) -> GPO Box 77
D24: Address 2 | E24: =IF(ISBLANK(INDEX(dms_PAddr2_List,MATCH(dms_TradingName,dms_TradingName_List))),"",INDEX(dms_PAddr2_List,MATCH(dms_TradingName,dms_TradingName_List))) -> 
C25: Suburb | E25: =INDEX(dms_PSuburb_List,MATCH(dms_TradingName,dms_TradingName_List)) -> ADELAIDE
D26: State | E26: =INDEX(dms_PState_List,MATCH(dms_TradingName,dms_TradingName_List)) -> SA | F26: p/code | G26: =INDEX(dms_PPostCode_List,MATCH(dms_TradingName,dms_TradingName_List)) -> 0
B29: Contact name/s | C29: Richard Sibly
B30: Contact phone/s | C30: 08 8404 5613 | AA30: Tom Hallam
B31: Contact email address/s | C31: richard.sibly@sapowernetworks.com.au | AA31: Tom Hallam
B33: REGULATORY CONTROL PERIODS
B35: Forthcoming regulatory control period | C35: 2015-16 | D35: =dms_FRCP_y2 -> 2016-17 | E35: =dms_FRCP_y3 -> 2017-18 | F35: =dms_FRCP_y4 -> 2018-19 | G35: =dms_FRCP_y5 -> 2019-20 | H35: =dms_FRCP_y6 -> 2020-21 | I35: =IF(dms_RPT="financial",VALUE(LEFT(FRCP_y6,4)+1)&"-"&VALUE(MID(FRCP_y6,3,2)+2),VALUE(LEFT(FRCP_y6,4)+1)) -> 2021-22
B38: Current regulatory control period | C38: =dms_CRCP_FirstYear_Result -> 2010-11 | D38: =IF(dms_RPT="financial",VALUE(LEFT(CRCP_y1,4)+1)&"-"&TEXT(VALUE(RIGHT(CRCP_y1,2)+1),"0#"),VALUE(LEFT(CRCP_y1,4)+1)) -> 2011-12 | E38: =IF(dms_RPT="financial",VALUE(LEFT(CRCP_y2,4)+1)&"-"&TEXT(VALUE(RIGHT(CRCP_y2,2)+1),"0#"),VALUE(LEFT(CRCP_y2,4)+1)) -> 2012-13 | F38: =IF(dms_RPT="financial",VALUE(LEFT(CRCP_y3,4)+1)&"-"&TEXT(VALUE(RIGHT(CRCP_y3,2)+1),"0#"),VALUE(LEFT(CRCP_y3,4)+1)) -> 2013-14 | G38: =IF(dms_RPT="financial",VALUE(LEFT(CRCP_y4,4)+1)&"-"&TEXT(VALUE(RIGHT(CRCP_y4,2)+1),"0#"),VALUE(LEFT(CRCP_y4,4)+1)) -> 2014-15 | H38: =IF(dms_RPT="financial",VALUE(LEFT(CRCP_y5,4)+1)&"-"&TEXT(VALUE(RIGHT(CRCP_y5,2)+1),"0#"),VALUE(LEFT(CRCP_y5,4)+1)) -> 2015-16
B41: Previous regulatory control period | C41: =IF(dms_RPT="financial",VALUE(LEFT(PRCP_y2,4)-1)&"-"&TEXT(VALUE(MID(PRCP_y2,3,2)),"0#"),VALUE(LEFT(PRCP_y2,4)-1)) -> 2005-06 | D41: =IF(dms_RPT="financial",VALUE(LEFT(PRCP_y3,4)-1)&"-"&TEXT(VALUE(MID(PRCP_y3,3,2)),"0#"),VALUE(LEFT(PRCP_y3,4)-1)) -> 2006-07 | E41: =IF(dms_RPT="financial",VALUE(LEFT(PRCP_y4,4)-1)&"-"&TEXT(VALUE(MID(PRCP_y4,3,2)),"0#"),VALUE(LEFT(PRCP_y4,4)-1)) -> 2007-08 | F41: =IF(dms_RPT="financial",VALUE(LEFT(PRCP_y5,4)-1)&"-"&TEXT(VALUE(RIGHT(PRCP_y5,2)-1),"0#"),VALUE(LEFT(PRCP_y5,4)-1)) -> 2008-09 | G41: =IF(dms_RPT="financial",VALUE(LEFT(CRCP_y1,4)-1)&"-"&TEXT(VALUE(RIGHT(CRCP_y1,2)-1),"0#"),VALUE(LEFT(CRCP_y1,4)-1)) -> 2009-10
B44: Current regulatory year | C44: 2015-16 | D44: CRY
C47: DELETE NR 'CRY' IF NOT AN ANNUAL RIN (EB, CA , ARR)
C48: APPLY NR 'CRY' IF AN ANNUAL RIN (EB, CA , ARR)
B50: Source | C50: Reporting | E50: Please select the correct submission type from the dropdown list.
B51: Data quality (actual, estimate, public, consolidated) | C51: Public
B52: Amended RIN submission - amendment reason
B53: Submission Date | C53: dd/mm/yyyy | D53: dms_SubmissionDate | E53: Please enter date this file submitted to AER (dd/mm/yyyy)
B54: EBSS - First application of scheme in forthcoming period? | C54: No
A55: HIDE THESE ROWS | B55: Sector | C55: =INDEX(dms_Sector_List,MATCH(dms_TradingName,dms_TradingName_List)) -> Electricity | D55: dms_Sector | E55: =INDEX(dms_Sector_List,MATCH(dms_TradingName,dms_TradingName_List))
B56: Segment | C56: =INDEX(dms_Segment_List,MATCH(dms_TradingName,dms_TradingName_List)) -> Distribution | D56: dms_Segment | E56: =INDEX(dms_Segment_List,MATCH(dms_TradingName,dms_TradingName_List))
B57: Regulatory Year Ending | C57: =IF(dms_MultiYear_Flag=1,LEFT(dms_Specified_FinalYear,2)&RIGHT(dms_Specified_FinalYear,2),INDEX(dms_RYE_Formula_Result,MATCH(dms_Model,dms_Model_List))) -> 2016 | D57: dms_RYE | E57: =IF(dms_MultiYear_Flag=1,LEFT(dms_Specified_FinalYear,2)&RIGHT(dms_Specified_FinalYear,2),INDEX(dms_RYE_Formula_Result,MATCH(dms_Model,dms_Model_List)))
B58: Reporting Period Type | C58: =INDEX(dms_RPT_List,MATCH(dms_TradingName,dms_TradingName_List)) -> Financial | D58: dms_RPT | E58: =INDEX(dms_RPT_List,MATCH(dms_TradingName,dms_TradingName_List))
B59: Model or RIN Type | C59: CA | D59: dms_Model | E59: Drop down selection
B60: Security Classification | C60: Public | D60: dms_Classification | E60: Always Public
B61: Template - version no. | C61: 5 | D61: dms_TemplateNumber
B62: Dollar $ real month | C62: =INDEX(dms_RPTMonth_List,MATCH(dms_TradingName,dms_TradingName_List)) -> June | D62: dms_RPTMonth | E62: =INDEX(dms_RPTMonth_List,MATCH(dms_TradingName,dms_TradingName_List))
B63: Dollar $ real (the last month before the FRCP_y1) | C63: =IF(SUM(dms_SingleYear_Model)>0,CONCATENATE(dms_RPTMonth)&" "&VALUE((LEFT(CRY,2))&RIGHT(CRY,2)),CONCATENATE(dms_RPTMonth)&" "&VALUE((LEFT(dms_CRCP_FinalYear_Result,2))&RIGHT(dms_CRCP_FinalYear_Result,2))) -> June 2016 | D63: dms_DollarReal | E63: =IF(SUM(dms_SingleYear_Model)>0,CONCATENATE(dms_RPTMonth)&" "&VALUE((LEFT(CRY,2))&RIGHT(CRY,2)),CONCATENATE(dms_RPTMonth)&" "&VALUE((LEFT(dms_CRCP_FinalYear_Result,2))&RIGHT(dms_CRCP_FinalYear_Result,2)))
B64: Form of control | C64: =INDEX(dms_FormControl_List,MATCH(dms_TradingName,dms_TradingName_List)) -> Revenue cap | D64: dms_FormControl | E64: =INDEX(dms_FormControl_List,MATCH(dms_TradingName,dms_TradingName_List))
B65: RIN response - version no. | C65: 1 | D65: dms_RINversion
B66: Jurisdiction | C66: =INDEX(dms_JurisdictionList,MATCH(dms_TradingName,dms_TradingName_List)) -> SA | D66: dms_Jurisdiction | E66: =INDEX(dms_JurisdictionList,MATCH(dms_TradingName,dms_TradingName_List))
B67: Backcast Multiyear EB, CA or ARR? | C67: 0 | D67: dms_MultiYear_Flag | E67: 1=y, 0-n
C68: 2013 | D68: dms_Specified_FinalYear | E68: The result here is returned to dms_CRCP_FinalYear_Result if dms_MultiYear_Flag is set to 1
B69: Single Year Model T/F | C69: =IF(dms_Model="EB",1,0) -> 0 | D69: dms_EB
C70: =IF(dms_Model="CA",1,0) -> 1 | D70: dms_CA | E70: =dms_SingleYear_Model
C71: =IF(dms_Model="ARR",1,0) -> 0 | D71: dms_ARR
B72: Single Year Final Year Reference | C72: CRY | D72: dms_SingleYear_FinalYear_Ref | E72: This is the reference for EB, CA & ARR RINs
B73: Single Year Final Year Result | C73: =INDIRECT(dms_SingleYear_FinalYear_Ref) -> 2015-16 | D73: dms_SingleYear_FinalYear_Result | E73: =INDIRECT(dms_SingleYear_FinalYear_Ref) | I73: Formula errors OK
B74: FRCP length in years | C74: =INDEX(dms_FRCPlength_List,MATCH(dms_TradingName,dms_TradingName_List)) -> 5 | D74: dms_FRCPlength_Num | E74: =INDEX(dms_FRCPlength_List,MATCH(dms_TradingName,dms_TradingName_List))
B75: Multi Year Final Year Reference | C75: =INDEX(dms_FinalYear_List,MATCH(dms_FRCPlength_Num,dms_FRCPlength_Num_List)) -> FRCP_y5 | D75: dms_MultiYear_FinalYear_Ref | E75: =INDEX(dms_FinalYear_List,MATCH(dms_FRCPlength_Num,dms_FRCPlength_Num_List))
B76: Multi Year Final Year Result | C76: =IF(dms_MultiYear_Flag=0,INDIRECT(dms_MultiYear_FinalYear_Ref),dms_Specified_FinalYear) -> 2019-20 | D76: dms_MultiYear_FinalYear_Result | E76: =IF(dms_MultiYear_Flag=0,INDIRECT(dms_MultiYear_FinalYear_Ref),dms_Specified_FinalYear) | I76: Formula errors OK
B77: CRCP length in years | C77: =INDEX(dms_CRCPlength_List,MATCH(dms_TradingName,dms_TradingName_List)) -> 5 | D77: dms_CRCPlength_Num | E77: =INDEX(dms_CRCPlength_List,MATCH(dms_TradingName,dms_TradingName_List))
B78: CRCP Final Year Reference | C78: =INDEX(dms_CFinalYear_List,MATCH(dms_CRCPlength_Num,dms_CRCPlength_Num_List)) -> CRCP_y5 | D78: dms_CRCP_FinalYear_Ref | E78: =INDEX(dms_CFinalYear_List,MATCH(dms_CRCPlength_Num,dms_CRCPlength_Num_List))
B79: CRCP First Year Result | C79: =INDEX(dms_CRCP_years,MATCH(dms_CRCPlength_Num,dms_CRCP_index)) -> 2010-11 | D79: dms_CRCP_FirstYear_Result | E79: =INDEX(dms_CRCP_years,MATCH(dms_CRCPlength_Num,dms_CRCP_index))
B80: CRCP Final Year Result | C80: =IF(dms_MultiYear_Flag=0,(IF(SUM(dms_SingleYear_Model)>0,CRY,dms_CRCP_yZ)),dms_Specified_FinalYear) -> 2015-16 | D80: dms_CRCP_FinalYear_Result | E80: =IF(dms_MultiYear_Flag=0,(IF(SUM(dms_SingleYear_Model)>0,CRY,dms_CRCP_yZ)),dms_Specified_FinalYear)
B81: Table 6.6.3 - Public lighting repair - no. business days | C81: =INDEX(dms_663_List,MATCH(dms_TradingName,dms_TradingName_List)) -> 5 | D81: dms_663
B82: Distribution Determination Reference | C82: =INDEX(dms_DeterminationRef_List,MATCH(dms_TradingName,dms_TradingName_List)) -> 2015-20 Distribution Determination
B83: Backcast templates only - unit of measure | C83: $0s | D83: dms_Backcast_UOM | E83: If the cover sheet is for Backcast data ensure to apply dms_Backcast_UOM named range to this field. Otherwise, do not apply this named range.
B84: EB/CA Unit of Measure for Monetary Values | C84: $0s | D84: dms_dollar_nom_UOM | E84: If the cover sheet is attached to an EB files make sure this field is set
B86: discard this record? | C86: NO | D86: dms_DISCARD | E86: If record is to be discarded from DB set this flag to YES
B88: USES NAMED RANGES FLAG | C88: yes | D88: dms_Defined_Names_Used

Sheet 2.1 Expenditure summary
B1: REGULATORY REPORTING STATEMENT
B2: =INDEX(dms_TradingNameFull_List,MATCH(dms_TradingName,dms_TradingName_List)) -> SA Power Networks
B3: =CONCATENATE((LOOKUP(dms_Model,dms_Model_List,dms_Worksheet_List))&" "&CRY) -> CATEGORY ANALYSIS 2015-16
B4: 2.1 EXPENDITURE SUMMARY & RECONCILIATION
B6: There are SIX tables on this worksheet. Each has been grouped for ease of navigation. See the Instructions sheet on how to group or ungroup tables.
B8: 2.1.1 - STANDARD CONTROL SERVICES CAPEX
C9: EXPENDITURE ($0's)
C10: =CRY -> 2015-16
B11: Replacement expenditure | C11: 83125255.35
B12: Connections | C12: 55537467.97
B13: Augmentation Expenditure | C13: 51680564.97
B14: Non-network | C14: 76417968.89
B15: capitalised network overheads | C15: 7889275.08
B16: capitalised corporate overheads | C16: -13251556.65
B17: Metering | C17: 0
B18: Public Lighting | C18: 0
B26: balancing item | C26: =-237665.359999999-30384252.9988889 -> -30621918.36
B27: capcons (included in the above) | C27: 30384253
B28: TOTAL GROSS CAPEX (including capcons) | C28: =+SUM(C11:C27) -> 261161310.2
B30: 2.1.2 - STANDARD CONTROL SERVICES OPEX
C31: EXPENDITURE ($0's)
C32: =CRY -> 2015-16
B33: Vegetation management | C33: 30957006.8
B34: Maintenance | C34: 29505415.04
B35: Emergency response | C35: 33646840.3
B36: Non-network | C36: 28638718.77
B37: network overheads | C37: 70242299.98
B38: corporate overheads | C38: 52874705.79
B39: Metering | C39: 0
B40: Public Lighting | C40: 0
B48: balancing item | C48: -31449097.03
B49: TOTAL OPEX | C49: =+SUM(C33:C48) -> 214415889.6
B51: 2.1.3 - ALTERNATIVE CONTROL SERVICES CAPEX
C52: EXPENDITURE ($0's)
C53: =CRY -> 2015-16
B54: Connections | C54: 0
B55: capitalised network overheads | C55: 333628.5
B56: capitalised corporate overheads | C56: -168210.48
B57: Metering | C57: 7607631
B58: Public lighting | C58: 0
B59: Fee and quoted | C59: 0
B67: balancing item | C67: 0
B68: TOTAL CAPEX | C68: =+SUM(C54:C67) -> 7773049.02
B70: 2.1.4 - ALTERNATIVE CONTROL SERVICES OPEX
C71: EXPENDITURE ($0's)
C72: =CRY -> 2015-16
B73: Connections | C73: 0
B74: network overheads | C74: 2684946.476
B75: corporate overheads | C75: 1080225.098
B76: Metering | C76: 6059552.49
B77: Public lighting | C77: 0
B78: Fee and quoted | C78: 0
B79: Non-Network | C79: 264076.8837
B86: balancing item | C86: -264076.8837
B87: TOTAL OPEX | C87: =+SUM(C73:C86) -> 9824724.063
B89: 2.1.5 - DUAL FUNCTION ASSETS CAPEX
C90: EXPENDITURE ($0's)
C91: =CRY -> 2015-16
B92: Replacement expenditure | C92: 0
B93: Connections | C93: 0
B94: Augmentation Expenditure | C94: 0
B95: Non-network | C95: 0
B96: Capitalised network overheads | C96: 0
B97: Capitalised corporate overheads | C97: 0
B105: balancing item | C105: 0
B106: capcons (included in the above) | C106: 0
B107: TOTAL GROSS CAPEX (including capcons) | C107: =SUM(C92:C105) -> 0
B109: 2.1.6 - DUAL FUNCTION ASSETS OPEX
C110: EXPENDITURE ($0's)
C111: =CRY -> 2015-16
B112: Vegetation management | C112: 0
B113: Maintenance | C113: 0
B114: Emergency response | C114: 0
B115: Non-network | C115: 0
B116: Network overheads | C116: 0
B117: Corporate overheads | C117: 0
B125: balancing item | C125: 0
B126: TOTAL OPEX | C126: =SUM(C112:C125) -> 0

Sheet 2.2 Repex
B1: REGULATORY REPORTING STATEMENT
B2: =INDEX(dms_TradingNameFull_List,MATCH(dms_TradingName,dms_TradingName_List)) -> SA Power Networks
B3: =CONCATENATE((LOOKUP(dms_Model,dms_Model_List,dms_Worksheet_List))&" "&CRY) -> CATEGORY ANALYSIS 2015-16
B4: 2.2 REPEX
B6: There are TWO tables on this worksheet. Each has been grouped for ease of navigation. See the Instructions sheet on how to group or ungroup tables.
B8: 2.2.1 - REPLACEMENT EXPENDITURE, VOLUMES AND ASSET FAILURES BY ASSET CATEGORY
E9: EXPENDITURE ($0's) | F9: ASSET REPLACEMENTS (0's) | G9: ASSET FAILURES (0's)
B10: ASSET GROUP | C10: ASSET CATEGORY | E10: =CRY -> 2015-16 | F10: =CRY -> 2015-16 | G10: =CRY -> 2015-16
B11: POLES BY: HIGHEST OPERATING VOLTAGE ; MATERIAL TYPE; STAKING (IF WOOD) | C11: Staking of a wooden pole
C12: ˂ = 1 kV; Wood
C13: > 1 kV & < = 11 kV; Wood
C14: ˃ 11 kV & < = 22 kV; Wood
C15: > 22 kV & < = 66 kV; Wood
C16: > 66 kV & < = 132 kV; Wood
C17: > 132 kV; Wood
C18: ˂ = 1 kV; Concrete
C19: > 1 kV & < = 11 kV; Concrete
C20: ˃ 11 kV & < = 22 kV; Concrete
C21: > 22 kV & < = 66 kV; Concrete
C22: > 66 kV & < = 132 kV; Concrete
C23: > 132 kV; Concrete
C24: ˂ = 1 kV; Steel
C25: > 1 kV & < = 11 kV; Steel
C26: ˃ 11 kV & < = 22 kV; Steel
C27: > 22 kV & < = 66 kV; Steel
C28: > 66 kV & < = 132 kV; Steel
C29: > 132 kV; Steel
C30: Other
B31: POLE TOP STRUCTURES BY: HIGHEST OPERATING VOLTAGE | C31: ˂ = 1 kV
C32: > 1 kV & < = 11 kV
C33: ˃ 11 kV & < = 22 kV
C34: > 22 kV & < = 66 kV
C35: > 66 kV & < = 132 kV
C36: > 132 kV
C37: Other
B38: OVERHEAD CONDUCTORS BY: HIGHEST OPERATING VOLTAGE; NUMBER OF PHASES (AT HV) | C38: ˂ = 1 kV
C39: > 1 kV & < = 11 kV
C40: ˃ 11 kV & < = 22 kV ; SWER
C41: ˃ 11 kV & < = 22 kV ; Single-Phase
C42: ˃ 11 kV & < = 22 kV ; Multiple-Phase
C43: > 22 kV & < = 66 kV
C44: > 66 kV & < = 132 kV
C45: > 132 kV
C46: Other
B47: UNDERGROUND CABLES BY: HIGHEST OPERATING VOLTAGE | C47: ˂ = 1 kV
C48: > 1 kV & < = 11 kV
C49: > 11 kV & < = 22 kV
C50: > 22 kV & < = 33 kV
C51: > 33 kV & < = 66 kV
C52: > 66 kV & < = 132 kV
C53: > 132 kV
C54: Other
B55: SERVICE LINES BY: CONNECTION VOLTAGE; CUSTOMER TYPE; CONNECTION COMPLEXITY | C55: ˂ = 11 kV ; Residential ; Simple Type
C56: ˂ = 11 kV ; Commercial & Industrial ; Simple Type
C57: ˂ = 11 kV ; Residential ; Complex Type
C58: ˂ = 11 kV ; Commercial & Industrial ; Complex Type
C59: ˂ = 11 kV ; Subdivision ; Complex Type
C60: > 11 kV & < = 22 kV ; Commercial & Industrial
C61: > 11 kV & < = 22 kV ; Subdivision
C62: > 22 kV & < = 33 kV ; Commercial & Industrial
C63: > 22 kV & < = 33 kV ; Subdivision
C64: > 33 kV & < = 66 kV ; Commercial & Industrial
C65: > 33 kV & < = 66 kV ; Subdivision
C66: > 66 kV & < = 132 kV ; Commercial & Industrial
C67: > 66 kV & < = 132 kV ; Subdivision
C68: > 132 kV ; Commercial & Industrial
C69: > 132 kV ; Subdivision
C70: Other
B71: TRANSFORMERS BY: MOUNTING TYPE; HIGHEST OPERATING VOLTAGE ; AMPERE RATING; NUMBER OF PHASES (AT LV) | C71: Pole Mounted ; < = 22kV ; < = 60 kVA ; Single Phase
C72: Pole Mounted ; < = 22kV ; > 60 kVA and < = 600 kVA ; Single Phase
C73: Pole Mounted ; < = 22kV ; > 600 kVA ; Single Phase
C74: Pole Mounted ; < = 22kV ; < = 60 kVA ; Multiple Phase
C75: Pole Mounted ; < = 22kV ; > 60 kVA and < = 600 kVA ; Multiple Phase
C76: Pole Mounted ; < = 22kV ; > 600 kVA ; Multiple Phase
C77: Kiosk Mounted ; < = 22kV ; < = 60 kVA ; Single Phase
C78: Kiosk Mounted ; < = 22kV ; > 60 kVA and < = 600 kVA ; Single Phase
C79: Kiosk Mounted ; < = 22kV ; > 600 kVA ; Single Phase
C80: Kiosk Mounted ; < = 22kV ; < = 60 kVA ; Multiple Phase
C81: Kiosk Mounted ; < = 22kV ; > 60 kVA and < = 600 kVA ; Multiple Phase
C82: Kiosk Mounted ; < = 22kV ; > 600 kVA ; Multiple Phase
C83: Ground Outdoor / Indoor Chamber Mounted; ˂ 22 kV ; < = 60 kVA ; Single Phase
C84: Ground Outdoor / Indoor Chamber Mounted; ˂ 22 kV ; > 60 kVA and < = 600 kVA ; Single Phase
C85: Ground Outdoor / Indoor Chamber Mounted; ˂ 22 kV ; > 600 kVA ; Single Phase
C86: Ground Outdoor / Indoor Chamber Mounted; ˂ 22 kV ; < = 60 kVA ; Multiple Phase
C87: Ground Outdoor / Indoor Chamber Mounted; ˂ 22 kV ; > 60 kVA and < = 600 kVA ; Multiple Phase
C88: Ground Outdoor / Indoor Chamber Mounted; ˂ 22 kV ; > 600 kVA ; Multiple Phase
C89: Ground Outdoor / Indoor Chamber Mounted; > = 22 kV & < = 33 kV ; < = 15 MVA
C90: Ground Outdoor / Indoor Chamber Mounted; > = 22 kV & < = 33 kV ; > 15 MVA and < = 40 MVA
C91: Ground Outdoor / Indoor Chamber Mounted; > = 22 kV & < = 33 kV ; > 40 MVA
C92: Ground Outdoor / Indoor Chamber Mounted; > 33 kV & < = 66 kV ; < = 15 MVA
C93: Ground Outdoor / Indoor Chamber Mounted; > 33 kV & < = 66 kV ; > 15 MVA and < = 40 MVA
C94: Ground Outdoor / Indoor Chamber Mounted; > 33 kV & < = 66 kV ; > 40 MVA
C95: Ground Outdoor / Indoor Chamber Mounted; > 66 kV & < = 132 kV ; < = 100 MVA
C96: Ground Outdoor / Indoor Chamber Mounted; > 66 kV & < = 132 kV ; > 100 MVA
C97: Ground Outdoor / Indoor Chamber Mounted; > 132 kV ; < = 100 MVA
C98: Ground Outdoor / Indoor Chamber Mounted; > 132 kV ; > 100 MVA
C99: Other
B100: SWITCHGEAR BY: HIGHEST OPERATING VOLTAGE ; SWITCH FUNCTION | C100: ˂ = 11 kV ; FUSE
C101: ˂ = 11 kV ; Switch
C102: ˂ = 11 kV ; Circuit Breaker
C103: > 11 kV & < = 22 kV ; Switch
C104: > 11 kV & < = 22 kV ; Circuit Breaker
C105: > 22 kV & < = 33 kV ; Switch
C106: > 22 kV & < = 33 kV ; Circuit Breaker
C107: > 33 kV & < = 66 kV ; Switch
C108: > 33 kV & < = 66 kV ; Circuit Breaker
C109: > 66 kV & < = 132 kV ; Switch
C110: > 66 kV & < = 132 kV ; Circuit Breaker
C111: > 132 kV ; Switch
C112: > 132 kV ; Circuit Breaker
C113: Other
B114: PUBLIC LIGHTING BY: ASSET TYPE ; LIGHTING OBLIGATION | C114: Luminaires ; Major Road
C115: Luminaires ; Minor Road
C116: Brackets ; Major Road
C117: Brackets ; Minor Road
C118: Lamps ; Major Road
C119: Lamps ; Minor Road
C120: Poles / Columns ; Major Road
C121: Poles / Columns ; Minor Road
C122: Other
B123: SCADA, NETWORK CONTROL AND PROTECTION SYSTEMS BY: FUNCTION | C123: Field Devices
C124: Local Network Wiring Assets
C125: Communications Network Assets
C126: Master Station Assets
C127: Communications Site Infrastructure
C128: Communications Linear Assets
C129: AFLC
C130: Other
B131: OTHER BY: DNSP DEFINED | C131: NOT ENOUGH LINES TO USE THE LOCKED VERSION - INCLUDED ADDITIONAL TAB 2.2 Repex (unlocked)
B149: 2.2.2 - SELECTED ASSET CHARACTERISTICS
E150: ASSET VOLUMES CURRENTLY IN COMMISSION | F150: ASSET REPLACEMENTS (0's)
B151: ASSET GROUP | C151: METRIC | D151: UNITS | E151: =CRY -> 2015-16 | F151: =CRY -> 2015-16
B152: TOTAL POLES BY: FEEDER TYPE | C152: Total CBD poles | D152: Number
C153: Total urban poles | D153: Number
C154: Total rural long poles | D154: Number
C155: Total rural short poles | D155: Number
B156: OVERHEAD CONDUCTORS BY: CONDUCTOR LENGTH BY FEEDER TYPE | C156: Conductors CBD | D156: KM
C157: Conductors urban | D157: KM
C158: Conductors rural long | D158: KM
C159: Conductors rural short | D159: KM
B160: OVERHEAD CONDUCTORS BY: CONDUCTOR LENGTH MATERIAL TYPE | C160: OH conductor LV ABC | D160: KM
C161: OH conductor steel | D161: KM
C162: OH conductor ACSR | D162: KM
C163: OH conductor AAAC | D163: KM
C164: OH conductor AAC | D164: KM
C165: OH conductor HDBC | D165: KM
C166: Other | D166: KM
B167: UNDERGROUND CABLES BY: CABLE LENGTH BY FEEDER TYPE | C167: Cable CBD | D167: KM
C168: Cable urban | D168: KM
C169: Cable rural long | D169: KM
C170: Cable rural short | D170: KM
B171: TRANSFORMERS BY: TOTAL MVA | C171: Total MVA replaced | D171: MVA
C172: Total MVA disposed of | D172: MVA

Sheet 2.2 Repex (unlocked)
B1: REGULATORY REPORTING STATEMENT
B2: =INDEX(dms_TradingNameFull_List,MATCH(dms_TradingName,dms_TradingName_List)) -> Australian Distribution Co.
B3: REGULATORY REPORTING STATEMENT 2015-16
B4: 2.2 REPEX
B6: There are TWO tables on this worksheet. Each has been grouped for ease of navigation. See the Instructions sheet on how to group or ungroup tables.
B8: 2.2.1 - REPLACEMENT EXPENDITURE, VOLUMES AND ASSET FAILURES BY ASSET CATEGORY
E9: EXPENDITURE ($0's) | F9: ASSET REPLACEMENTS (0's) | G9: ASSET FAILURES (0's)
B10: ASSET GROUP | C10: ASSET CATEGORY | E10: 2015-16 | F10: 2015-16 | G10: 2015-16
B11: POLES BY: HIGHEST OPERATING VOLTAGE ; MATERIAL TYPE; STAKING (IF WOOD) | C11: Staking of a wooden pole
C12: ˂ = 1 kV; Wood
C13: > 1 kV & < = 11 kV; Wood
C14: ˃ 11 kV & < = 22 kV; Wood
C15: > 22 kV & < = 66 kV; Wood
C16: > 66 kV & < = 132 kV; Wood
C17: > 132 kV; Wood
C18: ˂ = 1 kV; Concrete
C19: > 1 kV & < = 11 kV; Concrete
C20: ˃ 11 kV & < = 22 kV; Concrete
C21: > 22 kV & < = 66 kV; Concrete
C22: > 66 kV & < = 132 kV; Concrete
C23: > 132 kV; Concrete
C24: ˂ = 1 kV; Steel
C25: > 1 kV & < = 11 kV; Steel
C26: ˃ 11 kV & < = 22 kV; Steel
C27: > 22 kV & < = 66 kV; Steel
C28: > 66 kV & < = 132 kV; Steel
C29: > 132 kV; Steel
C30: Other
B31: POLE TOP STRUCTURES BY: HIGHEST OPERATING VOLTAGE | C31: ˂ = 1 kV | E31: 2567482.502 | F31: 3069 | G31: 2773
C32: > 1 kV & < = 11 kV | E32: 14648836.25 | F32: 9453 | G32: 1332
C33: ˃ 11 kV & < = 22 kV | E33: 4005431.701 | F33: 1540 | G33: 538
C34: > 22 kV & < = 66 kV | E34: 2364021.937 | F34: 504 | G34: 70
C35: > 66 kV & < = 132 kV | E35: 0 | F35: 0 | G35: 0
C36: > 132 kV | E36: 0 | F36: 0 | G36: 0
C37: Other | E37: 0
B38: OVERHEAD CONDUCTORS BY: HIGHEST OPERATING VOLTAGE; NUMBER OF PHASES (AT HV) | C38: ˂ = 1 kV | E38: 784439.4115 | F38: 17.9 | G38: 895
C39: > 1 kV & < = 11 kV | E39: 1105281.017 | F39: 26.31 | G39: 177
C40: ˃ 11 kV & < = 22 kV ; SWER | E40: 222546.023 | F40: 1.48 | G40: 74
C41: ˃ 11 kV & < = 22 kV ; Single-Phase | E41: 0 | F41: 0 | G41: 0
C42: ˃ 11 kV & < = 22 kV ; Multiple-Phase | E42: 0 | F42: 0 | G42: 0
C43: > 22 kV & < = 66 kV | E43: 134033.5075 | F43: 1.425 | G43: 0
C44: > 66 kV & < = 132 kV | E44: 0 | F44: 0 | G44: 0
C45: > 132 kV | E45: 0
C46: Other | E46: 0
B47: UNDERGROUND CABLES BY: HIGHEST OPERATING VOLTAGE | C47: ˂ = 1 kV | E47: 610729.5231 | F47: 4.201 | G47: 409
C48: > 1 kV & < = 11 kV | E48: 5673981.816 | F48: 2.65 | G48: 122
C49: > 11 kV & < = 22 kV | E49: 19769.88003 | F49: 0.02 | G49: 2
C50: > 22 kV & < = 33 kV | E50: 10240.38225 | F50: 0.01 | G50: 1
C51: > 33 kV & < = 66 kV | E51: 324655.1195 | F51: 0.03 | G51: 0
C52: > 66 kV & < = 132 kV | E52: 0 | F52: 0 | G52: 0
C53: > 132 kV | E53: 0 | F53: 0 | G53: 0
C54: Other | E54: 0
B55: SERVICE LINES BY: CONNECTION VOLTAGE; CUSTOMER TYPE; CONNECTION COMPLEXITY | C55: ˂ = 11 kV ; Residential ; Simple Type | E55: 5981657.934 | F55: 10820 | G55: 5309
C56: ˂ = 11 kV ; Commercial & Industrial ; Simple Type | E56: 0
C57: ˂ = 11 kV ; Residential ; Complex Type | E57: 0
C58: ˂ = 11 kV ; Commercial & Industrial ; Complex Type | E58: 739306.0368 | F58: 1202 | G58: 590
C59: ˂ = 11 kV ; Subdivision ; Complex Type | E59: 0
C60: > 11 kV & < = 22 kV ; Commercial & Industrial | E60: 0
C61: > 11 kV & < = 22 kV ; Subdivision | E61: 0
C62: > 22 kV & < = 33 kV ; Commercial & Industrial | E62: 0
C63: > 22 kV & < = 33 kV ; Subdivision | E63: 0
C64: > 33 kV & < = 66 kV ; Commercial & Industrial | E64: 0
C65: > 33 kV & < = 66 kV ; Subdivision | E65: 0
C66: > 66 kV & < = 132 kV ; Commercial & Industrial | E66: 0
C67: > 66 kV & < = 132 kV ; Subdivision | E67: 0
C68: > 132 kV ; Commercial & Industrial | E68: 0
C69: > 132 kV ; Subdivision | E69: 0
C70: Other | E70: 0
B71: TRANSFORMERS BY: MOUNTING TYPE; HIGHEST OPERATING VOLTAGE ; AMPERE RATING; NUMBER OF PHASES (AT LV) | C71: Pole Mounted ; < = 22kV ; < = 60 kVA ; Single Phase | E71: 2728767.656 | F71: 205 | G71: 101
C72: Pole Mounted ; < = 22kV ; > 60 kVA and < = 600 kVA ; Single Phase | E72: 505820.346 | F72: 38 | G72: 14
C73: Pole Mounted ; < = 22kV ; > 600 kVA ; Single Phase | E73: 0 | F73: 0 | G73: 0
C74: Pole Mounted ; < = 22kV ; < = 60 kVA ; Multiple Phase | E74: 226288.0495 | F74: 17 | G74: 5
C75: Pole Mounted ; < = 22kV ; > 60 kVA and < = 600 kVA ; Multiple Phase | E75: 252910.173 | F75: 19 | G75: 5
C76: Pole Mounted ; < = 22kV ; > 600 kVA ; Multiple Phase | E76: 0 | F76: 0 | G76: 0
C77: Kiosk Mounted ; < = 22kV ; < = 60 kVA ; Single Phase | E77: 0 | F77: 0 | G77: 0
C78: Kiosk Mounted ; < = 22kV ; > 60 kVA and < = 600 kVA ; Single Phase | E78: 671363.9262 | F78: 18 | G78: 6
C79: Kiosk Mounted ; < = 22kV ; > 600 kVA ; Single Phase | E79: 261085.9713 | F79: 7 | G79: 2
C80: Kiosk Mounted ; < = 22kV ; < = 60 kVA ; Multiple Phase | E80: 0 | F80: 0 | G80: 0
C81: Kiosk Mounted ; < = 22kV ; > 60 kVA and < = 600 kVA ; Multiple Phase | E81: 0 | F81: 0 | G81: 0
C82: Kiosk Mounted ; < = 22kV ; > 600 kVA ; Multiple Phase | E82: 0 | F82: 0 | G82: 0
C83: Ground Outdoor / Indoor Chamber Mounted; ˂ 22 kV ; < = 60 kVA ; Single Phase | E83: 0
C84: Ground Outdoor / Indoor Chamber Mounted; ˂ 22 kV ; > 60 kVA and < = 600 kVA ; Single Phase | E84: 0
C85: Ground Outdoor / Indoor Chamber Mounted; ˂ 22 kV ; > 600 kVA ; Single Phase | E85: 0
C86: Ground Outdoor / Indoor Chamber Mounted; ˂ 22 kV ; < = 60 kVA ; Multiple Phase | E86: 0
C87: Ground Outdoor / Indoor Chamber Mounted; ˂ 22 kV ; > 60 kVA and < = 600 kVA ; Multiple Phase | E87: 0
C88: Ground Outdoor / Indoor Chamber Mounted; ˂ 22 kV ; > 600 kVA ; Multiple Phase | E88: 0
C89: Ground Outdoor / Indoor Chamber Mounted; > = 22 kV & < = 33 kV ; < = 15 MVA | E89: 1250168.821 | F89: 3 | G89: 2
C90: Ground Outdoor / Indoor Chamber Mounted; > = 22 kV & < = 33 kV ; > 15 MVA and < = 40 MVA | E90: 0
C91: Ground Outdoor / Indoor Chamber Mounted; > = 22 kV & < = 33 kV ; > 40 MVA | E91: 0
C92: Ground Outdoor / Indoor Chamber Mounted; > 33 kV & < = 66 kV ; < = 15 MVA | E92: 2686.469735
C93: Ground Outdoor / Indoor Chamber Mounted; > 33 kV & < = 66 kV ; > 15 MVA and < = 40 MVA | E93: 0
C94: Ground Outdoor / Indoor Chamber Mounted; > 33 kV & < = 66 kV ; > 40 MVA | E94: 0
C95: Ground Outdoor / Indoor Chamber Mounted; > 66 kV & < = 132 kV ; < = 100 MVA | E95: 0
C96: Ground Outdoor / Indoor Chamber Mounted; > 66 kV & < = 132 kV ; > 100 MVA | E96: 0
C97: Ground Outdoor / Indoor Chamber Mounted; > 132 kV ; < = 100 MVA | E97: 0
C98: Ground Outdoor / Indoor Chamber Mounted; > 132 kV ; > 100 MVA | E98: 0
C99: Other | E99: 0
B100: SWITCHGEAR BY: HIGHEST OPERATING VOLTAGE ; SWITCH FUNCTION | C100: ˂ = 11 kV ; FUSE | E100: 0
C101: ˂ = 11 kV ; Switch | E101: 162190.6653 | F101: 5 | G101: 2
C102: ˂ = 11 kV ; Circuit Breaker | E102: 1595380.57 | F102: 1 | G102: 1
C103: > 11 kV & < = 22 kV ; Switch | E103: 0
C104: > 11 kV & < = 22 kV ; Circuit Breaker | E104: 0
C105: > 22 kV & < = 33 kV ; Switch | E105: 213828.2894 | F105: 5
C106: > 22 kV & < = 33 kV ; Circuit Breaker | E106: 453676.0274 | F106: 2
C107: > 33 kV & < = 66 kV ; Switch | E107: 320855.3532 | F107: 2
C108: > 33 kV & < = 66 kV ; Circuit Breaker | E108: 1263687.86 | F108: 6 | G108: 1
C109: > 66 kV & < = 132 kV ; Switch | E109: 0
C110: > 66 kV & < = 132 kV ; Circuit Breaker | E110: 0
C111: > 132 kV ; Switch | E111: 0
C112: > 132 kV ; Circuit Breaker | E112: 0
C113: Other | E113: 0
B114: PUBLIC LIGHTING BY: ASSET TYPE ; LIGHTING OBLIGATION | C114: Luminaires ; Major Road | E114: 0
C115: Luminaires ; Minor Road
C116: Brackets ; Major Road
C117: Brackets ; Minor Road
C118: Lamps ; Major Road
C119: Lamps ; Minor Road
C120: Poles / Columns ; Major Road
C121: Poles / Columns ; Minor Road
C122: Other | E122: 0
B123: SCADA, NETWORK CONTROL AND PROTECTION SYSTEMS BY: FUNCTION | C123: Field Devices | E123: 987588.4675 | F123: 6 | G123: 37
C124: Local Network Wiring Assets | E124: 0
C125: Communications Network Assets | E125: 903265.1925 | F125: 22 | G125: 2
C126: Master Station Assets | E126: 0
C127: Communications Site Infrastructure | E127: 7143.270706 | F127: 0 | G127: 0
C128: Communications Linear Assets | E128: 535704.4693 | F128: 3.15 | G128: 2.35
C129: AFLC | E129: 0
C130: Other | E130: 0
B131: OTHER BY: DNSP DEFINED | C131: ˂ ≈ 11 kV ; STOBIE Pole | E131: 14366882.18 | F131: 1762 | G131: 116
C132: > 11 kV & <≈ 33 kV ; STOBIE Pole | E132: 1792843.093 | F132: 227 | G132: 25
C133: > 33 kV & <≈ 66 kV ; STOBIE Pole | E133: 145260.6381 | F133: 15 | G133: 0
C134: Pole REFURBISHED; STOBIE Pole | E134: 2606543.398 | F134: 2676 | G134: 0
C135: POLE MOUNTED TRANSFORMER; > 22 kV ; < ≈ 60 kVA | E135: 39933.18521 | F135: 3 | G135: 1
C136: POLE MOUNTED TRANSFORMER ; > 22 kV ; > 60 kVA and < ≈ 600 kVA | E136: 53244.24694 | F136: 4 | G136: 2
C137: KIOSK MOUNTED TRANSFORMER; > 22 kV ; > 60 kVA and < ≈ 600 kVA | E137: 0 | F137: 0 | G137: 0
C138: OTHER - Non Category Substation asset replacement/refurbishment | E138: 5682097.878 | F138: 80 | G138: 4
C139: Recloser ;SWITCHGEAR | E139: 1865934.566 | F139: 184 | G139: 57
C140: Sectionalizer ;SWITCHGEAR | E140: 31183.79552 | F140: 16 | G140: 44
C141: >= 11 kV & < ≈ 22 kV ; LOAD BREAK SWITCH; GROUND LEVEL (Switching Cubical);SWITCHGEAR | E141: 2159010.482 | F141: 35 | G141: 8
C142: > 22 kV & < ≈ 33 kV ; LOAD BREAK SWITCH; GROUND LEVEL (Switching Cubical);SWITCHGEAR | E142: 0
C143: Ground Outdoor / Indoor Chamber Mounted; > = 22 kV & < = 33 kV ; < = 15 MVA REFURBISHED | E143: 76470.39459 | F143: 1
C144: Ground Outdoor / Indoor Chamber Mounted; > 33 kV & < = 66 kV ; < = 15 MVA REFURBISHED | E144: 64894.43785 | F144: 1
C145: Ground Outdoor / Indoor Chamber Mounted; > 33 kV & < = 66 kV ; > 15 MVA and < = 40 MVA REFURBISHED | E145: 342504.4433 | F145: 3
C146: ˂ = 11 kV ; Circuit Breaker REFURBISHED | E146: 708433.4094 | F146: 52
C147: > 22 kV & < = 33 kV ; Circuit Breaker REFURBISHED | E147: 472420.8557 | F147: 14
C148: > 33 kV & < = 66 kV ; Circuit Breaker REFURBISHED | E148: 39795.28756 | F148: 1
C149: Pipework Bus Substation Replacements | E149: 1142978.631 | F149: 1
B153: 2.2.2 - SELECTED ASSET CHARACTERISTICS
E154: ASSET VOLUMES CURRENTLY IN COMMISSION | F154: ASSET REPLACEMENTS (0's)
B155: ASSET GROUP | C155: METRIC | D155: UNITS | E155: 2015-16 | F155: 2015-16
B156: TOTAL POLES BY: FEEDER TYPE | C156: Total CBD poles | D156: Number | E156: 330 | F156: 2
C157: Total urban poles | D157: Number | E157: 258462 | F157: 1185
C158: Total rural long poles | D158: Number | E158: 372074 | F158: 471
C159: Total rural short poles | D159: Number | E159: 114830 | F159: 346
B160: OVERHEAD CONDUCTORS BY: CONDUCTOR LENGTH BY FEEDER TYPE | C160: Conductors CBD | D160: KM | E160: 60.94401746 | F160: 0.37
C161: Conductors urban | D161: KM | E161: 55501.13858 | F161: 15.26
C162: Conductors rural long | D162: KM | E162: 87617.89616 | F162: 18.02
C163: Conductors rural short | D163: KM | E163: 31457.93853 | F163: 13.465
B164: OVERHEAD CONDUCTORS BY: CONDUCTOR LENGTH MATERIAL TYPE | C164: OH conductor LV ABC | D164: KM | E164: 7991.529544 | F164: 0
C165: OH conductor steel | D165: KM | E165: 42943.18973 | F165: 1.88
C166: OH conductor ACSR | D166: KM | E166: 39495.97966 | F166: 21.125
C167: OH conductor AAAC | D167: KM | E167: 6135.35604 | F167: 0
C168: OH conductor AAC | D168: KM | E168: 33424.56568 | F168: 11.4
C169: OH conductor HDBC | D169: KM | E169: 44645.37935 | F169: 12.71
C170: Other | D170: KM | F170: 0
B171: UNDERGROUND CABLES BY: CABLE LENGTH BY FEEDER TYPE | C171: Cable CBD | D171: KM | E171: 264.9913123 | F171: 0.03
C172: Cable urban | D172: KM | E172: 10778.18634 | F172: 5.931
C173: Cable rural long | D173: KM | E173: 3103.777626 | F173: 0.6
C174: Cable rural short | D174: KM | E174: 3340.068838 | F174: 0.35
B175: TRANSFORMERS BY: TOTAL MVA | C175: Total MVA replaced | D175: MVA | E175: 25.75 | F175: 0
C176: Total MVA disposed of | D176: MVA | E176: 12.62 | F176: 0

Sheet 2.3(a) Augex
B1: REGULATORY REPORTING STATEMENT
B2: =INDEX(dms_TradingNameFull_List,MATCH(dms_TradingName,dms_TradingName_List)) -> SA Power Networks
B3: =CONCATENATE((LOOKUP(dms_Model,dms_Model_List,dms_Worksheet_List))&" "&CRY) -> CATEGORY ANALYSIS 2015-16
B4: 2.3 AUGEX PROJECT DATA
B7: There are TWO tables on this worksheet - each has been 'grouped' for easy navigation. Both ROWS and COLUMNS have been grouped. See the Instructions sheet on how to group or ungroup tables.
B9: 2.3.1 - AUGEX ASSET DATA - SUBTRANSMISSION SUBSTATIONS, SWITCHING STATIONS AND ZONE SUBSTATIONS
B10: NOTE: DNSP MUST PROVIDE EXPENDITURE INFORMATION ON A PROJECT CLOSE BASIS.
B11: PROJECT DESCRIPTION AND CHANGES | L11: PLANT AND EQUIPMENT EXPENDITURE AND VOLUME | X11: OTHER EXPENDITURE | Z11: TOTAL DIRECT EXPENDITURE ($0's) | AA11: YEARS INCURRED | AB11: ALL RELATED PARTY CONTRACTS | AD11: ALL NON RELATED PARTYCONTRACTS | AE11: LAND AND EASEMENTS
B12: SUBSTATION ID | C12: SUBSTATION TYPE (drop down) | D12: PROJECT ID | E12: PROJECT TYPE (drop down) | F12: PROJECT TRIGGER (drop down) | G12: VOLTAGE (KV) | H12: SUBSTATION RATING NORMAL CYCLIC (MVA) | J12: SUBSTATION RATING N-1 EMERGENCY (MVA) | L12: TRANSFORMERS | O12: SWITCHGEAR | Q12: CAPACITORS | U12: OTHER PLANT ITEM | V12: INSTALLATION (LABOUR) | X12: CIVIL WORKS | Y12: OTHER DIRECT | AB12: RELATED PARTY MARGINS | AC12: TOTAL | AE12: LAND PURCHASE | AF12: EASEMENTS
H13: PRE | I13: POST | J13: PRE | K13: POST | L13: UNITS ADDED | M13: MVA ADDED | N13: EXPENDITURE ($0's) | O13: UNITS ADDED | P13: EXPENDITURE ($0's) | Q13: MVAR ADDED | R13: EXPENDITURE ($0's) | U13: EXPENDITURE ($0's) | V13: VOLUME | W13: EXPENDITURE ($0's) | X13: EXPENDITURE ($0's) | AB13: EXPENDITURE ($0's) | AE13: EXPENDITURE ($0's)
B14: Munno Para Connection Point | C14: Switching station | D14: NW-8088 | E14: New substation establishment | F14: Demand growth | G14: 275/66 | O14: 14 | P14: 408575.9014 | U14: 2011081.527 | V14: 24105.6 | W14: 2510381.529 | X14: 1341570.134 | Y14: 139302.0889 | Z14: =SUM(N14,P14,R14,U14,W14,X14,Y14) -> 6410911.181 | AA14: 2006,2007,2008,2009,2010,2011,2012,2013,2014,2015 | AB14: 0 | AC14: 8707031.425 | AD14: 2270734.61 | AE14: 25385.63467 | AF14: 0
B15: Port Lincoln Marina | C15: Zone substation | D15: NW-10687 | E15: New substation establishment | F15: Demand growth | G15: 33/11 | I15: 16.8 | K15: 0 | L15: 1 | M15: 16.8 | N15: 399228.0414 | O15: 7 | P15: 294718.1861 | U15: 1311267.337 | V15: 14300.03 | W15: 1509990.895 | X15: 1276911.012 | Y15: 121518.7734 | Z15: 4913634.245 | AA15: 2010,2011,2012,2013,2014,2015 | AB15: 0 | AC15: 5651942.486 | AD15: 734489.1104 | AE15: 3819.130713 | AF15: 0
B16: Dorrien Sub Upgrade | C16: Zone substation | D16: NW-11043 | E16: Substation upgrade - capacity | F16: Demand growth | G16: 33/11 | H16: 13.6 | I16: 27.2 | J16: 0 | K16: 13.6 | L16: 1 | M16: 13.6 | N16: 406195.208 | O16: 7 | P16: 278196.3241 | U16: 638175.1538 | V16: 15987.93 | W16: 1745632.443 | X16: 605949.0433 | Y16: 71906.78324 | Z16: 3746054.956 | AA16: 2011,2012,2013,2014,2015,2016 | AB16: 0 | AC16: 4204246.342 | AD16: 458191.3861 | AE16: 0 | AF16: 0
B17: Two Wells Substation | C17: Zone substation | D17: NW-11117 | E17: New substation establishment | F17: Demand growth | G17: 66/11 | I17: 16.6 | K17: 0 | L17: 1 | M17: 16.6 | N17: 407178.2593 | O17: 7 | P17: 296266.9262 | U17: 724933.8235 | V17: 14117.8 | W17: 1547751.596 | X17: 1261850.165 | Y17: 229244.967 | Z17: 4467225.737 | AA17: 2011,2012,2013,2014,2015,2016 | AB17: 0 | AC17: 6095050.075 | AD17: 1605515.436 | AE17: 22308.90274 | AF17: 0
Z18: 0
Z19: 0
Z20: 0
Z21: 0
Z22: 0
Z23: 0
Z24: 0
Z25: 0
Z26: 0
Z27: 0
Z28: 0
Z29: 0
Z30: 0
Z31: 0
Z32: 0
Z33: 0
Z34: 0
Z35: 0
Z36: 0
Z37: 0
Z38: 0
Z39: 0
Z40: 0
Z41: 0
Z42: 0
Z43: 0
Z44: 0
Z45: 0
Z46: =SUM(N46,P46,R46,U46,W46,X46,Y46) -> 0
Z47: 0
Z48: 0
Z49: 0
Z50: 0
Z51: 0
Z52: 0
Z53: 0
Z54: 0
Z55: 0
Z56: 0
Z57: 0
Z58: 0
Z59: 0
Z60: 0
Z61: 0
Z62: 0
Z63: 0
Z64: 0
Z65: 0
D66: Non material projects - [actual] | Z66: 20880522.71
D67: Non material projects - [forecast]
B70: AUG232_1 | C70: AUG232_2 | D70: AUG232_3 | E70: AUG232_4 | F70: AUG232_5 | G70: AUG232_6 | H70: ED_AUG232_00001 | I70: ED_AUG232_00002 | J70: ED_AUG232_00003 | K70: ED_AUG232_00004 | L70: ED_AUG232_00005 | M70: ED_AUG232_00006 | N70: ED_AUG232_00007 | O70: ED_AUG232_00008 | P70: ED_AUG232_00009 | Q70: ED_AUG232_00010 | R70: ED_AUG232_00011 | S70: ED_AUG232_00012 | T70: ED_AUG232_00013 | U70: ED_AUG232_00014 | V70: ED_AUG232_00015 | W70: ED_AUG232_00016 | X70: ED_AUG232_00017 | Y70: ED_AUG232_00018 | Z70: ED_AUG232_00019 | AA70: ED_AUG232_00020 | AB70: ED_AUG232_00021
B71: 2.3.2 - AUGEX ASSET DATA - SUBTRANSMISSION LINES
B72: NOTE: DNSP MUST PROVIDE EXPENDITURE INFORMATION ON A PROJECT CLOSE BASIS.
B73: PROJECT DESCRIPTION AND CHANGES | L73: PLANT AND EQUIPMENT EXPENDITURE AND VOLUME | X73: OTHER EXPENDITURE | Z73: TOTAL DIRECT EXPENDITURE ($0's) | AA73: YEARS INCURRED | AB73: ALL RELATED PARTY CONTRACTS | AD73: ALL NON RELATED PARTYCONTRACTS | AE73: LAND AND EASEMENTS
B74: LINE ID | C74: PROJECT ID | D74: PROJECT TYPE | E74: PROJECT TRIGGER | G74: VOLTAGE (KV) | H74: ROUTE LINE LENGTH ADDED | L74: POLES/TOWERS (INCLUDING STRUCTURES, AND CIVIL WORKS) | O74: OVERHEAD LINES | R74: UNDERGROUND CABLES | U74: OTHER PLANT ITEM | V74: INSTALLATION (LABOUR) | X74: CIVIL WORKS | Y74: OTHER DIRECT | AB74: RELATED PARTY MARGINS | AC74: TOTAL | AE74: LAND PURCHASE | AF74: EASEMENTS
H75: KM ADDED | L75: POLES/TOWERS ADDED | M75: POLES/TOWERS UPGRADED | N75: EXPENDITURE ($0's) | O75: CIRCUIT KM ADDED | P75: CIRCUIT KM UPGRADED | Q75: EXPENDITURE ($0's) | R75: CIRCUIT KM ADDED | S75: CIRCUIT KM UPGRADED | T75: EXPENDITURE ($0's) | U75: EXPENDITURE ($0's) | V75: VOLUME | W75: EXPENDITURE ($0's) | X75: EXPENDITURE ($0's) | AB75: EXPENDITURE ($0's) | AE75: EXPENDITURE ($0's)
B76: Munno Para Connection Point | C76: NW-8088 | D76: Other | E76: Demand growth | G76: 66 | L76: 5 | N76: 129261.2029 | O76: 0.34 | Q76: 10377.24956 | U76: 0 | V76: 434 | W76: 42637.74674 | X76: 0 | Y76: 0 | Z76: =SUM(N76,Q76,T76,U76,W76,X76,Y76) -> 182276.1992 | AA76: 2006,2007,2008,2009,2010,2011,2012,2013,2014,2015 | AB76: 0 | AC76: 182276.1992 | AD76: 0 | AE76: 0 | AF76: 0 | AH76: New line on new route - single circuit
B77: Port Lincoln Marina | C77: NW-10687 | D77: New line on new route - single circuit | E77: Demand growth | G77: Other | H77: 0.95 | R77: 0.95 | T77: 72008.37696 | U77: 0 | V77: 1455.8 | W77: 159203.9523 | X77: 0 | Y77: 0 | Z77: 231212.3293 | AA77: 2010,2011,2012,2013,2014,2015 | AB77: 0 | AC77: 231212.3293 | AD77: 0 | AE77: 0 | AF77: 0 | AH77: New line on new route - dual circuit
B78: Two Wells Substation | C78: NW-11117 | D78: Line rebuild over existing route - single circuit | E78: Demand growth | G78: 66 | H78: 10.57 | L78: 32 | M78: 9 | N78: 684376.6776 | O78: 3.97 | P78: 6.63 | Q78: 199279.4647 | U78: 0 | V78: 10767.46 | W78: 1039327.177 | X78: 0 | Y78: 0 | Z78: 1922983.319 | AA78: 2011,2012,2013,2014,2015,2016 | AB78: 0 | AC78: 1922983.319 | AD78: 0 | AE78: 0 | AF78: 0 | AH78: New line on new route - other
Z79: 0 | AH79: Line rebuild over existing route - single circuit
Z80: 0 | AH80: Line rebuild over existing route - dual circuit
Z81: 0 | AH81: Reconductor - Single circuit
Z82: 0 | AH82: Reconductor - Dual circuit
Z83: 0 | AH83: Reconductor - Other
Z84: 0 | AH84: Line upgrade - raising/retensoring
Z85: 0 | AH85: Line upgrade - voltage upgrade
Z86: 0 | AH86: Line upgrade - capacity
Z87: 0 | AH87: String spare circuit
Z88: 0 | AH88: Other
Z89: 0
Z90: 0
Z91: 0
Z92: 0
Z93: 0
Z94: 0
Z95: 0
Z96: 0
Z97: 0
Z98: 0
Z99: 0
Z100: 0
Z101: 0
Z102: 0
Z103: 0
Z104: 0
Z105: 0
Z106: 0
Z107: 0
Z108: =SUM(N108,Q108,T108,U108,W108,X108,Y108) -> 0
Z109: 0
Z110: 0
Z111: 0
Z112: 0
Z113: 0
Z114: 0
Z115: 0
Z116: 0
Z117: 0
Z118: 0
Z119: 0
Z120: 0
Z121: 0
Z122: 0
Z123: 0
Z124: 0
Z125: 0
Z126: 0
Z127: 0
Z128: 0
Z129: 0
C130: Non material projects - [actual] | Z130: 642212.17
C131: Non material projects - [actual]

Sheet 2.3(b) Augex
B1: REGULATORY REPORTING STATEMENT
B2: =INDEX(dms_TradingNameFull_List,MATCH(dms_TradingName,dms_TradingName_List)) -> SA Power Networks
B3: =CONCATENATE((LOOKUP(dms_Model,dms_Model_List,dms_Worksheet_List))&" "&CRY) -> CATEGORY ANALYSIS 2015-16
B4: 2.3 AUGEX DATA
B6: There are TWO tables on this worksheet. Each has been grouped for ease of navigation. See the Instructions sheet on how to group or ungroup tables.
B8: 2.3.3 - AUGEX DATA - HV/LV FEEDERS AND DISTRIBUTION SUBSTATIONS
B9: NOTE: DNSP MUST PROVIDE EXPENDITURE INFORMATION ON AN AS INCURRED BASIS.
B10: DESCRIPTOR METRICS
B11: PROJECT TYPE | D11: UNITS ADDED (0's) | E11: UNITS UPGRADED (0's)
C12: UNITS | D12: =CRY -> 2015-16 | E12: =CRY -> 2015-16
B13: HV Feeder Augmentations - Overhead Lines | C13: Circuit line length in km | D13: 11.1 | E13: 0
B14: HV Feeder Augmentations - Underground Cables | C14: Circuit line length in km | D14: 0.2 | E14: 0
B15: LV Feeder Augmentations - Overhead Lines | C15: Circuit line length in km | D15: 0.15 | E15: 6.62
B16: LV Feeder Augmentations - Underground Cables | C16: Circuit line length in km | D16: 0 | E16: 0
B17: Distribution Substation Augmentations - Pole Mounted | C17: Number | D17: 42 | E17: 100
B18: Distribution Substation Augmentations - Ground Mounted | C18: Number | D18: 1 | E18: 26
B19: Distribution Substation Augmentations - Indoor | C19: Number | D19: 0 | E19: 0
B21: COST METRICS
B22: TOTAL DIRECT EXPENDITURE - Project Type | D22: EXPENDITURE ($0's)
D23: =CRY -> 2015-16
B24: HV Feeder Augmentations - Overhead Lines | D24: 227256.2077
B25: HV Feeder Augmentations - Underground Cables | D25: 18228.03606
B26: HV Feeder Non-Material Projects | D26: 15181100.84
B27: LV Feeder Augmentations - Overhead Lines | D27: 479712.5401
B28: LV Feeder Augmentations - Underground Cables | D28: 0
B29: LV Feeder Non-Material Projects | D29: 313860.1664
B30: Distribution Substation Augmentations - Pole Mounted | D30: 3207398.878
B31: Distribution Substation Augmentations - Ground Mounted | D31: 676582.5828
B32: Distribution Substation Augmentations - Indoor | D32: 0
B35: 2.3.4 - AUGEX DATA - TOTAL EXPENDITURE
B36: AUGMENTATION CAPEX (As incurred) | D36: EXPENDITURE ($0's)
D37: =CRY -> 2015-16
B38: Subtransmission Substations, Switching Stations, Zone Substations | D38: 24623242.28
B39: Subtransmission Lines | D39: 1187220.399
B40: HV Feeders | D40: 15426585.08
B41: HV Feeders - Land Purchases and Easements | D41: 0
B42: Distribution Substations | D42: 3883981.461
B43: Distribution Substations - Land Purchases And Easements | D43: 0
B44: LV Feeders | D44: 793572.7065
B45: LV Feeders - Land Purchases And Easements | D45: 0
B46: Other Assets | D46: 5765963.04

Sheet 2.5 Connections
B1: REGULATORY REPORTING STATEMENT
B2: =INDEX(dms_TradingNameFull_List,MATCH(dms_TradingName,dms_TradingName_List)) -> SA Power Networks
B3: =CONCATENATE((LOOKUP(dms_Model,dms_Model_List,dms_Worksheet_List))&" "&CRY) -> CATEGORY ANALYSIS 2015-16
B4: 2.5 CONNECTIONS
B6: There are TWO tables on this worksheet. Each has been grouped for ease of navigation. See the Instructions sheet on how to group or ungroup tables.
B8: 2.5.1 - DESCRIPTOR METRICS
B9: <<<GROUP-ROW>>>
E11: VOLUMES AND EXPENDITURE
B12: CONNECTION SUBCATEGORY | C12: DESCRIPTOR METRIC | D12: UNITS | E12: =CRY -> 2015-16
B13: RESIDENTIAL | C13: Underground connections | D13: 0's | E13: 8663
C14: Overhead connections | D14: 0's | E14: 681
C15: Distribution substation installed | D15: MVA added | E15: 6.405
C16: Distribution substations installed | D16: 0's | E16: 102
C17: Distribution substation installed | D17: total spend $0s | E17: 2186238.226
C18: Augmentation HV | D18: net circuit km added | E18: 5.71
C19: Augmentation HV | D19: total spend $0s | E19: 783241.0672
C20: Augmentation LV | D20: net circuit km added | E20: 2.84
C21: Augmentation LV | D21: total spend $0s | E21: 447806.1747
C22: Mean days to connect residential customer with LV single phase connection | D22: 0's | E22: 12.4
C23: Volume of GSL breaches for residential customers | D23: 0's | E23: 192
C24: Volume of customer complaints relating to connection services | D24: 0's | E24: 109
C25: GSL payments | D25: $0s | E25: 52620
B26: COMMERCIAL/INDUSTRIAL | C26: Underground connections | D26: 0's | E26: 1258
C27: Overhead connections | D27: 0's | E27: 648
C28: Distribution substation installed | D28: MVA added | E28: 116.314
C29: Distribution substations installed | D29: 0's | E29: 247
C30: Distribution substation installed | D30: total spend $0s | E30: 12673786.86
C31: Augmentation HV | D31: net circuit km added | E31: 35.236
C32: Augmentation HV | D32: total spend $0s | E32: 6060470.965
C33: Augmentation LV | D33: net circuit km added | E33: 3.961
C34: Augmentation LV | D34: total spend $0s | E34: 1225507.015
B35: SUBDIVISION | C35: Underground connections | D35: 0's | E35: 200
C36: Overhead connections | D36: 0's | E36: 65
C37: Distribution substation installed | D37: MVA added | E37: 49.246
C38: Distribution substations installed | D38: 0's | E38: 160
C39: Distribution substation installed | D39: total spend $0s | E39: 7088976.821
C40: Augmentation HV | D40: net circuit km added | E40: 19.79
C41: Augmentation HV | D41: total spend $0s | E41: 3180059.406
C42: Augmentation LV | D42: net circuit km added | E42: 33.144
C43: Augmentation LV | D43: total spend $0s | E43: 8312502.777
C44: Cost per lot ($) | D44: $0s | E44: 1638.321268
B45: EMBEDDED GENERATION | C45: Underground connections | D45: 0's | E45: 8324
C46: Overhead connections | D46: 0's | E46: 431
C47: Distribution substation installed | D47: MVA added | E47: 0.315
C48: Distribution substations installed | D48: 0's | E48: 1
C49: Distribution substation installed | D49: total spend $0s | E49: 60033.02105
C50: Augmentation HV | D50: net circuit km added | E50: 0.005
C51: Augmentation HV | D51: total spend $0s | E51: 0
C52: Augmentation LV | D52: net circuit km added | E52: 0
C53: Augmentation LV | D53: total spend $0s | E53: 0
B57: 2.5.2 - COST METRICS BY CONNECTION CLASSIFICATION
D58: EXPENDITURE ($0's) | E58: VOLUMES (0's)
B59: CONNECTION SUBCATEGORY | C59: CONNECTION CLASSIFICATION | D59: =CRY -> 2015-16 | E59: =CRY -> 2015-16
B60: RESIDENTIAL | C60: Simple connection LV | D60: 11187774.75 | E60: 9196
C61: Complex connection LV | D61: 2347293.765 | E61: 148
C62: Complex connection HV | D62: 0 | E62: 0
B63: COMMERCIAL/INDUSTRIAL | C63: Simple connection LV | D63: 3891347.694 | E63: 1738
C64: Complex connection HV (customer connected at LV, minor HV works) | D64: 21602432.1 | E64: 269
C65: Complex connection HV (customer connected at LV, upstream asset works) | D65: 4348333.692 | E65: 2
C66: Complex connection HV (customer connected at HV) | D66: 2669088.186 | E66: 3
C67: Complex connection sub-transmission
B68: SUBDIVISION | C68: Complex connection LV | D68: 4507112.692 | E68: 137
C69: Complex connection HV (no upstream asset works) | D69: 4037071.507 | E69: 128
C70: Complex connection HV (with upstream asset works) | D70: 0 | E70: 0
B71: EMBEDDED GENERATION | C71: Simple connection LV | D71: 0 | E71: 8755
C72: Complex connection HV (small capacity) | D72: 174366.8985 | E72: 42
C73: Complex connection HV (large capacity)

Sheet 2.6 Non-network
B1: REGULATORY REPORTING STATEMENT
B2: =INDEX(dms_TradingNameFull_List,MATCH(dms_TradingName,dms_TradingName_List)) -> SA Power Networks
B3: =CONCATENATE((LOOKUP(dms_Model,dms_Model_List,dms_Worksheet_List))&" "&CRY) -> CATEGORY ANALYSIS 2015-16
B4: 2.6 NON NETWORK EXPENDITURE
B6: There are THREE tables on this worksheet. Each has been grouped (and sub-grouped) for ease of navigation. See the Instructions sheet on how to group or ungroup tables.
B8: 2.6.1 - NON-NETWORK EXPENDITURE
F9: EXPENDITURE ($0's)
B10: SERVICE SUBCATEGORY | C10: ASSET CATEGORY | F10: =CRY -> 2015-16
B11: OPEX
B12: IT & COMMUNICATIONS | C12: Client device expenditure | F12: 1291440.368
C13: Recurrent expenditure | F13: 8669708.002
C14: Non-recurrent expenditure | F14: 306672.2298
B15: MOTOR VEHICLES | C15: Car | F15: 922012.3364
C16: Light commercial vehicle | F16: 3762467.917
C17: Elevated work platform (LCV) | F17: 0
C18: Elevated work platform (HCV) | F18: 4171094.472
C19: Heavy commercial vehicle | F19: 1399746.327
B20: BUILDINGS AND PROPERTY | C20: Total buildings and property expenditure | F20: 3821817.444
B21: OTHER | C21: Other expenditure | F21: =SUM(F22:F29) -> 4557836.555
B22: OTHER - DNSP nominated | C22: TEC Vehicles | F22: 617651.5641
C23: Cranes | F23: 1486672.847
C24: Other Commercial Vehicles | F24: 587595.4643
C25: Network Telephony (A80) | F25: 1865916.68
C26: ADMS | F26: 0
C27: Other Network Strategic | F27: 0
C28: Non-Network Telecommunications | F28: 0
C29: Non-Network Other Plant and Tools | F29: 0
B33: CAPEX
B34: IT & COMMUNICATIONS | C34: Client device expenditure | F34: 4305005.136
C35: Recurrent expenditure | F35: 20418550
C36: Non-recurrent expenditure | F36: 17273444.31
B37: MOTOR VEHICLES | C37: Car | F37: 642792.45
C38: Light commercial vehicle | F38: 4339002.35
C39: Elevated work platform (LCV) | F39: 0
C40: Elevated work platform (HCV) | F40: 5902081.99
C41: Heavy commercial vehicle | F41: 832398.65
B42: BUILDINGS AND PROPERTY | C42: Total buildings and property expenditure | F42: 7670788.37
B43: OTHER | C43: Other expenditure | F43: =SUM(F44:F51) -> 15033905.5
B44: OTHER - DNSP nominated | C44: =IF(ISBLANK(C22),"",C22) -> TEC Vehicles | F44: 1231920.74
C45: =IF(ISBLANK(C23),"",C23) -> Cranes | F45: 336520.34
C46: Other Commercial Vehicles | F46: 1488207.48
C47: Network Telephony (A80) | F47: 0
C48: ADMS | F48: 4770567.66
C49: Other Network Strategic | F49: 3685225.43
C50: Non-Network Telecommunications | F50: 1093717
C51: Non-Network Other Plant and Tools | F51: 2427746.85
B58: 2.6.2 - ANNUAL DESCRIPTOR METRICS - IT & COMMUNICATIONS EXPENDITURE
F59: VOLUMES (0's)
B61: NON-NETWORK CATEGORY | C61: DESCRIPTOR METRIC | F61: =CRY -> 2015-16
B62: IT & COMMUNICATIONS | C62: Employee numbers | F62: 1645
C63: User numbers | F63: 1665.46065
C64: Number of devices | F64: 5066.04
B67: 2.6.3 - ANNUAL DESCRIPTOR METRICS - MOTOR VEHICLES
F68: VOLUMES / %
B69: NON-NETWORK CATEGORY | C69: ASSET CATEGORY | D69: DESCRIPTOR METRIC | E69: UNITS | F69: =CRY -> 2015-16
B70: MOTOR VEHICLES | C70: CAR | D70: Average kilometres travelled | E70: 0's | F70: 16874.246
D71: Number purchased | E71: 0's | F71: 21
D72: Number leased | E72: 0's | F72: 1
D73: Number in fleet | E73: 0's | F73: 91
D74: Proportion of total fleet expenditure allocated as regulatory expenditure | E74: (per cent) | F74: 0.8226
C75: LIGHT COMMERCIAL VEHICLE | D75: Average kilometres travelled | E75: 0's | F75: 22047.507
D76: Number purchased | E76: 0's | F76: 98
D77: Number leased | E77: 0's | F77: 25
D78: Number in fleet | E78: 0's | F78: 409
D79: Proportion of total fleet expenditure allocated as regulatory expenditure | E79: (per cent) | F79: 0.8547
C80: ELEVATED WORK PLATFORM (LCV) | D80: Average kilometres travelled | E80: 0's | F80: 0
D81: Number purchased | E81: 0's | F81: 0
D82: Number leased | E82: 0's | F82: 0
D83: Number in fleet | E83: 0's | F83: 0
D84: Proportion of total fleet expenditure allocated as regulatory expenditure | E84: (per cent) | F84: 0
C85: ELEVATED WORK PLATFORM (HCV) | D85: Average kilometres travelled | E85: 0's | F85: 17322.582
D86: Number purchased | E86: 0's | F86: 65
D87: Number leased | E87: 0's | F87: 2
D88: Number in fleet | E88: 0's | F88: 105
D89: Proportion of total fleet expenditure allocated as regulatory expenditure | E89: (per cent) | F89: 0.8684
C90: HEAVY COMMERCIAL VEHICLE | D90: Average kilometres travelled | E90: 0's | F90: 10083.572
D91: Number purchased | E91: 0's | F91: 12
D92: Number leased | E92: 0's | F92: 0
D93: Number in fleet | E93: 0's | F93: 64
D94: Proportion of total fleet expenditure allocated as regulatory expenditure | E94: (per cent) | F94: 0.8133

Sheet 2.7 Vegetation management
B1: REGULATORY REPORTING STATEMENT
B2: =INDEX(dms_TradingNameFull_List,MATCH(dms_TradingName,dms_TradingName_List)) -> SA Power Networks
B3: =CONCATENATE((LOOKUP(dms_Model,dms_Model_List,dms_Worksheet_List))&" "&CRY) -> CATEGORY ANALYSIS 2015-16
B4: 2.7 VEGETATION MANAGEMENT
B6: There are THREE tables on this worksheet. Each has been grouped (and sub-grouped) for ease of navigation. See the Instructions sheet on how to group or ungroup tables.
B8: Please enter a description for each Zone in table 2.7.1 - Urban and CBD. The zone description will then autopopulate in tables 2.7.1 - Rural and 2.7.2.
A11: ` | B11: 2.7.1 - DESCRIPTOR METRICS BY ZONE
B12: URBAN AND CBD
E13: =CRY -> 2015-16
B14: ZONES | C14: ASSET | D14: UNITS
B15: ZONE 1 | C15: Route line length within zone | D15: km
C16: Number of maintenance spans | D16: 0's
C17: Total length of maintenance spans | D17: km
C18: Length of vegetation corridors | D18: km
C19: Average number of trees per maintenance span | D19: 0's
C20: Average frequency of cutting cycle | D20: years
B21: ZONE 2 | C21: Route line length within zone | D21: km
C22: Number of maintenance spans | D22: 0's
C23: Total length of maintenance spans | D23: km
C24: Length of vegetation corridors | D24: km
C25: Average number of trees per maintenance span | D25: 0's
C26: Average frequency of cutting cycle | D26: years
B27: ZONE 3 | C27: Route line length within zone | D27: km
C28: Number of maintenance spans | D28: 0's
C29: Total length of maintenance spans | D29: km
C30: Length of vegetation corridors | D30: km
C31: Average number of trees per maintenance span | D31: 0's
C32: Average frequency of cutting cycle | D32: years
B33: ZONE 4 | C33: Route line length within zone | D33: km
C34: Number of maintenance spans | D34: 0's
C35: Total length of maintenance spans | D35: km
C36: Length of vegetation corridors | D36: km
C37: Average number of trees per maintenance span | D37: 0's
C38: Average frequency of cutting cycle | D38: years
B39: ZONE 5 | C39: Route line length within zone | D39: km
C40: Number of maintenance spans | D40: 0's
C41: Total length of maintenance spans | D41: km
C42: Length of vegetation corridors | D42: km
C43: Average number of trees per maintenance span | D43: 0's
C44: Average frequency of cutting cycle | D44: years
B45: ZONE 6 | C45: Route line length within zone | D45: km
C46: Number of maintenance spans | D46: 0's
C47: Total length of maintenance spans | D47: km
C48: Length of vegetation corridors | D48: km
C49: Average number of trees per maintenance span | D49: 0's
C50: Average frequency of cutting cycle | D50: years
B51: ZONE 7 | C51: Route line length within zone | D51: km
C52: Number of maintenance spans | D52: 0's
C53: Total length of maintenance spans | D53: km
C54: Length of vegetation corridors | D54: km
C55: Average number of trees per maintenance span | D55: 0's
C56: Average frequency of cutting cycle | D56: years
B57: ZONE 8 | C57: Route line length within zone | D57: km
C58: Number of maintenance spans | D58: 0's
C59: Total length of maintenance spans | D59: km
C60: Length of vegetation corridors | D60: km
C61: Average number of trees per maintenance span | D61: 0's
C62: Average frequency of cutting cycle | D62: years
B63: ZONE 9 | C63: Route line length within zone | D63: km
C64: Number of maintenance spans | D64: 0's
C65: Total length of maintenance spans | D65: km
C66: Length of vegetation corridors | D66: km
C67: Average number of trees per maintenance span | D67: 0's
C68: Average frequency of cutting cycle | D68: years
B69: ZONE 10 | C69: Route line length within zone | D69: km
C70: Number of maintenance spans | D70: 0's
C71: Total length of maintenance spans | D71: km
C72: Length of vegetation corridors | D72: km
C73: Average number of trees per maintenance span | D73: 0's
C74: Average frequency of cutting cycle | D74: years
B75: ZONE 11 | C75: Route line length within zone | D75: km
C76: Number of maintenance spans | D76: 0's
C77: Total length of maintenance spans | D77: km
C78: Length of vegetation corridors | D78: km
C79: Average number of trees per maintenance span | D79: 0's
C80: Average frequency of cutting cycle | D80: years
B81: ZONE 12 | C81: Route line length within zone | D81: km
C82: Number of maintenance spans | D82: 0's
C83: Total length of maintenance spans | D83: km
C84: Length of vegetation corridors | D84: km
C85: Average number of trees per maintenance span | D85: 0's
C86: Average frequency of cutting cycle | D86: years
B87: ZONE 13 | C87: Route line length within zone | D87: km
C88: Number of maintenance spans | D88: 0's
C89: Total length of maintenance spans | D89: km
C90: Length of vegetation corridors | D90: km
C91: Average number of trees per maintenance span | D91: 0's
C92: Average frequency of cutting cycle | D92: years
B93: ZONE 14 | C93: Route line length within zone | D93: km
C94: Number of maintenance spans | D94: 0's
C95: Total length of maintenance spans | D95: km
C96: Length of vegetation corridors | D96: km
C97: Average number of trees per maintenance span | D97: 0's
C98: Average frequency of cutting cycle | D98: years
B99: ZONE 15 | C99: Route line length within zone | D99: km
C100: Number of maintenance spans | D100: 0's
C101: Total length of maintenance spans | D101: km
C102: Length of vegetation corridors | D102: km
C103: Average number of trees per maintenance span | D103: 0's
C104: Average frequency of cutting cycle | D104: years
B105: ZONE 16 | C105: Route line length within zone | D105: km
C106: Number of maintenance spans | D106: 0's
C107: Total length of maintenance spans | D107: km
C108: Length of vegetation corridors | D108: km
C109: Average number of trees per maintenance span | D109: 0's
C110: Average frequency of cutting cycle | D110: years
B111: ZONE 17 | C111: Route line length within zone | D111: km
C112: Number of maintenance spans | D112: 0's
C113: Total length of maintenance spans | D113: km
C114: Length of vegetation corridors | D114: km
C115: Average number of trees per maintenance span | D115: 0's
C116: Average frequency of cutting cycle | D116: years
B117: ZONE 18 | C117: Route line length within zone | D117: km
C118: Number of maintenance spans | D118: 0's
C119: Total length of maintenance spans | D119: km
C120: Length of vegetation corridors | D120: km
C121: Average number of trees per maintenance span | D121: 0's
C122: Average frequency of cutting cycle | D122: years
B124: RURAL
E125: =CRY -> 2015-16
B126: ZONES | C126: ASSET | D126: UNITS
B127: =B15 -> ZONE 1 | C127: Route line length within zone | D127: km
C128: Number of maintenance spans | D128: 0's
C129: Total length of maintenance spans | D129: km
C130: Length of vegetation corridors | D130: km
C131: Average number of trees per maintenance span | D131: 0's
C132: Average frequency of cutting cycle | D132: years
B133: =B21 -> ZONE 2 | C133: Route line length within zone | D133: km
C134: Number of maintenance spans | D134: 0's
C135: Total length of maintenance spans | D135: km
C136: Length of vegetation corridors | D136: km
C137: Average number of trees per maintenance span | D137: 0's
C138: Average frequency of cutting cycle | D138: years
B139: =B27 -> ZONE 3 | C139: Route line length within zone | D139: km
C140: Number of maintenance spans | D140: 0's
C141: Total length of maintenance spans | D141: km
C142: Length of vegetation corridors | D142: km
C143: Average number of trees per maintenance span | D143: 0's
C144: Average frequency of cutting cycle | D144: years
B145: =B33 -> ZONE 4 | C145: Route line length within zone | D145: km
C146: Number of maintenance spans | D146: 0's
C147: Total length of maintenance spans | D147: km
C148: Length of vegetation corridors | D148: km
C149: Average number of trees per maintenance span | D149: 0's
C150: Average frequency of cutting cycle | D150: years
B151: =B39 -> ZONE 5 | C151: Route line length within zone | D151: km
C152: Number of maintenance spans | D152: 0's
C153: Total length of maintenance spans | D153: km
C154: Length of vegetation corridors | D154: km
C155: Average number of trees per maintenance span | D155: 0's
C156: Average frequency of cutting cycle | D156: years
B157: =B45 -> ZONE 6 | C157: Route line length within zone | D157: km
C158: Number of maintenance spans | D158: 0's
C159: Total length of maintenance spans | D159: km
C160: Length of vegetation corridors | D160: km
C161: Average number of trees per maintenance span | D161: 0's
C162: Average frequency of cutting cycle | D162: years
B163: =B51 -> ZONE 7 | C163: Route line length within zone | D163: km
C164: Number of maintenance spans | D164: 0's
C165: Total length of maintenance spans | D165: km
C166: Length of vegetation corridors | D166: km
C167: Average number of trees per maintenance span | D167: 0's
C168: Average frequency of cutting cycle | D168: years
B169: =B57 -> ZONE 8 | C169: Route line length within zone | D169: km
C170: Number of maintenance spans | D170: 0's
C171: Total length of maintenance spans | D171: km
C172: Length of vegetation corridors | D172: km
C173: Average number of trees per maintenance span | D173: 0's
C174: Average frequency of cutting cycle | D174: years
B175: =B63 -> ZONE 9 | C175: Route line length within zone | D175: km
C176: Number of maintenance spans | D176: 0's
C177: Total length of maintenance spans | D177: km
C178: Length of vegetation corridors | D178: km
C179: Average number of trees per maintenance span | D179: 0's
C180: Average frequency of cutting cycle | D180: years
B181: =B69 -> ZONE 10 | C181: Route line length within zone | D181: km
C182: Number of maintenance spans | D182: 0's
C183: Total length of maintenance spans | D183: km
C184: Length of vegetation corridors | D184: km
C185: Average number of trees per maintenance span | D185: 0's
C186: Average frequency of cutting cycle | D186: years
B187: =B75 -> ZONE 11 | C187: Route line length within zone | D187: km
C188: Number of maintenance spans | D188: 0's
C189: Total length of maintenance spans | D189: km
C190: Length of vegetation corridors | D190: km
C191: Average number of trees per maintenance span | D191: 0's
C192: Average frequency of cutting cycle | D192: years
B193: =B81 -> ZONE 12 | C193: Route line length within zone | D193: km
C194: Number of maintenance spans | D194: 0's
C195: Total length of maintenance spans | D195: km
C196: Length of vegetation corridors | D196: km
C197: Average number of trees per maintenance span | D197: 0's
C198: Average frequency of cutting cycle | D198: years
B199: =B87 -> ZONE 13 | C199: Route line length within zone | D199: km
C200: Number of maintenance spans | D200: 0's
C201: Total length of maintenance spans | D201: km
C202: Length of vegetation corridors | D202: km
C203: Average number of trees per maintenance span | D203: 0's
C204: Average frequency of cutting cycle | D204: years
B205: =B93 -> ZONE 14 | C205: Route line length within zone | D205: km
... 201 more rows

Sheet 2.8 Maintenance
B1: REGULATORY REPORTING STATEMENT
B2: =INDEX(dms_TradingNameFull_List,MATCH(dms_TradingName,dms_TradingName_List)) -> SA Power Networks
B3: =CONCATENATE((LOOKUP(dms_Model,dms_Model_List,dms_Worksheet_List))&" "&CRY) -> CATEGORY ANALYSIS 2015-16
B4: 2.8 MAINTENANCE
B6: There are TWO tables on this worksheet. Each has been grouped for ease of navigation. See the Instructions sheet on how to group or ungroup tables.
B8: 2.8.1 - DESCRIPTOR METRICS FOR ROUTINE AND NON-ROUTINE MAINTENANCE
F9: ASSET QUANTITY (0's) | H9: AVERAGE AGE OF ASSET GROUP | I9: INSPECTION CYCLE (YEARS) | J9: MAINTENANCE CYCLE (YEARS)
F10: AT YEAR END | G10: INSPECTED / MAINTAINED
B11: MAINTENANCE ACTIVITY | C11: MAINTENANCE ASSET CATEGORY | D11: ASSET QUANTITY | E11: Units | F11: =CRY -> 2015-16 | G11: =CRY -> 2015-16 | H11: =CRY -> 2015-16
B12: Pole top, overhead line & service line maintenance | C12: Pole tops and overhead lines | D12: Number of poles | E12: Number | F12: 745696 | G12: 2680 | H12: 46.4 | I12: 5 | J12: 0
C13: Service lines | D13: Number of customers | E13: Number | F13: 767814 | G13: 0 | H13: 28.97 | I13: 0 | J13: 0
B14: Pole inspection and treatment | C14: All poles | D14: Number of poles | E14: Number | F14: 745696 | G14: 105501 | H14: 46.4 | I14: 5 | J14: 0
B15: Overhead asset inspection | C15: All overhead assets | D15: Line patrolled (route KM) | E15: KM | F15: 71863 | G15: 49876 | H15: 0 | I15: 5 | J15: 0
B16: Network underground cable maintenance: by voltage | C16: LV - 11 to 22 KV | D16: Length (KM) | E16: KM | F16: 17314 | G16: 0.928 | H16: 38.1 | I16: 0 | J16: 0
C17: 33 KV and above | D17: Length (KM) | E17: KM | F17: 53 | G17: 0.142 | H17: 29 | I17: 0.5 | J17: 0
B18: Network underground cable maintenance: by location | C18: Cbd | D18: Length (KM) | E18: KM | F18: 521 | G18: 1.07 | H18: 31.2 | I18: 0 | J18: 0
C19: Non-CBD | D19: Length (KM) | E19: KM | F19: 16846 | H19: 21.2 | I19: 0 | J19: 0
B20: Distribution substation equipment & property maintenance | C20: Distribution substation transformers | D20: Number of installed transformers | E20: Number | F20: 75616 | G20: 401 | H20: 29.5 | I20: 5 | J20: 0
C21: Distribution substation switchgear (within-substations and stand-alone switchgear) | D21: Number of switches | E21: Number | F21: 8287 | G21: 4438 | H21: 14 | I21: 1 | J21: 0
C22: Distribution substation - other equipment | D22: Earth mat | E22: Number | F22: 0 | G22: 0 | H22: 0 | I22: 0 | J22: 0
C23: Distribution substation - property | D23: Number of distribution substation properties maintained | E23: Number | F23: 1416 | G23: 76 | H23: 37 | I23: 0 | J23: 0
B24: Zone substation equipment maintenance | C24: Transformers - zone substation | D24: Number | E24: Number | F24: 694 | G24: 724 | H24: 35.6 | I24: 0.5 | J24: 6
C25: Transformers - distribution | D25: Number of distribution transformers within zone substation | E25: Number | F25: 346 | G25: 0 | H25: 16.9 | I25: 0.5 | J25: 0
C26: Transformers - HV | D26: Number of HV transformers | E26: Number | F26: 0 | G26: 0 | H26: 0 | I26: 0 | J26: 0
C27: Zone substation - other equipment | D27: Number of other equipment | E27: =D27 -> Number of other equipment | F27: 348 | G27: 481 | H27: 4.3 | I27: 0.5 | J27: 10
B28: Zone substation property maintenance | C28: All zone substation properties | D28: Number of zone substation properties maintained | E28: Number | F28: 410 | G28: 1562 | H28: 41.6 | I28: 0.5 | J28: 0.5
B29: Public lighting maintenance | C29: Minor roads | D29: Number of public lights maintained | E29: Number | F29: 0 | G29: 0 | H29: 0 | I29: 0 | J29: 0
C30: Major roads | D30: Number of public lights maintained | E30: Number | F30: 0 | G30: 0 | H30: 0 | I30: 0 | J30: 0
B31: SCADA & network control maintenance | C31: SCADA & network control | D31: Number of systems | E31: Number | F31: 331 | G31: 0 | H31: 8.8 | I31: 0 | J31: 0
B32: Protection systems maintenance | C32: Protection systems | D32: Number of systems | E32: Number | F32: 2989 | G32: 498 | H32: 33.1 | I32: 0.5 | J32: 4.5
B33: Subtransmission asset maintenance | C33: Subtransmission asset maintenance - for DNSPs with dual function assets | D33: <DNSP to nominate> | E33: =D33 -> <DNSP to nominate> | F33: 0 | G33: 0 | H33: 0 | I33: 0 | J33: 0
B34: Various assets | C34: includes rates, electricity, communications equip, metering | D34: Various | E34: Number | F34: 5418 | G34: 394 | H34: 10 | I34: 1.5 | J34: 1.5
B35: Ground clearance - access tracks | C35: Access tracks | D35: Number | E35: Number | F35: 0 | G35: 0 | H35: 0 | I35: 0 | J35: 0
B36: Other | C36: (1) Substation asset inspection | D36: No. of sites | F36: 406 | G36: 787 | H36: 41.6 | I36: 0.5 | J36: 0
C37: (2) Zone substation equipment maintenance (switchgear) | D37: No. of CBs and disconnectors | F37: 6001 | G37: 525 | H37: 35.2 | I37: 0.5 | J37: 4.5
C38: (3) Numbers of signages and IDs replaced | D38: No. of sites | F38: 75616 | G38: 1741 | H38: 0 | I38: 0 | J38: 0
C39: (4) Power Station Maintenance, Asset Records Feeder Diagram Maintenance, Compliance Audting, Asset Location Services, Customer Service Penalties | D39: Units not quoted as various UOM | F39: 0 | G39: 0 | H39: 0 | I39: 0 | J39: 0
C40: < DNSP to nominate > | D40: < DNSP to nominate >
C41: < DNSP to nominate > | D41: < DNSP to nominate >
C42: < DNSP to nominate > | D42: < DNSP to nominate >
C43: < DNSP to nominate > | D43: < DNSP to nominate >
C44: < DNSP to nominate > | D44: < DNSP to nominate >
C45: < DNSP to nominate > | D45: < DNSP to nominate >
B48: 2.8.2 - COST METRICS FOR ROUTINE AND NON-ROUTINE MAINTENANCE
F49: EXPENDITURE ($0'S)
F50: ROUTINE MAINTENANCE | G50: NON-ROUTINE MAINTENANCE
B51: MAINTENANCE ACTIVITY | C51: MAINTENANCE ASSET CATEGORY | D51: ASSET QUANTITY | E51: Units | F51: =CRY -> 2015-16 | G51: =CRY -> 2015-16
B52: Pole top, overhead line & service line maintenance | C52: Pole tops and overhead lines | D52: Number of poles | E52: Number | F52: 3133 | G52: 1310140
C53: Service lines | D53: Number of customers | E53: Number | F53: 0 | G53: 0
B54: Pole inspection and treatment | C54: All poles | D54: Number of poles | E54: Number | F54: 6316534 | G54: 0
B55: Overhead asset inspection | C55: All overhead assets | D55: Line patrolled (route KM) | E55: KM | F55: 5865975 | G55: 0
B56: Network underground cable maintenance: by voltage | C56: LV - 11 to 22 KV | D56: Length (KM) | E56: KM | F56: 111695 | G56: 658883
C57: 33 KV and above | D57: Length (KM) | E57: KM | F57: 25190 | G57: 0
B58: Network underground cable maintenance: by location | C58: Cbd | D58: Length (KM) | E58: KM | F58: 136885 | G58: 658883
C59: Non-CBD | D59: Length (KM) | E59: KM
B60: Distribution substation equipment & property maintenance | C60: Distribution substation transformers | D60: Number of installed transformers | E60: Number | F60: 4518 | G60: 493142
C61: Distribution substation switchgear (within-substations and stand-alone switchgear) | D61: Number of switches | E61: Number | F61: 330985 | G61: 110932
C62: Distribution substation - other equipment | D62: Earth mat | E62: Number | F62: 0 | G62: 0
C63: Distribution substation - property | D63: Number of distribution substation properties maintained | E63: Number | F63: 0 | G63: 133390
B64: Zone substation equipment maintenance | C64: Transformers - zone substation | D64: Number | E64: Number | F64: 982526 | G64: 1189864
C65: Transformers - distribution | D65: Number of distribution transformers within zone substation | E65: Number | F65: 0 | G65: 0
C66: Transformers - HV | D66: Number of HV transformers | E66: Number | F66: 0 | G66: 0
C67: Zone substation - other equipment | D67: =IF(ISBLANK(D27),"",D27) -> Number of other equipment | E67: =IF(ISBLANK(E27),"",E27) -> Number of other equipment | F67: 995167 | G67: 685935
B68: Zone substation property maintenance | C68: All zone substation properties | D68: Number of zone substation properties maintained | E68: Number | F68: 961342 | G68: 695641
B69: Public lighting maintenance | C69: Minor roads | D69: Number of public lights maintained | E69: Number | F69: 0 | G69: 0
C70: Major roads | D70: Number of public lights maintained | E70: Number
B71: SCADA & network control maintenance | C71: SCADA & network control | D71: Number of systems | E71: Number | F71: 0 | G71: 459570
B72: Protection systems maintenance | C72: Protection systems | D72: Number of systems | E72: Number | F72: 736064 | G72: 152049
B73: Subtransmission asset maintenance | C73: Subtransmission asset maintenance - for DNSPs with dual function assets | D73: =IF(ISBLANK(D33),"",D33) -> <DNSP to nominate> | E73: =IF(ISBLANK(E33),"",E33) -> <DNSP to nominate> | F73: 0 | G73: 0
B74: Various assets | C74: includes rates, electricity, communications equip, metering | D74: Various | E74: Number | F74: 762630 | G74: 2154088
B75: Ground clearance - access tracks | C75: Access tracks | D75: Number | E75: Number | F75: 0 | G75: 0
B76: Other | C76: =IF(ISBLANK(C36),"",C36) -> (1) Substation asset inspection | D76: No. of sites | F76: 857414 | G76: 0
C77: (2) Zone substation equipment maintenance (switchgear) | D77: No. of CBs and disconnectors | F77: 1497201 | G77: 855807
C78: (3) Numbers of signages and IDs replaced | D78: No. of sites | F78: 0 | G78: 282636
C79: (4) Power Station Maintenance, Asset Records Feeder Diagram Maintenance, Compliance Audting, Asset Location Services, Customer Service Penalties | D79: Units not quoted as various UOM | F79: 872965 | G79: 0
C80: < DNSP to nominate > | D80: < DNSP to nominate >
C81: < DNSP to nominate > | D81: < DNSP to nominate >
C82: < DNSP to nominate > | D82: < DNSP to nominate >
C83: < DNSP to nominate > | D83: < DNSP to nominate >
C84: < DNSP to nominate > | D84: < DNSP to nominate >
C85: < DNSP to nominate > | D85: < DNSP to nominate >

Sheet 2.9 Emergency Response
B1: REGULATORY REPORTING STATEMENT
B2: =INDEX(dms_TradingNameFull_List,MATCH(dms_TradingName,dms_TradingName_List)) -> SA Power Networks
B3: =CONCATENATE((LOOKUP(dms_Model,dms_Model_List,dms_Worksheet_List))&" "&CRY) -> CATEGORY ANALYSIS 2015-16
B4: 2.9 EMERGENCY RESPONSE
B7: There is ONE table on this worksheet. It has been sub-grouped for ease of navigation. See the Instructions sheet on how to group or ungroup tables.
B9: 2.9.1 - EMERGENCY RESPONSE EXPENDITURE (OPEX)
D10: EXPENDITURE ($0's)
D11: =CRY -> 2015-16
B12: (A) TOTAL EMERGENCY RESPONSE EXPENDITURE | C12: Total Expenditure | D12: 33646840.3
B13: (B) MAJOR EVENTS O&M EXPENDITURE
B56: (C) MAJOR EVENT DAYS O&M EXPENDITURE | C56: 2016-05-09 | D56: 349149.7205

Sheet 2.10 Overheads
B1: REGULATORY REPORTING STATEMENT
B2: =INDEX(dms_TradingNameFull_List,MATCH(dms_TradingName,dms_TradingName_List)) -> SA Power Networks
B3: =CONCATENATE((LOOKUP(dms_Model,dms_Model_List,dms_Worksheet_List))&" "&CRY) -> CATEGORY ANALYSIS 2015-16
B4: 2.10 OVERHEADS
B6: There are TWO tables on this worksheet. Each has been grouped (and sub-grouped) for ease of navigation. See the Instructions sheet on how to group or ungroup tables.
B8: 2.10.1 - NETWORK OVERHEADS EXPENDITURE
D9: EXPENDITURE ($0's)
D10: =CRY -> 2015-16
B11: NETWORK OVERHEADS
B12: Standard Control Services | C12: Network management | D12: 3516484.81
C13: Network planning | D13: 790130.7
C14: Network control and operational switching | D14: 10476487.67
C15: Quality and standard functions | D15: 8607373.64
C16: Project governance and related functions | D16: 0
C17: Other Network Overheads | D17: 1161440.51
C18: Network Telephony | D18: 5292460.96
C19: Guaranteed Service Level Payments | D19: 3389550
C20: Call Centre | D20: 3210252.2
C21: Full Retail Contestability | D21: 15865522.39
C22: Network Insurance | D22: 1641531.188
C23: Distribution Licence Fee | D23: 2558186.82
C24: Substation Property Maintenance | D24: 6786534.672
C25: Other Customer Services | D25: 6946344.621
B40: Alternative Control Services | C40: Network management | D40: 229423.08
C41: Network planning | D41: 0
C42: Network control and operational switching | D42: 0
C43: Quality and standard functions | D43: 0
C44: Project governance and related functions | D44: 0
C45: Other Customer Services | D45: 127291.2866
C46: Full Retail Contestability | D46: 2328232.109
B68: Negotiated Services | C68: Total | D68: 1794897.14
B69: Unregulated Services | C69: Total | D69: 5801.7
B71: CAPITALISED NETWORK OVERHEADS
B72: Standard Control Services | C72: Network management | D72: 7889275.08
C73: Network planning | D73: 0
C74: Network control and operational switching | D74: 0
C75: Quality and standard functions | D75: 0
C76: Project governance and related functions | D76: 0
C77: Network management - Alternative Control Services | D77: 333628.5
B104: 2.10.2 - CORPORATE OVERHEADS EXPENDITURE
D105: EXPENDITURE ($0's)
D106: =CRY -> 2015-16
B107: CORPORATE OVERHEADS
B108: Standard Control Services | C108: CEO, Planning and Audit | D108: 2977641.214
C109: Communications | D109: 2146863.783
C110: Regulation and Company Secretary | D110: 5180311.523
C111: Finance | D111: 13619304.97
C112: HR and Training | D112: 8828187.132
C113: Property | D113: 6244158.731
C114: Information Systems | D114: 10075374.63
C115: Risk Management | D115: 8375970.703
C116: Other Allocated Costs | D116: -4573106.888
B129: Alternative Control Services | C129: CEO, Planning and Audit | D129: 67632.215
C130: Communications | D130: 40864.607
C131: Regulation and Company Secretary | D131: 174172.469
C132: Finance | D132: 453787.013
C133: HR and Training | D133: 157938.92
C134: Property | D134: 71630.913
C135: Information Systems | D135: 192445.97
C136: Risk Management | D136: 124547.125
C137: Other Allocated Costs | D137: -202794.134
B150: Negotiated Services | C150: Total | D150: 5425846.184
B151: Unregulated Services | C151: Total | D151: 3751779.848
B153: CAPITALISED CORPORATE OVERHEADS
B154: Standard Control Services | C154: Other Allocated Costs - Standard Control | D154: -13251556.65
C155: Other Allocated Costs - Alternative Control | D155: -168210.4755

Sheet 2.11 Labour
B1: REGULATORY REPORTING STATEMENT
B2: =INDEX(dms_TradingNameFull_List,MATCH(dms_TradingName,dms_TradingName_List)) -> SA Power Networks
B3: =CONCATENATE((LOOKUP(dms_Model,dms_Model_List,dms_Worksheet_List))&" "&CRY) -> CATEGORY ANALYSIS 2015-16
B4: 2.11 LABOUR
B6: There are TWO tables on this worksheet. Each has been grouped for ease of navigation. See the Instructions sheet on how to group or ungroup tables.
B8: 2.11.1 - COST METRICS PER ANNUM
D9: ASL (0's) | E9: TOTAL LABOUR EXPENDITURE ($0's) | F9: AVERAGE PRODUCTIVE WORK HOURS PER ASL (0's) | G9: STAND-DOWN OCCURENCES PER ASL (0's)
D11: =CRY -> 2015-16 | E11: =CRY -> 2015-16 | F11: =CRY -> 2015-16 | G11: =CRY -> 2015-16
B12: INTERNAL LABOUR EXPENDITURE
B13: CORPORATE OVERHEADS | C13: Executive manager | D13: 25.7 | E13: 11949800 | F13: 1945.2 | G13: 0
C14: Senior manager | D14: 14.8 | E14: 3250100 | F14: 1814.6 | G14: 0
C15: Manager | D15: 17.6 | E15: 2642000 | F15: 1645.8 | G15: 0
C16: Professional | D16: 29.9 | E16: 4086600 | F16: 1734.1 | G16: 8.4
C17: Semi professional | D17: 109.9 | E17: 14017900 | F17: 1657.3 | G17: 0.1
C18: Support staff | D18: 129.6 | E18: 14119500 | F18: 1637.4 | G18: 0
C19: Intern, junior staff, apprentice | D19: 0.7 | E19: 2900 | F19: 1611.5 | G19: 0
B20: NETWORK OVERHEADS | C20: Executive manager | D20: 16.3 | E20: 6117000 | F20: 1939.1 | G20: 0
C21: Senior manager | D21: 32.1 | E21: 6372500 | F21: 1837.4 | G21: 0
C22: Manager | D22: 68.7 | E22: 10265100 | F22: 1723.2 | G22: 7
C23: Professional | D23: 86.9 | E23: 10979100 | F23: 1658.8 | G23: 0
C24: Semi professional | D24: 285.2 | E24: 38620100 | F24: 1688.6 | G24: 4.7
C25: Support staff | D25: 145.6 | E25: 16764500 | F25: 1686.5 | G25: 3.1
C26: Intern, junior staff, apprentice | D26: 8 | E26: 338100 | F26: 1656.1 | G26: 11.7
B27: TOTAL DIRECT NETWORK LABOUR | C27: Skilled electrical worker | D27: 501.4 | E27: 65421900 | F27: 1891.9 | G27: 54.8
C28: Skilled non electical worker | D28: 22.3 | E28: 2155400 | F28: 1707.3 | G28: 3.8
C29: Apprentice | D29: 103.7 | E29: 5822000 | F29: 1756.7 | G29: 26.1
C30: Unskilled worker | D30: 47 | E30: 5281500 | F30: 1770.6 | G30: 10.4
B33: 2.11.2 - DESCRIPTOR METRICS
D34: ORDINARY TIME (0's) | F34: OVERTIME (0's)
D35: PER ASL | E35: HOURLY RATE PER ASL | F35: PER ASL | G35: HOURLY RATE PER ASL
D36: =CRY -> 2015-16 | E36: =CRY -> 2015-16 | F36: =CRY -> 2015-16 | G36: =CRY -> 2015-16
B37: AVERAGE PRODUCTIVE WORK HOURS PER ASL
B38: CORPORATE OVERHEADS | C38: Executive manager | D38: 1944.2 | E38: 238.6 | F38: 1 | G38: 382.2
C39: Senior manager | D39: 1814.6 | E39: 121.4 | F39: 0 | G39: 0
C40: Manager | D40: 1623.3 | E40: 91 | F40: 22.5 | G40: 121.6
C41: Professional | D41: 1659.1 | E41: 77.4 | F41: 74.9 | G41: 107.1
C42: Semi professional | D42: 1632.4 | E42: 76.4 | F42: 24.9 | G42: 96
C43: Support staff | D43: 1621.7 | E43: 66.2 | F43: 15.7 | G43: 84.9
C44: Intern, junior staff, apprentice | D44: 1611.5 | E44: 2.5 | F44: 0 | G44: 0
B45: NETWORK OVERHEADS | C45: Executive manager | D45: 1938.5 | E45: 193.7 | F45: 0.6 | G45: 306.3
C46: Senior manager | D46: 1812.4 | E46: 107.4 | F46: 25 | G46: 161
C47: Manager | D47: 1623.4 | E47: 84.6 | F47: 99.8 | G47: 120.5
C48: Professional | D48: 1635.1 | E48: 75.4 | F48: 23.7 | G48: 99.5
C49: Semi professional | D49: 1628.7 | E49: 78.9 | F49: 59.9 | G49: 107.1
C50: Support staff | D50: 1660.9 | E50: 67.3 | F50: 25.6 | G50: 82.1
C51: Intern, junior staff, apprentice | D51: 1611.5 | E51: 25.3 | F51: 44.6 | G51: 32.5
B52: TOTAL DIRECT NETWORK LABOUR | C52: Skilled electrical worker | D52: 1617.2 | E52: 62.9 | F52: 274.7 | G52: 103.9
C53: Skilled non electical worker | D53: 1634.6 | E53: 55.3 | F53: 72.6 | G53: 74.5
C54: Apprentice | D54: 1628.6 | E54: 31 | F54: 128.1 | G54: 43.9
C55: Unskilled worker | D55: 1668.4 | E55: 61.7 | F55: 102.2 | G55: 78.4

Sheet 2.12 Input tables
B1: REGULATORY REPORTING STATEMENT
B2: =INDEX(dms_TradingNameFull_List,MATCH(dms_TradingName,dms_TradingName_List)) -> SA Power Networks
B3: =CONCATENATE((LOOKUP(dms_Model,dms_Model_List,dms_Worksheet_List))&" "&CRY) -> CATEGORY ANALYSIS 2015-16
B4: 2.12 INPUT TABLES
B6: There is ONE table on this worksheet. It has been sub-grouped for ease of navigation. See the Instructions sheet on how to group or ungroup tables.
B8: 2.12.1 - INPUT TABLES
D9: DIRECT MATERIAL EXPENDITURE | E9: DIRECT LABOUR EXPENDITURE | F9: CONTRACT EXPENDITURE | G9: OTHER EXPENDITURE | H9: RELATED PARTY CONTRACT EXPENDITURE | I9: RELATED PARTY CONTRACT MARGIN EXPENDITURE
D10: EXPENDITURE ($0's)
D11: =CRY -> 2015-16 | E11: 2015-16 | F11: 2015-16 | G11: 2015-16 | H11: 2015-16 | I11: 2015-16
B12: VEGETATION MANAGEMENT | C12: ='2.7 Vegetation management'!B15 -> ZONE 1
C13: ='2.7 Vegetation management'!B21 -> ZONE 2
C14: ='2.7 Vegetation management'!B27 -> ZONE 3
C15: ='2.7 Vegetation management'!B33 -> ZONE 4
C16: ='2.7 Vegetation management'!B39 -> ZONE 5
C17: ='2.7 Vegetation management'!B45 -> ZONE 6
C18: ='2.7 Vegetation management'!B51 -> ZONE 7
C19: ='2.7 Vegetation management'!B57 -> ZONE 8
C20: ='2.7 Vegetation management'!B63 -> ZONE 9
C21: ='2.7 Vegetation management'!B69 -> ZONE 10
C22: ='2.7 Vegetation management'!B75 -> ZONE 11
C23: ='2.7 Vegetation management'!B81 -> ZONE 12
C24: ='2.7 Vegetation management'!B87 -> ZONE 13
C25: ='2.7 Vegetation management'!B93 -> ZONE 14
C26: ='2.7 Vegetation management'!B99 -> ZONE 15
C27: ='2.7 Vegetation management'!B105 -> ZONE 16
C28: ='2.7 Vegetation management'!B111 -> ZONE 17
C29: ='2.7 Vegetation management'!B117 -> ZONE 18
B30: ROUTINE MAINTENANCE | C30: Pole top, overhead line & service line maintenance | D30: 0 | E30: 1761.647686 | F30: 651.6483638 | G30: 719.4711044
C31: Pole inspection and treatment | D31: 214.3759035 | E31: 169437.0226 | F31: 6141147.206 | G31: 5735.811203
C32: Overhead asset inspection | D32: 9285.426157 | E32: 1334229.502 | F32: 4495177.062 | G32: 27282.97653
C33: Network underground cable maintenance | D33: 395.6447614 | E33: 109685.4995 | F33: 19978.63861 | G33: 6824.877324
C34: Distribution substation equipment & property maintenance | D34: 122.7347712 | E34: 320376.5681 | F34: 13961.05428 | G34: 1042.643609
C35: Zone substation equipment maintenance | D35: 88140.58629 | E35: 1341267.676 | F35: 445682.2207 | G35: 102602.6778
C36: Zone substation property maintenance | D36: 6548.957602 | E36: 156777.2413 | F36: 795275.3517 | G36: 2740.495368
C37: Public lighting maintenance | D37: 0 | E37: 0 | F37: 0 | G37: 0
C38: Scada & network control maintenance | D38: 0 | E38: 0 | F38: 0 | G38: 0
C39: Protection systems maintenance | D39: 3348.087491 | E39: 651269.283 | F39: 18800.8892 | G39: 62645.32795
C40: Subtransmission asset maintenance - for dnsps with dual function assets | D40: 0 | E40: 0 | F40: 0 | G40: 0
C41: Other | D41: 147963.0041 | E41: 2796931.402 | F41: 905324.5098 | G41: 139990.7238
B42: NON-ROUTINE MAINTENANCE | C42: Pole top, overhead line & service line maintenance | D42: 83565.07844 | E42: 891404.0142 | F42: 151394.0772 | G42: 183776.8879
C43: Pole inspection and treatment | D43: 0 | E43: 0 | F43: 0 | G43: 0
C44: Overhead asset inspection | D44: 0 | E44: 0 | F44: 0 | G44: 0
C45: Network underground cable maintenance | D45: 45188.69896 | E45: 454512.8453 | F45: 101056.0184 | G45: 58125.48975
C46: Distribution substation equipment & property maintenance | D46: 79960.98735 | E46: 213006.5276 | F46: 401620.2095 | G46: 42876.19778
C47: Zone substation equipment maintenance | D47: 161765.6739 | E47: 1279839.462 | F47: 313665.4171 | G47: 120528.3994
C48: Zone substation property maintenance | D48: 5041.933193 | E48: 62687.7963 | F48: 622614.6784 | G48: 5296.245119
C49: Public lighting maintenance | D49: 0 | E49: 0 | F49: 0 | G49: 0
C50: SCADA & network control maintenance | D50: 17922.8779 | E50: 214804.0741 | F50: 212273.6891 | G50: 14569.07192
C51: Protection systems maintenance | D51: 9370.881773 | E51: 124344.7492 | F51: 5841.494289 | G51: 12492.1393
C52: Subtransmission asset maintenance - for DNSP with dual function assets
C53: Other | D53: 139437.3276 | E53: 1838821.216 | F53: 1118837.409 | G53: 195435.2278
B54: OVERHEADS | C54: Network overheads | D54: 2165759.133 | E54: 34526534.97 | F54: 9165577.49 | G54: 18848877.02 | H54: 16443401.32
C55: Corporate overheads | D55: 3194353.377 | E55: 16431195.35 | F55: 1425731.04 | G55: 19234396.62 | H55: 249487.38
B56: AUGMENTATION | C56: Subtransmission substations, switching stations, zone substations | D56: 4261917.222 | E56: 13018920.36 | F56: 6293982.978 | G56: 1048421.715
C57: Subtransmission lines | D57: 280048.5353 | E57: 584888.6255 | F57: 303967.6305 | G57: 18315.6081
C58: HV feeders | D58: 1254509.502 | E58: 5890765.7 | F58: 7908816.362 | G58: 372493.5208
C59: Distribution substations | D59: 1583060.486 | E59: 1218253.466 | F59: 832682.3706 | G59: 249985.138
C60: LV feeders | D60: 157246.7205 | E60: 390895.3292 | F60: 21171.5708 | G60: 224259.086
C61: Other assets | D61: 1317487.184 | E61: 3087652.831 | F61: 64053.77368 | G61: 1296769.251
B62: CONNECTIONS | C62: Simple and complex customer connections | D62: 12037829.58 | E62: 32727138.03 | F62: 7708859.028 | G62: 3063641.335
B63: EMERGENCY RESPONSE | C63: Major storms | D63: 1563389.876 | E63: 22064742.08 | F63: 6145482.953 | G63: 3524075.672
C64: Major event days | D64: 22000.34261 | E64: 274669.0804 | F64: 9178.471025 | G64: 43301.82652
B65: PUBLIC LIGHTING | C65: All public lighting services
B66: METERING | C66: All metering services | D66: 4796566.752 | E66: 3773608.834 | F66: 3939085.902 | G66: 1158291.003
B67: FEE-BASED SERVICES | C67: All fee-based services
B68: QUOTED SERVICES | C68: All quoted services
B69: REPLACEMENT | C69: Poles | D69: 2658053.425 | E69: 4804811.708 | F69: 10194598.6 | G69: 1254065.573
C70: Pole top structures | D70: 3712996.998 | E70: 14592138.92 | F70: 2356055.744 | G70: 2924580.735
C71: Overhead conductors | D71: 131259.3832 | E71: 1693677.314 | F71: 80703.92105 | G71: 340659.3405
C72: Underground cables | D72: 435568.9201 | E72: 2761855.493 | F72: 2950792.279 | G72: 491160.0281
C73: Service lines | D73: 243227.7982 | E73: 5021451.505 | F73: 464535.9869 | G73: 991748.6813
C74: Transformers | D74: 2439010.921 | E74: 2448717.865 | F74: 635769.5805 | G74: 468770.479
C75: Switchgear | D75: 2747972.759 | E75: 3721105.246 | F75: 1180648.459 | G75: 416021.1449
C76: Public lighting | D76: 0 | E76: 0 | F76: 0 | G76: 0
C77: SCADA network control and protection systems | D77: 482350.0736 | E77: 1488388.337 | F77: 404289.6563 | G77: 58672.91672
C78: Other | D78: 2443288.869 | E78: 4099174.899 | F78: 1768400.693 | G78: 218731.9833
B79: NON-NETWORK EXPENDITURE | C79: IT and communications | D79: 12483329.95 | E79: 15900904.77 | F79: =1773115.67601559-H79 -> 1102667.676 | G79: =22107469.6362755 -> 22107469.64 | H79: 670448
C80: Motor vehicles | D80: 14637500.47 | E80: 2893898.71 | F80: 232566 | G80: 4207633.26
C81: Buildings and property | D81: 220551.8056 | E81: 4158210.471 | F81: 81699.72154 | G81: 7032143.815
C82: Other | D82: 5520724.171 | E82: 5792807.343 | F82: 6052332.818 | G82: 2225877.849

Sheet 4.1 Public lighting
B1: REGULATORY REPORTING STATEMENT
B2: =INDEX(dms_TradingNameFull_List,MATCH(dms_TradingName,dms_TradingName_List)) -> SA Power Networks
B3: =CONCATENATE((LOOKUP(dms_Model,dms_Model_List,dms_Worksheet_List))&" "&CRY) -> CATEGORY ANALYSIS 2015-16
B4: 4.1 PUBLIC LIGHTING
B7: There are THREE tables on this worksheet. Each has been grouped for ease of navigation. See the Instructions sheet on how to group or ungroup tables.
B9: 4.1.1 - DESCRIPTOR METRICS OVER YEAR
C10: LIGHT TYPE | E10: VOLUME (0's)
E11: =CRY -> 2015-16
B12: POPULATION OF LIGHTS | C12: THESE SERVICES ARE NEGOTIATED SERVICES FOR SA POWER NETWORKS
B116: 4.1.2 - DESCRIPTOR METRICS ANNUALLY
E119: VOLUMES & EXPENDITURE
B120: SERVICE/SERVICE QUALITY | C120: DESCRIPTOR METRIC | D120: UNITS | E120: =CRY -> 2015-16
B121: LIGHT INSTALLATION | C121: Major road light installation | D121: 0's
C122: Minor road light installation | D122: 0's
C123: Number of poles installed | D123: 0's
C124: Total cost | D124: $0s
B125: LIGHT REPLACEMENT | C125: Major road light replacement | D125: 0's
C126: Minor road light replacement | D126: 0's
C127: Number of poles replaced | D127: 0's
C128: Total cost | D128: $0s
B129: LIGHT MAINTENANCE | C129: Major road light maintenance | D129: 0's
C130: Minor road light maintenance | D130: 0's
C131: Number of poles installed | D131: 0's
C132: Total cost | D132: $0s
B133: QUALITY OF SUPPLY | C133: Mean days to rectify/replace public lighting assets | D133: days
C134: GSO breaches | D134: 0's
C135: GSL payments | D135: $0s
C136: Customer complaints | D136: 0's
B139: 4.1.3 - COST METRICS
E140: AVERAGE UNIT COST ($)
B141: ACTIVITY TYPE | C141: LIGHT TYPE | E141: =CRY -> 2015-16
B142: LIGHT INSTALLATION | C142: DNSP to enter description for type of light
B172: LIGHT REPLACEMENT | C172: DNSP to enter description for type of light
B202: LIGHT MAINTENANCE | C202: DNSP to enter description for type of light

Sheet 4.2 Metering
B1: REGULATORY REPORTING STATEMENT
B2: =INDEX(dms_TradingNameFull_List,MATCH(dms_TradingName,dms_TradingName_List)) -> SA Power Networks
B3: =CONCATENATE((LOOKUP(dms_Model,dms_Model_List,dms_Worksheet_List))&" "&CRY) -> CATEGORY ANALYSIS 2015-16
B4: 4.2 METERING
B6: There are TWO tables on this worksheet. Each has been grouped for ease of navigation. See the Instructions sheet on how to group or ungroup tables.
B8: 4.2.1 - METERING DESCRIPTOR METRIC
D9: VOLUMES (0's)
B10: ASSET CATEGORY | C10: ASSET SUBCATEGORY | D10: =CRY -> 2015-16
B11: Meter Type 4 | C11: Single phase meter population | D11: 0
C12: Multi phase meter population | D12: 2349
C13: Current transformer connected meter population | D13: 2281
C14: Direct connect meter population | D14: 68
B15: Meter Type 5 | C15: Single phase meter population | D15: 199
C16: Multi phase meter population | D16: 6963
C17: Current transformer connected meter population | D17: 4956
C18: Direct connect meter population | D18: 2206
B19: Meter Type 6 | C19: Single phase meter population | D19: 894832
C20: Multi phase meter population | D20: 197547
C21: Current transformer connected meter population | D21: 832
C22: Direct connect meter population | D22: 1091547
B25: 4.2.2 - COST METRICS
D26: VOLUMES (0's) | E26: EXPENDITURE ($0's)
B27: SERVICE SUBCATEGORY | C27: METER TYPE | D27: =CRY -> 2015-16 | E27: =CRY -> 2015-16
B28: Meter purchase | C28: Meter Type 4 | D28: 0 | E28: 0
C29: Meter Type 5 | D29: 830 | E29: 417916
C30: Meter Type 6 | D30: 26704 | E30: 1476925
B31: Meter testing | C31: Meter Type 4 | D31: 67 | E31: 52752.79279
C32: Meter Type 5 | D32: 4 | E32: 786.937673
C33: Meter Type 6 | D33: 2662 | E33: 602433.2069
B34: Meter investigation | C34: Meter Type 4 | D34: 49 | E34: 73244.95491
C35: Meter Type 5 | D35: 5143 | E35: 296015.6955
C36: Meter Type 6 | D36: 3990 | E36: 689020.5057
B37: Scheduled meter reading | C37: Meter Type 4
C38: Meter Type 5
C39: Meter Type 6
B40: Special meter reading | C40: Meter Type 4 | D40: 0 | E40: 0
C41: Meter Type 5 | D41: 0 | E41: 0
C42: Meter Type 6 | D42: 0 | E42: 0
B43: New meter installation | C43: Meter Type 4 | D43: 118 | E43: 18634.97346
C44: Meter Type 5 | D44: 534 | E44: 169951.3615
C45: Meter Type 6 | D45: 10079 | E45: 3249494.213
B46: Meter replacement | C46: Meter Type 4 | D46: 83 | E46: 143335.5294
C47: Meter Type 5 | D47: 1033 | E47: 479300.4234
C48: Meter Type 6 | D48: 12090 | E48: 3546914.5
B49: Meter maintenance | C49: Meter Type 4 | D49: 225 | E49: 277385.9949
C50: Meter Type 5 | D50: 1142 | E50: 505862.3515
C51: Meter Type 6 | D51: 0 | E51: 0
B52: Remote meter reading | C52: Meter Type 4
B53: Remote meter re-configuration | C53: Meter Type 4
B54: Other metering | C54: Meter Type 4
C55: Meter Type 5
C56: Meter Type 6
C57: Meter Type 7
B58: IT infrastructure capex | C58: Meter Type 4
B59: IT infrastructure opex | C59: Meter Type 4
B60: Communications infrastructure capex | C60: Meter Type 4
B61: Communications infrastructure opex | C61: Meter Type 4

Sheet 4.3 Fee-based services
B1: REGULATORY REPORTING STATEMENT
B2: =INDEX(dms_TradingNameFull_List,MATCH(dms_TradingName,dms_TradingName_List)) -> SA Power Networks
B3: =CONCATENATE((LOOKUP(dms_Model,dms_Model_List,dms_Worksheet_List))&" "&CRY) -> CATEGORY ANALYSIS 2015-16
B4: 4.3 ANCILLARY SERVICES - FEE BASED SERVICES
B6: 4.3.1 - COST METRICS FOR FEE-BASED SERVICES
D7: EXPENDITURE ($0's) | F7: VOLUMES (0's)
B8: SERVICE | C8: SERVICE SUBCATEGORY | D8: =CRY -> 2015-16 | F8: =CRY -> 2015-16
B9: Common Fee-Based Services | C9: Energisation | E9: ED_FEE431_00001
C10: De-energisation | E10: ED_FEE431_00002
C11: Re-energisation | E11: ED_FEE431_00003
B12: Miscellaneous Fee-Based Services | C12: THESE SERVICES ARE NEGOTIATED SERVICES FOR SA POWER NETWORKS | E12: ED_FEE431_00004
E13: ED_FEE431_00005
E14: ED_FEE431_00006
E15: ED_FEE431_00007
E16: ED_FEE431_00008
E17: ED_FEE431_00009
E18: ED_FEE431_00010
E19: ED_FEE431_00011
E20: ED_FEE431_00012
E21: ED_FEE431_00013
E22: ED_FEE431_00014
E23: ED_FEE431_00015
E24: ED_FEE431_00016
E25: ED_FEE431_00017
E26: ED_FEE431_00018
E27: ED_FEE431_00019
E28: ED_FEE431_00020
E29: ED_FEE431_00021
E30: ED_FEE431_00022
E31: ED_FEE431_00023
E32: ED_FEE431_00024
E33: ED_FEE431_00025
E34: ED_FEE431_00026
E35: ED_FEE431_00027
E36: ED_FEE431_00028
E37: ED_FEE431_00029
E38: ED_FEE431_00030
E39: ED_FEE431_00031
E40: ED_FEE431_00032
E41: ED_FEE431_00033
E42: ED_FEE431_00034
E43: ED_FEE431_00035
E44: ED_FEE431_00036
E45: ED_FEE431_00037
E46: ED_FEE431_00038
E47: ED_FEE431_00039
E48: ED_FEE431_00040
E49: ED_FEE431_00041
E50: ED_FEE431_00042
E51: ED_FEE431_00043
E52: ED_FEE431_00044
E53: ED_FEE431_00045
E54: ED_FEE431_00046
E55: ED_FEE431_00047
E56: ED_FEE431_00048
E57: ED_FEE431_00049
E58: ED_FEE431_00050
E59: ED_FEE431_00051
E60: ED_FEE431_00052
E61: ED_FEE431_00053
E62: ED_FEE431_00054
E63: ED_FEE431_00055
E64: ED_FEE431_00056
E65: ED_FEE431_00057
E66: ED_FEE431_00058
E67: ED_FEE431_00059
E68: ED_FEE431_00060
E69: ED_FEE431_00061
E70: ED_FEE431_00062
E71: ED_FEE431_00063
E72: ED_FEE431_00064
E73: ED_FEE431_00065
E74: ED_FEE431_00066
E75: ED_FEE431_00067
E76: ED_FEE431_00068
E77: ED_FEE431_00069
E78: ED_FEE431_00070
E79: ED_FEE431_00071
E80: ED_FEE431_00072
E81: ED_FEE431_00073
E82: ED_FEE431_00074
E83: ED_FEE431_00075
E84: ED_FEE431_00076
E85: ED_FEE431_00077
E86: ED_FEE431_00078
E87: ED_FEE431_00079
E88: ED_FEE431_00080
E89: ED_FEE431_00081
E90: ED_FEE431_00082
E91: ED_FEE431_00083
E92: ED_FEE431_00084
E93: ED_FEE431_00085
E94: ED_FEE431_00086
E95: ED_FEE431_00087
E96: ED_FEE431_00088
E97: ED_FEE431_00089
E98: ED_FEE431_00090
E99: ED_FEE431_00091
E100: ED_FEE431_00092
E101: ED_FEE431_00093
E102: ED_FEE431_00094
E103: ED_FEE431_00095
E104: ED_FEE431_00096
E105: ED_FEE431_00097
E106: ED_FEE431_00098
E107: ED_FEE431_00099
E108: ED_FEE431_00100
E109: ED_FEE431_00101
E110: ED_FEE431_00102
E111: ED_FEE431_00103
E112: ED_FEE431_00104
E113: ED_FEE431_00105
E114: ED_FEE431_00106
E115: ED_FEE431_00107
E116: ED_FEE431_00108
E117: ED_FEE431_00109
E118: ED_FEE431_00110
E119: ED_FEE431_00111
E120: ED_FEE431_00112
E121: ED_FEE431_00113
E122: ED_FEE431_00114
E123: ED_FEE431_00115
E124: ED_FEE431_00116
E125: ED_FEE431_00117
E126: ED_FEE431_00118
E127: ED_FEE431_00119
E128: ED_FEE431_00120
E129: ED_FEE431_00121
E130: ED_FEE431_00122
E131: ED_FEE431_00123
E132: ED_FEE431_00124
E133: ED_FEE431_00125
E134: ED_FEE431_00126
E135: ED_FEE431_00127
E136: ED_FEE431_00128
E137: ED_FEE431_00129
E138: ED_FEE431_00130
E139: ED_FEE431_00131
E140: ED_FEE431_00132
E141: ED_FEE431_00133
E142: ED_FEE431_00134
E143: ED_FEE431_00135
E144: ED_FEE431_00136
E145: ED_FEE431_00137
E146: ED_FEE431_00138
E147: ED_FEE431_00139
E148: ED_FEE431_00140
E149: ED_FEE431_00141
E150: ED_FEE431_00142
E151: ED_FEE431_00143
E152: ED_FEE431_00144
E153: ED_FEE431_00145
E154: ED_FEE431_00146
E155: ED_FEE431_00147
E156: ED_FEE431_00148
E157: ED_FEE431_00149
E158: ED_FEE431_00150
E159: ED_FEE431_00151
E160: ED_FEE431_00152
E161: ED_FEE431_00153
E162: ED_FEE431_00154
E163: ED_FEE431_00155
E164: ED_FEE431_00156
E165: ED_FEE431_00157
E166: ED_FEE431_00158
E167: ED_FEE431_00159
E168: ED_FEE431_00160
E169: ED_FEE431_00161
E170: ED_FEE431_00162
E171: ED_FEE431_00163
E172: ED_FEE431_00164
E173: ED_FEE431_00165
E174: ED_FEE431_00166
E175: ED_FEE431_00167
E176: ED_FEE431_00168
E177: ED_FEE431_00169
E178: ED_FEE431_00170
E179: ED_FEE431_00171
E180: ED_FEE431_00172
E181: ED_FEE431_00173
E182: ED_FEE431_00174
E183: ED_FEE431_00175
E184: ED_FEE431_00176
E185: ED_FEE431_00177
E186: ED_FEE431_00178
E187: ED_FEE431_00179
E188: ED_FEE431_00180
E189: ED_FEE431_00181
E190: ED_FEE431_00182
E191: ED_FEE431_00183
E192: ED_FEE431_00184
E193: ED_FEE431_00185
E194: ED_FEE431_00186
E195: ED_FEE431_00187
E196: ED_FEE431_00188
E197: ED_FEE431_00189
E198: ED_FEE431_00190
E199: ED_FEE431_00191
E200: ED_FEE431_00192
E201: ED_FEE431_00193
... 278 more rows

Sheet 4.4 Quoted services
B1: REGULATORY REPORTING STATEMENT
B2: =INDEX(dms_TradingNameFull_List,MATCH(dms_TradingName,dms_TradingName_List)) -> SA Power Networks
B3: =CONCATENATE((LOOKUP(dms_Model,dms_Model_List,dms_Worksheet_List))&" "&CRY) -> CATEGORY ANALYSIS 2015-16
B4: 4.4 ANCILLARY SERVICES - QUOTED SERVICES
B6: 4.4.1 - COST METRICS FOR QUOTED SERVICES
D7: EXPENDITURE ($0's) | F7: VOLUMES (0's)
B8: SERVICE | C8: SERVICE SUBCATEGORY | D8: =CRY -> 2015-16 | F8: =CRY -> 2015-16
B9: Quoted Services | C9: THESE SERVICES ARE NEGOTIATED SERVICES FOR SA POWER NETWORKS | E9: ED_QUO441_00001
E10: ED_QUO441_00002
E11: ED_QUO441_00003
E12: ED_QUO441_00004
E13: ED_QUO441_00005
E14: ED_QUO441_00006
E15: ED_QUO441_00007
E16: ED_QUO441_00008
E17: ED_QUO441_00009
E18: ED_QUO441_00010
E19: ED_QUO441_00011
E20: ED_QUO441_00012
E21: ED_QUO441_00013
E22: ED_QUO441_00014
E23: ED_QUO441_00015
E24: ED_QUO441_00016
E25: ED_QUO441_00017
E26: ED_QUO441_00018
E27: ED_QUO441_00019
E28: ED_QUO441_00020
E29: ED_QUO441_00021
E30: ED_QUO441_00022
E31: ED_QUO441_00023
E32: ED_QUO441_00024
E33: ED_QUO441_00025
E34: ED_QUO441_00026
E35: ED_QUO441_00027
E36: ED_QUO441_00028
E37: ED_QUO441_00029
E38: ED_QUO441_00030
E39: ED_QUO441_00031
E40: ED_QUO441_00032
E41: ED_QUO441_00033
E42: ED_QUO441_00034
E43: ED_QUO441_00035
E44: ED_QUO441_00036
E45: ED_QUO441_00037
E46: ED_QUO441_00038
E47: ED_QUO441_00039
E48: ED_QUO441_00040
E49: ED_QUO441_00041
E50: ED_QUO441_00042
E51: ED_QUO441_00043
E52: ED_QUO441_00044
E53: ED_QUO441_00045
E54: ED_QUO441_00046
E55: ED_QUO441_00047
E56: ED_QUO441_00048
E57: ED_QUO441_00049
E58: ED_QUO441_00050
E59: ED_QUO441_00051
E60: ED_QUO441_00052
E61: ED_QUO441_00053
E62: ED_QUO441_00054
E63: ED_QUO441_00055
E64: ED_QUO441_00056
E65: ED_QUO441_00057
E66: ED_QUO441_00058
E67: ED_QUO441_00059
E68: ED_QUO441_00060
E69: ED_QUO441_00061
E70: ED_QUO441_00062
E71: ED_QUO441_00063
E72: ED_QUO441_00064
E73: ED_QUO441_00065
E74: ED_QUO441_00066
E75: ED_QUO441_00067
E76: ED_QUO441_00068
E77: ED_QUO441_00069
E78: ED_QUO441_00070
E79: ED_QUO441_00071
E80: ED_QUO441_00072
E81: ED_QUO441_00073
E82: ED_QUO441_00074
E83: ED_QUO441_00075
E84: ED_QUO441_00076
E85: ED_QUO441_00077
E86: ED_QUO441_00078
E87: ED_QUO441_00079
E88: ED_QUO441_00080
E89: ED_QUO441_00081
E90: ED_QUO441_00082
E91: ED_QUO441_00083
E92: ED_QUO441_00084
E93: ED_QUO441_00085
E94: ED_QUO441_00086
E95: ED_QUO441_00087
E96: ED_QUO441_00088
E97: ED_QUO441_00089
E98: ED_QUO441_00090
E99: ED_QUO441_00091
E100: ED_QUO441_00092
E101: ED_QUO441_00093
E102: ED_QUO441_00094
E103: ED_QUO441_00095
E104: ED_QUO441_00096
E105: ED_QUO441_00097
E106: ED_QUO441_00098
E107: ED_QUO441_00099
E108: ED_QUO441_00100
E109: ED_QUO441_00101
E110: ED_QUO441_00102
E111: ED_QUO441_00103
E112: ED_QUO441_00104
E113: ED_QUO441_00105
E114: ED_QUO441_00106
E115: ED_QUO441_00107
E116: ED_QUO441_00108
E117: ED_QUO441_00109
E118: ED_QUO441_00110
E119: ED_QUO441_00111
E120: ED_QUO441_00112
E121: ED_QUO441_00113
E122: ED_QUO441_00114
E123: ED_QUO441_00115
E124: ED_QUO441_00116
E125: ED_QUO441_00117
E126: ED_QUO441_00118
E127: ED_QUO441_00119
E128: ED_QUO441_00120
E129: ED_QUO441_00121
E130: ED_QUO441_00122
E131: ED_QUO441_00123
E132: ED_QUO441_00124
E133: ED_QUO441_00125
E134: ED_QUO441_00126
E135: ED_QUO441_00127
E136: ED_QUO441_00128
E137: ED_QUO441_00129
E138: ED_QUO441_00130
E139: ED_QUO441_00131
E140: ED_QUO441_00132
E141: ED_QUO441_00133
E142: ED_QUO441_00134
E143: ED_QUO441_00135
E144: ED_QUO441_00136
E145: ED_QUO441_00137
E146: ED_QUO441_00138
E147: ED_QUO441_00139
E148: ED_QUO441_00140
E149: ED_QUO441_00141
E150: ED_QUO441_00142
E151: ED_QUO441_00143
E152: ED_QUO441_00144
E153: ED_QUO441_00145
E154: ED_QUO441_00146
E155: ED_QUO441_00147
E156: ED_QUO441_00148
E157: ED_QUO441_00149
E158: ED_QUO441_00150
E159: ED_QUO441_00151
E160: ED_QUO441_00152
E161: ED_QUO441_00153
E162: ED_QUO441_00154
E163: ED_QUO441_00155
E164: ED_QUO441_00156
E165: ED_QUO441_00157
E166: ED_QUO441_00158
E167: ED_QUO441_00159
E168: ED_QUO441_00160
E169: ED_QUO441_00161
E170: ED_QUO441_00162
E171: ED_QUO441_00163
E172: ED_QUO441_00164
E173: ED_QUO441_00165
E174: ED_QUO441_00166
E175: ED_QUO441_00167
E176: ED_QUO441_00168
E177: ED_QUO441_00169
E178: ED_QUO441_00170
E179: ED_QUO441_00171
E180: ED_QUO441_00172
E181: ED_QUO441_00173
E182: ED_QUO441_00174
E183: ED_QUO441_00175
E184: ED_QUO441_00176
E185: ED_QUO441_00177
E186: ED_QUO441_00178
E187: ED_QUO441_00179
E188: ED_QUO441_00180
E189: ED_QUO441_00181
E190: ED_QUO441_00182
E191: ED_QUO441_00183
E192: ED_QUO441_00184
E193: ED_QUO441_00185
E194: ED_QUO441_00186
E195: ED_QUO441_00187
E196: ED_QUO441_00188
E197: ED_QUO441_00189
E198: ED_QUO441_00190
E199: ED_QUO441_00191
E200: ED_QUO441_00192
E201: ED_QUO441_00193
... 280 more rows

Sheet 5.2 Asset Age Profile
B1: REGULATORY REPORTING STATEMENT
B2: =INDEX(dms_TradingNameFull_List,MATCH(dms_TradingName,dms_TradingName_List)) -> Australian Distribution Co.
B3: =CONCATENATE((LOOKUP(dms_Model,dms_Model_List,dms_Worksheet_List))&" "&CRY) -> CATEGORY ANALYSIS 2015-16
B4: 5.2 ASSET AGE PROFILE
B6: There is ONE table on this worksheet. Both the ROWS and COLUMNS have been 'grouped' for easy navigation. See the Instructions sheet on how to group or ungroup data.
B8: 5.2.1 - ASSET AGE PROFILE
D9: ECONOMIC LIFE (YEARS) | F9: INSTALLED ASSETS -˃ QUANTITY CURRENTLY IN COMMISSION BY YEAR
B10: ASSET GROUP | C10: ASSET CATEGORY | D10: MEAN | E10: STANDARD DEVIATION | F10: =CRY -> 2015-16 | G10: =IF(dms_RPT="financial",(VALUE(LEFT(F10,4)-1)&"-"&MID(F10,3,2)),VALUE(LEFT(F10,4)-1)) -> 2014-15 | H10: =IF(dms_RPT="financial",(VALUE(LEFT(G10,4)-1)&"-"&MID(G10,3,2)),VALUE(LEFT(G10,4)-1)) -> 2013-14 | I10: 2012-13 | J10: 2011-12 | K10: 2010-11 | L10: 2009-10 | M10: 2008-09 | N10: 2007-08 | O10: 2006-07 | P10: 2005-06 | Q10: 2004-05 | R10: 2003-04 | S10: 2002-03 | T10: 2001-02 | U10: 2000-01 | V10: 1999-00 | W10: 1998-99 | X10: 1997-98 | Y10: 1996-97 | Z10: 1995-96 | AA10: 1994-95 | AB10: 1993-94 | AC10: 1992-93 | AD10: 1991-92 | AE10: 1990-91 | AF10: 1989-90 | AG10: 1988-89 | AH10: 1987-88 | AI10: 1986-87 | AJ10: 1985-86 | AK10: 1984-85 | AL10: 1983-84 | AM10: =IF(dms_RPT="financial",(VALUE(LEFT(AL10,4)-1)&"-"&MID(AL10,3,2)),VALUE(LEFT(AL10,4)-1)) -> 1982-83 | AN10: 1981-82 | AO10: 1980-81 | AP10: 1979-80 | AQ10: 1978-79 | AR10: 1977-78 | AS10: 1976-77 | AT10: 1975-76 | AU10: 1974-75 | AV10: 1973-74 | AW10: 1972-73 | AX10: 1971-72 | AY10: 1970-71 | AZ10: 1969-70 | BA10: 1968-69 | BB10: 1967-68 | BC10: 1966-67 | BD10: 1965-66 | BE10: 1964-65 | BF10: 1963-64 | BG10: 1962-63 | BH10: 1961-62 | BI10: 1960-61 | BJ10: 1959-60 | BK10: 1958-59 | BL10: 1957-58 | BM10: 1956-57 | BN10: 1955-56 | BO10: 1954-55 | BP10: 1953-54 | BQ10: 1952-53 | BR10: 1951-52 | BS10: =IF(dms_RPT="financial",(VALUE(LEFT(BR10,4)-1)&"-"&MID(BR10,3,2)),VALUE(LEFT(BR10,4)-1)) -> 1950-51 | BT10: 1949-50 | BU10: 1948-49 | BV10: 1947-48 | BW10: 1946-47 | BX10: 1945-46 | BY10: 1944-45 | BZ10: 1943-44 | CA10: 1942-43 | CB10: 1941-42 | CC10: 1940-41 | CD10: 1939-40 | CE10: 1938-39 | CF10: 1937-38 | CG10: 1936-37 | CH10: 1935-36 | CI10: 1934-35 | CJ10: 1933-34 | CK10: 1932-33 | CL10: 1931-32 | CM10: 1930-31 | CN10: 1929-30 | CO10: 1928-29 | CP10: 1927-28 | CQ10: 1926-27 | CR10: 1925-26 | CS10: 1924-25 | CT10: 1923-24 | CU10: 1922-23 | CV10: 1921-22 | CW10: 1920-21 | CX10: 1919-20 | CY10: =IF(dms_RPT="financial",(VALUE(LEFT(CX10,4)-1)&"-"&MID(CX10,3,2)),VALUE(LEFT(CX10,4)-1)) -> 1918-19 | CZ10: 1917-18 | DA10: 1916-17 | DB10: =IF(dms_RPT="financial",(VALUE(LEFT(DA10,4)-1)&"-"&MID(DA10,3,2)),VALUE(LEFT(DA10,4)-1)) -> 1915-16 | DC10: =IF(dms_RPT="financial",(VALUE(LEFT(DB10,4)-1)&"-"&MID(DB10,3,2)),VALUE(LEFT(DB10,4)-1)) -> 1914-15 | DD10: =IF(dms_RPT="financial",(VALUE(LEFT(DC10,4)-1)&"-"&MID(DC10,3,2)),VALUE(LEFT(DC10,4)-1)) -> 1913-14 | DE10: =IF(dms_RPT="financial",(VALUE(LEFT(DD10,4)-1)&"-"&MID(DD10,3,2)),VALUE(LEFT(DD10,4)-1)) -> 1912-13 | DF10: =IF(dms_RPT="financial",(VALUE(LEFT(DE10,4)-1)&"-"&MID(DE10,3,2)),VALUE(LEFT(DE10,4)-1)) -> 1911-12 | DG10: =IF(dms_RPT="financial",(VALUE(LEFT(DF10,4)-1)&"-"&MID(DF10,3,2)),VALUE(LEFT(DF10,4)-1)) -> 1910-11 | DH10: =IF(dms_RPT="financial",(VALUE(LEFT(DG10,4)-1)&"-"&MID(DG10,3,2)),VALUE(LEFT(DG10,4)-1)) -> 1909-10
B11: POLES BY: HIGHEST OPERATING VOLTAGE ; MATERIAL TYPE; STAKING (IF WOOD) | C11: Staking of a wooden pole
C12: ˂ = 1 kV; Wood
C13: > 1 kV & < = 11 kV; Wood
C14: ˃ 11 kV & < = 22 kV; Wood
C15: > 22 kV & < = 66 kV; Wood
C16: > 66 kV & < = 132 kV; Wood
C17: > 132 kV; Wood
C18: ˂ = 1 kV; Concrete
C19: > 1 kV & < = 11 kV; Concrete
C20: ˃ 11 kV & < = 22 kV; Concrete
C21: > 22 kV & < = 66 kV; Concrete
C22: > 66 kV & < = 132 kV; Concrete
C23: > 132 kV; Concrete
C24: ˂ = 1 kV; Steel
C25: > 1 kV & < = 11 kV; Steel
C26: ˃ 11 kV & < = 22 kV; Steel
C27: > 22 kV & < = 66 kV; Steel
C28: > 66 kV & < = 132 kV; Steel
C29: > 132 kV; Steel
C30: Other
B31: OVERHEAD CONDUCTORS BY: HIGHEST OPERATING VOLTAGE; NUMBER OF PHASES (AT HV) | C31: ˂ = 1 kV | D31: 60 | E31: 8 | F31: 18 | G31: 18.88 | H31: 31 | I31: 335.95908 | J31: 374.409888 | K31: 424.900848 | L31: 411.307128 | M31: 306.441288 | N31: 0.1533325387 | O31: 0.1533325387 | P31: 0 | Q31: 0 | R31: 0 | S31: 0 | T31: 4.5473912 | U31: 4.5473912 | V31: 0 | W31: 1.010152737 | X31: 1.010152737 | Y31: 0 | Z31: 0 | AA31: 0 | AB31: 0 | AC31: 99.10996736 | AD31: 99.10996736 | AE31: 6.550651744 | AF31: 118.0460487 | AG31: 317.9310255 | AH31: 336.1682227 | AI31: 625.4093974 | AJ31: 623.5137191 | AK31: 236.5126539 | AL31: 315.3215781 | AM31: 244.7832239 | AN31: 38.49397017 | AO31: 97.665635 | AP31: 104.7436312 | AQ31: 34.39115451 | AR31: 218.0323549 | AS31: 1014.70564 | AT31: 1113.18558 | AU31: 530.0022636 | AV31: 330.2731873 | AW31: 390.7303934 | AX31: 769.2118929 | AY31: 966.1246937 | AZ31: 1054.583232 | BA31: 1575.716943 | BB31: 1549.534344 | BC31: 4133.517775 | BD31: 4601.608573 | BE31: 2059.507815 | BF31: 1717.599041 | BG31: 1450.358402 | BH31: 1649.275309 | BI31: 1381.477212 | BJ31: 979.7619587 | BK31: 1756.676803 | BL31: 1739.832431 | BM31: 7498.614407 | BN31: 19289.76734 | BO31: 12241.14597 | BP31: 39.69100962 | BQ31: 40.52393577 | BR31: 21.71787401 | BS31: 17.28671672 | BT31: 11.15448539 | BU31: 0 | BV31: 0 | BW31: 39.42687732 | BX31: 39.42687732 | BY31: 0 | BZ31: 0 | CA31: 0 | CB31: 0 | CC31: 92.77891655 | CD31: 92.77891655 | CE31: 0 | CF31: 0 | CG31: 0 | CH31: 0 | CI31: 0 | CJ31: 0 | CK31: 0 | CL31: 0 | CM31: 0 | CN31: 0 | CO31: 0 | CP31: 0 | CQ31: 0 | CR31: 0 | CS31: 0 | CT31: 0 | CU31: 0 | CV31: 0 | CW31: 0 | CX31: 0 | CY31: 0 | CZ31: 0 | DH31: 0
C32: > 1 kV & < = 11 kV | D32: 60 | E32: 8 | F32: 275.31 | G32: 280.335 | H32: 93 | I32: 159.618816 | J32: 149.4773601 | K32: 131.996289 | L32: 178.749717 | M32: 83.491092 | N32: 0 | O32: 0 | P32: 0 | Q32: 0.01498476941 | R32: 0.01498476941 | S32: 0 | T32: 0 | U32: 3.3028168 | V32: 3.3028168 | W32: 2.886149844 | X32: 4.392317499 | Y32: 1.506167655 | Z32: 0 | AA32: 0 | AB32: 10.88411299 | AC32: 30.81284504 | AD32: 19.92873205 | AE32: 0.03573018239 | AF32: 95.59161064 | AG32: 232.7833156 | AH32: 282.7631546 | AI32: 500.0897044 | AJ32: 415.1643656 | AK32: 334.5492351 | AL32: 364.3603875 | AM32: 96.68603968 | AN32: 7.199381084 | AO32: 91.16816381 | AP32: 97.09892819 | AQ32: 73.72517259 | AR32: 276.5290742 | AS32: 816.2883957 | AT32: 724.0125502 | AU32: 229.8361415 | AV32: 333.4817272 | AW32: 571.1685657 | AX32: 806.7860468 | AY32: 1360.414049 | AZ32: 1207.948804 | BA32: 1025.246574 | BB32: 1019.166214 | BC32: 2659.523232 | BD32: 2968.470345 | BE32: 1327.635745 | BF32: 958.161833 | BG32: 981.4998494 | BH32: 1881.474465 | BI32: 1671.824357 | BJ32: 1035.440164 | BK32: 1685.759432 | BL32: 1689.373017 | BM32: 5747.586006 | BN32: 11938.30472 | BO32: 6693.567499 | BP32: 0 | BQ32: 0 | BR32: 0 | BS32: 0 | BT32: 0 | BU32: 0 | BV32: 0 | BW32: 0 | BX32: 0 | BY32: 0 | BZ32: 0 | CA32: 0 | CB32: 0 | CC32: 0 | CD32: 0 | CE32: 0 | CF32: 0 | CG32: 0 | CH32: 0 | CI32: 0 | CJ32: 0 | CK32: 0 | CL32: 0 | CM32: 0 | CN32: 0 | CO32: 0 | CP32: 0 | CQ32: 0 | CR32: 0 | CS32: 0 | CT32: 0 | CU32: 0 | CV32: 0 | CW32: 0 | CX32: 0 | CY32: 0 | CZ32: 0 | DH32: 0
C33: ˃ 11 kV & < = 22 kV ; SWER | D33: 60 | E33: 8 | F33: 19 | G33: 52.32 | H33: 23 | I33: 9.951036 | J33: 8.552296 | K33: 33.250048 | L33: 5.155356 | M33: 10.79028 | N33: 0 | O33: 0 | P33: 0 | Q33: 0 | R33: 0 | S33: 0 | T33: 0 | U33: 0 | V33: 0 | W33: 0 | X33: 0 | Y33: 0 | Z33: 5.672179318 | AA33: 5.672179318 | AB33: 0 | AC33: 0 | AD33: 0 | AE33: 24.7808484 | AF33: 83.48088441 | AG33: 440.8067368 | AH33: 388.4820417 | AI33: 20.28113779 | AJ33: 51.99373795 | AK33: 56.23826398 | AL33: 157.2897338 | AM33: 139.1394109 | AN33: 12.34303133 | AO33: 61.28926013 | AP33: 48.94622879 | AQ33: 69.01491059 | AR33: 71.09919081 | AS33: 374.4124715 | AT33: 501.8513801 | AU33: 478.3333063 | AV33: 551.9019527 | AW33: 599.4574682 | AX33: 510.2936716 | AY33: 1653.082295 | AZ33: 1940.270506 | BA33: 927.097071 | BB33: 973.0222638 | BC33: 2840.405391 | BD33: 3133.426031 | BE33: 1408.490659 | BF33: 975.9437886 | BG33: 942.8197514 | BH33: 982.1486043 | BI33: 798.6204352 | BJ33: 918.0241167 | BK33: 3327.480619 | BL33: 2861.371367 | BM33: 144.810981 | BN33: 319.2590292 | BO33: 174.4480482 | BP33: 0 | BQ33: 0 | BR33: 0 | BS33: 0 | BT33: 0 | BU33: 0 | BV33: 0 | BW33: 0 | BX33: 0 | BY33: 0 | BZ33: 0 | CA33: 0 | CB33: 0 | CC33: 0 | CD33: 0 | CE33: 0 | CF33: 0 | CG33: 0 | CH33: 0 | CI33: 0 | CJ33: 0 | CK33: 0 | CL33: 0 | CM33: 0 | CN33: 0 | CO33: 0 | CP33: 0 | CQ33: 0 | CR33: 0 | CS33: 0 | CT33: 0 | CU33: 0 | CV33: 0 | CW33: 0 | CX33: 0 | CY33: 0 | CZ33: 0 | DH33: 0
C34: ˃ 11 kV & < = 22 kV ; Single-Phase | D34: 0 | E34: 0 | F34: 0 | G34: 0 | H34: 0 | I34: 0 | J34: 0 | K34: 0 | L34: 0 | M34: 0 | N34: 0 | O34: 0 | P34: 0 | Q34: 0 | R34: 0 | S34: 0 | T34: 0 | U34: 0 | V34: 0 | W34: 0 | X34: 0 | Y34: 0 | Z34: 0 | AA34: 0 | AB34: 0 | AC34: 0 | AD34: 0 | AE34: 0 | AF34: 0 | AG34: 0 | AH34: 0 | AI34: 0 | AJ34: 0 | AK34: 0 | AL34: 0 | AM34: 0 | AN34: 0 | AO34: 0 | AP34: 0 | AQ34: 0 | AR34: 0 | AS34: 0 | AT34: 0 | AU34: 0 | AV34: 0 | AW34: 0 | AX34: 0 | AY34: 0 | AZ34: 0 | BA34: 0 | BB34: 0 | BC34: 0 | BD34: 0 | BE34: 0 | BF34: 0 | BG34: 0 | BH34: 0 | BI34: 0 | BJ34: 0 | BK34: 0 | BL34: 0 | BM34: 0 | BN34: 0 | BO34: 0 | BP34: 0 | BQ34: 0 | BR34: 0 | BS34: 0 | BT34: 0 | BU34: 0 | BV34: 0 | BW34: 0 | BX34: 0 | BY34: 0 | BZ34: 0 | CA34: 0 | CB34: 0 | CC34: 0 | CD34: 0 | CE34: 0 | CF34: 0 | CG34: 0 | CH34: 0 | CI34: 0 | CJ34: 0 | CK34: 0 | CL34: 0 | CM34: 0 | CN34: 0 | CO34: 0 | CP34: 0 | CQ34: 0 | CR34: 0 | CS34: 0 | CT34: 0 | CU34: 0 | CV34: 0 | CW34: 0 | CX34: 0 | CY34: 0 | CZ34: 0 | DH34: 0
C35: ˃ 11 kV & < = 22 kV ; Multiple-Phase | D35: 0 | E35: 0 | F35: 0 | G35: 0 | H35: 0 | I35: 0 | J35: 0 | K35: 0 | L35: 0 | M35: 0 | N35: 0 | O35: 0 | P35: 0 | Q35: 0 | R35: 0 | S35: 0 | T35: 0 | U35: 0 | V35: 0 | W35: 0 | X35: 0 | Y35: 0 | Z35: 0 | AA35: 0 | AB35: 0 | AC35: 0 | AD35: 0 | AE35: 0 | AF35: 0 | AG35: 0 | AH35: 0 | AI35: 0 | AJ35: 0 | AK35: 0 | AL35: 0 | AM35: 0 | AN35: 0 | AO35: 0 | AP35: 0 | AQ35: 0 | AR35: 0 | AS35: 0 | AT35: 0 | AU35: 0 | AV35: 0 | AW35: 0 | AX35: 0 | AY35: 0 | AZ35: 0 | BA35: 0 | BB35: 0 | BC35: 0 | BD35: 0 | BE35: 0 | BF35: 0 | BG35: 0 | BH35: 0 | BI35: 0 | BJ35: 0 | BK35: 0 | BL35: 0 | BM35: 0 | BN35: 0 | BO35: 0 | BP35: 0 | BQ35: 0 | BR35: 0 | BS35: 0 | BT35: 0 | BU35: 0 | BV35: 0 | BW35: 0 | BX35: 0 | BY35: 0 | BZ35: 0 | CA35: 0 | CB35: 0 | CC35: 0 | CD35: 0 | CE35: 0 | CF35: 0 | CG35: 0 | CH35: 0 | CI35: 0 | CJ35: 0 | CK35: 0 | CL35: 0 | CM35: 0 | CN35: 0 | CO35: 0 | CP35: 0 | CQ35: 0 | CR35: 0 | CS35: 0 | CT35: 0 | CU35: 0 | CV35: 0 | CW35: 0 | CX35: 0 | CY35: 0 | CZ35: 0 | DH35: 0
C36: > 22 kV & < = 66 kV | D36: 60 | E36: 8 | F36: 43.425 | G36: 31.13 | H36: 89 | I36: 0.8747775 | J36: 75.230865 | K36: 105.323211 | L36: 71.031933 | M36: 40.939587 | N36: 10.847241 | O36: 11.7220185 | P36: 42.8640975 | Q36: 64.2086685 | R36: 24.843681 | S36: 47.15050725 | T36: 173.4683782 | U36: 165.857814 | V36: 41.0445603 | W36: 3.2541723 | X36: 0 | Y36: 0 | Z36: 0 | AA36: 14.696262 | AB36: 14.696262 | AC36: 20.38231575 | AD36: 20.38231575 | AE36: 23.094126 | AF36: 48.287718 | AG36: 88.177572 | AH36: 175.1304555 | AI36: 113.8960305 | AJ36: 438.9633495 | AK36: 597.8229435 | AL36: 168.8320575 | AM36: 13.4715735 | AN36: 21.5195265 | AO36: 169.5318795 | AP36: 160.609149 | AQ36: 170.2317015 | AR36: 368.456283 | AS36: 228.6668385 | AT36: 44.08368016 | AU36: 54.97847672 | AV36: 202.4953292 | AW36: 412.8098195 | AX36: 306.4831909 | AY36: 470.8950165 | AZ36: 619.563799 | BA36: 424.1371311 | BB36: 448.2229399 | BC36: 719.746801 | BD36: 840.5540041 | BE36: 538.3760061 | BF36: 414.9507803 | BG36: 474.7871436 | BH36: 585.4771434 | BI36: 578.7575518 | BJ36: 323.0977054 | BK36: 171.2869967 | BL36: 181.0251407 | BM36: 181.6163851 | BN36: 324.7323224 | BO36: 319.4459014 | BP36: 144.1593099 | BQ36: 254.3510462 | BR36: 318.86625 | BS36: 635.4660629 | BT36: 505.2183873 | BU36: 0 | BV36: 70.41895361 | BW36: 204.8401195 | BX36: 187.9809578 | BY36: 53.55979186 | BZ36: 0 | CA36: 34.43129476 | CB36: 34.43129476 | CC36: 211.3872824 | CD36: 314.8550621 | CE36: 103.4677797 | CF36: 51.38609901 | CG36: 49.9942096 | CH36: 9.564248546 | CI36: 9.564248546 | CJ36: 0 | CK36: 0 | CL36: 0 | CM36: 235.9760959 | CN36: 235.9760959 | CO36: 0 | CP36: 0 | CQ36: 0 | CR36: 0 | CS36: 0 | CT36: 0 | CU36: 0 | CV36: 0 | CW36: 0 | CX36: 0 | CY36: 0 | CZ36: 0 | DH36: 0
C37: > 66 kV & < = 132 kV | D37: 60 | E37: 8 | F37: 0 | G37: 0 | H37: 0 | I37: 0 | J37: 0 | K37: 0 | L37: 0 | M37: 0 | N37: 0 | O37: 33 | P37: 0 | Q37: 0 | R37: 0 | S37: 0 | T37: 0 | U37: 0 | V37: 0 | W37: 0 | X37: 0 | Y37: 0 | Z37: 0 | AA37: 0 | AB37: 0 | AC37: 0 | AD37: 0 | AE37: 0 | AF37: 0 | AG37: 0 | AH37: 0 | AI37: 0 | AJ37: 0 | AK37: 0 | AL37: 0 | AM37: 0 | AN37: 0 | AO37: 0 | AP37: 0 | AQ37: 0 | AR37: 0 | AS37: 0 | AT37: 0 | AU37: 0 | AV37: 0 | AW37: 0 | AX37: 0 | AY37: 0 | AZ37: 0 | BA37: 0 | BB37: 0 | BC37: 0 | BD37: 0 | BE37: 0 | BF37: 0 | BG37: 0 | BH37: 0 | BI37: 0 | BJ37: 0 | BK37: 0 | BL37: 0 | BM37: 0 | BN37: 0 | BO37: 0 | BP37: 0 | BQ37: 0 | BR37: 0 | BS37: 0 | BT37: 0 | BU37: 0 | BV37: 0 | BW37: 0 | BX37: 0 | BY37: 0 | BZ37: 0 | CA37: 0 | CB37: 0 | CC37: 0 | CD37: 0 | CE37: 0 | CF37: 0 | CG37: 0 | CH37: 0 | CI37: 0 | CJ37: 0 | CK37: 0 | CL37: 0 | CM37: 0 | CN37: 0 | CO37: 0 | CP37: 0 | CQ37: 0 | CR37: 0 | CS37: 0 | CT37: 0 | CU37: 0 | CV37: 0 | CW37: 0 | CX37: 0 | CY37: 0 | CZ37: 0 | DH37: 0
C38: > 132 kV | D38: 0 | E38: 0 | F38: 0 | G38: 0 | H38: 0 | I38: 0 | J38: 0 | K38: 0 | L38: 0 | M38: 0 | N38: 0 | O38: 0 | P38: 0 | Q38: 0 | R38: 0 | S38: 0 | T38: 0 | U38: 0 | V38: 0 | W38: 0 | X38: 0 | Y38: 0 | Z38: 0 | AA38: 0 | AB38: 0 | AC38: 0 | AD38: 0 | AE38: 0 | AF38: 0 | AG38: 0 | AH38: 0 | AI38: 0 | AJ38: 0 | AK38: 0 | AL38: 0 | AM38: 0 | AN38: 0 | AO38: 0 | AP38: 0 | AQ38: 0 | AR38: 0 | AS38: 0 | AT38: 0 | AU38: 0 | AV38: 0 | AW38: 0 | AX38: 0 | AY38: 0 | AZ38: 0 | BA38: 0 | BB38: 0 | BC38: 0 | BD38: 0 | BE38: 0 | BF38: 0 | BG38: 0 | BH38: 0 | BI38: 0 | BJ38: 0 | BK38: 0 | BL38: 0 | BM38: 0 | BN38: 0 | BO38: 0 | BP38: 0 | BQ38: 0 | BR38: 0 | BS38: 0 | BT38: 0 | BU38: 0 | BV38: 0 | BW38: 0 | BX38: 0 | BY38: 0 | BZ38: 0 | CA38: 0 | CB38: 0 | CC38: 0 | CD38: 0 | CE38: 0 | CF38: 0 | CG38: 0 | CH38: 0 | CI38: 0 | CJ38: 0 | CK38: 0 | CL38: 0 | CM38: 0 | CN38: 0 | CO38: 0 | CP38: 0 | CQ38: 0 | CR38: 0 | CS38: 0 | CT38: 0 | CU38: 0 | CV38: 0 | CW38: 0 | CX38: 0 | CY38: 0 | CZ38: 0 | DH38: 0
C39: Other
B40: UNDERGROUND CABLES BY: HIGHEST OPERATING VOLTAGE | C40: ˂ = 1 kV | D40: 45 | E40: 7 | F40: 426 | G40: 98 | H40: 138 | I40: 0 | J40: 112.0572738 | K40: 126.0187494 | L40: 89.96553521 | M40: 100.2041533 | N40: 30.8810027 | O40: 6.68090892 | P40: 5.48021825 | Q40: 12.82874042 | R40: 7.40460892 | S40: 97.46726467 | T40: 97.41117792 | U40: 1.09973452 | V40: 45.62653494 | W40: 50.08705989 | X40: 51.5657961 | Y40: 47.97139531 | Z40: 2.11588169 | AA40: 0.15002301 | AB40: 14.65456315 | AC40: 14.69451139 | AD40: 0.16529308 | AE40: 445.3765592 | AF40: 450.0430492 | AG40: 34.90506418 | AH40: 84.064992 | AI40: 70.21438718 | AJ40: 55.33931264 | AK40: 196.2485514 | AL40: 210.6891889 | AM40: 112.8052177 | AN40: 65.61773426 | AO40: 334.6213665 | AP40: 393.4311101 | AQ40: 154.7627384 | AR40: 151.0194725 | AS40: 360.480253 | AT40: 532.5002692 | AU40: 302.6919396 | AV40: 218.9398755 | AW40: 576.9526733 | AX40: 648.8386628 | AY40: 827.1787908 | AZ40: 942.4614197 | BA40: 645 | BB40: 576.8085675 | BC40: 448.4835312 | BD40: 476.4859152 | BE40: 494.4386167 | BF40: 352.0641179 | BG40: 230.4644859 | BH40: 172.3477319 | BI40: 309.8205452 | BJ40: 324.0521726 | BK40: 123.1143196 | BL40: 58.03098733 | BM40: 106.2743727 | BN40: 122.6416041 | BO40: 66.93066895 | BP40: 0.9323020672 | BQ40: 0.321803331 | BR40: 0.5018990311 | BS40: 0.7133901781 | BT40: 0.5225201315 | BU40: 0 | BV40: 0 | BW40: 0.2385340434 | BX40: 0.2385340434 | BY40: 0 | BZ40: 0 | CA40: 0 | CB40: 0 | CC40: 1.930320513 | CD40: 4.622051967 | CE40: 2.691731454 | CF40: 0 | CG40: 0 | CH40: 0 | CI40: 0 | CJ40: 0 | CK40: 0 | CL40: 0 | CM40: 4.018117734 | CN40: 4.018117734 | CO40: 0 | CP40: 0 | CQ40: 0 | CR40: 0 | CX40: 0 | DH40: 0
C41: > 1 kV & < = 11 kV | D41: 45 | E41: 7 | F41: 95 | G41: 20.3 | H41: 63 | I41: 49.98804557 | J41: 144.817517 | K41: 173.3703481 | L41: 159.016376 | M41: 140.9460362 | N41: 104.0810333 | O41: 86.6864025 | P41: 75.03976184 | Q41: 65.98020854 | R41: 68.66392908 | S41: 67.51500122 | T41: 61.45323349 | U41: 40.41950898 | V41: 13.23131168 | W41: 3.088141764 | X41: 11.6967145 | Y41: 10.9153856 | Z41: 2.312796647 | AA41: 1.605465 | AB41: 3.761427806 | AC41: 5.175462806 | AD41: 1.618844771 | AE41: 106.2319337 | AF41: 107.0990689 | AG41: 10.73044726 | AH41: 13.09897726 | AI41: 9.039908776 | AJ41: 15.93067747 | AK41: 42.98608114 | AL41: 54.75115232 | AM41: 31.78042177 | AN41: 12.36858721 | AO41: 75.12644682 | AP41: 85.11601626 | AQ41: 37.12920899 | AR41: 38.43463478 | AS41: 72.20017685 | AT41: 104.7824119 | AU41: 65.51981159 | AV41: 46.65063644 | AW41: 87.55830193 | AX41: 121.0542953 | AY41: 198.4109465 | AZ41: 199.3592361 | BA41: 114 | BB41: 129.3995739 | BC41: 114.7327293 | BD41: 115.8987 | BE41: 110.7910771 | BF41: 66.11351703 | BG41: 48.75041465 | BH41: 46.71749023 | BI41: 69.70428905 | BJ41: 65.73660285 | BK41: 30.79650105 | BL41: 14.21057539 | BM41: 16.34207182 | BN41: 21.96265049 | BO41: 11.97290615 | BP41: 0.07166197381 | BQ41: 0 | BR41: 0 | BS41: 0 | BT41: 0 | BU41: 0.09571321643 | BV41: 0.09571321643 | BW41: 0 | BX41: 0 | BY41: 0 | BZ41: 0 | CA41: 0 | CB41: 0 | CC41: 0 | CD41: 0 | CE41: 0 | CF41: 0 | CG41: 0 | CH41: 0 | CI41: 0 | CJ41: 0 | CK41: 0 | CL41: 0 | CM41: 0 | CN41: 0 | CO41: 0 | CP41: 0 | CQ41: 0 | CR41: 0 | CX41: 0 | DH41: 0
C42: > 11 kV & < = 22 kV | D42: 45 | E42: 7 | F42: 0.02 | G42: 0.07 | H42: 3 | I42: 0.04715212033 | J42: 0.1566078097 | K42: 0.6177871454 | L42: 0.8356117616 | M42: 0.6403129907 | N42: 0.5974899263 | O42: 0.4446158173 | P42: 0.2228551593 | Q42: 0.6316039782 | R42: 0.6826137108 | S42: 0.2019027965 | T42: 0.2719565492 | U42: 0.3272282811 | V42: 0.1434682127 | W42: 0 | X42: 0 | Y42: 0 | Z42: 0 | AA42: 0 | AB42: 0.15292424 | AC42: 0.15292424 | AD42: 0 | AE42: 0.5744888305 | AF42: 0.5744888305 | AG42: 0.07754367814 | AH42: 0.8765199781 | AI42: 1.812936245 | AJ42: 1.042056287 | AK42: 0.02809634204 | AL42: 0 | AM42: 0 | AN42: 0 | AO42: 0.3619999296 | AP42: 0.3619999296 | AQ42: 0.048757815 | AR42: 0.1152099398 | AS42: 0.3505880001 | AT42: 0.8409020969 | AU42: 1.346624738 | AV42: 1.304254407 | AW42: 1.429076605 | AX42: 3.458958872 | AY42: 4.147001914 | AZ42: 2.150142707 | BA42: 0 | BB42: 0.8847696943 | BC42: 0.5856773363 | BD42: 1.016327066 | BE42: 1.435443059 | BF42: 2.812476306 | BG42: 6.190267237 | BH42: 5.08815613 | BI42: 5.082172231 | BJ42: 3.839276357 | BK42: 0 | BL42: 0.4934307994 | BM42: 0.4934307994 | BN42: 0.04265244356 | BO42: 0.1770349201 | BP42: 0.1343824766 | BQ42: 0 | BR42: 0 | BS42: 0 | BT42: 0 | BU42: 0 | BV42: 0 | BW42: 0 | BX42: 0 | BY42: 0 | BZ42: 0 | CA42: 0 | CB42: 0 | CC42: 0 | CD42: 0 | CE42: 0 | CF42: 0 | CG42: 0 | CH42: 0 | CI42: 0 | CJ42: 0 | CK42: 0 | CL42: 0 | CM42: 0 | CN42: 0 | CO42: 0 | CP42: 0 | CQ42: 0 | CR42: 0 | CX42: 0 | DH42: 0
C43: > 22 kV & < = 33 kV | D43: 45 | E43: 7 | F43: 3.01 | G43: 0.08 | H43: 3 | I43: 1.391868232 | J43: 4.77534661 | K43: 3.877458322 | L43: 1.787814683 | M43: 7.8050184 | N43: 8.698764205 | O43: 5.885994794 | P43: 8.955090567 | Q43: 6.163668268 | R43: 1.817996727 | S43: 1.405324431 | T43: 0.7478864371 | U43: 0.5816968517 | V43: 0.3281300709 | W43: 0.02145597629 | X43: 0.2052412713 | Y43: 0.1924668395 | Z43: 0.7462605545 | AA43: 0.73757901 | AB43: 0 | AC43: 0.2218598015 | AD43: 0.7400783158 | AE43: 0.5617393984 | AF43: 0.9219594751 | AG43: 0.949180806 | AH43: 0.6538083523 | AI43: 0.5830661373 | AJ43: 0.05408371 | AK43: 0.08825060778 | AL43: 0.09899614609 | AM43: 0.1116823165 | AN43: 0.04685306816 | AO43: 0.267032675 | AP43: 0.2839593917 | AQ43: 0.190362713 | AR43: 0.1734359963 | AS43: 0 | AT43: 0.01311324691 | AU43: 0.01311324691 | AV43: 2.016943165 | AW43: 2.156308072 | AX43: 1.266364687 | AY43: 1.12699978 | AZ43: 0 | BA43: 0 | BB43: 2.486627069 | BC43: 2.486627069 | BD43: 4 | BE43: 4.710713744 | BF43: 0.01944146822 | BG43: 2.624408001 | BH43: 2.798476572 | BI43: 3.933594804 | BJ43: 4.48673433 | BK43: 0.75300094 | BL43: 1.552030516 | BM43: 2.091784376 | BN43: 0.5655467031 | BO43: 0.04099282656 | BP43: 0.2968798997 | BQ43: 0.2558870731 | BR43: 0.264767449 | BS43: 1.124574669 | BT43: 0.8598072201 | BU43: 0 | BV43: 0 | BW43: 0.61424287 | BX43: 0.61424287 | BY43: 0 | BZ43: 0 | CA43: 0 | CB43: 0 | CC43: 1.296265369 | CD43: 3.034849114 | CE43: 1.738583745 | CF43: 0 | CG43: 0 | CH43: 0 | CI43: 0 | CJ43: 0 | CK43: 0 | CL43: 0 | CM43: 0.4927794577 | CN43: 0.4927794577 | CO43: 0 | CP43: 0 | CQ43: 0 | CR43: 0 | CX43: 0 | DH43: 0
C44: > 33 kV & < = 66 kV | D44: 45 | E44: 7 | F44: 0 | G44: 6 | H44: 0 | I44: 0.1442326722 | J44: 0.8950029504 | K44: 3.313314705 | L44: 2.622387137 | M44: 0.5497152527 | N44: 0.4947732266 | O44: 0.03602121582 | P44: 0.03612088082 | Q44: 0.2550105554 | R44: 0.2527250923 | S44: 0.01617448524 | T44: 0.09287633361 | U44: 0.07942223299 | V44: 5.499002865 | W44: 0 | X44: 0 | Y44: 1.037351447 | Z44: 1.089242186 | AA44: 0.05189073856 | AB44: 0 | AC44: 0 | AD44: 2.205162737 | AE44: 3.545998556 | AF44: 1.398403728 | AG44: 0.09433268781 | AH44: 0.750228935 | AI44: 1.163191392 | AJ44: 0.449727235 | AK44: 0.06365495245 | AL44: 0.06550032055 | AM44: 0.001845368109 | AN44: 0.07288972 | AO44: 0.07288972 | AP44: 5.547944493 | AQ44: 6.078119157 | AR44: 0.6468806291 | AS44: 0.225960669 | AT44: 0.1167623312 | AU44: 0.4865939281 | AV44: 1.919731541 | AW44: 1.739222528 | AX44: 0.3080683465 | AY44: 0.140103723 | AZ44: 0.6413617355 | BA44: 0.227 | BB44: 0.7420820283 | BC44: 0.05295640597 | BD44: 0.0475693745 | BE44: 0.01434848241 | BF44: 0.08644862266 | BG44: 0.1412902541 | BH44: 0.05484163142 | BI44: 0.005999275262 | BJ44: 0.005999275262 | BK44: 0.00303956892 | BL44: 0.01565121721 | BM44: 0.01261164829 | BN44: 0.01327229525 | BO44: 0.01327229525 | BP44: 0 | BQ44: 0.3919038771 | BR44: 0.3919038771 | BS44: 0 | BT44: 0.001498686861 | BU44: 0.001498686861 | BV44: 0 | BW44: 0 | BX44: 0 | BY44: 0 | BZ44: 0 | CA44: 0 | CB44: 0 | CC44: 0 | CD44: 0 | CE44: 0.2880273352 | CF44: 0.2880273352 | CG44: 0 | CH44: 0 | CI44: 0 | CJ44: 0 | CK44: 0 | CL44: 0 | CM44: 0 | CN44: 0 | CO44: 0 | CP44: 0 | CQ44: 0 | CR44: 0 | CX44: 0 | DH44: 0
C45: > 66 kV & < = 132 kV | D45: 0 | E45: 0 | F45: 0 | G45: 0 | H45: 0 | I45: 0 | J45: 0 | K45: 0 | L45: 0 | M45: 0 | N45: 0 | O45: 0 | P45: 0 | Q45: 0 | R45: 0 | S45: 0 | T45: 0 | U45: 0 | V45: 0 | W45: 0 | X45: 0 | Y45: 0 | Z45: 0 | AA45: 0 | AB45: 0 | AC45: 0 | AD45: 0 | AE45: 0 | AF45: 0 | AG45: 0 | AH45: 0 | AI45: 0 | AJ45: 0 | AK45: 0 | AL45: 0 | AM45: 0 | AN45: 0 | AO45: 0 | AP45: 0 | AQ45: 0 | AR45: 0 | AS45: 0 | AT45: 0 | AU45: 0 | AV45: 0 | AW45: 0 | AX45: 0 | AY45: 0 | AZ45: 0 | BA45: 0 | BB45: 0 | BC45: 0 | BD45: 0 | BE45: 0 | BF45: 0 | BG45: 0 | BH45: 0 | BI45: 0 | BJ45: 0 | BK45: 0 | BL45: 0 | BM45: 0 | BN45: 0 | BO45: 0 | BP45: 0 | BQ45: 0 | BR45: 0 | BS45: 0 | BT45: 0 | BU45: 0 | BV45: 0 | BW45: 0 | BX45: 0 | BY45: 0 | BZ45: 0 | CA45: 0 | CB45: 0 | CC45: 0 | CD45: 0 | CE45: 0 | CF45: 0 | CG45: 0 | CH45: 0 | CI45: 0 | CJ45: 0 | CK45: 0 | CL45: 0 | CM45: 0 | CN45: 0 | CO45: 0 | CP45: 0 | CQ45: 0 | CR45: 0 | CX45: 0 | DH45: 0
C46: > 132 kV | D46: 0 | E46: 0 | F46: 0 | G46: 0 | H46: 0 | I46: 0 | J46: 0 | K46: 0 | L46: 0 | M46: 0 | N46: 0 | O46: 0 | P46: 0 | Q46: 0 | R46: 0 | S46: 0 | T46: 0 | U46: 0 | V46: 0 | W46: 0 | X46: 0 | Y46: 0 | Z46: 0 | AA46: 0 | AB46: 0 | AC46: 0 | AD46: 0 | AE46: 0 | AF46: 0 | AG46: 0 | AH46: 0 | AI46: 0 | AJ46: 0 | AK46: 0 | AL46: 0 | AM46: 0 | AN46: 0 | AO46: 0 | AP46: 0 | AQ46: 0 | AR46: 0 | AS46: 0 | AT46: 0 | AU46: 0 | AV46: 0 | AW46: 0 | AX46: 0 | AY46: 0 | AZ46: 0 | BA46: 0 | BB46: 0 | BC46: 0 | BD46: 0 | BE46: 0 | BF46: 0 | BG46: 0 | BH46: 0 | BI46: 0 | BJ46: 0 | BK46: 0 | BL46: 0 | BM46: 0 | BN46: 0 | BO46: 0 | BP46: 0 | BQ46: 0 | BR46: 0 | BS46: 0 | BT46: 0 | BU46: 0 | BV46: 0 | BW46: 0 | BX46: 0 | BY46: 0 | BZ46: 0 | CA46: 0 | CB46: 0 | CC46: 0 | CD46: 0 | CE46: 0 | CF46: 0 | CG46: 0 | CH46: 0 | CI46: 0 | CJ46: 0 | CK46: 0 | CL46: 0 | CM46: 0 | CN46: 0 | CO46: 0 | CP46: 0 | CQ46: 0 | CR46: 0 | CX46: 0 | DH46: 0
C47: Other
B48: SERVICE LINES BY: CONNECTION VOLTAGE; CUSTOMER TYPE; CONNECTION COMPLEXITY | C48: ˂ = 11 kV ; Residential ; Simple Type | D48: 57 | E48: 7.549834435 | F48: 18759 | G48: 13148 | H48: 13315 | I48: 5803 | J48: 6454 | K48: 7928 | L48: 8539 | M48: 8756 | N48: 8607 | O48: 8302 | P48: 8357 | Q48: 8631 | R48: 9607 | S48: 11477 | T48: 13145 | U48: 14986 | V48: 14238 | W48: 11711 | X48: 10625 | Y48: 10196 | Z48: 11618 | AA48: 14504 | AB48: 15997 | AC48: 16273 | AD48: 16491 | AE48: 15826 | AF48: 15392 | AG48: 15612 | AH48: 16043 | AI48: 16566 | AJ48: 16276 | AK48: 16247 | AL48: 15054 | AM48: 12707 | AN48: 11648 | AO48: 10039 | AP48: 7843 | AQ48: 6923 | AR48: 7564 | AS48: 11936 | AT48: 15690 | AU48: 15583 | AV48: 17652 | AW48: 14908 | AX48: 15049 | AY48: 10068 | AZ48: 8741 | BA48: 8708 | BB48: 9871 | BC48: 9873 | BD48: 9841 | BE48: 9840 | BF48: 6875 | BG48: 6878 | BH48: 17329.00498 | BI48: 14006.03846 | BJ48: 2690.180325 | BK48: 2685.713707 | BL48: 1338.70928 | BM48: 1338.70928 | BN48: 308.1966549 | BO48: 308.1966549 | BP48: 109.1131014 | BQ48: 109.1131014 | BR48: 91.24662869 | BS48: 91.884717 | BT48: 54.23750656 | BU48: 53.59941825 | BV48: 23.60926756 | BW48: 23.60926756 | BX48: 7.018971437 | BY48: 7.018971437 | BZ48: 2.55235325 | CA48: 2.55235325 | CB48: 10.84750131 | CC48: 10.84750131 | CD48: 0 | CE48: 0 | CF48: 0 | CG48: 0 | CN48: 0 | CX48: 0 | DH48: 0
C49: ˂ = 11 kV ; Commercial & Industrial ; Simple Type | D49: 0 | E49: 0 | F49: 0 | G49: 0 | H49: 0 | I49: 0 | J49: 0 | K49: 0 | L49: 0 | M49: 0 | N49: 0 | O49: 0 | P49: 0 | Q49: 0 | R49: 0 | S49: 0 | T49: 0 | U49: 0 | V49: 0 | W49: 0 | X49: 0 | Y49: 0 | Z49: 0 | AA49: 0 | AB49: 0 | AC49: 0 | AD49: 0 | AE49: 0 | AF49: 0 | AG49: 0 | AH49: 0 | AI49: 0 | AJ49: 0 | AK49: 0 | AL49: 0 | AM49: 0 | AN49: 0 | AO49: 0 | AP49: 0 | AQ49: 0 | AR49: 0 | AS49: 0 | AT49: 0 | AU49: 0 | AV49: 0 | AW49: 0 | AX49: 0 | AY49: 0 | AZ49: 0 | BA49: 0 | BB49: 0 | BC49: 0 | BD49: 0 | BE49: 0 | BF49: 0 | BG49: 0 | BH49: 0 | BI49: 0 | BJ49: 0 | BK49: 0 | BL49: 0 | BM49: 0 | BN49: 0 | BO49: 0 | BP49: 0 | BQ49: 0 | BR49: 0 | BS49: 0 | BT49: 0 | BU49: 0 | BV49: 0 | BW49: 0 | BX49: 0 | BY49: 0 | BZ49: 0 | CA49: 0 | CB49: 0 | CC49: 0 | CD49: 0 | CE49: 0 | CF49: 0 | CG49: 0 | CH49: 0 | CI49: 0 | CJ49: 0 | CK49: 0 | CL49: 0 | CM49: 0 | CN49: 0 | CO49: 0 | CP49: 0 | CQ49: 0 | CR49: 0 | CS49: 0 | CT49: 0 | CU49: 0 | CV49: 0 | CW49: 0 | CX49: 0 | CY49: 0 | CZ49: 0 | DA49: 0 | DB49: 0 | DC49: 0 | DD49: 0 | DE49: 0 | DF49: 0 | DG49: 0 | DH49: 0
C50: ˂ = 11 kV ; Residential ; Complex Type | D50: 0 | E50: 0 | F50: 0 | G50: 0 | H50: 0 | I50: 0 | J50: 0 | K50: 0 | L50: 0 | M50: 0 | N50: 0 | O50: 0 | P50: 0 | Q50: 0 | R50: 0 | S50: 0 | T50: 0 | U50: 0 | V50: 0 | W50: 0 | X50: 0 | Y50: 0 | Z50: 0 | AA50: 0 | AB50: 0 | AC50: 0 | AD50: 0 | AE50: 0 | AF50: 0 | AG50: 0 | AH50: 0 | AI50: 0 | AJ50: 0 | AK50: 0 | AL50: 0 | AM50: 0 | AN50: 0 | AO50: 0 | AP50: 0 | AQ50: 0 | AR50: 0 | AS50: 0 | AT50: 0 | AU50: 0 | AV50: 0 | AW50: 0 | AX50: 0 | AY50: 0 | AZ50: 0 | BA50: 0 | BB50: 0 | BC50: 0 | BD50: 0 | BE50: 0 | BF50: 0 | BG50: 0 | BH50: 0 | BI50: 0 | BJ50: 0 | BK50: 0 | BL50: 0 | BM50: 0 | BN50: 0 | BO50: 0 | BP50: 0 | BQ50: 0 | BR50: 0 | BS50: 0 | BT50: 0 | BU50: 0 | BV50: 0 | BW50: 0 | BX50: 0 | BY50: 0 | BZ50: 0 | CA50: 0 | CB50: 0 | CC50: 0 | CD50: 0 | CE50: 0 | CF50: 0 | CG50: 0 | CH50: 0 | CI50: 0 | CJ50: 0 | CK50: 0 | CL50: 0 | CM50: 0 | CN50: 0 | CO50: 0 | CP50: 0 | CQ50: 0 | CR50: 0 | CS50: 0 | CT50: 0 | CU50: 0 | CV50: 0 | CW50: 0 | CX50: 0 | CY50: 0 | CZ50: 0 | DA50: 0 | DB50: 0 | DC50: 0 | DD50: 0 | DE50: 0 | DF50: 0 | DG50: 0 | DH50: 0
C51: ˂ = 11 kV ; Commercial & Industrial ; Complex Type | D51: 56 | E51: 7.483314774 | F51: 2160 | G51: 1958 | H51: 1709 | I51: 901 | J51: 864 | K51: 844 | L51: 831 | M51: 868 | N51: 891 | O51: 909 | P51: 956 | Q51: 922 | R51: 1349 | S51: 1740 | T51: 2211 | U51: 2454 | V51: 2137 | W51: 2025 | X51: 1860 | Y51: 2012 | Z51: 2191 | AA51: 2126 | AB51: 1954 | AC51: 1909 | AD51: 1980 | AE51: 2048 | AF51: 2354 | AG51: 2413 | AH51: 2354 | AI51: 2505 | AJ51: 2251 | AK51: 1849 | AL51: 1836 | AM51: 1854 | AN51: 1736 | AO51: 1608 | AP51: 1305 | AQ51: 1070 | AR51: 1020 | AS51: 1111 | AT51: 1213 | AU51: 1197 | AV51: 1320 | AW51: 1181 | AX51: 1402 | AY51: 933 | AZ51: 943 | BA51: 937 | BB51: 1043 | BC51: 1045 | BD51: 1175 | BE51: 1173 | BF51: 781 | BG51: 782 | BH51: 971.5088724 | BI51: 641.010914 | BJ51: 178.0826005 | BK51: 176.3536432 | BL51: 89.04130026 | BM51: 89.04130026 | BN51: 32.85018845 | BO51: 32.85018845 | BP51: 12.96717965 | BQ51: 12.96717965 | BR51: 11.67046168 | BS51: 11.67046168 | BT51: 6.915829146 | BU51: 6.915829146 | BV51: 3.890153895 | BW51: 3.890153895 | BX51: 1.296717965 | BY51: 1.296717965 | BZ51: 0 | CA51: 0 | CB51: 3.890153895 | CC51: 3.890153895 | CD51: 0 | CE51: 0 | CF51: 0 | CG51: 0 | CN51: 0 | CX51: 0 | DH51: 0
C52: ˂ = 11 kV ; Subdivision ; Complex Type | D52: 0 | E52: 0 | F52: 0 | G52: 0 | H52: 0 | I52: 0 | J52: 0 | K52: 0 | L52: 0 | M52: 0 | N52: 0 | O52: 0 | P52: 0 | Q52: 0 | R52: 0 | S52: 0 | T52: 0 | U52: 0 | V52: 0 | W52: 0 | X52: 0 | Y52: 0 | Z52: 0 | AA52: 0 | AB52: 0 | AC52: 0 | AD52: 0 | AE52: 0 | AF52: 0 | AG52: 0 | AH52: 0 | AI52: 0 | AJ52: 0 | AK52: 0 | AL52: 0 | AM52: 0 | AN52: 0 | AO52: 0 | AP52: 0 | AQ52: 0 | AR52: 0 | AS52: 0 | AT52: 0 | AU52: 0 | AV52: 0 | AW52: 0 | AX52: 0 | AY52: 0 | AZ52: 0 | BA52: 0 | BB52: 0 | BC52: 0 | BD52: 0 | BE52: 0 | BF52: 0 | BG52: 0 | BH52: 0 | BI52: 0 | BJ52: 0 | BK52: 0 | BL52: 0 | BM52: 0 | BN52: 0 | BO52: 0 | BP52: 0 | BQ52: 0 | BR52: 0 | BS52: 0 | BT52: 0 | BU52: 0 | BV52: 0 | BW52: 0 | BX52: 0 | BY52: 0 | BZ52: 0 | CA52: 0 | CB52: 0 | CC52: 0 | CD52: 0 | CE52: 0 | CF52: 0 | CG52: 0 | CH52: 0 | CI52: 0 | CJ52: 0 | CK52: 0 | CL52: 0 | CM52: 0 | CN52: 0 | CO52: 0 | CP52: 0 | CQ52: 0 | CR52: 0 | CS52: 0 | CT52: 0 | CU52: 0 | CV52: 0 | CW52: 0 | CX52: 0 | CY52: 0 | CZ52: 0 | DA52: 0 | DB52: 0 | DC52: 0 | DD52: 0 | DE52: 0 | DF52: 0 | DG52: 0 | DH52: 0
C53: > 11 kV & < = 22 kV ; Commercial & Industrial | D53: 0 | E53: 0 | F53: 0 | G53: 0 | H53: 0 | I53: 0 | J53: 0 | K53: 0 | L53: 0 | M53: 0 | N53: 0 | O53: 0 | P53: 0 | Q53: 0 | R53: 0 | S53: 0 | T53: 0 | U53: 0 | V53: 0 | W53: 0 | X53: 0 | Y53: 0 | Z53: 0 | AA53: 0 | AB53: 0 | AC53: 0 | AD53: 0 | AE53: 0 | AF53: 0 | AG53: 0 | AH53: 0 | AI53: 0 | AJ53: 0 | AK53: 0 | AL53: 0 | AM53: 0 | AN53: 0 | AO53: 0 | AP53: 0 | AQ53: 0 | AR53: 0 | AS53: 0 | AT53: 0 | AU53: 0 | AV53: 0 | AW53: 0 | AX53: 0 | AY53: 0 | AZ53: 0 | BA53: 0 | BB53: 0 | BC53: 0 | BD53: 0 | BE53: 0 | BF53: 0 | BG53: 0 | BH53: 0 | BI53: 0 | BJ53: 0 | BK53: 0 | BL53: 0 | BM53: 0 | BN53: 0 | BO53: 0 | BP53: 0 | BQ53: 0 | BR53: 0 | BS53: 0 | BT53: 0 | BU53: 0 | BV53: 0 | BW53: 0 | BX53: 0 | BY53: 0 | BZ53: 0 | CA53: 0 | CB53: 0 | CC53: 0 | CD53: 0 | CE53: 0 | CF53: 0 | CG53: 0 | CH53: 0 | CI53: 0 | CJ53: 0 | CK53: 0 | CL53: 0 | CM53: 0 | CN53: 0 | CO53: 0 | CP53: 0 | CQ53: 0 | CR53: 0 | CS53: 0 | CT53: 0 | CU53: 0 | CV53: 0 | CW53: 0 | CX53: 0 | CY53: 0 | CZ53: 0 | DA53: 0 | DB53: 0 | DC53: 0 | DD53: 0 | DE53: 0 | DF53: 0 | DG53: 0 | DH53: 0
C54: > 11 kV & < = 22 kV ; Subdivision | D54: 0 | E54: 0 | F54: 0 | G54: 0 | H54: 0 | I54: 0 | J54: 0 | K54: 0 | L54: 0 | M54: 0 | N54: 0 | O54: 0 | P54: 0 | Q54: 0 | R54: 0 | S54: 0 | T54: 0 | U54: 0 | V54: 0 | W54: 0 | X54: 0 | Y54: 0 | Z54: 0 | AA54: 0 | AB54: 0 | AC54: 0 | AD54: 0 | AE54: 0 | AF54: 0 | AG54: 0 | AH54: 0 | AI54: 0 | AJ54: 0 | AK54: 0 | AL54: 0 | AM54: 0 | AN54: 0 | AO54: 0 | AP54: 0 | AQ54: 0 | AR54: 0 | AS54: 0 | AT54: 0 | AU54: 0 | AV54: 0 | AW54: 0 | AX54: 0 | AY54: 0 | AZ54: 0 | BA54: 0 | BB54: 0 | BC54: 0 | BD54: 0 | BE54: 0 | BF54: 0 | BG54: 0 | BH54: 0 | BI54: 0 | BJ54: 0 | BK54: 0 | BL54: 0 | BM54: 0 | BN54: 0 | BO54: 0 | BP54: 0 | BQ54: 0 | BR54: 0 | BS54: 0 | BT54: 0 | BU54: 0 | BV54: 0 | BW54: 0 | BX54: 0 | BY54: 0 | BZ54: 0 | CA54: 0 | CB54: 0 | CC54: 0 | CD54: 0 | CE54: 0 | CF54: 0 | CG54: 0 | CH54: 0 | CI54: 0 | CJ54: 0 | CK54: 0 | CL54: 0 | CM54: 0 | CN54: 0 | CO54: 0 | CP54: 0 | CQ54: 0 | CR54: 0 | CS54: 0 | CT54: 0 | CU54: 0 | CV54: 0 | CW54: 0 | CX54: 0 | CY54: 0 | CZ54: 0 | DA54: 0 | DB54: 0 | DC54: 0 | DD54: 0 | DE54: 0 | DF54: 0 | DG54: 0 | DH54: 0
C55: > 22 kV & < = 33 kV ; Commercial & Industrial | D55: 0 | E55: 0 | F55: 0 | G55: 0 | H55: 0 | I55: 0 | J55: 0 | K55: 0 | L55: 0 | M55: 0 | N55: 0 | O55: 0 | P55: 0 | Q55: 0 | R55: 0 | S55: 0 | T55: 0 | U55: 0 | V55: 0 | W55: 0 | X55: 0 | Y55: 0 | Z55: 0 | AA55: 0 | AB55: 0 | AC55: 0 | AD55: 0 | AE55: 0 | AF55: 0 | AG55: 0 | AH55: 0 | AI55: 0 | AJ55: 0 | AK55: 0 | AL55: 0 | AM55: 0 | AN55: 0 | AO55: 0 | AP55: 0 | AQ55: 0 | AR55: 0 | AS55: 0 | AT55: 0 | AU55: 0 | AV55: 0 | AW55: 0 | AX55: 0 | AY55: 0 | AZ55: 0 | BA55: 0 | BB55: 0 | BC55: 0 | BD55: 0 | BE55: 0 | BF55: 0 | BG55: 0 | BH55: 0 | BI55: 0 | BJ55: 0 | BK55: 0 | BL55: 0 | BM55: 0 | BN55: 0 | BO55: 0 | BP55: 0 | BQ55: 0 | BR55: 0 | BS55: 0 | BT55: 0 | BU55: 0 | BV55: 0 | BW55: 0 | BX55: 0 | BY55: 0 | BZ55: 0 | CA55: 0 | CB55: 0 | CC55: 0 | CD55: 0 | CE55: 0 | CF55: 0 | CG55: 0 | CH55: 0 | CI55: 0 | CJ55: 0 | CK55: 0 | CL55: 0 | CM55: 0 | CN55: 0 | CO55: 0 | CP55: 0 | CQ55: 0 | CR55: 0 | CS55: 0 | CT55: 0 | CU55: 0 | CV55: 0 | CW55: 0 | CX55: 0 | CY55: 0 | CZ55: 0 | DA55: 0 | DB55: 0 | DC55: 0 | DD55: 0 | DE55: 0 | DF55: 0 | DG55: 0 | DH55: 0
C56: > 22 kV & < = 33 kV ; Subdivision | D56: 0 | E56: 0 | F56: 0 | G56: 0 | H56: 0 | I56: 0 | J56: 0 | K56: 0 | L56: 0 | M56: 0 | N56: 0 | O56: 0 | P56: 0 | Q56: 0 | R56: 0 | S56: 0 | T56: 0 | U56: 0 | V56: 0 | W56: 0 | X56: 0 | Y56: 0 | Z56: 0 | AA56: 0 | AB56: 0 | AC56: 0 | AD56: 0 | AE56: 0 | AF56: 0 | AG56: 0 | AH56: 0 | AI56: 0 | AJ56: 0 | AK56: 0 | AL56: 0 | AM56: 0 | AN56: 0 | AO56: 0 | AP56: 0 | AQ56: 0 | AR56: 0 | AS56: 0 | AT56: 0 | AU56: 0 | AV56: 0 | AW56: 0 | AX56: 0 | AY56: 0 | AZ56: 0 | BA56: 0 | BB56: 0 | BC56: 0 | BD56: 0 | BE56: 0 | BF56: 0 | BG56: 0 | BH56: 0 | BI56: 0 | BJ56: 0 | BK56: 0 | BL56: 0 | BM56: 0 | BN56: 0 | BO56: 0 | BP56: 0 | BQ56: 0 | BR56: 0 | BS56: 0 | BT56: 0 | BU56: 0 | BV56: 0 | BW56: 0 | BX56: 0 | BY56: 0 | BZ56: 0 | CA56: 0 | CB56: 0 | CC56: 0 | CD56: 0 | CE56: 0 | CF56: 0 | CG56: 0 | CH56: 0 | CI56: 0 | CJ56: 0 | CK56: 0 | CL56: 0 | CM56: 0 | CN56: 0 | CO56: 0 | CP56: 0 | CQ56: 0 | CR56: 0 | CS56: 0 | CT56: 0 | CU56: 0 | CV56: 0 | CW56: 0 | CX56: 0 | CY56: 0 | CZ56: 0 | DA56: 0 | DB56: 0 | DC56: 0 | DD56: 0 | DE56: 0 | DF56: 0 | DG56: 0 | DH56: 0
C57: > 33 kV & < = 66 kV ; Commercial & Industrial | D57: 0 | E57: 0 | F57: 0 | G57: 0 | H57: 0 | I57: 0 | J57: 0 | K57: 0 | L57: 0 | M57: 0 | N57: 0 | O57: 0 | P57: 0 | Q57: 0 | R57: 0 | S57: 0 | T57: 0 | U57: 0 | V57: 0 | W57: 0 | X57: 0 | Y57: 0 | Z57: 0 | AA57: 0 | AB57: 0 | AC57: 0 | AD57: 0 | AE57: 0 | AF57: 0 | AG57: 0 | AH57: 0 | AI57: 0 | AJ57: 0 | AK57: 0 | AL57: 0 | AM57: 0 | AN57: 0 | AO57: 0 | AP57: 0 | AQ57: 0 | AR57: 0 | AS57: 0 | AT57: 0 | AU57: 0 | AV57: 0 | AW57: 0 | AX57: 0 | AY57: 0 | AZ57: 0 | BA57: 0 | BB57: 0 | BC57: 0 | BD57: 0 | BE57: 0 | BF57: 0 | BG57: 0 | BH57: 0 | BI57: 0 | BJ57: 0 | BK57: 0 | BL57: 0 | BM57: 0 | BN57: 0 | BO57: 0 | BP57: 0 | BQ57: 0 | BR57: 0 | BS57: 0 | BT57: 0 | BU57: 0 | BV57: 0 | BW57: 0 | BX57: 0 | BY57: 0 | BZ57: 0 | CA57: 0 | CB57: 0 | CC57: 0 | CD57: 0 | CE57: 0 | CF57: 0 | CG57: 0 | CH57: 0 | CI57: 0 | CJ57: 0 | CK57: 0 | CL57: 0 | CM57: 0 | CN57: 0 | CO57: 0 | CP57: 0 | CQ57: 0 | CR57: 0 | CS57: 0 | CT57: 0 | CU57: 0 | CV57: 0 | CW57: 0 | CX57: 0 | CY57: 0 | CZ57: 0 | DA57: 0 | DB57: 0 | DC57: 0 | DD57: 0 | DE57: 0 | DF57: 0 | DG57: 0 | DH57: 0
C58: > 33 kV & < = 66 kV ; Subdivision | D58: 0 | E58: 0 | F58: 0 | G58: 0 | H58: 0 | I58: 0 | J58: 0 | K58: 0 | L58: 0 | M58: 0 | N58: 0 | O58: 0 | P58: 0 | Q58: 0 | R58: 0 | S58: 0 | T58: 0 | U58: 0 | V58: 0 | W58: 0 | X58: 0 | Y58: 0 | Z58: 0 | AA58: 0 | AB58: 0 | AC58: 0 | AD58: 0 | AE58: 0 | AF58: 0 | AG58: 0 | AH58: 0 | AI58: 0 | AJ58: 0 | AK58: 0 | AL58: 0 | AM58: 0 | AN58: 0 | AO58: 0 | AP58: 0 | AQ58: 0 | AR58: 0 | AS58: 0 | AT58: 0 | AU58: 0 | AV58: 0 | AW58: 0 | AX58: 0 | AY58: 0 | AZ58: 0 | BA58: 0 | BB58: 0 | BC58: 0 | BD58: 0 | BE58: 0 | BF58: 0 | BG58: 0 | BH58: 0 | BI58: 0 | BJ58: 0 | BK58: 0 | BL58: 0 | BM58: 0 | BN58: 0 | BO58: 0 | BP58: 0 | BQ58: 0 | BR58: 0 | BS58: 0 | BT58: 0 | BU58: 0 | BV58: 0 | BW58: 0 | BX58: 0 | BY58: 0 | BZ58: 0 | CA58: 0 | CB58: 0 | CC58: 0 | CD58: 0 | CE58: 0 | CF58: 0 | CG58: 0 | CH58: 0 | CI58: 0 | CJ58: 0 | CK58: 0 | CL58: 0 | CM58: 0 | CN58: 0 | CO58: 0 | CP58: 0 | CQ58: 0 | CR58: 0 | CS58: 0 | CT58: 0 | CU58: 0 | CV58: 0 | CW58: 0 | CX58: 0 | CY58: 0 | CZ58: 0 | DA58: 0 | DB58: 0 | DC58: 0 | DD58: 0 | DE58: 0 | DF58: 0 | DG58: 0 | DH58: 0
C59: > 66 kV & < = 132 kV ; Commercial & Industrial | D59: 0 | E59: 0 | F59: 0 | G59: 0 | H59: 0 | I59: 0 | J59: 0 | K59: 0 | L59: 0 | M59: 0 | N59: 0 | O59: 0 | P59: 0 | Q59: 0 | R59: 0 | S59: 0 | T59: 0 | U59: 0 | V59: 0 | W59: 0 | X59: 0 | Y59: 0 | Z59: 0 | AA59: 0 | AB59: 0 | AC59: 0 | AD59: 0 | AE59: 0 | AF59: 0 | AG59: 0 | AH59: 0 | AI59: 0 | AJ59: 0 | AK59: 0 | AL59: 0 | AM59: 0 | AN59: 0 | AO59: 0 | AP59: 0 | AQ59: 0 | AR59: 0 | AS59: 0 | AT59: 0 | AU59: 0 | AV59: 0 | AW59: 0 | AX59: 0 | AY59: 0 | AZ59: 0 | BA59: 0 | BB59: 0 | BC59: 0 | BD59: 0 | BE59: 0 | BF59: 0 | BG59: 0 | BH59: 0 | BI59: 0 | BJ59: 0 | BK59: 0 | BL59: 0 | BM59: 0 | BN59: 0 | BO59: 0 | BP59: 0 | BQ59: 0 | BR59: 0 | BS59: 0 | BT59: 0 | BU59: 0 | BV59: 0 | BW59: 0 | BX59: 0 | BY59: 0 | BZ59: 0 | CA59: 0 | CB59: 0 | CC59: 0 | CD59: 0 | CE59: 0 | CF59: 0 | CG59: 0 | CH59: 0 | CI59: 0 | CJ59: 0 | CK59: 0 | CL59: 0 | CM59: 0 | CN59: 0 | CO59: 0 | CP59: 0 | CQ59: 0 | CR59: 0 | CS59: 0 | CT59: 0 | CU59: 0 | CV59: 0 | CW59: 0 | CX59: 0 | CY59: 0 | CZ59: 0 | DA59: 0 | DB59: 0 | DC59: 0 | DD59: 0 | DE59: 0 | DF59: 0 | DG59: 0 | DH59: 0
C60: > 66 kV & < = 132 kV ; Subdivision | D60: 0 | E60: 0 | F60: 0 | G60: 0 | H60: 0 | I60: 0 | J60: 0 | K60: 0 | L60: 0 | M60: 0 | N60: 0 | O60: 0 | P60: 0 | Q60: 0 | R60: 0 | S60: 0 | T60: 0 | U60: 0 | V60: 0 | W60: 0 | X60: 0 | Y60: 0 | Z60: 0 | AA60: 0 | AB60: 0 | AC60: 0 | AD60: 0 | AE60: 0 | AF60: 0 | AG60: 0 | AH60: 0 | AI60: 0 | AJ60: 0 | AK60: 0 | AL60: 0 | AM60: 0 | AN60: 0 | AO60: 0 | AP60: 0 | AQ60: 0 | AR60: 0 | AS60: 0 | AT60: 0 | AU60: 0 | AV60: 0 | AW60: 0 | AX60: 0 | AY60: 0 | AZ60: 0 | BA60: 0 | BB60: 0 | BC60: 0 | BD60: 0 | BE60: 0 | BF60: 0 | BG60: 0 | BH60: 0 | BI60: 0 | BJ60: 0 | BK60: 0 | BL60: 0 | BM60: 0 | BN60: 0 | BO60: 0 | BP60: 0 | BQ60: 0 | BR60: 0 | BS60: 0 | BT60: 0 | BU60: 0 | BV60: 0 | BW60: 0 | BX60: 0 | BY60: 0 | BZ60: 0 | CA60: 0 | CB60: 0 | CC60: 0 | CD60: 0 | CE60: 0 | CF60: 0 | CG60: 0 | CH60: 0 | CI60: 0 | CJ60: 0 | CK60: 0 | CL60: 0 | CM60: 0 | CN60: 0 | CO60: 0 | CP60: 0 | CQ60: 0 | CR60: 0 | CS60: 0 | CT60: 0 | CU60: 0 | CV60: 0 | CW60: 0 | CX60: 0 | CY60: 0 | CZ60: 0 | DA60: 0 | DB60: 0 | DC60: 0 | DD60: 0 | DE60: 0 | DF60: 0 | DG60: 0 | DH60: 0
C61: > 132 kV ; Commercial & Industrial | D61: 0 | E61: 0 | F61: 0 | G61: 0 | H61: 0 | I61: 0 | J61: 0 | K61: 0 | L61: 0 | M61: 0 | N61: 0 | O61: 0 | P61: 0 | Q61: 0 | R61: 0 | S61: 0 | T61: 0 | U61: 0 | V61: 0 | W61: 0 | X61: 0 | Y61: 0 | Z61: 0 | AA61: 0 | AB61: 0 | AC61: 0 | AD61: 0 | AE61: 0 | AF61: 0 | AG61: 0 | AH61: 0 | AI61: 0 | AJ61: 0 | AK61: 0 | AL61: 0 | AM61: 0 | AN61: 0 | AO61: 0 | AP61: 0 | AQ61: 0 | AR61: 0 | AS61: 0 | AT61: 0 | AU61: 0 | AV61: 0 | AW61: 0 | AX61: 0 | AY61: 0 | AZ61: 0 | BA61: 0 | BB61: 0 | BC61: 0 | BD61: 0 | BE61: 0 | BF61: 0 | BG61: 0 | BH61: 0 | BI61: 0 | BJ61: 0 | BK61: 0 | BL61: 0 | BM61: 0 | BN61: 0 | BO61: 0 | BP61: 0 | BQ61: 0 | BR61: 0 | BS61: 0 | BT61: 0 | BU61: 0 | BV61: 0 | BW61: 0 | BX61: 0 | BY61: 0 | BZ61: 0 | CA61: 0 | CB61: 0 | CC61: 0 | CD61: 0 | CE61: 0 | CF61: 0 | CG61: 0 | CH61: 0 | CI61: 0 | CJ61: 0 | CK61: 0 | CL61: 0 | CM61: 0 | CN61: 0 | CO61: 0 | CP61: 0 | CQ61: 0 | CR61: 0 | CS61: 0 | CT61: 0 | CU61: 0 | CV61: 0 | CW61: 0 | CX61: 0 | CY61: 0 | CZ61: 0 | DA61: 0 | DB61: 0 | DC61: 0 | DD61: 0 | DE61: 0 | DF61: 0 | DG61: 0 | DH61: 0
C62: > 132 kV ; Subdivision | D62: 0 | E62: 0 | F62: 0 | G62: 0 | H62: 0 | I62: 0 | J62: 0 | K62: 0 | L62: 0 | M62: 0 | N62: 0 | O62: 0 | P62: 0 | Q62: 0 | R62: 0 | S62: 0 | T62: 0 | U62: 0 | V62: 0 | W62: 0 | X62: 0 | Y62: 0 | Z62: 0 | AA62: 0 | AB62: 0 | AC62: 0 | AD62: 0 | AE62: 0 | AF62: 0 | AG62: 0 | AH62: 0 | AI62: 0 | AJ62: 0 | AK62: 0 | AL62: 0 | AM62: 0 | AN62: 0 | AO62: 0 | AP62: 0 | AQ62: 0 | AR62: 0 | AS62: 0 | AT62: 0 | AU62: 0 | AV62: 0 | AW62: 0 | AX62: 0 | AY62: 0 | AZ62: 0 | BA62: 0 | BB62: 0 | BC62: 0 | BD62: 0 | BE62: 0 | BF62: 0 | BG62: 0 | BH62: 0 | BI62: 0 | BJ62: 0 | BK62: 0 | BL62: 0 | BM62: 0 | BN62: 0 | BO62: 0 | BP62: 0 | BQ62: 0 | BR62: 0 | BS62: 0 | BT62: 0 | BU62: 0 | BV62: 0 | BW62: 0 | BX62: 0 | BY62: 0 | BZ62: 0 | CA62: 0 | CB62: 0 | CC62: 0 | CD62: 0 | CE62: 0 | CF62: 0 | CG62: 0 | CH62: 0 | CI62: 0 | CJ62: 0 | CK62: 0 | CL62: 0 | CM62: 0 | CN62: 0 | CO62: 0 | CP62: 0 | CQ62: 0 | CR62: 0 | CS62: 0 | CT62: 0 | CU62: 0 | CV62: 0 | CW62: 0 | CX62: 0 | CY62: 0 | CZ62: 0 | DA62: 0 | DB62: 0 | DC62: 0 | DD62: 0 | DE62: 0 | DF62: 0 | DG62: 0 | DH62: 0
C63: Other
B64: TRANSFORMERS BY: MOUNTING TYPE; HIGHEST OPERATING VOLTAGE ; AMPERE RATING; NUMBER OF PHASES (AT LV) | C64: Pole Mounted ; < = 22kV ; < = 60 kVA ; Single Phase | D64: 55 | E64: 7.416198487 | F64: 464 | G64: 537 | H64: 299 | I64: 210 | J64: 311 | K64: 347 | L64: 364 | M64: 383 | N64: 405 | O64: 439 | P64: 455 | Q64: 438 | R64: 419 | S64: 464 | T64: 506 | U64: 597 | V64: 661 | W64: 582 | X64: 553 | Y64: 593 | Z64: 732 | AA64: 1019 | AB64: 1023 | AC64: 828 | AD64: 958 | AE64: 1234 | AF64: 1157 | AG64: 920 | AH64: 932 | AI64: 964 | AJ64: 1042 | AK64: 1054 | AL64: 1038 | AM64: 1099 | AN64: 1102 | AO64: 994 | AP64: 877 | AQ64: 784 | AR64: 689 | AS64: 695 | AT64: 933 | AU64: 868 | AV64: 608 | AW64: 577 | AX64: 651 | AY64: 960 | AZ64: 930 | BA64: 592 | BB64: 512 | BC64: 653 | BD64: 840 | BE64: 707 | BF64: 494 | BG64: 516 | BH64: 482 | BI64: 579 | BJ64: 527 | BK64: 512 | BL64: 409 | BM64: 145 | BN64: 319 | BO64: 202 | BP64: 17 | BQ64: 9 | BR64: 3 | BS64: 4 | BT64: 2 | BU64: 1 | BV64: 1 | BW64: 0 | BX64: 0 | BY64: 0 | BZ64: 0 | CA64: 0 | CB64: 0 | CC64: 0 | CD64: 1 | CE64: 1 | CF64: 1 | CG64: 0 | CH64: 0
C65: Pole Mounted ; < = 22kV ; > 60 kVA and < = 600 kVA ; Single Phase | D65: 55 | E65: 7.416198487 | F65: 10 | G65: 9 | H65: 18 | I65: 62 | J65: 114 | K65: 122 | L65: 172 | M65: 343 | N65: 449 | O65: 465 | P65: 478 | Q65: 477 | R65: 442 | S65: 335 | T65: 460 | U65: 467 | V65: 245 | W65: 206 | X65: 175 | Y65: 137 | Z65: 141 | AA65: 184 | AB65: 198 | AC65: 173 | AD65: 175 | AE65: 231 | AF65: 258 | AG65: 228 | AH65: 225 | AI65: 215 | AJ65: 230 | AK65: 249 | AL65: 245 | AM65: 294 | AN65: 276 | AO65: 216 | AP65: 191 | AQ65: 284 | AR65: 286 | AS65: 147 | AT65: 149 | AU65: 166 | AV65: 144 | AW65: 130 | AX65: 161 | AY65: 153 | AZ65: 122 | BA65: 116 | BB65: 141 | BC65: 153 | BD65: 181 | BE65: 156 | BF65: 78 | BG65: 64 | BH65: 50 | BI65: 142 | BJ65: 131 | BK65: 36 | BL65: 56 | BM65: 101 | BN65: 293 | BO65: 219 | BP65: 9 | BQ65: 14 | BR65: 7 | BS65: 14 | BT65: 14 | BU65: 0 | BV65: 0 | BW65: 0 | BX65: 0 | BY65: 0 | BZ65: 0 | CA65: 0 | CB65: 0 | CC65: 0 | CD65: 0 | CE65: 0 | CF65: 0 | CG65: 0 | CH65: 0
C66: Pole Mounted ; < = 22kV ; > 600 kVA ; Single Phase | D66: 55 | E66: 7.416198487 | F66: 0 | G66: 0 | H66: 0 | I66: 0 | J66: 0 | K66: 0 | L66: 0 | M66: 1 | N66: 1 | O66: 1 | P66: 1 | Q66: 1 | R66: 1 | S66: 1 | T66: 1 | U66: 1 | V66: 1 | W66: 1 | X66: 1 | Y66: 0 | Z66: 0 | AA66: 0 | AB66: 1 | AC66: 1 | AD66: 0 | AE66: 0 | AF66: 1 | AG66: 2 | AH66: 2 | AI66: 1 | AJ66: 0 | AK66: 0 | AL66: 0 | AM66: 2 | AN66: 3 | AO66: 2 | AP66: 1 | AQ66: 4 | AR66: 8 | AS66: 5 | AT66: 2 | AU66: 4 | AV66: 2 | AW66: 0 | AX66: 4 | AY66: 29 | AZ66: 26 | BA66: 1 | BB66: 2 | BC66: 6 | BD66: 8 | BE66: 6 | BF66: 4 | BG66: 13 | BH66: 11 | BI66: 6 | BJ66: 6 | BK66: 6 | BL66: 8 | BM66: 7 | BN66: 13 | BO66: 8 | BP66: 1 | BQ66: 1 | BR66: 0 | BS66: 1 | BT66: 1 | BU66: 0 | BV66: 0 | BW66: 0 | BX66: 0 | BY66: 0 | BZ66: 0 | CA66: 0 | CB66: 0 | CC66: 0 | CD66: 0 | CE66: 0 | CF66: 0 | CG66: 0 | CH66: 0
C67: Pole Mounted ; < = 22kV ; < = 60 kVA ; Multiple Phase | D67: 55 | E67: 7.416198487 | F67: 138 | G67: 175 | H67: 60 | I67: 23 | J67: 29 | K67: 26 | L67: 23 | M67: 12 | N67: 2 | O67: 2 | P67: 3 | Q67: 0 | R67: 2 | S67: 0 | T67: 1 | U67: 3 | V67: 3 | W67: 8 | X67: 37 | Y67: 37 | Z67: 47 | AA67: 69 | AB67: 64 | AC67: 64 | AD67: 71 | AE67: 81 | AF67: 100 | AG67: 85 | AH67: 64 | AI67: 66 | AJ67: 70 | AK67: 74 | AL67: 63 | AM67: 80 | AN67: 89 | AO67: 76 | AP67: 71 | AQ67: 58 | AR67: 56 | AS67: 57 | AT67: 56 | AU67: 51 | AV67: 54 | AW67: 51 | AX67: 42 | AY67: 44 | AZ67: 34 | BA67: 36 | BB67: 35 | BC67: 35 | BD67: 40 | BE67: 31 | BF67: 23 | BG67: 27 | BH67: 20 | BI67: 20 | BJ67: 15 | BK67: 10 | BL67: 10 | BM67: 28 | BN67: 56 | BO67: 32 | BP67: 2 | BQ67: 0 | BR67: 0 | BS67: 0 | BT67: 0 | BU67: 0 | BV67: 0 | BW67: 0 | BX67: 0 | BY67: 0 | BZ67: 0 | CA67: 0 | CB67: 0 | CC67: 0 | CD67: 0 | CE67: 0 | CF67: 0 | CG67: 0 | CH67: 0
C68: Pole Mounted ; < = 22kV ; > 60 kVA and < = 600 kVA ; Multiple Phase | D68: 55 | E68: 7.416198487 | F68: 345 | G68: 366 | H68: 220 | I68: 190 | J68: 270 | K68: 333 | L68: 277 | M68: 101 | N68: 13 | O68: 20 | P68: 18 | Q68: 5 | R68: 7 | S68: 8 | T68: 6 | U68: 3 | V68: 1 | W68: 11 | X68: 35 | Y68: 37 | Z68: 47 | AA68: 60 | AB68: 43 | AC68: 54 | AD68: 55 | AE68: 65 | AF68: 64 | AG68: 68 | AH68: 81 | AI68: 76 | AJ68: 66 | AK68: 72 | AL68: 64 | AM68: 66 | AN68: 62 | AO68: 56 | AP68: 51 | AQ68: 71 | AR68: 76 | AS68: 55 | AT68: 51 | AU68: 47 | AV68: 32 | AW68: 32 | AX68: 33 | AY68: 27 | AZ68: 31 | BA68: 19 | BB68: 21 | BC68: 20 | BD68: 38 | BE68: 40 | BF68: 21 | BG68: 7 | BH68: 7 | BI68: 36 | BJ68: 28 | BK68: 6 | BL68: 8 | BM68: 32 | BN68: 77 | BO68: 46 | BP68: 1 | BQ68: 2 | BR68: 1 | BS68: 3 | BT68: 0 | BU68: 0 | BV68: 0 | BW68: 0 | BX68: 0 | BY68: 0 | BZ68: 0 | CA68: 0 | CB68: 0 | CC68: 0 | CD68: 0 | CE68: 0 | CF68: 0 | CG68: 0 | CH68: 0
C69: Pole Mounted ; < = 22kV ; > 600 kVA ; Multiple Phase | D69: 55 | E69: 7.416198487 | F69: 0 | G69: 0 | H69: 0 | I69: 0 | J69: 0 | K69: 1 | L69: 1 | M69: 0 | N69: 0 | O69: 0 | P69: 0 | Q69: 0 | R69: 0 | S69: 1 | T69: 1 | U69: 1 | V69: 0 | W69: 0 | X69: 0 | Y69: 0 | Z69: 0 | AA69: 0 | AB69: 0 | AC69: 0 | AD69: 0 | AE69: 0 | AF69: 0 | AG69: 0 | AH69: 0 | AI69: 0 | AJ69: 0 | AK69: 0 | AL69: 0 | AM69: 0 | AN69: 1 | AO69: 1 | AP69: 0 | AQ69: 0 | AR69: 0 | AS69: 1 | AT69: 1 | AU69: 1 | AV69: 0 | AW69: 0 | AX69: 0 | AY69: 1 | AZ69: 4 | BA69: 0 | BB69: 0 | BC69: 0 | BD69: 0 | BE69: 0 | BF69: 1 | BG69: 2 | BH69: 1 | BI69: 1 | BJ69: 1 | BK69: 0 | BL69: 0 | BM69: 1 | BN69: 2 | BO69: 1 | BP69: 0 | BQ69: 0 | BR69: 0 | BS69: 0 | BT69: 0 | BU69: 0 | BV69: 0 | BW69: 0 | BX69: 0 | BY69: 0 | BZ69: 0 | CA69: 0 | CB69: 0 | CC69: 0 | CD69: 0 | CE69: 0 | CF69: 0 | CG69: 0 | CH69: 0
C70: Kiosk Mounted ; < = 22kV ; < = 60 kVA ; Single Phase | D70: 50 | E70: 7.071067812 | F70: 1 | G70: 4 | H70: 0 | I70: 1 | J70: 2 | K70: 2 | L70: 1 | M70: 4 | N70: 8 | O70: 9 | P70: 10 | Q70: 7 | R70: 6 | S70: 8 | T70: 5 | U70: 3 | V70: 7 | W70: 8 | X70: 8 | Y70: 9 | Z70: 9 | AA70: 10 | AB70: 12 | AC70: 14 | AD70: 16 | AE70: 17 | AF70: 14 | AG70: 19 | AH70: 31 | AI70: 25 | AJ70: 8 | AK70: 4 | AL70: 2 | AM70: 1 | AN70: 1 | AO70: 1 | AP70: 1 | AQ70: 1 | AR70: 1 | AS70: 0 | AT70: 0 | AU70: 0 | AV70: 1 | AW70: 1 | AX70: 0 | AY70: 2 | AZ70: 2 | BA70: 0 | BB70: 0 | BC70: 0 | BD70: 1 | BE70: 1 | BF70: 2 | BG70: 2 | BH70: 1 | BI70: 2 | BJ70: 2 | BK70: 0 | BL70: 0 | BM70: 2 | BN70: 3 | BO70: 2 | BP70: 1 | BQ70: 0 | BR70: 0 | BS70: 0 | BT70: 0 | BU70: 0 | BV70: 0 | BW70: 0 | BX70: 0 | BY70: 0 | BZ70: 0 | CA70: 0 | CB70: 0 | CC70: 0 | CD70: 0 | CE70: 0 | CF70: 0 | CG70: 0 | CH70: 0
C71: Kiosk Mounted ; < = 22kV ; > 60 kVA and < = 600 kVA ; Single Phase | D71: 50 | E71: 7.071067812 | F71: 0 | G71: 0 | H71: 0 | I71: 13 | J71: 27 | K71: 41 | L71: 134 | M71: 263 | N71: 241 | O71: 210 | P71: 253 | Q71: 263 | R71: 238 | S71: 218 | T71: 172 | U71: 153 | V71: 167 | W71: 171 | X71: 143 | Y71: 115 | Z71: 163 | AA71: 229 | AB71: 233 | AC71: 199 | AD71: 243 | AE71: 321 | AF71: 347 | AG71: 305 | AH71: 277 | AI71: 341 | AJ71: 374 | AK71: 304 | AL71: 190 | AM71: 162 | AN71: 158 | AO71: 132 | AP71: 134 | AQ71: 201 | AR71: 268 | AS71: 230 | AT71: 188 | AU71: 149 | AV71: 86 | AW71: 48 | AX71: 43 | AY71: 38 | AZ71: 21 | BA71: 6 | BB71: 17 | BC71: 30 | BD71: 79 | BE71: 80 | BF71: 32 | BG71: 31 | BH71: 22 | BI71: 69 | BJ71: 63 | BK71: 9 | BL71: 16 | BM71: 50 | BN71: 104 | BO71: 63 | BP71: 4 | BQ71: 6 | BR71: 2 | BS71: 5 | BT71: 3 | BU71: 0 | BV71: 0 | BW71: 0 | BX71: 0 | BY71: 0 | BZ71: 0 | CA71: 0 | CB71: 0 | CC71: 0 | CD71: 0 | CE71: 0 | CF71: 0 | CG71: 0 | CH71: 0
C72: Kiosk Mounted ; < = 22kV ; > 600 kVA ; Single Phase | D72: 50 | E72: 7.071067812 | F72: 0 | G72: 0 | H72: 0 | I72: 2 | J72: 1 | K72: 0 | L72: 11 | M72: 33 | N72: 39 | O72: 40 | P72: 53 | Q72: 60 | R72: 61 | S72: 50 | T72: 38 | U72: 40 | V72: 48 | W72: 53 | X72: 36 | Y72: 20 | Z72: 23 | AA72: 27 | AB72: 31 | AC72: 25 | AD72: 18 | AE72: 28 | AF72: 35 | AG72: 34 | AH72: 27 | AI72: 27 | AJ72: 28 | AK72: 15 | AL72: 10 | AM72: 17 | AN72: 14 | AO72: 9 | AP72: 10 | AQ72: 17 | AR72: 22 | AS72: 11 | AT72: 3 | AU72: 8 | AV72: 9 | AW72: 17 | AX72: 17 | AY72: 7 | AZ72: 5 | BA72: 5 | BB72: 4 | BC72: 7 | BD72: 12 | BE72: 8 | BF72: 5 | BG72: 23 | BH72: 23 | BI72: 15 | BJ72: 17 | BK72: 4 | BL72: 5 | BM72: 21 | BN72: 33 | BO72: 12 | BP72: 1 | BQ72: 2 | BR72: 1 | BS72: 6 | BT72: 6 | BU72: 0 | BV72: 0 | BW72: 0 | BX72: 0 | BY72: 0 | BZ72: 0 | CA72: 0 | CB72: 0 | CC72: 1 | CD72: 1 | CE72: 0 | CF72: 0 | CG72: 0 | CH72: 0
C73: Kiosk Mounted ; < = 22kV ; < = 60 kVA ; Multiple Phase | D73: 50 | E73: 7.071067812 | F73: 5 | G73: 3 | H73: 6 | I73: 0 | J73: 0 | K73: 0 | L73: 0 | M73: 0 | N73: 0 | O73: 0 | P73: 0 | Q73: 0 | R73: 0 | S73: 0 | T73: 0 | U73: 0 | V73: 0 | W73: 0 | X73: 0 | Y73: 0 | Z73: 0 | AA73: 0 | AB73: 0 | AC73: 0 | AD73: 0 | AE73: 0 | AF73: 0 | AG73: 1 | AH73: 1 | AI73: 1 | AJ73: 0 | AK73: 0 | AL73: 0 | AM73: 0 | AN73: 0 | AO73: 0 | AP73: 0 | AQ73: 0 | AR73: 0 | AS73: 0 | AT73: 0 | AU73: 0 | AV73: 0 | AW73: 0 | AX73: 0 | AY73: 0 | AZ73: 0 | BA73: 0 | BB73: 0 | BC73: 0 | BD73: 0 | BE73: 0 | BF73: 0 | BG73: 1 | BH73: 1 | BI73: 1 | BJ73: 1 | BK73: 0 | BL73: 0 | BM73: 1 | BN73: 2 | BO73: 1 | BP73: 0 | BQ73: 0 | BR73: 0 | BS73: 0 | BT73: 0 | BU73: 0 | BV73: 0 | BW73: 0 | BX73: 0 | BY73: 0 | BZ73: 0 | CA73: 0 | CB73: 0 | CC73: 0 | CD73: 0 | CE73: 0 | CF73: 0 | CG73: 0 | CH73: 0
C74: Kiosk Mounted ; < = 22kV ; > 60 kVA and < = 600 kVA ; Multiple Phase | D74: 50 | E74: 7.071067812 | F74: 239 | G74: 211 | H74: 193 | I74: 82 | J74: 161 | K74: 237 | L74: 174 | M74: 46 | N74: 21 | O74: 31 | P74: 22 | Q74: 16 | R74: 5 | S74: 7 | T74: 7 | U74: 2 | V74: 2 | W74: 2 | X74: 23 | Y74: 23 | Z74: 28 | AA74: 52 | AB74: 47 | AC74: 56 | AD74: 61 | AE74: 42 | AF74: 33 | AG74: 35 | AH74: 35 | AI74: 43 | AJ74: 49 | AK74: 41 | AL74: 21 | AM74: 27 | AN74: 28 | AO74: 23 | AP74: 24 | AQ74: 18 | AR74: 20 | AS74: 24 | AT74: 25 | AU74: 20 | AV74: 16 | AW74: 9 | AX74: 3 | AY74: 11 | AZ74: 7 | BA74: 2 | BB74: 4 | BC74: 7 | BD74: 14 | BE74: 15 | BF74: 3 | BG74: 6 | BH74: 6 | BI74: 15 | BJ74: 16 | BK74: 2 | BL74: 5 | BM74: 11 | BN74: 22 | BO74: 14 | BP74: 1 | BQ74: 1 | BR74: 1 | BS74: 1 | BT74: 1 | BU74: 0 | BV74: 0 | BW74: 0 | BX74: 0 | BY74: 0 | BZ74: 0 | CA74: 0 | CB74: 0 | CC74: 0 | CD74: 0 | CE74: 0 | CF74: 0 | CG74: 0 | CH74: 0
C75: Kiosk Mounted ; < = 22kV ; > 600 kVA ; Multiple Phase | D75: 50 | E75: 7.071067812 | F75: 60 | G75: 59 | H75: 38 | I75: 23 | J75: 33 | K75: 41 | L75: 28 | M75: 7 | N75: 7 | O75: 8 | P75: 3 | Q75: 1 | R75: 1 | S75: 2 | T75: 3 | U75: 3 | V75: 1 | W75: 0 | X75: 5 | Y75: 5 | Z75: 4 | AA75: 6 | AB75: 5 | AC75: 4 | AD75: 4 | AE75: 5 | AF75: 5 | AG75: 1 | AH75: 2 | AI75: 3 | AJ75: 3 | AK75: 2 | AL75: 1 | AM75: 3 | AN75: 4 | AO75: 4 | AP75: 3 | AQ75: 2 | AR75: 3 | AS75: 2 | AT75: 0 | AU75: 0 | AV75: 0 | AW75: 2 | AX75: 2 | AY75: 1 | AZ75: 1 | BA75: 0 | BB75: 2 | BC75: 2 | BD75: 3 | BE75: 3 | BF75: 1 | BG75: 4 | BH75: 4 | BI75: 2 | BJ75: 2 | BK75: 0 | BL75: 0 | BM75: 3 | BN75: 7 | BO75: 4 | BP75: 0 | BQ75: 0 | BR75: 0 | BS75: 1 | BT75: 1 | BU75: 0 | BV75: 0 | BW75: 0 | BX75: 0 | BY75: 0 | BZ75: 0 | CA75: 0 | CB75: 0 | CC75: 0 | CD75: 0 | CE75: 0 | CF75: 0 | CG75: 0 | CH75: 0
C76: Ground Outdoor / Indoor Chamber Mounted; ˂ 22 kV ; < = 60 kVA ; Single Phase | D76: 50 | E76: 7.071067812 | F76: 0 | G76: 0 | H76: 0 | I76: 0 | J76: 0 | K76: 0 | L76: 0 | M76: 0 | N76: 0 | O76: 0 | P76: 0 | Q76: 0 | R76: 0 | S76: 0 | T76: 0 | U76: 0 | V76: 0 | W76: 0 | X76: 0 | Y76: 0 | Z76: 0 | AA76: 0 | AB76: 0 | AC76: 0 | AD76: 0 | AE76: 0 | AF76: 0 | AG76: 0 | AH76: 1 | AI76: 2 | AJ76: 1 | AK76: 0 | AL76: 0 | AM76: 0 | AN76: 0 | AO76: 0 | AP76: 0 | AQ76: 0 | AR76: 0 | AS76: 0 | AT76: 0 | AU76: 0 | AV76: 0 | AW76: 1 | AX76: 1 | AY76: 0 | AZ76: 0 | BA76: 0 | BB76: 0 | BC76: 0 | BD76: 0 | BE76: 0 | BF76: 0 | BG76: 0 | BH76: 1 | BI76: 1 | BJ76: 1 | BK76: 0 | BL76: 0 | BM76: 0 | BN76: 1 | BO76: 1 | BP76: 0 | BQ76: 0 | BR76: 0 | BS76: 0 | BT76: 0 | BU76: 0 | BV76: 0 | BW76: 0 | BX76: 0 | BY76: 0 | BZ76: 0 | CA76: 0 | CB76: 0 | CC76: 0 | CD76: 0 | CE76: 0 | CF76: 0 | CG76: 0 | CH76: 0 | CI76: 0 | CJ76: 0 | CK76: 0 | CL76: 0 | CM76: 0 | CN76: 0 | CO76: 0 | CP76: 0 | CQ76: 0 | CR76: 0 | CS76: 0 | CT76: 0 | CU76: 0 | CV76: 0 | CW76: 0 | CX76: 0 | CY76: 0 | CZ76: 0 | DA76: 0 | DB76: 0 | DC76: 0 | DD76: 0 | DE76: 0 | DF76: 0 | DG76: 0
C77: Ground Outdoor / Indoor Chamber Mounted; ˂ 22 kV ; > 60 kVA and < = 600 kVA ; Single Phase | D77: 50 | E77: 7.071067812 | F77: 0 | G77: 0 | H77: 0 | I77: 0 | J77: 0 | K77: 0 | L77: 1 | M77: 2 | N77: 1 | O77: 2 | P77: 2 | Q77: 1 | R77: 1 | S77: 1 | T77: 2 | U77: 3 | V77: 5 | W77: 4 | X77: 4 | Y77: 2 | Z77: 1 | AA77: 1 | AB77: 1 | AC77: 2 | AD77: 3 | AE77: 2 | AF77: 2 | AG77: 3 | AH77: 5 | AI77: 7 | AJ77: 9 | AK77: 9 | AL77: 7 | AM77: 15 | AN77: 17 | AO77: 8 | AP77: 4 | AQ77: 2 | AR77: 3 | AS77: 6 | AT77: 25 | AU77: 27 | AV77: 12 | AW77: 20 | AX77: 21 | AY77: 17 | AZ77: 17 | BA77: 17 | BB77: 17 | BC77: 14 | BD77: 14 | BE77: 10 | BF77: 5 | BG77: 4 | BH77: 3 | BI77: 5 | BJ77: 4 | BK77: 1 | BL77: 3 | BM77: 5 | BN77: 6 | BO77: 3 | BP77: 0 | BQ77: 0 | BR77: 0 | BS77: 1 | BT77: 1 | BU77: 0 | BV77: 0 | BW77: 0 | BX77: 0 | BY77: 0 | BZ77: 0 | CA77: 0 | CB77: 0 | CC77: 0 | CD77: 0 | CE77: 0 | CF77: 0 | CG77: 0 | CH77: 0 | CI77: 0 | CJ77: 0 | CK77: 0 | CL77: 0 | CM77: 0 | CN77: 0 | CO77: 0 | CP77: 0 | CQ77: 0 | CR77: 0 | CS77: 0 | CT77: 0 | CU77: 0 | CV77: 0 | CW77: 0 | CX77: 0 | CY77: 0 | CZ77: 0 | DA77: 0 | DB77: 0 | DC77: 0 | DD77: 0 | DE77: 0 | DF77: 0 | DG77: 0
C78: Ground Outdoor / Indoor Chamber Mounted; ˂ 22 kV ; > 600 kVA ; Single Phase | D78: 50 | E78: 7.071067812 | F78: 0 | G78: 0 | H78: 0 | I78: 0 | J78: 0 | K78: 0 | L78: 0 | M78: 0 | N78: 0 | O78: 0 | P78: 0 | Q78: 0 | R78: 1 | S78: 2 | T78: 2 | U78: 2 | V78: 1 | W78: 1 | X78: 2 | Y78: 2 | Z78: 4 | AA78: 5 | AB78: 4 | AC78: 3 | AD78: 3 | AE78: 2 | AF78: 5 | AG78: 5 | AH78: 4 | AI78: 8 | AJ78: 7 | AK78: 6 | AL78: 7 | AM78: 9 | AN78: 9 | AO78: 8 | AP78: 7 | AQ78: 3 | AR78: 3 | AS78: 4 | AT78: 7 | AU78: 7 | AV78: 5 | AW78: 3 | AX78: 1 | AY78: 5 | AZ78: 6 | BA78: 4 | BB78: 5 | BC78: 4 | BD78: 2 | BE78: 0 | BF78: 0 | BG78: 7 | BH78: 8 | BI78: 2 | BJ78: 2 | BK78: 0 | BL78: 0 | BM78: 2 | BN78: 2 | BO78: 0 | BP78: 0 | BQ78: 1 | BR78: 1 | BS78: 2 | BT78: 2 | BU78: 0 | BV78: 0 | BW78: 0 | BX78: 0 | BY78: 0 | BZ78: 0 | CA78: 0 | CB78: 0 | CC78: 0 | CD78: 0 | CE78: 0 | CF78: 0 | CG78: 0 | CH78: 0 | CI78: 0 | CJ78: 0 | CK78: 0 | CL78: 0 | CM78: 0 | CN78: 0 | CO78: 0 | CP78: 0 | CQ78: 0 | CR78: 0 | CS78: 0 | CT78: 0 | CU78: 0 | CV78: 0 | CW78: 0 | CX78: 0 | CY78: 0 | CZ78: 0 | DA78: 0 | DB78: 0 | DC78: 0 | DD78: 0 | DE78: 0 | DF78: 0 | DG78: 0
C79: Ground Outdoor / Indoor Chamber Mounted; ˂ 22 kV ; < = 60 kVA ; Multiple Phase | D79: 50 | E79: 7.071067812 | F79: 0 | G79: 0 | H79: 0 | I79: 0 | J79: 0 | K79: 0 | L79: 0 | M79: 0 | N79: 0 | O79: 0 | P79: 0 | Q79: 0 | R79: 0 | S79: 0 | T79: 0 | U79: 0 | V79: 0 | W79: 0 | X79: 0 | Y79: 0 | Z79: 0 | AA79: 0 | AB79: 0 | AC79: 0 | AD79: 0 | AE79: 0 | AF79: 0 | AG79: 0 | AH79: 0 | AI79: 0 | AJ79: 0 | AK79: 0 | AL79: 0 | AM79: 0 | AN79: 0 | AO79: 0 | AP79: 0 | AQ79: 0 | AR79: 0 | AS79: 0 | AT79: 0 | AU79: 0 | AV79: 0 | AW79: 0 | AX79: 0 | AY79: 0 | AZ79: 0 | BA79: 0 | BB79: 0 | BC79: 0 | BD79: 0 | BE79: 0 | BF79: 0 | BG79: 0 | BH79: 0 | BI79: 0 | BJ79: 0 | BK79: 0 | BL79: 0 | BM79: 0 | BN79: 0 | BO79: 0 | BP79: 0 | BQ79: 0 | BR79: 0 | BS79: 0 | BT79: 0 | BU79: 0 | BV79: 0 | BW79: 0 | BX79: 0 | BY79: 0 | BZ79: 0 | CA79: 0 | CB79: 0 | CC79: 0 | CD79: 0 | CE79: 0 | CF79: 0 | CG79: 0 | CH79: 0 | CI79: 0 | CJ79: 0 | CK79: 0 | CL79: 0 | CM79: 0 | CN79: 0 | CO79: 0 | CP79: 0 | CQ79: 0 | CR79: 0 | CS79: 0 | CT79: 0 | CU79: 0 | CV79: 0 | CW79: 0 | CX79: 0 | CY79: 0 | CZ79: 0 | DA79: 0 | DB79: 0 | DC79: 0 | DD79: 0 | DE79: 0 | DF79: 0 | DG79: 0
C80: Ground Outdoor / Indoor Chamber Mounted; ˂ 22 kV ; > 60 kVA and < = 600 kVA ; Multiple Phase | D80: 64 | E80: 8 | F80: 0 | G80: 0 | H80: 0 | I80: 0 | J80: 0 | K80: 0 | L80: 0 | M80: 0 | N80: 1 | O80: 1 | P80: 0 | Q80: 0 | R80: 0 | S80: 0 | T80: 0 | U80: 0 | V80: 0 | W80: 0 | X80: 0 | Y80: 0 | Z80: 0 | AA80: 0 | AB80: 0 | AC80: 0 | AD80: 0 | AE80: 0 | AF80: 0 | AG80: 0 | AH80: 0 | AI80: 0 | AJ80: 0 | AK80: 0 | AL80: 0 | AM80: 0 | AN80: 0 | AO80: 0 | AP80: 0 | AQ80: 0 | AR80: 0 | AS80: 0 | AT80: 0 | AU80: 0 | AV80: 0 | AW80: 0 | AX80: 1 | AY80: 0 | AZ80: 0 | BA80: 1 | BB80: 0 | BC80: 0 | BD80: 0 | BE80: 0 | BF80: 0 | BG80: 0 | BH80: 0 | BI80: 0 | BJ80: 2 | BK80: 0 | BL80: 0 | BM80: 0 | BN80: 0 | BO80: 0 | BP80: 0 | BQ80: 1 | BR80: 1 | BS80: 0 | BT80: 0 | BU80: 0 | BV80: 0 | BW80: 0 | BX80: 0 | BY80: 0 | BZ80: 0 | CA80: 0 | CB80: 0 | CC80: 0 | CD80: 0 | CE80: 0 | CF80: 0 | CG80: 0 | CH80: 0 | CI80: 0 | CJ80: 0 | CK80: 0 | CL80: 0 | CM80: 0 | CN80: 0 | CO80: 0 | CP80: 0 | CQ80: 0 | CR80: 0 | CS80: 0 | CT80: 0 | CU80: 0 | CV80: 0 | CW80: 0 | CX80: 0 | CY80: 0 | CZ80: 0 | DA80: 0 | DB80: 0 | DC80: 0 | DD80: 0 | DE80: 0 | DF80: 0 | DG80: 0
C81: Ground Outdoor / Indoor Chamber Mounted; ˂ 22 kV ; > 600 kVA ; Multiple Phase | D81: 64 | E81: 8 | F81: 0 | G81: 0 | H81: 0 | I81: 0 | J81: 0 | K81: 0 | L81: 0 | M81: 0 | N81: 0 | O81: 3 | P81: 0 | Q81: 0 | R81: 0 | S81: 0 | T81: 1 | U81: 0 | V81: 2 | W81: 0 | X81: 0 | Y81: 0 | Z81: 0 | AA81: 0 | AB81: 0 | AC81: 0 | AD81: 3 | AE81: 0 | AF81: 0 | AG81: 4 | AH81: 2 | AI81: 0 | AJ81: 8 | AK81: 0 | AL81: 5 | AM81: 1 | AN81: 2 | AO81: 1 | AP81: 3 | AQ81: 3 | AR81: 4 | AS81: 0 | AT81: 2 | AU81: 2 | AV81: 1 | AW81: 1 | AX81: 10 | AY81: 5 | AZ81: 2 | BA81: 1 | BB81: 5 | BC81: 3 | BD81: 2 | BE81: 7 | BF81: 1 | BG81: 1 | BH81: 1 | BI81: 0 | BJ81: 0 | BK81: 0 | BL81: 0 | BM81: 0 | BN81: 0 | BO81: 0 | BP81: 0 | BQ81: 0 | BR81: 0 | BS81: 0 | BT81: 0 | BU81: 0 | BV81: 0 | BW81: 0 | BX81: 0 | BY81: 0 | BZ81: 0 | CA81: 0 | CB81: 0 | CC81: 0 | CD81: 0 | CE81: 0 | CF81: 0 | CG81: 0 | CH81: 0 | CI81: 0 | CJ81: 0 | CK81: 0 | CL81: 0 | CM81: 0 | CN81: 0 | CO81: 0 | CP81: 0 | CQ81: 0 | CR81: 0 | CS81: 0 | CT81: 0 | CU81: 0 | CV81: 0 | CW81: 0 | CX81: 0 | CY81: 0 | CZ81: 0 | DA81: 0 | DB81: 0 | DC81: 0 | DD81: 0 | DE81: 0 | DF81: 0 | DG81: 0
C82: Ground Outdoor / Indoor Chamber Mounted; > = 22 kV & < = 33 kV ; < = 15 MVA | D82: 64 | E82: 8 | F82: 8 | G82: 3 | H82: 2 | I82: 7 | J82: 11 | K82: 6 | L82: 7 | M82: 4 | N82: 2 | O82: 5 | P82: 3 | Q82: 2 | R82: 6 | S82: 4 | T82: 11 | U82: 14 | V82: 6 | W82: 3 | X82: 4 | Y82: 3 | Z82: 5 | AA82: 2 | AB82: 2 | AC82: 1 | AD82: 16 | AE82: 4 | AF82: 5 | AG82: 11 | AH82: 39 | AI82: 4 | AJ82: 9 | AK82: 1 | AL82: 11 | AM82: 19 | AN82: 2 | AO82: 4 | AP82: 5 | AQ82: 5 | AR82: 2 | AS82: 8 | AT82: 8 | AU82: 15 | AV82: 2 | AW82: 4 | AX82: 1 | AY82: 5 | AZ82: 21 | BA82: 4 | BB82: 1 | BC82: 15 | BD82: 11 | BE82: 1 | BF82: 7 | BG82: 10 | BH82: 7 | BI82: 3 | BJ82: 1 | BK82: 5 | BL82: 5 | BM82: 10 | BN82: 11 | BO82: 5 | BP82: 3 | BQ82: 1 | BR82: 5 | BS82: 1 | BT82: 2 | BU82: 0 | BV82: 0 | BW82: 0 | BX82: 0 | BY82: 0 | BZ82: 0 | CA82: 0 | CB82: 0 | CC82: 0 | CD82: 0 | CE82: 0 | CF82: 0 | CG82: 0 | CH82: 0 | CI82: 0 | CJ82: 0 | CK82: 0 | CL82: 0 | CM82: 0 | CN82: 0 | CO82: 0 | CP82: 0 | CQ82: 0 | CR82: 0 | CS82: 0 | CT82: 0 | CU82: 0 | CV82: 0 | CW82: 0 | CX82: 0 | CY82: 0 | CZ82: 0 | DA82: 0 | DB82: 0 | DC82: 0 | DD82: 0 | DE82: 0 | DF82: 0 | DG82: 0
C83: Ground Outdoor / Indoor Chamber Mounted; > = 22 kV & < = 33 kV ; > 15 MVA and < = 40 MVA | D83: 64 | E83: 8 | F83: 0 | G83: 0 | H83: 1 | I83: 0 | J83: 0 | K83: 0 | L83: 0 | M83: 0 | N83: 0 | O83: 0 | P83: 1 | Q83: 0 | R83: 0 | S83: 0 | T83: 1 | U83: 0 | V83: 0 | W83: 0 | X83: 0 | Y83: 0 | Z83: 0 | AA83: 0 | AB83: 0 | AC83: 0 | AD83: 0 | AE83: 0 | AF83: 0 | AG83: 0 | AH83: 1 | AI83: 0 | AJ83: 0 | AK83: 0 | AL83: 0 | AM83: 1 | AN83: 0 | AO83: 0 | AP83: 0 | AQ83: 0 | AR83: 0 | AS83: 0 | AT83: 0 | AU83: 0 | AV83: 0 | AW83: 0 | AX83: 0 | AY83: 0 | AZ83: 0 | BA83: 0 | BB83: 0 | BC83: 0 | BD83: 0 | BE83: 0 | BF83: 0 | BG83: 0 | BH83: 0 | BI83: 0 | BJ83: 0 | BK83: 0 | BL83: 0 | BM83: 0 | BN83: 0 | BO83: 0 | BP83: 0 | BQ83: 0 | BR83: 0 | BS83: 0 | BT83: 0 | BU83: 0 | BV83: 0 | BW83: 0 | BX83: 0 | BY83: 0 | BZ83: 0 | CA83: 0 | CB83: 0 | CC83: 0 | CD83: 0 | CE83: 0 | CF83: 0 | CG83: 0 | CH83: 0 | CI83: 0 | CJ83: 0 | CK83: 0 | CL83: 0 | CM83: 0 | CN83: 0 | CO83: 0 | CP83: 0 | CQ83: 0 | CR83: 0 | CS83: 0 | CT83: 0 | CU83: 0 | CV83: 0 | CW83: 0 | CX83: 0 | CY83: 0 | CZ83: 0 | DA83: 0 | DB83: 0 | DC83: 0 | DD83: 0 | DE83: 0 | DF83: 0 | DG83: 0
C84: Ground Outdoor / Indoor Chamber Mounted; > = 22 kV & < = 33 kV ; > 40 MVA | D84: 0 | E84: 0 | F84: 0 | G84: 0 | H84: 0 | I84: 0 | J84: 0 | K84: 0 | L84: 0 | M84: 0 | N84: 0 | O84: 0 | P84: 0 | Q84: 0 | R84: 0 | S84: 0 | T84: 0 | U84: 0 | V84: 0 | W84: 0 | X84: 0 | Y84: 0 | Z84: 0 | AA84: 0 | AB84: 0 | AC84: 0 | AD84: 0 | AE84: 0 | AF84: 0 | AG84: 0 | AH84: 0 | AI84: 0 | AJ84: 0 | AK84: 0 | AL84: 0 | AM84: 0 | AN84: 0 | AO84: 0 | AP84: 0 | AQ84: 0 | AR84: 0 | AS84: 0 | AT84: 0 | AU84: 0 | AV84: 0 | AW84: 0 | AX84: 0 | AY84: 0 | AZ84: 0 | BA84: 0 | BB84: 0 | BC84: 0 | BD84: 0 | BE84: 0 | BF84: 0 | BG84: 0 | BH84: 0 | BI84: 0 | BJ84: 0 | BK84: 0 | BL84: 0 | BM84: 0 | BN84: 0 | BO84: 0 | BP84: 0 | BQ84: 0 | BR84: 0 | BS84: 0 | BT84: 0 | BU84: 0 | BV84: 0 | BW84: 0 | BX84: 0 | BY84: 0 | BZ84: 0 | CA84: 0 | CB84: 0 | CC84: 0 | CD84: 0 | CE84: 0 | CF84: 0 | CG84: 0 | CH84: 0 | CI84: 0 | CJ84: 0 | CK84: 0 | CL84: 0 | CM84: 0 | CN84: 0 | CO84: 0 | CP84: 0 | CQ84: 0 | CR84: 0 | CS84: 0 | CT84: 0 | CU84: 0 | CV84: 0 | CW84: 0 | CX84: 0 | CY84: 0 | CZ84: 0 | DA84: 0 | DB84: 0 | DC84: 0 | DD84: 0 | DE84: 0 | DF84: 0 | DG84: 0
C85: Ground Outdoor / Indoor Chamber Mounted; > 33 kV & < = 66 kV ; < = 15 MVA | D85: 64 | E85: 8 | F85: 2 | G85: 0 | H85: 1 | I85: 0 | J85: 0 | K85: 4 | L85: 3 | M85: 0 | N85: 4 | O85: 0 | P85: 0 | Q85: 0 | R85: 1 | S85: 0 | T85: 0 | U85: 6 | V85: 1 | W85: 1 | X85: 0 | Y85: 0 | Z85: 0 | AA85: 0 | AB85: 0 | AC85: 0 | AD85: 4 | AE85: 1 | AF85: 2 | AG85: 1 | AH85: 2 | AI85: 5 | AJ85: 0 | AK85: 0 | AL85: 9 | AM85: 0 | AN85: 0 | AO85: 1 | AP85: 0 | AQ85: 5 | AR85: 5 | AS85: 0 | AT85: 0 | AU85: 3 | AV85: 0 | AW85: 0 | AX85: 3 | AY85: 0 | AZ85: 11 | BA85: 7 | BB85: 5 | BC85: 7 | BD85: 5 | BE85: 5 | BF85: 18 | BG85: 5 | BH85: 14 | BI85: 5 | BJ85: 0 | BK85: 2 | BL85: 5 | BM85: 0 | BN85: 2 | BO85: 5 | BP85: 2 | BQ85: 0 | BR85: 2 | BS85: 1 | BT85: 0 | BU85: 0 | BV85: 0 | BW85: 0 | BX85: 0 | BY85: 0 | BZ85: 0 | CA85: 1 | CB85: 0 | CC85: 0 | CD85: 0 | CE85: 0 | CF85: 0 | CG85: 0 | CH85: 0 | CI85: 0 | CJ85: 0 | CK85: 0 | CL85: 0 | CM85: 0 | CN85: 0 | CO85: 0 | CP85: 0 | CQ85: 0 | CR85: 0 | CS85: 0 | CT85: 0 | CU85: 0 | CV85: 0 | CW85: 0 | CX85: 0 | CY85: 0 | CZ85: 0 | DA85: 0 | DB85: 0 | DC85: 0 | DD85: 0 | DE85: 0 | DF85: 0 | DG85: 0
C86: Ground Outdoor / Indoor Chamber Mounted; > 33 kV & < = 66 kV ; > 15 MVA and < = 40 MVA | D86: 64 | E86: 8 | F86: 0 | G86: 2 | H86: 5 | I86: 1 | J86: 8 | K86: 4 | L86: 4 | M86: 4 | N86: 2 | O86: 4 | P86: 2 | Q86: 5 | R86: 2 | S86: 5 | T86: 4 | U86: 4 | V86: 0 | W86: 1 | X86: 0 | Y86: 0 | Z86: 2 | AA86: 0 | AB86: 3 | AC86: 0 | AD86: 1 | AE86: 5 | AF86: 1 | AG86: 3 | AH86: 0 | AI86: 1 | AJ86: 4 | AK86: 0 | AL86: 2 | AM86: 4 | AN86: 2 | AO86: 0 | AP86: 4 | AQ86: 1 | AR86: 4 | AS86: 0 | AT86: 0 | AU86: 0 | AV86: 0 | AW86: 1 | AX86: 4 | AY86: 0 | AZ86: 5 | BA86: 6 | BB86: 4 | BC86: 3 | BD86: 0 | BE86: 0 | BF86: 0 | BG86: 0 | BH86: 0 | BI86: 0 | BJ86: 0 | BK86: 0 | BL86: 0 | BM86: 3 | BN86: 3 | BO86: 0 | BP86: 0 | BQ86: 0 | BR86: 0 | BS86: 0 | BT86: 0 | BU86: 0 | BV86: 0 | BW86: 0 | BX86: 0 | BY86: 0 | BZ86: 0 | CA86: 0 | CB86: 0 | CC86: 0 | CD86: 0 | CE86: 0 | CF86: 0 | CG86: 0 | CH86: 0 | CI86: 0 | CJ86: 0 | CK86: 0 | CL86: 0 | CM86: 0 | CN86: 0 | CO86: 0 | CP86: 0 | CQ86: 0 | CR86: 0 | CS86: 0 | CT86: 0 | CU86: 0 | CV86: 0 | CW86: 0 | CX86: 0 | CY86: 0 | CZ86: 0 | DA86: 0 | DB86: 0 | DC86: 0 | DD86: 0 | DE86: 0 | DF86: 0 | DG86: 0
C87: Ground Outdoor / Indoor Chamber Mounted; > 33 kV & < = 66 kV ; > 40 MVA | D87: 0 | E87: 0 | F87: 0 | G87: 0 | H87: 0 | I87: 0 | J87: 0 | K87: 0 | L87: 0 | M87: 0 | N87: 0 | O87: 0 | P87: 0 | Q87: 0 | R87: 0 | S87: 0 | T87: 0 | U87: 0 | V87: 0 | W87: 0 | X87: 0 | Y87: 0 | Z87: 0 | AA87: 0 | AB87: 0 | AC87: 0 | AD87: 0 | AE87: 0 | AF87: 0 | AG87: 0 | AH87: 0 | AI87: 0 | AJ87: 0 | AK87: 0 | AL87: 0 | AM87: 0 | AN87: 0 | AO87: 0 | AP87: 0 | AQ87: 0 | AR87: 0 | AS87: 0 | AT87: 0 | AU87: 0 | AV87: 0 | AW87: 0 | AX87: 0 | AY87: 0 | AZ87: 0 | BA87: 0 | BB87: 0 | BC87: 0 | BD87: 0 | BE87: 0 | BF87: 0 | BG87: 0 | BH87: 0 | BI87: 0 | BJ87: 0 | BK87: 0 | BL87: 0 | BM87: 0 | BN87: 0 | BO87: 0 | BP87: 0 | BQ87: 0 | BR87: 0 | BS87: 0 | BT87: 0 | BU87: 0 | BV87: 0 | BW87: 0 | BX87: 0 | BY87: 0 | BZ87: 0 | CA87: 0 | CB87: 0 | CC87: 0 | CD87: 0 | CE87: 0 | CF87: 0 | CG87: 0 | CH87: 0 | CI87: 0 | CJ87: 0 | CK87: 0 | CL87: 0 | CM87: 0 | CN87: 0 | CO87: 0 | CP87: 0 | CQ87: 0 | CR87: 0 | CS87: 0 | CT87: 0 | CU87: 0 | CV87: 0 | CW87: 0 | CX87: 0 | CY87: 0 | CZ87: 0 | DA87: 0 | DB87: 0 | DC87: 0 | DD87: 0 | DE87: 0 | DF87: 0 | DG87: 0
C88: Ground Outdoor / Indoor Chamber Mounted; > 66 kV & < = 132 kV ; < = 100 MVA | D88: 0 | E88: 0 | F88: 0 | G88: 0 | H88: 0 | I88: 0 | J88: 0 | K88: 0 | L88: 0 | M88: 0 | N88: 0 | O88: 0 | P88: 0 | Q88: 0 | R88: 0 | S88: 0 | T88: 0 | U88: 0 | V88: 0 | W88: 0 | X88: 0 | Y88: 0 | Z88: 0 | AA88: 0 | AB88: 0 | AC88: 0 | AD88: 0 | AE88: 0 | AF88: 0 | AG88: 0 | AH88: 0 | AI88: 0 | AJ88: 0 | AK88: 0 | AL88: 0 | AM88: 0 | AN88: 0 | AO88: 0 | AP88: 0 | AQ88: 0 | AR88: 0 | AS88: 0 | AT88: 0 | AU88: 0 | AV88: 0 | AW88: 0 | AX88: 0 | AY88: 0 | AZ88: 0 | BA88: 0 | BB88: 0 | BC88: 0 | BD88: 0 | BE88: 0 | BF88: 0 | BG88: 0 | BH88: 0 | BI88: 0 | BJ88: 0 | BK88: 0 | BL88: 0 | BM88: 0 | BN88: 0 | BO88: 0 | BP88: 0 | BQ88: 0 | BR88: 0 | BS88: 0 | BT88: 0 | BU88: 0 | BV88: 0 | BW88: 0 | BX88: 0 | BY88: 0 | BZ88: 0 | CA88: 0 | CB88: 0 | CC88: 0 | CD88: 0 | CE88: 0 | CF88: 0 | CG88: 0 | CH88: 0 | CI88: 0 | CJ88: 0 | CK88: 0 | CL88: 0 | CM88: 0 | CN88: 0 | CO88: 0 | CP88: 0 | CQ88: 0 | CR88: 0 | CS88: 0 | CT88: 0 | CU88: 0 | CV88: 0 | CW88: 0 | CX88: 0 | CY88: 0 | CZ88: 0 | DA88: 0 | DB88: 0 | DC88: 0 | DD88: 0 | DE88: 0 | DF88: 0 | DG88: 0
C89: Ground Outdoor / Indoor Chamber Mounted; > 66 kV & < = 132 kV ; > 100 MVA | D89: 0 | E89: 0 | F89: 0 | G89: 0 | H89: 0 | I89: 0 | J89: 0 | K89: 0 | L89: 0 | M89: 0 | N89: 0 | O89: 0 | P89: 0 | Q89: 0 | R89: 0 | S89: 0 | T89: 0 | U89: 0 | V89: 0 | W89: 0 | X89: 0 | Y89: 0 | Z89: 0 | AA89: 0 | AB89: 0 | AC89: 0 | AD89: 0 | AE89: 0 | AF89: 0 | AG89: 0 | AH89: 0 | AI89: 0 | AJ89: 0 | AK89: 0 | AL89: 0 | AM89: 0 | AN89: 0 | AO89: 0 | AP89: 0 | AQ89: 0 | AR89: 0 | AS89: 0 | AT89: 0 | AU89: 0 | AV89: 0 | AW89: 0 | AX89: 0 | AY89: 0 | AZ89: 0 | BA89: 0 | BB89: 0 | BC89: 0 | BD89: 0 | BE89: 0 | BF89: 0 | BG89: 0 | BH89: 0 | BI89: 0 | BJ89: 0 | BK89: 0 | BL89: 0 | BM89: 0 | BN89: 0 | BO89: 0 | BP89: 0 | BQ89: 0 | BR89: 0 | BS89: 0 | BT89: 0 | BU89: 0 | BV89: 0 | BW89: 0 | BX89: 0 | BY89: 0 | BZ89: 0 | CA89: 0 | CB89: 0 | CC89: 0 | CD89: 0 | CE89: 0 | CF89: 0 | CG89: 0 | CH89: 0 | CI89: 0 | CJ89: 0 | CK89: 0 | CL89: 0 | CM89: 0 | CN89: 0 | CO89: 0 | CP89: 0 | CQ89: 0 | CR89: 0 | CS89: 0 | CT89: 0 | CU89: 0 | CV89: 0 | CW89: 0 | CX89: 0 | CY89: 0 | CZ89: 0 | DA89: 0 | DB89: 0 | DC89: 0 | DD89: 0 | DE89: 0 | DF89: 0 | DG89: 0
C90: Ground Outdoor / Indoor Chamber Mounted; > 132 kV ; < = 100 MVA | D90: 0 | E90: 0 | F90: 0 | G90: 0 | H90: 0 | I90: 0 | J90: 0 | K90: 0 | L90: 0 | M90: 0 | N90: 0 | O90: 0 | P90: 0 | Q90: 0 | R90: 0 | S90: 0 | T90: 0 | U90: 0 | V90: 0 | W90: 0 | X90: 0 | Y90: 0 | Z90: 0 | AA90: 0 | AB90: 0 | AC90: 0 | AD90: 0 | AE90: 0 | AF90: 0 | AG90: 0 | AH90: 0 | AI90: 0 | AJ90: 0 | AK90: 0 | AL90: 0 | AM90: 0 | AN90: 0 | AO90: 0 | AP90: 0 | AQ90: 0 | AR90: 0 | AS90: 0 | AT90: 0 | AU90: 0 | AV90: 0 | AW90: 0 | AX90: 0 | AY90: 0 | AZ90: 0 | BA90: 0 | BB90: 0 | BC90: 0 | BD90: 0 | BE90: 0 | BF90: 0 | BG90: 0 | BH90: 0 | BI90: 0 | BJ90: 0 | BK90: 0 | BL90: 0 | BM90: 0 | BN90: 0 | BO90: 0 | BP90: 0 | BQ90: 0 | BR90: 0 | BS90: 0 | BT90: 0 | BU90: 0 | BV90: 0 | BW90: 0 | BX90: 0 | BY90: 0 | BZ90: 0 | CA90: 0 | CB90: 0 | CC90: 0 | CD90: 0 | CE90: 0 | CF90: 0 | CG90: 0 | CH90: 0 | CI90: 0 | CJ90: 0 | CK90: 0 | CL90: 0 | CM90: 0 | CN90: 0 | CO90: 0 | CP90: 0 | CQ90: 0 | CR90: 0 | CS90: 0 | CT90: 0 | CU90: 0 | CV90: 0 | CW90: 0 | CX90: 0 | CY90: 0 | CZ90: 0 | DA90: 0 | DB90: 0 | DC90: 0 | DD90: 0 | DE90: 0 | DF90: 0 | DG90: 0
C91: Ground Outdoor / Indoor Chamber Mounted; > 132 kV ; > 100 MVA | D91: 0 | E91: 0 | F91: 0 | G91: 0 | H91: 0 | I91: 0 | J91: 0 | K91: 0 | L91: 0 | M91: 0 | N91: 0 | O91: 0 | P91: 0 | Q91: 0 | R91: 0 | S91: 0 | T91: 0 | U91: 0 | V91: 0 | W91: 0 | X91: 0 | Y91: 0 | Z91: 0 | AA91: 0 | AB91: 0 | AC91: 0 | AD91: 0 | AE91: 0 | AF91: 0 | AG91: 0 | AH91: 0 | AI91: 0 | AJ91: 0 | AK91: 0 | AL91: 0 | AM91: 0 | AN91: 0 | AO91: 0 | AP91: 0 | AQ91: 0 | AR91: 0 | AS91: 0 | AT91: 0 | AU91: 0 | AV91: 0 | AW91: 0 | AX91: 0 | AY91: 0 | AZ91: 0 | BA91: 0 | BB91: 0 | BC91: 0 | BD91: 0 | BE91: 0 | BF91: 0 | BG91: 0 | BH91: 0 | BI91: 0 | BJ91: 0 | BK91: 0 | BL91: 0 | BM91: 0 | BN91: 0 | BO91: 0 | BP91: 0 | BQ91: 0 | BR91: 0 | BS91: 0 | BT91: 0 | BU91: 0 | BV91: 0 | BW91: 0 | BX91: 0 | BY91: 0 | BZ91: 0 | CA91: 0 | CB91: 0 | CC91: 0 | CD91: 0 | CE91: 0 | CF91: 0 | CG91: 0 | CH91: 0 | CI91: 0 | CJ91: 0 | CK91: 0 | CL91: 0 | CM91: 0 | CN91: 0 | CO91: 0 | CP91: 0 | CQ91: 0 | CR91: 0 | CS91: 0 | CT91: 0 | CU91: 0 | CV91: 0 | CW91: 0 | CX91: 0 | CY91: 0 | CZ91: 0 | DA91: 0 | DB91: 0 | DC91: 0 | DD91: 0 | DE91: 0 | DF91: 0 | DG91: 0
C92: Other
B93: SWITCHGEAR BY: HIGHEST OPERATING VOLTAGE ; SWITCH FUNCTION | C93: ˂ = 11 kV ; Fuse | D93: 0 | E93: 0
C94: ˂ = 11 kV ; Switch | D94: 69 | E94: 8.306623863 | F94: 5 | G94: 0 | H94: 21 | I94: 30 | J94: 17 | K94: 5 | L94: 5 | M94: 11 | N94: 16 | O94: 4 | P94: 1 | Q94: 2 | R94: 2 | S94: 1 | T94: 5 | U94: 0 | V94: 0 | W94: 1 | X94: 0 | Y94: 4 | Z94: 12 | AA94: 0 | AB94: 2 | AC94: 0 | AD94: 9 | AE94: 11 | AF94: 4 | AG94: 10 | AH94: 5 | AI94: 19 | AJ94: 0 | AK94: 10 | AL94: 42 | AM94: 22 | AN94: 14 | AO94: 28 | AP94: 23 | AQ94: 4 | AR94: 44 | AS94: 30 | AT94: 29 | AU94: 6 | AV94: 10 | AW94: 78 | AX94: 45 | AY94: 109 | AZ94: 149 | BA94: 93 | BB94: 81 | BC94: 118 | BD94: 148 | BE94: 39 | BF94: 45 | BG94: 11 | BH94: 9 | BI94: 0 | BJ94: 3 | BK94: 5 | BL94: 79 | BM94: 3 | BN94: 37 | BO94: 0 | BP94: 0 | BQ94: 3 | BR94: 0 | BS94: 3 | BT94: 0 | BU94: 0 | BV94: 0 | BW94: 0 | BX94: 0 | BY94: 0 | BZ94: 11 | CA94: 0 | CB94: 8 | CC94: 0 | CD94: 0 | CE94: 0 | CF94: 0 | CG94: 0 | CH94: 0 | CI94: 0 | CJ94: 0 | CK94: 0 | CL94: 0 | CM94: 0 | CN94: 0 | CO94: 0 | CP94: 0 | CQ94: 0 | CR94: 0 | CS94: 0 | CT94: 0 | CU94: 0 | CV94: 0 | CW94: 0 | CX94: 0 | CY94: 0 | CZ94: 0 | DA94: 0 | DB94: 0 | DC94: 0 | DD94: 0 | DE94: 0 | DF94: 0 | DG94: 0 | DH94: 0
C95: ˂ = 11 kV ; Circuit Breaker | D95: 66 | E95: 8.124038405 | F95: 20 | G95: 15 | H95: 27 | I95: 55 | J95: 135 | K95: 34 | L95: 21 | M95: 32 | N95: 13 | O95: 32 | P95: 13 | Q95: 13 | R95: 17 | S95: 30 | T95: 31 | U95: 10 | V95: 4 | W95: 32 | X95: 11 | Y95: 10 | Z95: 0 | AA95: 0 | AB95: 6 | AC95: 4 | AD95: 9 | AE95: 20 | AF95: 28 | AG95: 0 | AH95: 26 | AI95: 0 | AJ95: 31 | AK95: 0 | AL95: 0 | AM95: 4 | AN95: 0 | AO95: 0 | AP95: 0 | AQ95: 0 | AR95: 0 | AS95: 2 | AT95: 11 | AU95: 0 | AV95: 0 | AW95: 0 | AX95: 37 | AY95: 43 | AZ95: 45 | BA95: 37 | BB95: 14 | BC95: 79 | BD95: 57 | BE95: 2 | BF95: 85 | BG95: 20 | BH95: 21 | BI95: 15 | BJ95: 0 | BK95: 0 | BL95: 47 | BM95: 2 | BN95: 10 | BO95: 0 | BP95: 0 | BQ95: 20 | BR95: 0 | BS95: 7 | BT95: 0 | BU95: 0 | BV95: 0 | BW95: 0 | BX95: 0 | BY95: 0 | BZ95: 0 | CA95: 0 | CB95: 0 | CC95: 0 | CD95: 0 | CE95: 0 | CF95: 0 | CG95: 0 | CH95: 0 | CI95: 0 | CJ95: 0 | CK95: 0 | CL95: 0 | CM95: 0 | CN95: 0 | CO95: 0 | CP95: 0 | CQ95: 0 | CR95: 0 | CS95: 0 | CT95: 0 | CU95: 0 | CV95: 0 | CW95: 0 | CX95: 0 | CY95: 0 | CZ95: 0 | DA95: 0 | DB95: 0 | DC95: 0 | DD95: 0 | DE95: 0 | DF95: 0 | DG95: 0 | DH95: 0
C96: > 11 kV & < = 22 kV ; Switch | D96: 66 | E96: 8.124038405 | F96: 0 | G96: 0 | H96: 0 | I96: 0 | J96: 0 | K96: 0 | L96: 0 | M96: 0 | N96: 0 | O96: 0 | P96: 0 | Q96: 0 | R96: 0 | S96: 0 | T96: 0 | U96: 0 | V96: 0 | W96: 0 | X96: 0 | Y96: 0 | Z96: 0 | AA96: 0 | AB96: 0 | AC96: 0 | AD96: 0 | AE96: 0 | AF96: 0 | AG96: 0 | AH96: 0 | AI96: 0 | AJ96: 0 | AK96: 0 | AL96: 0 | AM96: 0 | AN96: 0 | AO96: 0 | AP96: 0 | AQ96: 0 | AR96: 0 | AS96: 0 | AT96: 0 | AU96: 0 | AV96: 0 | AW96: 0 | AX96: 0 | AY96: 0 | AZ96: 0 | BA96: 0 | BB96: 0 | BC96: 10 | BD96: 0 | BE96: 0 | BF96: 0 | BG96: 0 | BH96: 0 | BI96: 0 | BJ96: 0 | BK96: 0 | BL96: 0 | BM96: 0 | BN96: 0 | BO96: 0 | BP96: 0 | BQ96: 0 | BR96: 0 | BS96: 0 | BT96: 0 | BU96: 0 | BV96: 0 | BW96: 0 | BX96: 0 | BY96: 0 | BZ96: 0 | CA96: 0 | CB96: 0 | CC96: 0 | CD96: 0 | CE96: 0 | CF96: 0 | CG96: 0 | CH96: 0 | CI96: 0 | CJ96: 0 | CK96: 0 | CL96: 0 | CM96: 0 | CN96: 0 | CO96: 0 | CP96: 0 | CQ96: 0 | CR96: 0 | CS96: 0 | CT96: 0 | CU96: 0 | CV96: 0 | CW96: 0 | CX96: 0 | CY96: 0 | CZ96: 0 | DA96: 0 | DB96: 0 | DC96: 0 | DD96: 0 | DE96: 0 | DF96: 0 | DG96: 0 | DH96: 0
C97: > 11 kV & < = 22 kV ; Circuit Breaker | D97: 0 | E97: 0
C98: > 22 kV & < = 33 kV ; Switch | D98: 69 | E98: 8.306623863 | F98: 2 | G98: 11 | H98: 63 | I98: 41 | J98: 34 | K98: 33 | L98: 40 | M98: 4 | N98: 6 | O98: 14 | P98: 20 | Q98: 21 | R98: 19 | S98: 6 | T98: 9 | U98: 9 | V98: 4 | W98: 0 | X98: 0 | Y98: 0 | Z98: 9 | AA98: 0 | AB98: 0 | AC98: 3 | AD98: 22 | AE98: 16 | AF98: 4 | AG98: 6 | AH98: 0 | AI98: 10 | AJ98: 3 | AK98: 3 | AL98: 15 | AM98: 4 | AN98: 3 | AO98: 11 | AP98: 22 | AQ98: 13 | AR98: 6 | AS98: 5 | AT98: 9 | AU98: 3 | AV98: 17 | AW98: 49 | AX98: 18 | AY98: 6 | AZ98: 23 | BA98: 81 | BB98: 42 | BC98: 71 | BD98: 75 | BE98: 32 | BF98: 16 | BG98: 4 | BH98: 3 | BI98: 0 | BJ98: 0 | BK98: 7 | BL98: 28 | BM98: 24 | BN98: 36 | BO98: 8 | BP98: 1 | BQ98: 2 | BR98: 0 | BS98: 1 | BT98: 0 | BU98: 0 | BV98: 0 | BW98: 0 | BX98: 0 | BY98: 0 | BZ98: 4 | CA98: 0 | CB98: 4 | CC98: 4 | CD98: 0 | CE98: 0 | CF98: 0 | CG98: 0 | CH98: 0 | CI98: 0 | CJ98: 0 | CK98: 0 | CL98: 0 | CM98: 0 | CN98: 0 | CO98: 0 | CP98: 0 | CQ98: 0 | CR98: 0 | CS98: 0 | CT98: 0 | CU98: 0 | CV98: 0 | CW98: 0 | CX98: 0 | CY98: 0 | CZ98: 0 | DA98: 0 | DB98: 0 | DC98: 0 | DD98: 0 | DE98: 0 | DF98: 0 | DG98: 0 | DH98: 0
C99: > 22 kV & < = 33 kV ; Circuit Breaker | D99: 66 | E99: 8.124038405 | F99: 10 | G99: 1 | H99: 14 | I99: 18 | J99: 16 | K99: 14 | L99: 9 | M99: 5 | N99: 2 | O99: 11 | P99: 7 | Q99: 10 | R99: 7 | S99: 7 | T99: 2 | U99: 0 | V99: 3 | W99: 0 | X99: 0 | Y99: 0 | Z99: 0 | AA99: 0 | AB99: 0 | AC99: 0 | AD99: 0 | AE99: 0 | AF99: 10 | AG99: 2 | AH99: 0 | AI99: 0 | AJ99: 0 | AK99: 0 | AL99: 0 | AM99: 0 | AN99: 0 | AO99: 0 | AP99: 0 | AQ99: 0 | AR99: 0 | AS99: 0 | AT99: 0 | AU99: 0 | AV99: 0 | AW99: 0 | AX99: 0 | AY99: 0 | AZ99: 0 | BA99: 0 | BB99: 20 | BC99: 17 | BD99: 0 | BE99: 5 | BF99: 0 | BG99: 2 | BH99: 0 | BI99: 9 | BJ99: 0 | BK99: 3 | BL99: 27 | BM99: 0 | BN99: 0 | BO99: 0 | BP99: 20 | BQ99: 0 | BR99: 0 | BS99: 4 | BT99: 0 | BU99: 0 | BV99: 0 | BW99: 4 | BX99: 0 | BY99: 0 | BZ99: 0 | CA99: 0 | CB99: 0 | CC99: 0 | CD99: 0 | CE99: 0 | CF99: 0 | CG99: 0 | CH99: 0 | CI99: 0 | CJ99: 0 | CK99: 0 | CL99: 0 | CM99: 0 | CN99: 0 | CO99: 0 | CP99: 0 | CQ99: 0 | CR99: 0 | CS99: 0 | CT99: 0 | CU99: 0 | CV99: 0 | CW99: 0 | CX99: 0 | CY99: 0 | CZ99: 0 | DA99: 0 | DB99: 0 | DC99: 0 | DD99: 0 | DE99: 0 | DF99: 0 | DG99: 0 | DH99: 0
C100: > 33 kV & < = 66 kV ; Switch | D100: 69 | E100: 8.306623863 | F100: 1 | G100: 34 | H100: 58 | I100: 73 | J100: 75 | K100: 80 | L100: 70 | M100: 19 | N100: 24 | O100: 18 | P100: 22 | Q100: 12 | R100: 7 | S100: 20 | T100: 20 | U100: 12 | V100: 3 | W100: 2 | X100: 9 | Y100: 1 | Z100: 12 | AA100: 0 | AB100: 0 | AC100: 0 | AD100: 17 | AE100: 12 | AF100: 0 | AG100: 2 | AH100: 25 | AI100: 9 | AJ100: 4 | AK100: 0 | AL100: 1 | AM100: 5 | AN100: 0 | AO100: 0 | AP100: 7 | AQ100: 4 | AR100: 10 | AS100: 18 | AT100: 6 | AU100: 3 | AV100: 0 | AW100: 12 | AX100: 20 | AY100: 88 | AZ100: 76 | BA100: 59 | BB100: 49 | BC100: 31 | BD100: 73 | BE100: 36 | BF100: 65 | BG100: 22 | BH100: 25 | BI100: 4 | BJ100: 0 | BK100: 30 | BL100: 33 | BM100: 0 | BN100: 40 | BO100: 15 | BP100: 10 | BQ100: 12 | BR100: 0 | BS100: 0 | BT100: 0 | BU100: 0 | BV100: 0 | BW100: 0 | BX100: 0 | BY100: 0 | BZ100: 0 | CA100: 0 | CB100: 0 | CC100: 8 | CD100: 0 | CE100: 0 | CF100: 6 | CG100: 15 | CH100: 0 | CI100: 0 | CJ100: 0 | CK100: 6 | CL100: 0 | CM100: 0 | CN100: 0 | CO100: 0 | CP100: 0 | CQ100: 0 | CR100: 0 | CS100: 0 | CT100: 0 | CU100: 0 | CV100: 0 | CW100: 0 | CX100: 0 | CY100: 0 | CZ100: 0 | DA100: 0 | DB100: 0 | DC100: 0 | DD100: 0 | DE100: 0 | DF100: 0 | DG100: 0 | DH100: 0
C101: > 33 kV & < = 66 kV ; Circuit Breaker | D101: 66 | E101: 8.124038405 | F101: 6 | G101: 10 | H101: 11 | I101: 14 | J101: 40 | K101: 41 | L101: 30 | M101: 15 | N101: 24 | O101: 16 | P101: 20 | Q101: 11 | R101: 2 | S101: 14 | T101: 11 | U101: 8 | V101: 6 | W101: 2 | X101: 7 | Y101: 1 | Z101: 1 | AA101: 1 | AB101: 0 | AC101: 0 | AD101: 2 | AE101: 8 | AF101: 0 | AG101: 13 | AH101: 6 | AI101: 4 | AJ101: 2 | AK101: 12 | AL101: 11 | AM101: 0 | AN101: 10 | AO101: 0 | AP101: 0 | AQ101: 0 | AR101: 0 | AS101: 0 | AT101: 0 | AU101: 0 | AV101: 0 | AW101: 2 | AX101: 9 | AY101: 11 | AZ101: 24 | BA101: 6 | BB101: 6 | BC101: 3 | BD101: 0 | BE101: 15 | BF101: 12 | BG101: 0 | BH101: 0 | BI101: 0 | BJ101: 0 | BK101: 2 | BL101: 7 | BM101: 0 | BN101: 0 | BO101: 3 | BP101: 8 | BQ101: 0 | BR101: 8 | BS101: 0 | BT101: 0 | BU101: 0 | BV101: 1 | BW101: 0 | BX101: 0 | BY101: 0 | BZ101: 0 | CA101: 0 | CB101: 0 | CC101: 0 | CD101: 0 | CE101: 0 | CF101: 0 | CG101: 0 | CH101: 0 | CI101: 0 | CJ101: 0 | CK101: 0 | CL101: 0 | CM101: 0 | CN101: 0 | CO101: 0 | CP101: 0 | CQ101: 0 | CR101: 0 | CS101: 0 | CT101: 0 | CU101: 0 | CV101: 0 | CW101: 0 | CX101: 0 | CY101: 0 | CZ101: 0 | DA101: 0 | DB101: 0 | DC101: 0 | DD101: 0 | DE101: 0 | DF101: 0 | DG101: 0 | DH101: 0
C102: > 66 kV & < = 132 kV ; Switch | D102: 0 | E102: 0
C103: > 66 kV & < = 132 kV ; Circuit Breaker | D103: 0 | E103: 0
C104: > 132 kV ; Switch | D104: 0 | E104: 0
C105: > 132 kV ; Circuit Breaker | D105: 0 | E105: 0
C106: Other
B107: PUBLIC LIGHTING BY: ASSET TYPE ; LIGHTING OBLIGATION | C107: Luminaires ; Major Road
C108: Luminaires ; Minor Road
C109: Brackets ; Major Road
C110: Brackets ; Minor Road
C111: Lamps ; Major Road
C112: Lamps ; Minor Road
C113: Poles / Columns ; Major Road
C114: Poles / Columns ; Minor Road
C115: Other
B116: SCADA, NETWORK CONTROL AND PROTECTION SYSTEMS BY: FUNCTION | C116: Field Devices | D116: 35.63558339 | E116: 15.32080347 | F116: 242 | G116: 275 | H116: 252 | I116: 146 | J116: 148 | K116: 154 | L116: 154 | M116: 153 | N116: 158 | O116: 156 | P116: 173 | Q116: 124 | R116: 137 | S116: 138 | T116: 124 | U116: 94 | V116: 146 | W116: 44 | X116: 46 | Y116: 15 | Z116: 36 | AA116: 44 | AB116: 185 | AC116: 424 | AD116: 374 | AE116: 340 | AF116: 356 | AG116: 334 | AH116: 284 | AI116: 288 | AJ116: 248 | AK116: 241 | AL116: 184 | AM116: 186 | AN116: 183 | AO116: 211 | AP116: 212 | AQ116: 210 | AR116: 208 | AS116: 232 | AT116: 202 | AU116: 191 | AV116: 239 | AW116: 297 | AX116: 300 | AY116: 314 | AZ116: 297 | BA116: 506 | BB116: 429 | BC116: 749 | BD116: 616 | BE116: 233 | BF116: 164 | BG116: 131 | BH116: 118 | BI116: 111 | BJ116: 118 | BK116: 109 | BL116: 91 | BM116: 12 | BN116: 21 | BO116: 2 | BP116: 1 | BQ116: 0 | BR116: 1 | BS116: 0 | BT116: 1 | BU116: 0 | BV116: 1 | BW116: 0 | BX116: 0 | BY116: 0 | BZ116: 0 | CA116: 0 | CB116: 0 | CC116: 0 | CD116: 0 | CE116: 1 | CF116: 2 | CG116: 1 | CH116: 2 | CI116: 0 | CJ116: 2 | CK116: 0 | CL116: 1 | CM116: 0 | CN116: 1 | CO116: 0 | CP116: 10 | CQ116: 0 | CR116: 0 | CS116: 0 | CT116: 0 | CU116: 0 | CV116: 0 | CW116: 0 | CX116: 0 | CY116: 0 | CZ116: 0 | DA116: 0 | DB116: 0 | DC116: 0 | DD116: 0 | DE116: 0 | DF116: 0 | DG116: 0
C117: Local Network Wiring Assets
C118: Communications Network Assets | D118: 10 | E118: 3.2 | F118: 257 | G118: 207 | H118: 141 | I118: 415 | J118: 274 | K118: 283 | L118: 202 | M118: 88 | N118: 63 | O118: 271 | P118: 190 | Q118: 43 | R118: 53 | S118: 0 | T118: 20 | U118: 0 | V118: 0 | W118: 1 | X118: 12 | Y118: 0 | Z118: 3 | AA118: 14 | AB118: 3 | AC118: 26 | AD118: 1 | AE118: 2 | AF118: 4 | AG118: 0 | AH118: 0 | AI118: 0 | AJ118: 7 | AK118: 1 | AL118: 4 | AM118: 3 | AN118: 3 | AO118: 0 | AP118: 0 | AQ118: 0 | AR118: 0 | AS118: 0 | AT118: 0 | AU118: 0 | AV118: 0 | AW118: 0 | AX118: 0 | AY118: 0 | AZ118: 0 | BA118: 0 | BB118: 0 | BC118: 0 | BD118: 0 | BE118: 0 | BF118: 0 | BG118: 0 | BH118: 0 | BI118: 0 | BJ118: 0 | BK118: 0 | BL118: 0 | BM118: 0 | BN118: 0 | BO118: 0 | BP118: 0 | BQ118: 0 | BR118: 0 | BS118: 0 | BT118: 0 | BU118: 0 | BV118: 0 | BW118: 0 | BX118: 0 | BY118: 0 | BZ118: 0 | CA118: 0 | CB118: 0 | CC118: 0 | CD118: 0 | CE118: 0 | CF118: 0 | CG118: 0 | CH118: 0 | CI118: 0 | CN118: 0 | CX118: 0 | DH118: 0
C119: Master Station Assets | D119: 12 | E119: 3.464 | F119: 12 | G119: 33 | H119: 23 | I119: 22 | J119: 14 | K119: 8 | L119: 18 | M119: 18 | N119: 16 | O119: 24 | P119: 34 | Q119: 29 | R119: 28 | S119: 14 | T119: 22 | U119: 0 | V119: 16 | AF119: 0 | AP119: 0 | AZ119: 0 | BJ119: 0 | BT119: 0 | CD119: 0 | CN119: 0 | CX119: 0 | DH119: 0
C120: Communications Site Infrastructure | D120: 25 | E120: 5 | F120: 0 | G120: 2 | H120: 0 | I120: 0 | J120: 1 | K120: 0 | L120: 0 | M120: 1 | N120: 3 | O120: 7 | P120: 1 | Q120: 5 | R120: 8 | S120: 5 | T120: 2 | U120: 0 | V120: 0 | W120: 1 | X120: 0 | Y120: 0 | Z120: 0 | AA120: 0 | AB120: 0 | AC120: 0 | AD120: 2 | AE120: 1 | AF120: 4 | AG120: 1 | AH120: 7 | AI120: 0 | AJ120: 3 | AK120: 1 | AL120: 1 | AM120: 0 | AN120: 0 | AO120: 6 | AP120: 0 | AQ120: 1 | AR120: 0 | AS120: 1 | AT120: 1 | AU120: 1 | AV120: 0 | AW120: 0 | AX120: 0 | AY120: 2 | AZ120: 0 | BA120: 1 | BB120: 0 | BC120: 0 | BD120: 0 | BE120: 0 | BF120: 0 | BG120: 0 | BH120: 0 | BI120: 0 | BJ120: 0 | BK120: 0 | BL120: 0 | BM120: 0 | BN120: 0 | BO120: 0 | BP120: 0 | BQ120: 0 | BR120: 0 | BS120: 0 | BT120: 0 | BU120: 0 | BV120: 0 | BW120: 0 | BX120: 0 | BY120: 0 | BZ120: 0 | CA120: 0 | CB120: 0 | CC120: 0 | CD120: 0 | CE120: 0 | CF120: 0 | CG120: 0 | CH120: 0 | CI120: 0 | CN120: 0 | CX120: 0 | DH120: 0
C121: Communications Linear Assets | D121: 32.5 | E121: 5.696653 | F121: 117.51 | G121: 92.931 | H121: 91.675 | I121: 210.8 | J121: 205.9 | K121: 186.56 | L121: 180.9 | M121: 172.8 | N121: 157.9 | O121: 182 | P121: 161.55 | Q121: 153.95 | R121: 169.6 | S121: 90.8 | T121: 82.91 | U121: 26.63 | V121: 25.21 | W121: 23.31 | X121: 24.55 | Y121: 8.74 | Z121: 1.46 | AA121: 2.91 | AB121: 4.37 | AC121: 4.37 | AD121: 7.28 | AE121: 26.22 | AF121: 4.37 | AG121: 7.28 | AH121: 5.83 | AI121: 5.83 | AJ121: 2.91 | AK121: 2.91 | AL121: 11.65 | AM121: 8.74 | AN121: 10.2 | AO121: 2.91 | AP121: 5.83 | AQ121: 17.48 | AR121: 17.48 | AS121: 13.11 | AT121: 8.74 | AU121: 1.46 | AV121: 0 | AW121: 1.46 | AX121: 16.02 | AY121: 29.13 | AZ121: 28.63 | BA121: 17.55 | BB121: 19.91 | BC121: 13.11 | BD121: 28.25 | BE121: 7.28 | BF121: 1.46 | BG121: 13.11 | BH121: 0 | BI121: 7.28 | BJ121: 0 | BK121: 1.46 | BL121: 7.28 | BM121: 5.83 | BN121: 11.65 | BO121: 0 | BP121: 0 | BQ121: 0 | BR121: 0 | BS121: 0 | BT121: 0 | BU121: 0 | BV121: 0 | BW121: 0 | BX121: 8.74 | BY121: 0 | BZ121: 0 | CA121: 0 | CB121: 0 | CC121: 0 | CD121: 0 | CE121: 0 | CF121: 0 | CG121: 0 | CH121: 0 | CI121: 0 | CN121: 0 | CX121: 0 | DH121: 0
C122: AFLC
C123: Other
B124: OTHER BY: DNSP DEFINED | C124: ˂ ≈ 11 kV ; STOBIE POLE | D124: 73 | E124: 8.544 | F124: 2501.832691 | G124: 3131.538882 | H124: 3113.473847 | I124: 3111.463362 | J124: 1992.858735 | K124: 1557.237642 | L124: 1445.072942 | M124: 1460.105908 | N124: 1411.026002 | O124: 1201.208559 | P124: 1092.569179 | Q124: 1068.553731 | R124: 1163.911755 | S124: 1071.537109 | T124: 1283.847366 | U124: 1547.978239 | V124: 1690.424897 | W124: 1135.629048 | X124: 486.7000664 | Y124: 1842.645156 | Z124: 2407.205091 | AA124: 2365.395035 | AB124: 2509.599995 | AC124: 3979.603391 | AD124: 5184.44273 | AE124: 5055.304988 | AF124: 5603.942158 | AG124: 6141.030772 | AH124: 4839.474269 | AI124: 5071.697735 | AJ124: 5843.039507 | AK124: 6531.946671 | AL124: 7055.298686 | AM124: 6292.213975 | AN124: 6264.832288 | AO124: 6919.051342 | AP124: 7291.928833 | AQ124: 7930.197021 | AR124: 9376.503485 | AS124: 9500.291575 | AT124: 8977.900197 | AU124: 9756.176995 | AV124: 9163.368458 | AW124: 9395.215016 | AX124: 11758.38365 | AY124: 12887.17793 | AZ124: 12339.54971 | BA124: 12025.08042 | BB124: 12186.08631 | BC124: 15150.10343 | BD124: 17761.18669 | BE124: 16822.50593 | BF124: 18027.14409 | BG124: 18633.30737 | BH124: 17996.75472 | BI124: 17528.84259 | BJ124: 15197.32866 | BK124: 14857.12809 | BL124: 14201.7637 | BM124: 14423.77429 | BN124: 16114.3247 | BO124: 13494.56626 | BP124: 11620.08518 | BQ124: 12290.53215 | BR124: 8175.550318 | BS124: 4461.129957 | BT124: 3627.914481 | BU124: 1546.815424 | BV124: 1164.920135 | BW124: 1118.930739 | BX124: 1183.322385 | BY124: 1184.841894 | BZ124: 830.260258 | CA124: 1043.679424 | CB124: 1593.879246 | CC124: 2497.006972 | CD124: 3069.637361 | CE124: 3026.115451 | CF124: 2426.963286 | CG124: 3357.364409 | CH124: 3829.525624 | CI124: 2546.522454 | CJ124: 1252.276124 | CK124: 462.1940311 | CL124: 50.40242399 | CM124: 0 | CN124: 0 | CO124: 0 | CP124: 0 | CQ124: 0 | CR124: 0 | CX124: 0 | DH124: 0
C125: > 11 kV & <≈ 33 kV ; STOBIE POLE | D125: 73 | E125: 8.544 | F125: 344.8391044 | G125: 220.8969336 | H125: 298.428092 | I125: 250.3591376 | J125: 344.4941733 | K125: 266.3840253 | L125: 228.3275335 | M125: 269.386432 | N125: 307.441021 | O125: 303.4352748 | P125: 122.9725879 | Q125: 147.2111729 | R125: 146.2097363 | S125: 157.2255384 | T125: 140.9823379 | U125: 149.214046 | V125: 217.3117314 | W125: 148.2126094 | X125: 38.05458891 | Y125: 479.6900105 | Z125: 876.2569815 | AA125: 884.2684739 | AB125: 559.8030316 | AC125: 1106.598806 | AD125: 1491.140926 | AE125: 1415.03936 | AF125: 1585.002132 | AG125: 1522.28059 | AH125: 1359.003199 | AI125: 1600.040806 | AJ125: 2073.662612 | AK125: 2095.732171 | AL125: 1675.82555 | AM125: 1623.785283 | AN125: 1697.198124 | AO125: 1633.829588 | AP125: 1377.978596 | AQ125: 1201.090635 | AR125: 1541.636668 | AS125: 2443.305755 | AT125: 4388.758546 | AU125: 4906.396398 | AV125: 4761.848196 | AW125: 4832.524404 | AX125: 5080.85497 | AY125: 6203.253315 | AZ125: 6305.949654 | BA125: 5892.955042 | BB125: 6020.445104 | BC125: 6613.422935 | BD125: 6549.29346 | BE125: 5708.879198 | BF125: 7176.946777 | BG125: 8037.199011 | BH125: 6299.268907 | BI125: 5211.53828 | BJ125: 5246.591478 | BK125: 3829.693775 | BL125: 2156.990394 | BM125: 1679.778185 | BN125: 1525.455667 | BO125: 1135.205302 | BP125: 1038.73984 | BQ125: 1134.975295 | BR125: 3112.237797 | BS125: 2898.957376 | BT125: 379.9567347 | BU125: 41.67892753 | BV125: 77.48167825 | BW125: 115.6790866 | BX125: 140.1253695 | BY125: 68.51672266 | BZ125: 26.98878095 | CA125: 290.4812437 | CB125: 505.135365 | CC125: 259.9835373 | CD125: 184.0225584 | CE125: 516.6248459 | CF125: 828.4261741 | CG125: 616.4604165 | CH125: 324.7079238 | CI125: 405.1579467 | CJ125: 236.5036818 | CK125: 185.1319804 | CL125: 150.2379946 | CM125: 0 | CN125: 0 | CO125: 0 | CP125: 0 | CQ125: 0 | CR125: 0 | CX125: 0 | DH125: 0
C126: > 33 kV & <≈ 66 kV ; STOBIE POLE | D126: 73 | E126: 8.544 | F126: 71.96642179 | G126: 76.96408997 | H126: 36.05171581 | I126: 61.08762957 | J126: 103.1479647 | K126: 96.13790883 | L126: 79.11348748 | M126: 60.08619302 | N126: 82.11779713 | O126: 80.11492403 | P126: 39.05602546 | Q126: 33.04740616 | R126: 29.04165996 | S126: 65.09337577 | T126: 13.01867515 | U126: 55.07901027 | V126: 22.03160411 | W126: 2.002873101 | X126: 3.004309651 | Y126: 104.1494012 | Z126: 175.2513963 | AA126: 225.3232238 | AB126: 292.4194727 | AC126: 418.600478 | AD126: 375.5387064 | AE126: 289.415163 | AF126: 368.5286505 | AG126: 423.6076608 | AH126: 394.5660008 | AI126: 345.4956099 | AJ126: 213.6037715 | AK126: 164.2355943 | AL126: 160.2298481 | AM126: 214.3074218 | AN126: 219.3146045 | AO126: 252.659797 | AP126: 221.3174776 | AQ126: 153.2197922 | AR126: 418.600478 | AS126: 1106.443335 | AT126: 871.1188417 | AU126: 314.3201197 | AV126: 387.7620613 | AW126: 574.9783134 | AX126: 778.0507211 | AY126: 876.1088942 | AZ126: 809.032319 | BA126: 635.6888157 | BB126: 643.7966307 | BC126: 949.6389535 | BD126: 1114.257607 | BE126: 1057.708061 | BF126: 996.29542 | BG126: 922.8619967 | BH126: 869.4943916 | BI126: 596.1057864 | BJ126: 372.3467634 | BK126: 363.5577884 | BL126: 439.2530943 | BM126: 629.1921745 | BN126: 1202.576816 | BO126: 1200.662771 | BP126: 720.4952659 | BQ126: 2042.896238 | BR126: 1785.147028 | BS126: 128.9138921 | BT126: 75.60363599 | BU126: 114.3747314 | BV126: 227.7801853 | BW126: 348.8874756 | BX126: 381.7471718 | BY126: 169.5973509 | BZ126: 180.2724978 | CA126: 298.511243 | CB126: 228.6930151 | CC126: 199.5270884 | CD126: 432.2064334 | CE126: 674.6170596 | CF126: 567.0272699 | CG126: 227.7801853 | CH126: 79.48074553 | CI126: 67.84941691 | CJ126: 34.89398584 | CK126: 84.32713245 | CL126: 50.40242399 | CM126: 0 | CN126: 0 | CO126: 0 | CP126: 0 | CQ126: 0 | CR126: 0 | CX126: 0 | DH126: 0
C127: > 66 kV & <≈ 132 kV ; STOBIE POLE | D127: 73 | E127: 8.544 | F127: 0 | G127: 0 | H127: 0 | I127: 0 | J127: 0 | K127: 0 | L127: 0 | M127: 0 | N127: 0 | O127: 74 | P127: 0 | Q127: 0 | R127: 0 | S127: 0 | T127: 0 | U127: 0 | V127: 0 | W127: 0 | X127: 0 | Y127: 0 | Z127: 0 | AA127: 0 | AB127: 0 | AC127: 0 | AD127: 0 | AE127: 0 | AF127: 0 | AG127: 0 | AH127: 0 | AI127: 0 | AJ127: 0 | AK127: 0 | AL127: 0 | AM127: 0 | AN127: 0 | AO127: 0 | AP127: 0 | AQ127: 0 | AR127: 0 | AS127: 0 | AT127: 0 | AU127: 0 | AV127: 0 | AW127: 0 | AX127: 0 | AY127: 0 | AZ127: 0 | BA127: 0 | BB127: 0 | BC127: 0 | BD127: 0 | BE127: 0 | BF127: 0 | BG127: 0 | BH127: 0 | BI127: 0 | BJ127: 0 | BK127: 0 | BL127: 0 | BM127: 0 | BN127: 0 | BO127: 0 | BP127: 0 | BQ127: 0 | BR127: 0 | BS127: 0 | BT127: 0 | BU127: 0 | BV127: 0 | BW127: 0 | BX127: 0 | BY127: 0 | BZ127: 0 | CA127: 0 | CB127: 0 | CC127: 0 | CD127: 0 | CE127: 0 | CF127: 0 | CG127: 0 | CH127: 0 | CI127: 0 | CJ127: 0 | CK127: 0 | CL127: 0 | CM127: 0 | CN127: 0 | CO127: 0 | CP127: 0 | CQ127: 0 | CR127: 0 | CX127: 0 | DH127: 0
C128: Pole Refurbished; STOBIE | D128: 20 | E128: 4.472 | F128: 2676 | G128: 3715 | H128: 2563 | I128: 3210 | J128: 3005 | K128: 1811 | L128: 917 | M128: 1232 | N128: 2349 | O128: 2467 | P128: 430 | Q128: 0 | R128: 0 | S128: 0 | T128: 0 | U128: 0 | V128: 0 | W128: 0 | X128: 0 | Y128: 0 | Z128: 0 | AA128: 0 | AB128: 0 | AC128: 0 | AD128: 0 | AE128: 0 | AF128: 0 | AG128: 0 | AH128: 0 | AI128: 0 | AJ128: 0 | AK128: 0 | AL128: 0 | AM128: 0 | AN128: 0 | AO128: 0 | AP128: 0 | AQ128: 0 | AR128: 0 | AS128: 0 | AT128: 0 | AU128: 0 | AV128: 0 | AW128: 0 | AX128: 0 | AY128: 0 | AZ128: 0 | BA128: 0 | BB128: 0 | BC128: 0 | BD128: 0 | BE128: 0 | BF128: 0 | BG128: 0 | BH128: 0 | BI128: 0 | BJ128: 0 | BK128: 0 | BL128: 0 | BM128: 0 | BN128: 0 | BO128: 0 | BP128: 0 | BQ128: 0 | BR128: 0 | BS128: 0 | BT128: 0 | BU128: 0 | BV128: 0 | BW128: 0 | BX128: 0 | BY128: 0 | BZ128: 0 | CA128: 0 | CB128: 0 | CC128: 0 | CD128: 0 | CE128: 0 | CF128: 0 | CG128: 0 | CH128: 0 | CI128: 0 | CJ128: 0 | CK128: 0 | CL128: 0 | CM128: 0 | CN128: 0 | CO128: 0 | CP128: 0 | CQ128: 0 | CR128: 0 | CX128: 0 | DH128: 0
C129: POLE MOUNTED TRANSFORMER; > 22 kV ; < ≈ 60 kVA | D129: 55 | E129: 7.416 | F129: 15 | G129: 29 | H129: 24 | I129: 6 | J129: 13 | K129: 17 | L129: 11 | M129: 8 | N129: 9 | O129: 12 | P129: 15 | Q129: 12 | R129: 10 | S129: 12 | T129: 13 | U129: 12 | V129: 15 | W129: 17 | X129: 19 | Y129: 19 | Z129: 32 | AA129: 29 | AB129: 23 | AC129: 26 | AD129: 24 | AE129: 31 | AF129: 32 | AG129: 27 | AH129: 34 | AI129: 27 | AJ129: 17 | AK129: 11 | AL129: 10 | AM129: 9 | AN129: 12 | AO129: 11 | AP129: 12 | AQ129: 19 | AR129: 15 | AS129: 12 | AT129: 15 | AU129: 13 | AV129: 17 | AW129: 18 | AX129: 25 | AY129: 26 | AZ129: 21 | BA129: 25 | BB129: 22 | BC129: 19 | BD129: 18 | BE129: 14 | BF129: 22 | BG129: 16 | BH129: 6 | BI129: 9 | BJ129: 7 | BK129: 5 | BL129: 10 | BM129: 8 | BN129: 4 | BO129: 3 | BP129: 1 | BQ129: 1 | BR129: 0 | BS129: 0 | BT129: 0 | BU129: 0 | BV129: 0 | BW129: 0 | BX129: 0 | BY129: 0 | BZ129: 0 | CA129: 0 | CB129: 0 | CC129: 0 | CD129: 0 | CE129: 0 | CF129: 0 | CG129: 0 | CH129: 0 | CN129: 0 | CX129: 0 | DH129: 0
C130: POLE MOUNTED TRANSFORMER ; > 22 kV ; > 60 kVA and < ≈ 600 kVA | D130: 55 | E130: 7.416 | F130: 23 | G130: 34 | H130: 14 | I130: 10 | J130: 21 | K130: 25 | L130: 18 | M130: 14 | N130: 15 | O130: 13 | P130: 12 | Q130: 13 | R130: 17 | S130: 14 | T130: 9 | U130: 10 | V130: 11 | W130: 7 | X130: 12 | Y130: 14 | Z130: 16 | AA130: 20 | AB130: 16 | AC130: 15 | AD130: 13 | AE130: 10 | AF130: 15 | AG130: 21 | AH130: 18 | AI130: 10 | AJ130: 10 | AK130: 12 | AL130: 9 | AM130: 5 | AN130: 8 | AO130: 7 | AP130: 6 | AQ130: 8 | AR130: 8 | AS130: 5 | AT130: 4 | AU130: 3 | AV130: 5 | AW130: 7 | AX130: 9 | AY130: 16 | AZ130: 13 | BA130: 16 | BB130: 13 | BC130: 9 | BD130: 11 | BE130: 13 | BF130: 8 | BG130: 4 | BH130: 1 | BI130: 2 | BJ130: 2 | BK130: 5 | BL130: 2 | BM130: 1 | BN130: 3 | BO130: 3 | BP130: 1 | BQ130: 0 | BR130: 0 | BS130: 0 | BT130: 0 | BU130: 0 | BV130: 0 | BW130: 0 | BX130: 0 | BY130: 0 | BZ130: 0 | CA130: 0 | CB130: 0 | CC130: 0 | CD130: 0 | CE130: 0 | CF130: 0 | CG130: 0 | CH130: 0 | CN130: 0 | CX130: 0 | DH130: 0
C131: KIOSK MOUNTED TRANSFORMER; > 22 kV ; > 60 kVA and < ≈ 600 kVA | D131: 50 | E131: 7.071 | F131: 4 | G131: 3 | H131: 3 | I131: 1 | J131: 1 | K131: 1 | L131: 2 | M131: 3 | N131: 4 | O131: 4 | P131: 3 | Q131: 2 | R131: 2 | S131: 1 | T131: 1 | U131: 2 | V131: 2 | W131: 2 | X131: 3 | Y131: 2 | Z131: 0 | AA131: 0 | AB131: 0 | AC131: 0 | AD131: 0 | AE131: 0 | AF131: 0 | AG131: 1 | AH131: 2 | AI131: 1 | AJ131: 0 | AK131: 0 | AL131: 0 | AM131: 0 | AN131: 0 | AO131: 0 | AP131: 0 | AQ131: 0 | AR131: 0 | AS131: 0 | AT131: 0 | AU131: 0 | AV131: 0 | AW131: 1 | AX131: 2 | AY131: 1 | AZ131: 0 | BA131: 0 | BB131: 0 | BC131: 0 | BD131: 0 | BE131: 0 | BF131: 0 | BG131: 0 | BH131: 0 | BI131: 0 | BJ131: 0 | BK131: 0 | BL131: 0 | BM131: 0 | BN131: 0 | BO131: 0 | BP131: 0 | BQ131: 0 | BR131: 0 | BS131: 0 | BT131: 0 | BU131: 0 | BV131: 0 | BW131: 0 | BX131: 0 | BY131: 0 | BZ131: 0 | CA131: 0 | CB131: 0 | CC131: 0 | CD131: 0 | CE131: 0 | CF131: 0 | CG131: 0 | CH131: 0 | CN131: 0 | CX131: 0 | DH131: 0
C132: Recloser ;SWITCHGEAR | D132: 45 | E132: 7 | F132: 204 | G132: 197 | H132: 162 | I132: 195 | J132: 168 | K132: 73 | L132: 89 | M132: 270 | N132: 51 | O132: 8 | P132: 20 | Q132: 87 | R132: 97 | S132: 40 | T132: 15 | U132: 13 | V132: 5 | W132: 8 | X132: 11 | Y132: 10 | Z132: 13 | AA132: 16 | AB132: 16 | AC132: 9 | AD132: 9 | AE132: 11 | AF132: 11 | AG132: 20 | AH132: 21 | AI132: 21 | AJ132: 29 | AK132: 15 | AL132: 20 | AM132: 16 | AN132: 12 | AO132: 5 | AP132: 9 | AQ132: 6 | AR132: 2 | AS132: 1 | AT132: 6 | AU132: 2 | AV132: 2 | AW132: 0 | AX132: 16 | AY132: 40 | AZ132: 7 | BA132: 8 | BB132: 30 | BC132: 21 | BJ132: 0 | BT132: 0 | CD132: 0 | CN132: 0 | CX132: 0 | DH132: 0
C133: Sectionalizer ;SWITCHGEAR | D133: 45 | E133: 7 | F133: 16 | G133: 15 | H133: 51 | I133: 35 | J133: 38 | K133: 33 | L133: 45 | M133: 33 | N133: 4 | O133: 4 | P133: 5 | Q133: 21 | R133: 27 | S133: 12 | T133: 6 | U133: 7 | V133: 4 | W133: 1 | X133: 1 | Y133: 1 | Z133: 1 | AA133: 2 | AB133: 6 | AC133: 6 | AD133: 15 | AE133: 18.27045075 | AF133: 20.5542571 | AG133: 9.706176962 | AH133: 12.56093489 | AI133: 23.97996661 | AJ133: 13.13188648 | AK133: 10.27712855 | AL133: 11.98998331 | AM133: 19.98330551 | AN133: 19.41235392 | AO133: 13.70283806 | AP133: 18.84140234 | AQ133: 21.12520868 | AR133: 18.27045075 | AS133: 14.84140234 | AT133: 17.97996661 | AU133: 12.27045075 | AV133: 7.131886477 | AW133: 5.993322204 | AX133: 5.422370618 | AY133: 4.851419032 | AZ133: 3.138564274 | BA133: 6 | BB133: 3 | BC133: 0 | BJ133: 0 | BT133: 0 | CD133: 0 | CN133: 0 | CX133: 0 | DH133: 0
C134: >= 11 kV & < ≈ 22 kV ; LOAD BREAK SWITCH; GROUND LEVEL (Switching Cubical);SWITCHGEAR | D134: 45 | E134: 7 | F134: 90 | G134: 110 | H134: 79 | I134: 239 | J134: 319 | K134: 354 | L134: 393 | M134: 389 | N134: 344 | O134: 477.3636364 | P134: 475 | Q134: 274 | R134: 228 | S134: 162 | T134: 57 | U134: 25 | V134: 26 | W134: 4 | X134: 134 | Y134: 134 | Z134: 0 | AA134: 0 | AB134: 1 | AC134: 229 | AD134: 210.8181818 | AE134: 4.454545455 | AF134: 23.18181818 | AG134: 16.18181818 | AH134: 11 | AI134: 140 | AJ134: 133 | AK134: 1 | AL134: 1 | AM134: 0 | AN134: 56.05645161 | AO134: 56.05645161 | AP134: 0 | AQ134: 0 | AR134: 0 | AS134: 44.48924731 | AT134: 44.48924731 | AU134: 0.8897849462 | AV134: 2.669354839 | AW134: 3.559139785 | AX134: 3.559139785 | AY134: 3.559139785 | AZ134: 5.338709677 | BA134: 7.11827957 | BB134: 8.008064516 | BC134: 8.897849462 | BD134: 8.897849462 | BE134: 8.897849462 | BF134: 8.897849462 | BG134: 8.008064516 | BH134: 8.008064516 | BI134: 8.897849462 | BJ134: 8.897849462 | BK134: 8.897849462 | BL134: 8.897849462 | BM134: 6.228494624 | BN134: 1.779569892 | BO134: 0 | BP134: 0 | BQ134: 0 | BR134: 0 | BS134: 0 | BT134: 0 | BU134: 0 | BV134: 0 | BW134: 0 | BX134: 0 | BY134: 0 | BZ134: 0 | CA134: 0 | CB134: 0 | CC134: 0 | CD134: 0 | CN134: 0 | CX134: 0 | DH134: 0
C135: > 22 kV & < ≈ 33 kV ; LOAD BREAK SWITCH; GROUND LEVEL (Switching Cubical);SWITCHGEAR | D135: 45 | E135: 7 | F135: 0 | G135: 0 | H135: 0 | I135: 8 | J135: 20 | K135: 8 | L135: 16 | M135: 2 | N135: 0 | O135: 0 | P135: 0 | Q135: 0 | R135: 0 | S135: 0 | T135: 0 | U135: 0 | V135: 0 | W135: 0 | X135: 0 | Y135: 0 | Z135: 0 | AA135: 0 | AB135: 0 | AC135: 0 | AD135: 0 | AE135: 0 | AF135: 0 | AG135: 0 | AH135: 0 | AI135: 0 | AJ135: 0 | AK135: 0 | AL135: 0 | AM135: 0 | AN135: 0 | AO135: 0 | AP135: 0 | AQ135: 0 | AR135: 0 | AS135: 0 | AT135: 0 | AU135: 0 | AV135: 0 | AW135: 0 | AX135: 0 | AY135: 0 | AZ135: 0 | BA135: 0 | BB135: 0 | BC135: 0 | BJ135: 0 | BT135: 0 | CD135: 0 | CN135: 0 | CX135: 0 | DH135: 0
C136: Pipe Buswork Substations | F136: 0 | G136: 0 | H136: 0 | I136: 0 | J136: 0 | K136: 0 | L136: 0 | M136: 0 | N136: 0 | O136: 0 | P136: 0 | Q136: 0 | R136: 0 | S136: 0 | T136: 0 | U136: 0 | V136: 0 | W136: 0 | X136: 0 | Y136: 0 | Z136: 0 | AA136: 0 | AB136: 0 | AC136: 0 | AD136: 1 | AE136: 1 | AF136: 0 | AG136: 0 | AH136: 0 | AI136: 0 | AJ136: 0 | AK136: 0 | AL136: 3 | AM136: 0 | AN136: 0 | AO136: 0 | AP136: 0 | AQ136: 0 | AR136: 0 | AS136: 0 | AT136: 0 | AU136: 1 | AV136: 0 | AW136: 3 | AX136: 3 | AY136: 1 | AZ136: 4 | BA136: 2 | BB136: 1 | BC136: 3 | BD136: 0 | BE136: 2 | BF136: 2 | BG136: 1 | BH136: 2 | BI136: 0 | BJ136: 0 | BK136: 1 | BL136: 1 | BM136: 0 | BN136: 0 | BO136: 0 | BP136: 0 | BQ136: 0 | BR136: 0 | BS136: 1 | BT136: 0 | BU136: 0 | BV136: 0 | BW136: 0 | BX136: 0 | BY136: 0 | BZ136: 1 | CA136: 0 | CB136: 1 | CC136: 0 | CD136: 0 | CE136: 0 | CF136: 0 | CG136: 0 | CH136: 0 | CI136: 0 | CJ136: 0 | CK136: 0 | CL136: 0 | CM136: 0 | CN136: 0 | CO136: 0 | CP136: 0 | CQ136: 0 | CR136: 0 | CS136: 0 | CT136: 0 | CU136: 0 | CV136: 0 | CW136: 0 | CX136: 0 | CY136: 0 | CZ136: 0 | DA136: 0 | DB136: 0 | DC136: 0 | DD136: 0 | DE136: 0 | DF136: 0 | DG136: 0 | DH136: 0
C137: Ground Outdoor / Indoor Chamber Mounted; > = 22 kV & < = 33 kV ; < = 15 MVA REFURBISHED | F137: 8 | G137: 3 | H137: 2 | I137: 7 | J137: 11 | K137: 6 | L137: 7 | M137: 4 | N137: 2 | O137: 4 | P137: 2 | Q137: 2 | R137: 5 | S137: 3 | T137: 10 | U137: 9 | V137: 1 | W137: 1 | X137: 2 | Y137: 0 | Z137: 2 | AA137: 0 | AB137: 1 | AC137: 0 | AD137: 14 | AE137: 2 | AF137: 3 | AG137: 0 | AH137: 27 | AI137: 0 | AJ137: 7 | AK137: 0 | AL137: 9 | AM137: 16 | AN137: 0 | AO137: 0 | AP137: 1 | AQ137: 3 | AR137: 0 | AS137: 6 | AT137: 6 | AU137: 13 | AV137: 0 | AW137: 3 | AX137: 0 | AY137: 3 | AZ137: 19 | BA137: 2 | BB137: 0 | BC137: 14 | BD137: 9 | BE137: 0 | BF137: 5 | BG137: 8 | BH137: 6 | BI137: 2 | BJ137: 0 | BK137: 3 | BL137: 4 | BM137: 8 | BN137: 9 | BO137: 5 | BP137: 3 | BQ137: 0 | BR137: 4 | BS137: 0 | BT137: 1 | BU137: 0 | BV137: 0 | BW137: 0 | BX137: 0 | BY137: 0 | BZ137: 0 | CA137: 0 | CB137: 0 | CC137: 0 | CD137: 0 | CE137: 0 | CF137: 0 | CG137: 0 | CH137: 0 | CI137: 0 | CJ137: 0 | CK137: 0 | CL137: 0 | CM137: 0 | CN137: 0 | CO137: 0 | CP137: 0 | CQ137: 0 | CR137: 0 | CS137: 0 | CT137: 0 | CU137: 0 | CV137: 0 | CW137: 0 | CX137: 0 | CY137: 0 | CZ137: 0 | DA137: 0 | DB137: 0 | DC137: 0 | DD137: 0 | DE137: 0 | DF137: 0 | DG137: 0 | DH137: 0
C138: Ground Outdoor / Indoor Chamber Mounted; > 33 kV & < = 66 kV ; < = 15 MVA REFURBISHED | F138: 2 | G138: 0 | H138: 1 | I138: 0 | J138: 0 | K138: 4 | L138: 3 | M138: 0 | N138: 4 | O138: 0 | P138: 0 | Q138: 0 | R138: 1 | S138: 0 | T138: 0 | U138: 6 | V138: 1 | W138: 1 | X138: 0 | Y138: 0 | Z138: 0 | AA138: 0 | AB138: 0 | AC138: 0 | AD138: 4 | AE138: 1 | AF138: 2 | AG138: 1 | AH138: 2 | AI138: 5 | AJ138: 0 | AK138: 0 | AL138: 9 | AM138: 0 | AN138: 0 | AO138: 1 | AP138: 0 | AQ138: 5 | AR138: 5 | AS138: 0 | AT138: 0 | AU138: 3 | AV138: 0 | AW138: 0 | AX138: 3 | AY138: 0 | AZ138: 11 | BA138: 7 | BB138: 5 | BC138: 7 | BD138: 5 | BE138: 5 | BF138: 18 | BG138: 5 | BH138: 14 | BI138: 5 | BJ138: 0 | BK138: 2 | BL138: 5 | BM138: 0 | BN138: 2 | BO138: 5 | BP138: 2 | BQ138: 0 | BR138: 2 | BS138: 1 | BT138: 0 | BU138: 0 | BV138: 0 | BW138: 0 | BX138: 0 | BY138: 0 | BZ138: 0 | CA138: 1 | CB138: 0 | CC138: 0 | CD138: 0 | CE138: 0 | CF138: 0 | CG138: 0 | CH138: 0 | CI138: 0 | CJ138: 0 | CK138: 0 | CL138: 0 | CM138: 0 | CN138: 0 | CO138: 0 | CP138: 0 | CQ138: 0 | CR138: 0 | CS138: 0 | CT138: 0 | CU138: 0 | CV138: 0 | CW138: 0 | CX138: 0 | CY138: 0 | CZ138: 0 | DA138: 0 | DB138: 0 | DC138: 0 | DD138: 0 | DE138: 0 | DF138: 0 | DG138: 0 | DH138: 0
C139: Ground Outdoor / Indoor Chamber Mounted; > 33 kV & < = 66 kV ; > 15 MVA and < = 40 MVA REFURBISHED | F139: 0 | G139: 2 | H139: 5 | I139: 1 | J139: 8 | K139: 4 | L139: 4 | M139: 4 | N139: 2 | O139: 4 | P139: 2 | Q139: 5 | R139: 2 | S139: 5 | T139: 4 | U139: 4 | V139: 0 | W139: 1 | X139: 0 | Y139: 0 | Z139: 2 | AA139: 0 | AB139: 3 | AC139: 0 | AD139: 1 | AE139: 5 | AF139: 1 | AG139: 3 | AH139: 0 | AI139: 1 | AJ139: 4 | AK139: 0 | AL139: 2 | AM139: 4 | AN139: 2 | AO139: 0 | AP139: 4 | AQ139: 1 | AR139: 4 | AS139: 0 | AT139: 0 | AU139: 0 | AV139: 0 | AW139: 1 | AX139: 4 | AY139: 0 | AZ139: 5 | BA139: 6 | BB139: 4 | BC139: 3 | BD139: 0 | BE139: 0 | BF139: 0 | BG139: 0 | BH139: 0 | BI139: 0 | BJ139: 0 | BK139: 0 | BL139: 0 | BM139: 3 | BN139: 3 | BO139: 0 | BP139: 0 | BQ139: 0 | BR139: 0 | BS139: 0 | BT139: 0 | BU139: 0 | BV139: 0 | BW139: 0 | BX139: 0 | BY139: 0 | BZ139: 0 | CA139: 0 | CB139: 0 | CC139: 0 | CD139: 0 | CE139: 0 | CF139: 0 | CG139: 0 | CH139: 0 | CI139: 0 | CJ139: 0 | CK139: 0 | CL139: 0 | CM139: 0 | CN139: 0 | CO139: 0 | CP139: 0 | CQ139: 0 | CR139: 0 | CS139: 0 | CT139: 0 | CU139: 0 | CV139: 0 | CW139: 0 | CX139: 0 | CY139: 0 | CZ139: 0 | DA139: 0 | DB139: 0 | DC139: 0 | DD139: 0 | DE139: 0 | DF139: 0 | DG139: 0 | DH139: 0
C140: ˂ = 11 kV ; Circuit Breaker REFURBISHED | F140: 20 | G140: 15 | H140: 27 | I140: 55 | J140: 135 | K140: 34 | L140: 21 | M140: 32 | N140: 13 | O140: 32 | P140: 13 | Q140: 13 | R140: 17 | S140: 30 | T140: 31 | U140: 10 | V140: 4 | W140: 32 | X140: 11 | Y140: 10 | Z140: 0 | AA140: 0 | AB140: 6 | AC140: 4 | AD140: 9 | AE140: 20 | AF140: 28 | AG140: 0 | AH140: 26 | AI140: 0 | AJ140: 31 | AK140: 0 | AL140: 0 | AM140: 4 | AN140: 0 | AO140: 0 | AP140: 0 | AQ140: 0 | AR140: 0 | AS140: 2 | AT140: 11 | AU140: 0 | AV140: 0 | AW140: 0 | AX140: 37 | AY140: 43 | AZ140: 45 | BA140: 37 | BB140: 14 | BC140: 79 | BD140: 57 | BE140: 2 | BF140: 85 | BG140: 20 | BH140: 21 | BI140: 15 | BJ140: 0 | BK140: 0 | BL140: 47 | BM140: 2 | BN140: 10 | BO140: 0 | BP140: 0 | BQ140: 20 | BR140: 0 | BS140: 7 | BT140: 0 | BU140: 0 | BV140: 0 | BW140: 0 | BX140: 0 | BY140: 0 | BZ140: 0 | CA140: 0 | CB140: 0 | CC140: 0 | CD140: 0 | CE140: 0 | CF140: 0 | CG140: 0 | CH140: 0 | CI140: 0 | CJ140: 0 | CK140: 0 | CL140: 0 | CM140: 0 | CN140: 0 | CO140: 0 | CP140: 0 | CQ140: 0 | CR140: 0 | CS140: 0 | CT140: 0 | CU140: 0 | CV140: 0 | CW140: 0 | CX140: 0 | CY140: 0 | CZ140: 0 | DA140: 0 | DB140: 0 | DC140: 0 | DD140: 0 | DE140: 0 | DF140: 0 | DG140: 0 | DH140: 0
C141: > 22 kV & < = 33 kV ; Circuit Breaker REFURBISHED | F141: 10 | G141: 1 | H141: 14 | I141: 18 | J141: 16 | K141: 14 | L141: 9 | M141: 5 | N141: 2 | O141: 11 | P141: 7 | Q141: 10 | R141: 7 | S141: 7 | T141: 2 | U141: 0 | V141: 3 | W141: 0 | X141: 0 | Y141: 0 | Z141: 0 | AA141: 0 | AB141: 0 | AC141: 0 | AD141: 0 | AE141: 0 | AF141: 10 | AG141: 2 | AH141: 0 | AI141: 0 | AJ141: 0 | AK141: 0 | AL141: 0 | AM141: 0 | AN141: 0 | AO141: 0 | AP141: 0 | AQ141: 0 | AR141: 0 | AS141: 0 | AT141: 0 | AU141: 0 | AV141: 0 | AW141: 0 | AX141: 0 | AY141: 0 | AZ141: 0 | BA141: 0 | BB141: 20 | BC141: 17 | BD141: 0 | BE141: 5 | BF141: 0 | BG141: 2 | BH141: 0 | BI141: 9 | BJ141: 0 | BK141: 3 | BL141: 27 | BM141: 0 | BN141: 0 | BO141: 0 | BP141: 20 | BQ141: 0 | BR141: 0 | BS141: 4 | BT141: 0 | BU141: 0 | BV141: 0 | BW141: 4 | BX141: 0 | BY141: 0 | BZ141: 0 | CA141: 0 | CB141: 0 | CC141: 0 | CD141: 0 | CE141: 0 | CF141: 0 | CG141: 0 | CH141: 0 | CI141: 0 | CJ141: 0 | CK141: 0 | CL141: 0 | CM141: 0 | CN141: 0 | CO141: 0 | CP141: 0 | CQ141: 0 | CR141: 0 | CS141: 0 | CT141: 0 | CU141: 0 | CV141: 0 | CW141: 0 | CX141: 0 | CY141: 0 | CZ141: 0 | DA141: 0 | DB141: 0 | DC141: 0 | DD141: 0 | DE141: 0 | DF141: 0 | DG141: 0 | DH141: 0
C142: > 33 kV & < = 66 kV ; Circuit Breaker REFURBISHED | F142: 6 | G142: 10 | H142: 11 | I142: 14 | J142: 40 | K142: 41 | L142: 30 | M142: 15 | N142: 24 | O142: 16 | P142: 20 | Q142: 11 | R142: 2 | S142: 14 | T142: 11 | U142: 8 | V142: 6 | W142: 2 | X142: 7 | Y142: 1 | Z142: 1 | AA142: 1 | AB142: 0 | AC142: 0 | AD142: 2 | AE142: 8 | AF142: 0 | AG142: 13 | AH142: 6 | AI142: 4 | AJ142: 2 | AK142: 12 | AL142: 11 | AM142: 0 | AN142: 10 | AO142: 0 | AP142: 0 | AQ142: 0 | AR142: 0 | AS142: 0 | AT142: 0 | AU142: 0 | AV142: 0 | AW142: 2 | AX142: 9 | AY142: 11 | AZ142: 24 | BA142: 6 | BB142: 6 | BC142: 3 | BD142: 0 | BE142: 15 | BF142: 12 | BG142: 0 | BH142: 0 | BI142: 0 | BJ142: 0 | BK142: 2 | BL142: 7 | BM142: 0 | BN142: 0 | BO142: 3 | BP142: 8 | BQ142: 0 | BR142: 8 | BS142: 0 | BT142: 0 | BU142: 0 | BV142: 1 | BW142: 0 | BX142: 0 | BY142: 0 | BZ142: 0 | CA142: 0 | CB142: 0 | CC142: 0 | CD142: 0 | CE142: 0 | CF142: 0 | CG142: 0 | CH142: 0 | CI142: 0 | CJ142: 0 | CK142: 0 | CL142: 0 | CM142: 0 | CN142: 0 | CO142: 0 | CP142: 0 | CQ142: 0 | CR142: 0 | CS142: 0 | CT142: 0 | CU142: 0 | CV142: 0 | CW142: 0 | CX142: 0 | CY142: 0 | CZ142: 0 | DA142: 0 | DB142: 0 | DC142: 0 | DD142: 0 | DE142: 0 | DF142: 0 | DG142: 0 | DH142: 0

Sheet 5.3 MD - Network level
B1: REGULATORY REPORTING STATEMENT
B2: =INDEX(dms_TradingNameFull_List,MATCH(dms_TradingName,dms_TradingName_List)) -> SA Power Networks
B3: =CONCATENATE((LOOKUP(dms_Model,dms_Model_List,dms_Worksheet_List))&" "&CRY) -> CATEGORY ANALYSIS 2015-16
B4: 5.3 MAXIMUM DEMAND AT NETWORK LEVEL
B7: 5.3.1 - RAW AND WEATHER CORRECTED COINCIDENT MD AT NETWORK LEVEL (Summed at transmission connection point)
C8: UNIT | D8: =CRY -> 2015-16
B9: Raw network coincident MD | C9: MW | D9: 2619.675
B10: Date MD occurred | D10: 2015-12-17
B11: Half hour time period MD occurred | D11: 19:00:00
B12: Winter/summer peaking | D12: Summer
B13: Embedded generation | C13: MW | D13: 88.622
B14: Weather corrected (10% POE) network coincident MD | C14: MW
B15: Weather corrected (50% POE) network coincident MD | C15: MW

Sheet 5.4 MD & utilisation-Spatial
B1: REGULATORY REPORTING STATEMENT
B2: =INDEX(dms_TradingNameFull_List,MATCH(dms_TradingName,dms_TradingName_List)) -> SA Power Networks
B3: =CONCATENATE((LOOKUP(dms_Model,dms_Model_List,dms_Worksheet_List))&" "&CRY) -> CATEGORY ANALYSIS 2015-16
B4: 5.4 MAXIMUM DEMAND AND UTILISATION AT SPATIAL LEVEL
B6: There is ONE table on this worksheet. It has two sub-tables based on the Network Level. Each sub-table has been grouped for ease of navigation. See the Instructions sheet on how to group or ungroup data.
B8: 5.4.1 NON-COINCIDENT & COINCIDENT MAXIMUM DEMAND
B9: NETWORK LEVEL | C9: SUBSTATION | D9: FORECASTING ELEMENTS | E9: UNIT | F9: MAX DEMAND | G9: =CRY -> 2015-16
B10: SUBTRANSMISSION SUBSTATION | C10: Angas Creek 33kV | D10: Substation Rating | E10: MVA | F10: Non-Coincident | G10: 53.9
F11: Coincident | G11: 53.9
D12: Raw Adjusted MD | E12: MW | F12: Non-Coincident | G12: 17.6483
F13: Coincident | G13: 17.0788
D14: Raw Adjusted MD | E14: MVA | F14: Non-Coincident | G14: 18.46655561
F15: Coincident | G15: 17.91798599
D16: Date MD occurred | F16: Non-Coincident | G16: 2015-12-18
F17: Coincident | G17: 2015-12-17
D18: Half hour time period MD occurred | F18: Non-Coincident | G18: 19:00:00
F19: Coincident | G19: 19:00:00
D20: Winter/Summer Peaking | F20: Non-Coincident | G20: Summer
F21: Coincident | G21: Summer
D22: Adjustments - Embedded generation | E22: MW | F22: Non-Coincident | G22: 0.6423752
F23: Coincident | G23: 0.6423752
D24: Weather Corrected MD 10% POE | E24: MW | F24: Non-Coincident | G24: 17.25128159
F25: Coincident | G25: 16.69459313
D26: Weather Corrected MD 10% POE | E26: MVA | F26: Non-Coincident | G26: 18.05112961
F27: Coincident | G27: 17.51490069
D28: Weather Corrected MD 50% POE | E28: MW | F28: Non-Coincident | G28: 15.84346192
F29: Coincident | G29: 15.33220295
D30: Weather Corrected MD 50% POE | E30: MVA | F30: Non-Coincident | G30: 16.57803701
F31: Coincident | G31: 16.08556794
C32: Ardrossan West 33kV | D32: Substation Rating | E32: MVA | F32: Non-Coincident | G32: 62
F33: Coincident | G33: 62
D34: Raw Adjusted MD | E34: MW | F34: Non-Coincident | G34: 10.6138
F35: Coincident | G35: 8.5258
D36: Raw Adjusted MD | E36: MVA | F36: Non-Coincident | G36: 10.80573515
F37: Coincident | G37: 8.678718203
D38: Date MD occurred | F38: Non-Coincident | G38: 2015-12-30
F39: Coincident | G39: 2015-12-17
D40: Half hour time period MD occurred | F40: Non-Coincident | G40: 19:00:00
F41: Coincident | G41: 19:00:00
D42: Winter/Summer Peaking | F42: Non-Coincident | G42: Summer
F43: Coincident | G43: Summer
D44: Adjustments - Embedded generation | E44: MW | F44: Non-Coincident | G44: 0.4484096
F45: Coincident | G45: 0.4484096
D46: Weather Corrected MD 10% POE | E46: MW | F46: Non-Coincident | G46: 9.173299232
F47: Coincident | G47: 7.368681772
D48: Weather Corrected MD 10% POE | E48: MVA | F48: Non-Coincident | G48: 9.339185022
F49: Coincident | G49: 7.500845976
D50: Weather Corrected MD 50% POE | E50: MW | F50: Non-Coincident | G50: 8.209491556
F51: Coincident | G51: 6.594479179
D52: Weather Corrected MD 50% POE | E52: MVA | F52: Non-Coincident | G52: 8.357948284
F53: Coincident | G53: 6.712757335
C54: Baroota 33kV | D54: Substation Rating | E54: MVA | F54: Non-Coincident | G54: 11.8
F55: Coincident | G55: 11.8
D56: Raw Adjusted MD | E56: MW | F56: Non-Coincident | G56: 7.8141
F57: Coincident | G57: 7.2428
D58: Raw Adjusted MD | E58: MVA | F58: Non-Coincident | G58: 7.840224427
F59: Coincident | G59: 7.26129274
D60: Date MD occurred | F60: Non-Coincident | G60: 2015-12-19
F61: Coincident | G61: 2015-12-17
D62: Half hour time period MD occurred | F62: Non-Coincident | G62: 19:30:00
F63: Coincident | G63: 19:00:00
D64: Winter/Summer Peaking | F64: Non-Coincident | G64: Summer
F65: Coincident | G65: Summer
D66: Adjustments - Embedded generation | E66: MW | F66: Non-Coincident | G66: 0.1144665087
F67: Coincident | G67: 0.2810664
D68: Weather Corrected MD 10% POE | E68: MW | F68: Non-Coincident | G68: 7.748569857
F69: Coincident | G69: 7.182060859
D70: Weather Corrected MD 10% POE | E70: MVA | F70: Non-Coincident | G70: 7.7744752
F71: Coincident | G71: 7.200398516
D72: Weather Corrected MD 50% POE | E72: MW | F72: Non-Coincident | G72: 7.072670171
F73: Coincident | G73: 6.555577163
D74: Weather Corrected MD 50% POE | E74: MVA | F74: Non-Coincident | G74: 7.096315818
F75: Coincident | G75: 6.572315246
C76: Berri + Monash 66kV | D76: Substation Rating | E76: MVA | F76: Non-Coincident | G76: 190
F77: Coincident | G77: 190
D78: Raw Adjusted MD | E78: MW | F78: Non-Coincident | G78: 84.4121
F79: Coincident | G79: 80.7499
D80: Raw Adjusted MD | E80: MVA | F80: Non-Coincident | G80: 86.41806502
F81: Coincident | G81: 82.6069952
D82: Date MD occurred | F82: Non-Coincident | G82: 2015-12-18
F83: Coincident | G83: 2015-12-17
D84: Half hour time period MD occurred | F84: Non-Coincident | G84: 18:00:00
F85: Coincident | G85: 19:00:00
D86: Winter/Summer Peaking | F86: Non-Coincident | G86: Summer
F87: Coincident | G87: Summer
D88: Adjustments - Embedded generation | E88: MW | F88: Non-Coincident | G88: 4.745224
F89: Coincident | G89: 1.725536
D90: Weather Corrected MD 10% POE | E90: MW | F90: Non-Coincident | G90: 91.00204135
F91: Coincident | G91: 87.05393823
D92: Weather Corrected MD 10% POE | E92: MVA | F92: Non-Coincident | G92: 93.16460941
F93: Coincident | G93: 89.0560144
D94: Weather Corrected MD 50% POE | E94: MW | F94: Non-Coincident | G94: 83.44878815
F95: Coincident | G95: 79.82838122
D96: Weather Corrected MD 50% POE | E96: MVA | F96: Non-Coincident | G96: 85.43186107
F97: Coincident | G97: 81.66428323
C98: Blanche 33kV | D98: Substation Rating | E98: MVA | F98: Non-Coincident | G98: 126.3
F99: Coincident | G99: 126.3
D100: Raw Adjusted MD | E100: MW | F100: Non-Coincident | G100: 33.2773
F101: Coincident | G101: 30.9607
D102: Raw Adjusted MD | E102: MVA | F102: Non-Coincident | G102: 34.73483261
F103: Coincident | G103: 31.89106496
D104: Date MD occurred | F104: Non-Coincident | G104: 2016-01-13
F105: Coincident | G105: 2015-12-17
D106: Half hour time period MD occurred | F106: Non-Coincident | G106: 15:00:00
F107: Coincident | G107: 19:00:00
D108: Winter/Summer Peaking | F108: Non-Coincident | G108: Summer
F109: Coincident | G109: Summer
D110: Adjustments - Embedded generation | E110: MW | F110: Non-Coincident | G110: 2.9839014
F111: Coincident | G111: 0.4045968
D112: Weather Corrected MD 10% POE | E112: MW | F112: Non-Coincident | G112: 32.75895312
F113: Coincident | G113: 30.47843785
D114: Weather Corrected MD 10% POE | E114: MVA | F114: Non-Coincident | G114: 34.19378234
F115: Coincident | G115: 31.39431089
D116: Weather Corrected MD 50% POE | E116: MW | F116: Non-Coincident | G116: 31.37737965
F117: Coincident | G117: 29.19304265
D118: Weather Corrected MD 50% POE | E118: MVA | F118: Non-Coincident | G118: 32.75169649
F119: Coincident | G119: 30.07028973
C120: Brinkworth 33kV | D120: Substation Rating | E120: MVA | F120: Non-Coincident | G120: 24.6
F121: Coincident | G121: 24.6
D122: Raw Adjusted MD | E122: MW | F122: Non-Coincident | G122: 4.6221
F123: Coincident | G123: 4.5614
D124: Raw Adjusted MD | E124: MVA | F124: Non-Coincident | G124: 4.622552812
F125: Coincident | G125: 4.561678432
D126: Date MD occurred | F126: Non-Coincident | G126: 2015-12-17
F127: Coincident | G127: 2015-12-17
D128: Half hour time period MD occurred | F128: Non-Coincident | G128: 19:30:00
F129: Coincident | G129: 19:00:00
D130: Winter/Summer Peaking | F130: Non-Coincident | G130: Summer
F131: Coincident | G131: Summer
D132: Adjustments - Embedded generation | E132: MW | F132: Non-Coincident | G132: 0.0615373186
F133: Coincident | G133: 0.1511016
D134: Weather Corrected MD 10% POE | E134: MW | F134: Non-Coincident | G134: 4.643275489
F135: Coincident | G135: 4.582297401
D136: Weather Corrected MD 10% POE | E136: MVA | F136: Non-Coincident | G136: 4.643730376
F137: Coincident | G137: 4.582577109
D138: Weather Corrected MD 50% POE | E138: MW | F138: Non-Coincident | G138: 4.196650269
F139: Coincident | G139: 4.141537513
D140: Weather Corrected MD 50% POE | E140: MVA | F140: Non-Coincident | G140: 4.197061401
F141: Coincident | G141: 4.141790316
C142: Clare North 33kV | D142: Substation Rating | E142: MVA | F142: Non-Coincident | G142: 80
F143: Coincident | G143: 80
D144: Raw Adjusted MD | E144: MW | F144: Non-Coincident | G144: 10.9416
F145: Coincident | G145: 10.9416
D146: Raw Adjusted MD | E146: MVA | F146: Non-Coincident | G146: 11.30989221
F147: Coincident | G147: 11.30989221
D148: Date MD occurred | F148: Non-Coincident | G148: 2015-12-17
F149: Coincident | G149: 2015-12-17
D150: Half hour time period MD occurred | F150: Non-Coincident | G150: 19:00:00
F151: Coincident | G151: 19:00:00
D152: Winter/Summer Peaking | F152: Non-Coincident | G152: Summer
F153: Coincident | G153: Summer
D154: Adjustments - Embedded generation | E154: MW | F154: Non-Coincident | G154: 0.299064
F155: Coincident | G155: 0.299064
D156: Weather Corrected MD 10% POE | E156: MW | F156: Non-Coincident | G156: 11.87378839
F157: Coincident | G157: 11.87378839
D158: Weather Corrected MD 10% POE | E158: MVA | F158: Non-Coincident | G158: 12.27345789
F159: Coincident | G159: 12.27345789
D160: Weather Corrected MD 50% POE | E160: MW | F160: Non-Coincident | G160: 10.75978259
F161: Coincident | G161: 10.75978259
D162: Weather Corrected MD 50% POE | E162: MVA | F162: Non-Coincident | G162: 11.12195486
F163: Coincident | G163: 11.12195486
C164: Dalrymple 33kV | D164: Substation Rating | E164: MVA | F164: Non-Coincident | G164: 31
F165: Coincident | G165: 31
D166: Raw Adjusted MD | E166: MW | F166: Non-Coincident | G166: 7.3848
F167: Coincident | G167: 5.8877
D168: Raw Adjusted MD | E168: MVA | F168: Non-Coincident | G168: 7.415439205
F169: Coincident | G169: 5.893602377
D170: Date MD occurred | F170: Non-Coincident | G170: 2015-12-31
F171: Coincident | G171: 2015-12-17
D172: Half hour time period MD occurred | F172: Non-Coincident | G172: 19:00:00
F173: Coincident | G173: 19:00:00
D174: Winter/Summer Peaking | F174: Non-Coincident | G174: Summer
F175: Coincident | G175: Summer
D176: Adjustments - Embedded generation | E176: MW | F176: Non-Coincident | G176: 0.2906816
F177: Coincident | G177: 0.2906816
D178: Weather Corrected MD 10% POE | E178: MW | F178: Non-Coincident | G178: 5.746229321
F179: Coincident | G179: 4.581312205
D180: Weather Corrected MD 10% POE | E180: MVA | F180: Non-Coincident | G180: 5.770070169
F181: Coincident | G181: 4.585904938
D182: Weather Corrected MD 50% POE | E182: MW | F182: Non-Coincident | G182: 5.19465007
F183: Coincident | G183: 4.141553085
D184: Weather Corrected MD 50% POE | E184: MVA | F184: Non-Coincident | G184: 5.216202441
F185: Coincident | G185: 4.145704962
C186: Davenport West 33kV | D186: Substation Rating | E186: MVA | F186: Non-Coincident | G186: 120
F187: Coincident | G187: 120
D188: Raw Adjusted MD | E188: MW | F188: Non-Coincident | G188: 27.2216
F189: Coincident | G189: 25.3283
D190: Raw Adjusted MD | E190: MVA | F190: Non-Coincident | G190: 28.30389657
F191: Coincident | G191: 25.83835472
D192: Date MD occurred | F192: Non-Coincident | G192: 2016-02-23
F193: Coincident | G193: 2015-12-17
D194: Half hour time period MD occurred | F194: Non-Coincident | G194: 17:00:00
F195: Coincident | G195: 19:00:00
D196: Winter/Summer Peaking | F196: Non-Coincident | G196: Summer
F197: Coincident | G197: Summer
D198: Adjustments - Embedded generation | E198: MW | F198: Non-Coincident | G198: 3.0805401
F199: Coincident | G199: 0.7467976
D200: Weather Corrected MD 10% POE | E200: MW | F200: Non-Coincident | G200: 29.56742393
F201: Coincident | G201: 27.51096863
D202: Weather Corrected MD 10% POE | E202: MVA | F202: Non-Coincident | G202: 30.74298751
... 11226 more rows

Sheet 6.3 Sustained interruptionss
B1: REGULATORY REPORTING STATEMENT
B2: =INDEX(dms_TradingNameFull_List,MATCH(dms_TradingName,dms_TradingName_List)) -> SA Power Networks
B3: =CONCATENATE((LOOKUP(dms_Model,dms_Model_List,dms_Worksheet_List))&" "&CRY) -> CATEGORY ANALYSIS 2015-16
B4: 6.3 SUSTAINED INTERRUPTIONS TO SUPPLY
B6: 6.3.1 - SUSTAINED INTERRUPTIONS TO SUPPLY (for 2015-16)
B8: There is ONE table on this worksheet. It has been grouped into five subgroups of 10000 rows each for navigation purposes. See the Instructions sheet on how to group and ungroup data.
B10: Definitions:
B11: Feeder classification definitions (column E) | F11: Average duration of sustained customer interruption (column I) | H11: Average duration of sustained customer interruption (column J) | K11: Effect on unplanned SAIFI (column K)
B12: CBD feeder: a feeder supplying predominantly commercial, high-rise buildings, supplied by a predominantly underground distribution network containing significant interconnection and redundancy when compared to urban areas. Urban feeder: a feeder, that is not a CBD feeder, with actual maximum demand over the reporting period per total feeder route length greater than 0.3 MVA/km. Short rural feeder: a feeder that is not a CBD or urban feeder with a total feeder route length less than 200 km. Long rural feeder: a feeder that is not a CBD or urban feeder with a total feeder route length greater than 200 km. | F12: The average duration of an interruption experienced by an affected customer. | H12: The sum of the duration of each unplanned sustained customer interruption (in minutes) divided by the total number of distribution customers. Unplanned SAIDI excludes momentary interruptions (one minute or less). | K12: The total number of unplanned sustained customer interruptions divided by the total number of distribution customers. Unplanned SAIFI excludes momentary interruptions (one minute or less). SAIFI is expressed per 0.01 interruptions.
B14: Date of event (DD/MM/YYYY) | C14: Time of interruption (HH:MM) | D14: Asset ID (eg. feeder ID) | E14: Feeder classification (CBD, Urban, Short rural, Long rural) | F14: Reason for interruption (select from options in drop-down box) | G14: Detailed reason for interruption (select from options in column 'O' that correspond with reason in column 'F') | H14: Number of customers affected by the interruption | I14: Average duration of sustained customer interruption (minutes) | J14: Average duration of sustained customer interruption | K14: Effect on unplanned SAIFI (by feeder classification) | L14: MED
B15: 1/07/2015 | C15: 00:34 | D15: HH130G | E15: Urban | F15: Planned | H15: 1 | I15: 261 | J15: 0.000439 | K15: 1.68e-06
B16: 1/07/2015 | C16: 03:31 | D16: VH22 | E16: Rural Short | F16: Asset failure | G16: HV | H16: 61 | I16: 317.1639344 | J16: 0.160856 | K16: 0.00050717
B17: 1/07/2015 | C17: 06:50 | D17: KI56 | E17: Rural Long | F17: Asset failure | G17: HV | H17: 2 | I17: 193 | J17: 0.002786 | K17: 1.444e-05
B18: 1/07/2015 | C18: 07:29 | D18: SM216E | E18: Urban | F18: Overloads | H18: 1 | I18: 240 | J18: 0.000404 | K18: 1.68e-06
B19: 1/07/2015 | C19: 07:43 | D19: AP372D | E19: Urban | F19: Planned | H19: 71 | I19: 319 | J19: 0.038082 | K19: 0.00011938
B20: 1/07/2015 | C20: 08:11 | D20: EL01N | E20: Urban | F20: Asset failure | G20: LV | H20: 1 | I20: 256 | J20: 0.00043 | K20: 1.68e-06
B21: 1/07/2015 | C21: 08:19 | D21: NL210E | E21: Urban | F21: Planned | H21: 45 | I21: 415 | J21: 0.0314 | K21: 7.566e-05
B22: 1/07/2015 | C22: 08:27 | D22: NL210E | E22: Urban | F22: Planned | H22: 50 | I22: 404 | J22: 0.033965 | K22: 8.407e-05
B23: 1/07/2015 | C23: 08:32 | D23: YK17 | E23: Rural Long | F23: Planned | H23: 142 | I23: 388 | J23: 0.397687 | K23: 0.00102497
B24: 1/07/2015 | C24: 08:36 | D24: SM374A | E24: Urban | F24: Planned | H24: 74 | I24: 236 | J24: 0.029364 | K24: 0.00012442
B25: 1/07/2015 | C25: 08:39 | D25: AP529D | E25: Urban | F25: Planned | H25: 9 | I25: 309 | J25: 0.004676 | K25: 1.513e-05
B26: 1/07/2015 | C26: 08:48 | D26: MTB61 | E26: Rural Short | F26: Planned | H26: 86 | I26: 345 | J26: 0.246685 | K26: 0.00071503
B27: 1/07/2015 | C27: 08:48 | D27: HH145B | E27: Urban | F27: Planned | H27: 81 | I27: 334 | J27: 0.045489 | K27: 0.00013619
B28: 1/07/2015 | C28: 08:53 | D28: AP355H | E28: Urban | F28: Planned | H28: 70 | I28: 340 | J28: 0.040018 | K28: 0.0001177
B29: 1/07/2015 | C29: 09:00 | D29: KI57 | E29: Rural Short | F29: Planned | H29: 4 | I29: 18 | J29: 0.000599 | K29: 3.326e-05
B30: 1/07/2015 | C30: 09:08 | D30: GA50 | E30: Urban | F30: Planned | H30: 32 | I30: 175 | J30: 0.009416 | K30: 5.381e-05
B31: 1/07/2015 | C31: 09:10 | D31: SM172E | E31: Urban | F31: Planned | H31: 13 | I31: 272 | J31: 0.005945 | K31: 2.186e-05
B32: 1/07/2015 | C32: 09:13 | D32: BT20 | E32: Rural Long | F32: Planned | H32: 4 | I32: 301.5 | J32: 0.008705 | K32: 2.887e-05
B33: 1/07/2015 | C33: 09:15 | D33: AP529D | E33: Urban | F33: Planned | H33: 2 | I33: 264 | J33: 0.000888 | K33: 3.36e-06
B34: 1/07/2015 | C34: 09:17 | D34: SM172E | E34: Urban | F34: Planned | H34: 1 | I34: 64 | J34: 0.000108 | K34: 1.68e-06
B35: 1/07/2015 | C35: 09:21 | D35: PP07 | E35: Rural Long | F35: Unknown | G35: Unknown | H35: 2 | I35: 437 | J35: 0.006309 | K35: 1.444e-05
B36: 1/07/2015 | C36: 09:25 | D36: PP12 | E36: Rural Long | F36: Planned | H36: 32 | I36: 173 | J36: 0.039959 | K36: 0.00023098
B37: 1/07/2015 | C37: 09:25 | D37: HH121C | E37: Urban | F37: Planned | H37: 70 | I37: 331 | J37: 0.038958 | K37: 0.0001177
B38: 1/07/2015 | C38: 09:29 | D38: SM411D | E38: Urban | F38: Planned | H38: 31 | I38: 342 | J38: 0.017826 | K38: 5.212e-05
B39: 1/07/2015 | C39: 09:37 | D39: MB44 | E39: Rural Long | F39: Planned | H39: 63 | I39: 97 | J39: 0.04411 | K39: 0.00045474
B40: 1/07/2015 | C40: 09:41 | D40: HH341C | E40: Urban | F40: Overloads | H40: 1 | I40: 76 | J40: 0.000128 | K40: 1.68e-06
B41: 1/07/2015 | C41: 09:48 | D41: CM03 | E41: Rural Long | F41: Planned | H41: 46 | I41: 76 | J41: 0.025234 | K41: 0.00033203
B42: 1/07/2015 | C42: 09:54 | D42: AP373E | E42: Urban | F42: Asset failure | G42: LV | H42: 1 | I42: 102 | J42: 0.000172 | K42: 1.68e-06
B43: 1/07/2015 | C43: 10:13 | D43: SM172E | E43: Urban | F43: Planned | H43: 1 | I43: 289 | J43: 0.000486 | K43: 1.68e-06
B44: 1/07/2015 | C44: 10:41 | D44: KI57 | E44: Rural Short | F44: Planned | H44: 7 | I44: 32 | J44: 0.001862 | K44: 5.82e-05
B45: 1/07/2015 | C45: 12:05 | D45: KA03 | E45: Rural Long | F45: Unknown | G45: Unknown | H45: 15 | I45: 15 | J45: 0.001624 | K45: 0.00010827
B46: 1/07/2015 | C46: 12:39 | D46: R20 | E46: Rural Long | F46: Planned | H46: 28 | I46: 107 | J46: 0.021625 | K46: 0.00020211
B47: 1/07/2015 | C47: 12:42 | D47: NU21 | E47: Rural Long | F47: Planned | H47: 34 | I47: 101 | J47: 0.024787 | K47: 0.00024541
B48: 1/07/2015 | C48: 13:56 | D48: SB01 | E48: Rural Long | F48: Unknown | G48: Unknown | H48: 2 | I48: 37 | J48: 0.000534 | K48: 1.444e-05
B49: 1/07/2015 | C49: 13:57 | D49: BM35 | E49: Rural Short | F49: Asset failure | G49: LV | H49: 1.999998 | I49: 92 | J49: 0.00153 | K49: 1.663e-05
B50: 1/07/2015 | C50: 14:31 | D50: MTB11 | E50: Rural Short | F50: Asset failure | G50: LV | H50: 1 | I50: 87 | J50: 0.000723 | K50: 8.31e-06
B51: 1/07/2015 | C51: 14:40 | D51: LX71 | E51: Rural Long | F51: Asset failure | G51: HV | H51: 52 | I51: 40 | J51: 0.015014 | K51: 0.00037534
B52: 1/07/2015 | C52: 15:25 | D52: MV31 | E52: Rural Short | F52: Unknown | G52: Unknown | H52: 1.333332 | I52: 99 | J52: 0.001097 | K52: 1.109e-05
B53: 1/07/2015 | C53: 15:41 | D53: SM349F | E53: Urban | F53: Overloads | H53: 1 | I53: 177 | J53: 0.000298 | K53: 1.68e-06
B54: 1/07/2015 | C54: 15:42 | D54: HH432B | E54: Urban | F54: Third Party | G54: Other | H54: 1 | I54: 80 | J54: 0.000135 | K54: 1.68e-06
B55: 1/07/2015 | C55: 16:26 | D55: HH121C | E55: Urban | F55: Asset failure | G55: LV | H55: 55 | I55: 83 | J55: 0.007676 | K55: 9.248e-05
B56: 1/07/2015 | C56: 17:16 | D56: SG09 | E56: Rural Short | F56: Asset failure | G56: LV | H56: 1 | I56: 264 | J56: 0.002195 | K56: 8.31e-06
B57: 1/07/2015 | C57: 18:28 | D57: SM411A | E57: Urban | F57: Asset failure | G57: LV | H57: 41.999958 | I57: 101 | J57: 0.007133 | K57: 7.062e-05
B58: 1/07/2015 | C58: 19:28 | D58: SM410A | E58: Urban | F58: Asset failure | G58: LV | H58: 31.666635 | I58: 127 | J58: 0.006762 | K58: 5.324e-05
B59: 2/07/2015 | C59: 07:50 | D59: SM216C | E59: Urban | F59: Planned | H59: 38 | I59: 125 | J59: 0.007987 | K59: 6.389e-05
B60: 2/07/2015 | C60: 07:56 | D60: MG31 | E60: Rural Long | F60: Asset failure | G60: LV | H60: 1 | I60: 246 | J60: 0.001776 | K60: 7.22e-06
B61: 2/07/2015 | C61: 07:58 | D61: GU34 | E61: Rural Long | F61: Asset failure | G61: HV | H61: 2 | I61: 292 | J61: 0.004215 | K61: 1.444e-05
B62: 2/07/2015 | C62: 08:02 | D62: HH403B | E62: Urban | F62: Overloads | H62: 1 | I62: 196 | J62: 0.00033 | K62: 1.68e-06
B63: 2/07/2015 | C63: 08:15 | D63: HH428D | E63: Urban | F63: Planned | H63: 63 | I63: 90 | J63: 0.009534 | K63: 0.00010593
B64: 2/07/2015 | C64: 08:16 | D64: VH21 | E64: Rural Short | F64: Planned | H64: 68 | I64: 402 | J64: 0.227279 | K64: 0.00056537
B65: 2/07/2015 | C65: 08:17 | D65: VH21 | E65: Rural Short | F65: Planned | H65: 104 | I65: 401 | J65: 0.346739 | K65: 0.00086469
B66: 2/07/2015 | C66: 08:26 | D66: AP372D | E66: Urban | F66: Planned | H66: 81 | I66: 291 | J66: 0.039633 | K66: 0.00013619
B67: 2/07/2015 | C67: 08:37 | D67: HH496A | E67: Urban | F67: Planned | H67: 33 | I67: 298 | J67: 0.016535 | K67: 5.549e-05
B68: 2/07/2015 | C68: 08:41 | D68: MG10 | E68: Rural Long | F68: Planned | H68: 18 | I68: 51 | J68: 0.006626 | K68: 0.00012993
B69: 2/07/2015 | C69: 08:42 | D69: NL115B | E69: Urban | F69: Planned | H69: 57 | I69: 368 | J69: 0.035269 | K69: 9.584e-05
B70: 2/07/2015 | C70: 08:44 | D70: NL115B | E70: Urban | F70: Planned | H70: 45 | I70: 366 | J70: 0.027693 | K70: 7.566e-05
B71: 2/07/2015 | C71: 08:45 | D71: NL115B | E71: Urban | F71: Planned | H71: 54 | I71: 366 | J71: 0.033232 | K71: 9.08e-05
B72: 2/07/2015 | C72: 08:47 | D72: HH522B | E72: Urban | F72: Planned | H72: 31 | I72: 115 | J72: 0.005994 | K72: 5.212e-05
B73: 2/07/2015 | C73: 08:47 | D73: HH177B | E73: Urban | F73: Planned | H73: 72 | I73: 179 | J73: 0.02167 | K73: 0.00012106
B74: 2/07/2015 | C74: 08:58 | D74: AP424A | E74: Urban | F74: Planned | H74: 95 | I74: 447 | J74: 0.071401 | K74: 0.00015973
B75: 2/07/2015 | C75: 09:08 | D75: VH21 | E75: Rural Short | F75: Planned | H75: 473 | I75: 319.7230444 | J75: 1.25736 | K75: 0.00393265
B76: 2/07/2015 | C76: 09:13 | D76: AP132D | E76: Urban | F76: Planned | H76: 82 | I76: 151 | J76: 0.020819 | K76: 0.00013788
B77: 2/07/2015 | C77: 09:15 | D77: AP365A | E77: Urban | F77: Planned | H77: 87 | I77: 150 | J77: 0.021943 | K77: 0.00014628
B78: 2/07/2015 | C78: 09:16 | D78: MV64 | E78: Rural Short | F78: Planned | H78: 121 | I78: 345 | J78: 0.34708 | K78: 0.00100603
B79: 2/07/2015 | C79: 09:24 | D79: W16 | E79: Rural Long | F79: Planned | H79: 13 | I79: 154 | J79: 0.014451 | K79: 9.384e-05
B80: 2/07/2015 | C80: 09:25 | D80: R24 | E80: Rural Long | F80: Planned | H80: 31 | I80: 200 | J80: 0.044752 | K80: 0.00022376
B81: 2/07/2015 | C81: 09:26 | D81: NA08 | E81: Rural Long | F81: Planned | H81: 789 | I81: 6 | J81: 0.03417 | K81: 0.00569506
B82: 2/07/2015 | C82: 09:42 | D82: NL115B | E82: Urban | F82: Planned | H82: 220 | I82: 235 | J82: 0.086929 | K82: 0.00036991
B83: 2/07/2015 | C83: 09:52 | D83: MI29 | E83: Urban | F83: Planned | H83: 2 | I83: 217 | J83: 0.00073 | K83: 3.36e-06
B84: 2/07/2015 | C84: 09:55 | D84: PP02 | E84: Urban | F84: Planned | H84: 67 | I84: 315 | J84: 0.035486 | K84: 0.00011266
B85: 2/07/2015 | C85: 10:01 | D85: CM26 | E85: Rural Long | F85: Asset failure | G85: HV | H85: 62 | I85: 172.2580645 | J85: 0.077089 | K85: 0.00044752
B86: 2/07/2015 | C86: 10:03 | D86: PA19 | E86: Rural Long | F86: Unknown | G86: Unknown | H86: 7 | I86: 85 | J86: 0.004295 | K86: 5.053e-05
B87: 2/07/2015 | C87: 10:06 | D87: SA744D | E87: Urban | F87: Asset failure | G87: LV | H87: 1 | I87: 116 | J87: 0.000195 | K87: 1.68e-06
B88: 2/07/2015 | C88: 10:10 | D88: MV64 | E88: Rural Short | F88: Planned | H88: 22 | I88: 268 | J88: 0.049021 | K88: 0.00018291
B89: 2/07/2015 | C89: 10:45 | D89: SD37301 | E89: Rural Short | F89: Planned | H89: 3 | I89: 235 | J89: 0.005862 | K89: 2.494e-05
B90: 2/07/2015 | C90: 11:18 | D90: HH107A | E90: Urban | F90: Planned | H90: 56 | I90: 183 | J90: 0.017231 | K90: 9.416e-05
B91: 2/07/2015 | C91: 11:22 | D91: GA36 | E91: Rural Long | F91: Planned | H91: 3 | I91: 179 | J91: 0.003876 | K91: 2.165e-05
B92: 2/07/2015 | C92: 11:30 | D92: HH386A | E92: Urban | F92: Asset failure | G92: LV | H92: 1 | I92: 221 | J92: 0.000372 | K92: 1.68e-06
B93: 2/07/2015 | C93: 12:09 | D93: MI14 | E93: Rural Long | F93: Overloads | H93: 2 | I93: 110 | J93: 0.001588 | K93: 1.444e-05
B94: 2/07/2015 | C94: 12:28 | D94: R16 | E94: Rural Long | F94: Planned | H94: 1 | I94: 18 | J94: 0.00013 | K94: 7.22e-06
B95: 2/07/2015 | C95: 12:58 | D95: HH341F | E95: Urban | F95: Planned | H95: 62 | I95: 154 | J95: 0.016054 | K95: 0.00010425
B96: 2/07/2015 | C96: 12:59 | D96: HH118E | E96: Urban | F96: Planned | H96: 62 | I96: 121 | J96: 0.012614 | K96: 0.00010425
B97: 2/07/2015 | C97: 13:05 | D97: MI14 | E97: Rural Long | F97: Asset failure | G97: LV | H97: 54 | I97: 161 | J97: 0.062754 | K97: 0.00038978
B98: 2/07/2015 | C98: 13:15 | D98: MTB22 | E98: Rural Short | F98: Planned | H98: 12 | I98: 62 | J98: 0.006186 | K98: 9.977e-05
B99: 2/07/2015 | C99: 13:15 | D99: EL01M | E99: Urban | F99: Asset failure | G99: LV | H99: 1 | I99: 91 | J99: 0.000153 | K99: 1.68e-06
B100: 2/07/2015 | C100: 14:00 | D100: R16 | E100: Rural Long | F100: Planned | H100: 1 | I100: 9 | J100: 6.5e-05 | K100: 7.22e-06
B101: 2/07/2015 | C101: 15:05 | D101: SB01 | E101: Rural Long | F101: Asset failure | G101: LV | H101: 1 | I101: 94 | J101: 0.000678 | K101: 7.22e-06
B102: 2/07/2015 | C102: 15:16 | D102: WK61 | E102: Rural Short | F102: Asset failure | G102: LV | H102: 1 | I102: 309 | J102: 0.002569 | K102: 8.31e-06
B103: 2/07/2015 | C103: 15:35 | D103: SM172D | E103: Urban | F103: Overloads | H103: 1 | I103: 335 | J103: 0.000563 | K103: 1.68e-06
B104: 2/07/2015 | C104: 17:05 | D104: BT02 | E104: Rural Long | F104: Vegetation | G104: Blow-in/Fall-in - NSP responsibility | H104: 91 | I104: 105.6703297 | J104: 0.069409 | K104: 0.00065685
B105: 2/07/2015 | C105: 17:30 | D105: KI45 | E105: Rural Long | F105: Unknown | G105: Unknown | H105: 1 | I105: 21 | J105: 0.000152 | K105: 7.22e-06
B106: 2/07/2015 | C106: 17:45 | D106: HH102C | E106: Urban | F106: Overloads | H106: 1 | I106: 502 | J106: 0.000844 | K106: 1.68e-06
B107: 2/07/2015 | C107: 18:03 | D107: NL111P | E107: Urban | F107: Asset failure | G107: LV | H107: 8 | I107: 157 | J107: 0.002112 | K107: 1.345e-05
B108: 2/07/2015 | C108: 18:14 | D108: GA02 | E108: Rural Short | F108: Asset failure | G108: LV | H108: 14.666652 | I108: 162 | J108: 0.019755 | K108: 0.00012194
B109: 2/07/2015 | C109: 20:26 | D109: NL115B | E109: Urban | F109: Unknown | G109: Unknown | H109: 44.333341 | I109: 242 | J109: 0.018039 | K109: 7.454e-05
B110: 2/07/2015 | C110: 21:08 | D110: SM349F | E110: Urban | F110: Overloads | H110: 20.333313 | I110: 84 | J110: 0.002872 | K110: 3.419e-05
B111: 3/07/2015 | C111: 00:10 | D111: NU20 | E111: Rural Long | F111: Unknown | G111: Unknown | H111: 7.333326 | I111: 167 | J111: 0.00884 | K111: 5.293e-05
B112: 3/07/2015 | C112: 07:26 | D112: NA33 | E112: Rural Long | F112: Asset failure | G112: HV | H112: 6 | I112: 162 | J112: 0.007016 | K112: 4.331e-05
B113: 3/07/2015 | C113: 08:02 | D113: SM349A | E113: Urban | F113: Planned | H113: 51 | I113: 264 | J113: 0.022639 | K113: 8.575e-05
B114: 3/07/2015 | C114: 08:04 | D114: SM349A | E114: Urban | F114: Planned | H114: 70 | I114: 264 | J114: 0.031073 | K114: 0.0001177
B115: 3/07/2015 | C115: 08:22 | D115: HH428F | E115: Urban | F115: Planned | H115: 87 | I115: 386 | J115: 0.056465 | K115: 0.00014628
B116: 3/07/2015 | C116: 08:23 | D116: GU32 | E116: Rural Long | F116: Asset failure | G116: LV | H116: 1 | I116: 138 | J116: 0.000996 | K116: 7.22e-06
B117: 3/07/2015 | C117: 08:24 | D117: HH130F | E117: Urban | F117: Planned | H117: 68 | I117: 151 | J117: 0.017265 | K117: 0.00011434
B118: 3/07/2015 | C118: 09:00 | D118: HH145A | E118: Urban | F118: Planned | H118: 41 | I118: 367 | J118: 0.0253 | K118: 6.894e-05
B119: 3/07/2015 | C119: 09:00 | D119: MT07 | E119: Rural Long | F119: Planned | H119: 1 | I119: 61 | J119: 0.00044 | K119: 7.22e-06
B120: 3/07/2015 | C120: 09:06 | D120: SSD180 | E120: Rural Long | F120: Planned | H120: 857 | I120: 3 | J120: 0.018558 | K120: 0.00618589
B121: 3/07/2015 | C121: 09:21 | D121: PA03 | E121: Urban | F121: Planned | H121: 48 | I121: 258 | J121: 0.020823 | K121: 8.071e-05
B122: 3/07/2015 | C122: 09:34 | D122: SM172D | E122: Urban | F122: Planned | H122: 353 | I122: 245.8555241 | J122: 0.145925 | K122: 0.00059354
B123: 3/07/2015 | C123: 10:23 | D123: HH386D | E123: Urban | F123: Planned | H123: 171 | I123: 122 | J123: 0.035078 | K123: 0.00028752
B124: 3/07/2015 | C124: 10:32 | D124: HH522B | E124: Urban | F124: Planned | H124: 635 | I124: 52.49606299 | J124: 0.05605 | K124: 0.0010677
B125: 3/07/2015 | C125: 11:00 | D125: BT06 | E125: Rural Long | F125: Planned | H125: 4 | I125: 44 | J125: 0.00127 | K125: 2.887e-05
B126: 3/07/2015 | C126: 11:53 | D126: HH341K | E126: Urban | F126: Asset failure | G126: LV | H126: 1 | I126: 55 | J126: 9.2e-05 | K126: 1.68e-06
B127: 3/07/2015 | C127: 12:02 | D127: MTB54 | E127: Rural Long | F127: Planned | H127: 53 | I127: 110 | J127: 0.042081 | K127: 0.00038256
B128: 3/07/2015 | C128: 12:13 | D128: KI21 | E128: Rural Long | F128: Planned | H128: 32 | I128: 103 | J128: 0.023791 | K128: 0.00023098
B129: 3/07/2015 | C129: 12:57 | D129: SM349H | E129: Urban | F129: Asset failure | G129: LV | H129: 1 | I129: 246 | J129: 0.000414 | K129: 1.68e-06
B130: 3/07/2015 | C130: 13:25 | D130: PP03 | E130: Urban | F130: Asset failure | G130: LV | H130: 1 | I130: 151 | J130: 0.000254 | K130: 1.68e-06
B131: 3/07/2015 | C131: 15:06 | D131: SB03 | E131: Rural Long | F131: Unknown | G131: Unknown | H131: 6.66666 | I131: 158 | J131: 0.007603 | K131: 4.812e-05
B132: 3/07/2015 | C132: 15:58 | D132: HH522B | E132: Urban | F132: Planned | H132: 1 | I132: 43 | J132: 7.2e-05 | K132: 1.68e-06
B133: 3/07/2015 | C133: 16:00 | D133: NL760C | E133: Urban | F133: Overloads | H133: 1 | I133: 151 | J133: 0.000254 | K133: 1.68e-06
B134: 3/07/2015 | C134: 17:52 | D134: MG09 | E134: Rural Short | F134: Asset failure | G134: LV | H134: 1 | I134: 948 | J134: 0.007882 | K134: 8.31e-06
B135: 3/07/2015 | C135: 19:28 | D135: AP227D | E135: Urban | F135: Unknown | G135: Unknown | H135: 15.999984 | I135: 131 | J135: 0.003524 | K135: 2.69e-05
B136: 3/07/2015 | C136: 19:29 | D136: AP149D | E136: Urban | F136: Overloads | H136: 1 | I136: 183 | J136: 0.000308 | K136: 1.68e-06
B137: 3/07/2015 | C137: 19:54 | D137: NL544A | E137: Urban | F137: Asset failure | G137: LV | H137: 25.666641 | I137: 34 | J137: 0.001467 | K137: 4.316e-05
B138: 3/07/2015 | C138: 21:18 | D138: SM350B | E138: Urban | F138: Asset failure | G138: LV | H138: 31.999968 | I138: 116 | J138: 0.006241 | K138: 5.381e-05
B139: 3/07/2015 | C139: 23:30 | D139: WHY09 | E139: Urban | F139: Unknown | G139: Unknown | H139: 26.333307 | I139: 193 | J139: 0.008546 | K139: 4.428e-05
B140: 4/07/2015 | C140: 01:16 | D140: SG03 | E140: Rural Short | F140: Other | H140: 50 | I140: 60 | J140: 0.024943 | K140: 0.00041571
B141: 4/07/2015 | C141: 03:00 | D141: M22 | E141: Rural Long | F141: Asset failure | G141: HV | H141: 1 | I141: 45 | J141: 0.000325 | K141: 7.22e-06
B142: 4/07/2015 | C142: 08:38 | D142: G17 | E142: Rural Long | F142: Animal | G142: Animal impact | H142: 5 | I142: 307 | J142: 0.01108 | K142: 3.609e-05
B143: 4/07/2015 | C143: 09:39 | D143: AP132D | E143: Urban | F143: Overloads | H143: 1 | I143: 119 | J143: 0.0002 | K143: 1.68e-06
B144: 4/07/2015 | C144: 10:10 | D144: MV33 | E144: Rural Short | F144: Third Party | G144: Other | H144: 35 | I144: 326.9142857 | J144: 0.095132 | K144: 0.000291
B145: 4/07/2015 | C145: 11:08 | D145: HH496C | E145: Urban | F145: Unknown | G145: Unknown | H145: 14.999985 | I145: 132 | J145: 0.003329 | K145: 2.522e-05
B146: 4/07/2015 | C146: 11:20 | D146: AP149D | E146: Urban | F146: Asset failure | G146: LV | H146: 1 | I146: 131 | J146: 0.00022 | K146: 1.68e-06
B147: 4/07/2015 | C147: 12:29 | D147: HH107B | E147: Urban | F147: Asset failure | G147: LV | H147: 2 | I147: 123 | J147: 0.000414 | K147: 3.36e-06
B148: 4/07/2015 | C148: 13:35 | D148: VH51 | E148: Rural Short | F148: Unknown | G148: Unknown | H148: 1 | I148: 343 | J148: 0.002852 | K148: 8.31e-06
B149: 4/07/2015 | C149: 13:48 | D149: AP214A | E149: Urban | F149: Asset failure | G149: LV | H149: 67 | I149: 123 | J149: 0.013857 | K149: 0.00011266
B150: 4/07/2015 | C150: 13:58 | D150: PP04 | E150: Rural Short | F150: Asset failure | G150: LV | H150: 1 | I150: 188 | J150: 0.001563 | K150: 8.31e-06
B151: 4/07/2015 | C151: 17:41 | D151: NL544B | E151: Urban | F151: Unknown | G151: Unknown | H151: 25.666641 | I151: 149 | J151: 0.00643 | K151: 4.316e-05
B152: 4/07/2015 | C152: 18:43 | D152: NA51 | E152: Rural Long | F152: Overloads | H152: 2.999997 | I152: 137 | J152: 0.002967 | K152: 2.165e-05
B153: 4/07/2015 | C153: 18:56 | D153: HH403A | E153: Urban | F153: Overloads | H153: 1 | I153: 99 | J153: 0.000166 | K153: 1.68e-06
B154: 5/07/2015 | C154: 01:39 | D154: AP425C | E154: Urban | F154: Overloads | H154: 1 | I154: 279 | J154: 0.000469 | K154: 1.68e-06
B155: 5/07/2015 | C155: 05:02 | D155: AP529D | E155: Urban | F155: Planned | H155: 6 | I155: 82 | J155: 0.000827 | K155: 1.009e-05
B156: 5/07/2015 | C156: 06:14 | D156: CBD412M | E156: Urban | F156: Third Party | G156: Vehicle impact | H156: 316 | I156: 157.9335443 | J156: 0.083915 | K156: 0.00053133
B157: 5/07/2015 | C157: 06:22 | D157: M21 | E157: Rural Long | F157: Unknown | G157: Unknown | H157: 88 | I157: 255.8068182 | J157: 0.162486 | K157: 0.00063519
B158: 5/07/2015 | C158: 07:10 | D158: ME200H | E158: Urban | F158: Planned | H158: 1 | I158: 289 | J158: 0.000486 | K158: 1.68e-06
B159: 5/07/2015 | C159: 07:46 | D159: SD571 | E159: Rural Long | F159: Animal | G159: Animal impact | H159: 4272 | I159: 20 | J159: 0.616713 | K159: 0.03083564
B160: 5/07/2015 | C160: 08:11 | D160: HH429C | E160: Urban | F160: Planned | H160: 57 | I160: 219 | J160: 0.020989 | K160: 9.584e-05
B161: 5/07/2015 | C161: 08:12 | D161: HH429C | E161: Urban | F161: Planned | H161: 41 | I161: 217 | J161: 0.01496 | K161: 6.894e-05
B162: 5/07/2015 | C162: 08:19 | D162: MTB13 | E162: Rural Short | F162: Planned | H162: 5 | I162: 160 | J162: 0.006651 | K162: 4.157e-05
B163: 5/07/2015 | C163: 08:21 | D163: AP139B | E163: Urban | F163: Asset failure | G163: LV | H163: 1 | I163: 121 | J163: 0.000203 | K163: 1.68e-06
B164: 5/07/2015 | C164: 08:34 | D164: AP529D | E164: Urban | F164: Planned | H164: 3 | I164: 62 | J164: 0.000313 | K164: 5.04e-06
B165: 5/07/2015 | C165: 08:47 | D165: EL04 | E165: Urban | F165: Planned | H165: 1 | I165: 316 | J165: 0.000531 | K165: 1.68e-06
B166: 5/07/2015 | C166: 08:57 | D166: AP355H | E166: Urban | F166: Planned | H166: 227 | I166: 120.3524229 | J166: 0.045936 | K166: 0.00038168
B167: 5/07/2015 | C167: 09:05 | D167: HH118C | E167: Urban | F167: Planned | H167: 153 | I167: 252 | J167: 0.064829 | K167: 0.00025726
B168: 5/07/2015 | C168: 09:37 | D168: SA31 | E168: Urban | F168: Asset failure | G168: LV | H168: 1 | I168: 40 | J168: 6.7e-05 | K168: 1.68e-06
B169: 5/07/2015 | C169: 11:05 | D169: M81 | E169: Rural Long | F169: Unknown | G169: Unknown | H169: 266 | I169: 150.556391 | J169: 0.28907 | K169: 0.00192001
B170: 5/07/2015 | C170: 11:48 | D170: SA744D | E170: Urban | F170: Asset failure | G170: LV | H170: 1 | I170: 71 | J170: 0.000119 | K170: 1.68e-06
B171: 5/07/2015 | C171: 12:57 | D171: EL01M | E171: Urban | F171: Asset failure | G171: LV | H171: 1 | I171: 73 | J171: 0.000123 | K171: 1.68e-06
B172: 5/07/2015 | C172: 13:16 | D172: CD05 | E172: Rural Long | F172: Asset failure | G172: HV | H172: 62 | I172: 235.7419355 | J172: 0.105499 | K172: 0.00044752
B173: 5/07/2015 | C173: 14:55 | D173: CBD366E | E173: Urban | F173: Asset failure | G173: HV | H173: 608 | I173: 81 | J173: 0.082806 | K173: 0.0010223
B174: 5/07/2015 | C174: 16:01 | D174: HH107D | E174: Urban | F174: Asset failure | G174: LV | H174: 50 | I174: 326 | J174: 0.027407 | K174: 8.407e-05
B175: 5/07/2015 | C175: 16:31 | D175: AP355E | E175: Urban | F175: Overloads | H175: 1 | I175: 84 | J175: 0.000141 | K175: 1.68e-06
B176: 5/07/2015 | C176: 16:36 | D176: EL18 | E176: Urban | F176: Asset failure | G176: LV | H176: 1 | I176: 41 | J176: 6.9e-05 | K176: 1.68e-06
B177: 5/07/2015 | C177: 17:29 | D177: HH386A | E177: Urban | F177: Overloads | H177: 1.333332 | I177: 263 | J177: 0.00059 | K177: 2.24e-06
B178: 5/07/2015 | C178: 17:29 | D178: CBD412M | E178: Urban | F178: Unknown | G178: Unknown | H178: 12 | I178: 48 | J178: 0.000968 | K178: 2.018e-05
B179: 5/07/2015 | C179: 17:33 | D179: CBD412M | E179: Urban | F179: Unknown | G179: Unknown | H179: 10 | I179: 74 | J179: 0.001244 | K179: 1.681e-05
B180: 5/07/2015 | C180: 17:40 | D180: GU43 | E180: Rural Long | F180: Asset failure | G180: LV | H180: 1 | I180: 159 | J180: 0.001148 | K180: 7.22e-06
B181: 5/07/2015 | C181: 17:49 | D181: SM411D | E181: Urban | F181: Asset failure | G181: LV | H181: 1 | I181: 197 | J181: 0.000331 | K181: 1.68e-06
B182: 5/07/2015 | C182: 18:00 | D182: AP227D | E182: Urban | F182: Asset failure | G182: LV | H182: 23.33331 | I182: 150 | J182: 0.005885 | K182: 3.923e-05
B183: 5/07/2015 | C183: 18:25 | D183: HH428A | E183: Urban | F183: Asset failure | G183: HV | H183: 92 | I183: 600 | J183: 0.092814 | K183: 0.00015469
B184: 5/07/2015 | C184: 18:55 | D184: G05 | E184: Rural Long | F184: Overloads | H184: 1 | I184: 296 | J184: 0.002137 | K184: 7.22e-06
B185: 5/07/2015 | C185: 20:44 | D185: SD381 | E185: Rural Long | F185: Unknown | G185: Unknown | H185: 2809 | I185: 5 | J185: 0.101378 | K185: 0.02027559
B186: 6/07/2015 | C186: 01:31 | D186: NU11 | E186: Rural Long | F186: Unknown | G186: Unknown | H186: 31 | I186: 239 | J186: 0.053479 | K186: 0.00022376
B187: 6/07/2015 | C187: 01:42 | D187: NL544B | E187: Urban | F187: Asset failure | G187: HV | H187: 1526 | I187: 130.3027523 | J187: 0.334337 | K187: 0.00256584
B188: 6/07/2015 | C188: 04:37 | D188: KI54 | E188: Rural Long | F188: Weather | H188: 84 | I188: 356 | J188: 0.215849 | K188: 0.00060632
B189: 6/07/2015 | C189: 05:10 | D189: NL111A | E189: Urban | F189: Vegetation | G189: Blow-in/Fall-in - NSP responsibility | H189: 879 | I189: 132 | J189: 0.195092 | K189: 0.00147797
B190: 6/07/2015 | C190: 08:00 | D190: AP372F | E190: Urban | F190: Planned | H190: 104 | I190: 348 | J190: 0.060854 | K190: 0.00017487
B191: 6/07/2015 | C191: 08:26 | D191: KA03 | E191: Rural Long | F191: Planned | H191: 85 | I191: 20.25882353 | J191: 0.01243 | K191: 0.00061354
B192: 6/07/2015 | C192: 08:34 | D192: MG03 | E192: Rural Short | F192: Planned | H192: 31 | I192: 76 | J192: 0.019588 | K192: 0.00025774
B193: 6/07/2015 | C193: 08:39 | D193: MV42 | E193: Rural Short | F193: Vegetation | G193: Blow-in/Fall-in - NSP responsibility | H193: 5 | I193: 81 | J193: 0.003367 | K193: 4.157e-05
B194: 6/07/2015 | C194: 08:39 | D194: HH177F | E194: Urban | F194: Asset failure | G194: LV | H194: 16.333317 | I194: 216 | J194: 0.005932 | K194: 2.746e-05
B195: 6/07/2015 | C195: 08:42 | D195: VH23 | E195: Rural Short | F195: Planned | H195: 58 | I195: 249 | J195: 0.120075 | K195: 0.00048223
B196: 6/07/2015 | C196: 08:43 | D196: VH23 | E196: Rural Short | F196: Planned | H196: 57 | I196: 249 | J196: 0.118005 | K196: 0.00047391
B197: 6/07/2015 | C197: 08:47 | D197: HH177F | E197: Urban | F197: Planned | H197: 25 | I197: 373 | J197: 0.015679 | K197: 4.204e-05
B198: 6/07/2015 | C198: 09:00 | D198: MB16 | E198: Rural Long | F198: Planned | H198: 1 | I198: 120 | J198: 0.000866 | K198: 7.22e-06
B199: 6/07/2015 | C199: 09:05 | D199: NU19 | E199: Rural Long | F199: Planned | H199: 85 | I199: 305.6470588 | J199: 0.187526 | K199: 0.00061354
B200: 6/07/2015 | C200: 09:37 | D200: W06 | E200: Rural Long | F200: Planned | H200: 316 | I200: 209 | J200: 0.476711 | K200: 0.00228091
B201: 6/07/2015 | C201: 09:46 | D201: HH496A | E201: Urban | F201: Planned | H201: 62 | I201: 247 | J201: 0.025749 | K201: 0.00010425
B202: 6/07/2015 | C202: 09:49 | D202: AP425D | E202: Urban | F202: Planned | H202: 89 | I202: 202 | J202: 0.030229 | K202: 0.00014965
B203: 6/07/2015 | C203: 10:01 | D203: MTB21 | E203: Rural Short | F203: Planned | H203: 2 | I203: 173 | J203: 0.002877 | K203: 1.663e-05
B204: 6/07/2015 | C204: 10:11 | D204: MB62 | E204: Rural Long | F204: Unknown | G204: Unknown | H204: 2 | I204: 297 | J204: 0.004288 | K204: 1.444e-05
... 2144 more rows

Sheet Amendments
B1: This sheet may be used to identify amendments made to data resubmitted to the AER.
B2: NSP data amendments
B3: Worksheet | C3: Table | D3: Comments

Sheet unlocked
